Workbook

Sheet Validation (hidden)
C4: All approved pricing is subject to final credit approval
C5: If a master agreement is created all items on the approval should be added to the MA. Once approved pricing is on a Master Agreement, the PE no longer needs to be extended.
C6: Professional services with a price of $1 - require a quote- purchase price is not $1.
C7: The attached pricing has been specifically approved for the stated entity only. This pricing shall not be offered or extended to any subsidiary, member, affiliate or any other entity, except for the specific entity stated herein, without the prior written consent of Konica Minolta Business Solutions U.S.A., Inc. This is true regardless and irrespective of any and all terms and conditions contained in any past, current or future agreements, which may conflict with this statement.
C8: Delivery & Basic Network Services are not included in any prices provided. They must be billed separately.
C9: Delivery & Basic Network Services for existing Key Account is to be handled in accordance with the terms of the master agreement.
C10: Price Exceptions are valid to make offers for 45 days. Beyond 45 days, a master agreement must be signed by the customer in accordance with the specific terms and conditions of the approved price exception. If master agreement already exists, then a signed schedule B must be provided to Contract Group within 45 days of price exception issuance.
C11: This is a one time exception , valid for this deal with these machine only.
C12: This pricing will be honored by Konica Minolta has a result of the customer signing an agreement acknowledging Konica Minolta as their sole contract provider
C13: Lease pricing is based on Fair Market Value rates
C14: Lease pricing is based on $1 out rates
C15: The attached service pricing for all production print models is provided predicated on 11x17 as a single click.
C16: A certificate of insurance will be provided upon award of a contract.
C17: This aggregate service pricing is only for the model types, quantities listed and volume provided as shown on this price schedule. Any variations regarding model type, quantities or volume from this price schedule may impact pricing and therefore require further price review before providing to customer. Any additional quantities or models needed by this customer beyond this initial agreed to quantity would need to be reviewed financially before adding at the same rate.
C18: Orders that do not match the pricing and terms of this opportunity profile will not be accepted.
C19: No cancellation privileges apply
C20: This contract is non-cancelable
C21: Cancellation for non-appropriation of funding is allowed
C22: Cancellation for non-performance is allowed
C23: Termination for convenience shall pertain only to ongoing contract placements only. Any machine installed prior to the date of termination shall remain in place for the balance of their respective contract terms. The customer shall continue to be contractually and financially responsible for such current leases, rentals and maintenance agreements.
C24: The customer will be allowed to cancel up to 10% of the aggregate lease amount, over term of this agreement for upgrade / downgrade or office closure.
C25: This is non-coterminous pricing. All machines must remain in place for a full term regardless of date of installation.
C26: This is coterminous pricing. All units will be removed on the same date regardless of date of installation. Add-on equipment will be priced based on the remaining term at the time of installation
C27: Any model not included on the attached approved price exception or any changes to approved prices provided will require a new price exception.
C28: This CPC with minimum is based on the customer making the designated number of copies per month. Billing will be for the copies made with the designated minimum copies per month
C29: Delivery & Basic Network Services and Removal are included in the prices provided. They do not need to be billed separately.
C30: Staples are included in CPC pricing unless otherwise indicated
C31: In order to qualify for KMPF rebate or special financing promotions, pricing for the entire transaction must be at Field Level Pricing. Approved Bid Desk Level Pricing will not qualify for rebates or special financing promotions unless otherwise stated. Please see actual promotion Terms and Conditions for additional qualifiers.
C32: Pricing included within this approval includes SPECIAL 3rd Party COST REDUCTION and requires special instructions to be included on the order. KM Sales/Admin Creates Order in SAP and References “KM Cost Reduction/Special Pricing” in the Header Texts tab under 3rd Party Supplier Notes field. If this note is not included in the order, the PE is invalid. PE must be attached to the order.

Sheet Approved Pricing Old (hidden)

Sheet Updates
A1: Konica Minolta Business Solutions U.S.A., Inc.
A2: SUMMARY OF UPDATES TO THE PRICE LIST
A3: Date | B3: Tab | C3: Action | D3: Explanation
A4: 2024-09-18 | B4: A & B Service | C4: Corrected Hard Drive Removal and Surrender Cost | D4: Corrected error in Hard Drive Removal and Surrender Cost to match all other service groups
A5: 2024-12-18 | B5: Group C | C5: Removed W200015120 Added XGPCS15DKM | D5: Replacement
C6: Removed AC3TWY2 Added AC3TWY3 | D6: Item number update
C7: Removed ACJ6WY1 Added ACJ6WY2 | D7: Item number update
C8: Removed ACWNWY1 Added ACWNWY2 | D8: Item number update
C9: Removed P350030240SIG | D9: Item number update
C10: Removed ACN1WY1 Added ACN1WY2& ACN1WY3 | D10: Item number update
A11: 2025-01-14 | B11: Group C | C11: Removed AC0D011 and Added AC0D01A | D11: Item number update
C12: Removed AC0C011 and Added AC0C01A | D12: Item number update
A13: 2025-02-18 | B13: Group E | C13: HP PageWide XL 3800 | D13: Add
C14: Inks and Printhead(s) | D14: Update
C15: Installation and HP Care Pack Warranty Service | D15: Update
C16: Remove 3920 Add 3950 | D16: Replacement
C17: Remove 4200 Add 4250 | D17: Replacement
B18: Group C | C18: Removed XGPCS15DKM Added P250015120 | D18: Replacement
B19: Sub-Group D-1 | C19: Removed W200015120 & XGPCS15DKM Added P250015120 | D19: Replacement
A20: 2025-03-14 | B20: Group A | C20: Added AAR4WYA | D20: Add
C21: Removed ACDKWY1 | D21: Remove
C22: Removed P250315120SIG | D22: Remove
C23: Removed P250320208SIG | D23: Remove
B24: Group A service | C24: 808 to 850i, 985 to 950i | D24: Update
B25: Group C | C25: Added A79AWY2 | D25: Add
B26: Group E | C26: Added HP DESIGNJET XT950 36-IN MFP | D26: Add
A27: 2025-05-20 | B27: Group A | C27: Remove A2YUWY3 Add ADDCWY1 | D27: Replacement
C28: Remove A3EUW12 Add ADDDW11 | D28: Replacement
C29: Add ACDKWY2 | D29: Add
B30: Group C | C30: Remove C12000 COPIER/PRINTER Add C12010 | D30: Replacement
C31: Remove C14000 COPIER/PRINTER Add C14010 | D31: Replacement
B32: Group E | C32: HP DESIGNJET Z6DR 44-IN PS PTR V-TRIM | D32: Add
A33: 2025-08-01 | B33: Group A- F | C33: MSRP Price Increase | D33: 5%-10% increase on hardware and corresponding accessories.
A34: 2025-09-11 | B34: Group B | C34: C4751i | D34: Add
B35: Group F | C35: ibml FUSiON 8300 | D35: Add
A36: 2025-10-01 | B36: Group C | C36: C7090e | D36: Add
C37: C7100e | D37: Add
C38: C7090 | D38: Remove
C39: C7100 | D39: Remove
C40: Remove AC57011 Add AC57012 | D40: Item number update
C41: Remove AC58011 Add AC58012 | D41: Item number update
C42: Remove ACC2011 Add ACC2012 | D42: Item number update
C43: Remove ADF2011 Add ADF2012 | D43: Item number update
C44: Remove AE1K011 Add AE1K012 | D44: Item number update
C45: Remove AE1M011 Add AE1M012 | D45: Item number update
C46: Remove AE1N011 Add AE1N012 | D46: Item number update
B47: Group A ,B, D | C47: W150015120 | D47: Remove
C48: W225015120 | D48: Add
B49: Group F | C49: ibml FUSiON 8200 | D49: Add
C50: Remove Full 8x5x4 - Hardware Add HWFULL854MS Remove Full 8x5x4 - Software Add SWFULL854MS | D50: Item number update
B51: Group E | C51: HP DESIGNJET Z6 44-IN PS PRINTER | D51: Add
C52: HP HEAVYWEIGHT COATED PAPER 42in X 100' | D52: Add
A53: 2025-11-13 | B53: Group B | C53: BIZHUB 4221I | D53: Add
C54: BIZHUB 5001I | D54: Add
C55: BIZHUB 5021I | D55: Add
B56: Group A, C | C56: Remove W200020120 Add W225020120 | D56: Item number update
C57: Remove W200020208 Add W225020208 | D57: Item number update
A58: 2025-12-16 | B58: Group B | C58: BIZHUB 4201I | D58: Add
B59: Group E | C59: HP PageWide XL PRO 5200 MFP | D59: Add

Sheet Table of Contents
A1: Konica Minolta Business Solutions U.S.A., Inc.
A2: TABLE OF CONTENTS
A4: Instructions - How to Calculate Monthly Lease Payment
A5: Lease and Rental Rates
A6: Group A - A3 Mutifunction Devices
A7: Group A Service
A8: Group B - A4 Multifunction Devices
A9: Group B Service
A10: Group C - Production Print
A11: Group C Service
A12: Sub Group C-1 - Stand Alone Production Devices
A13: Sub Group C-1 Service
A14: Sub Group C-2- Industrial Print Equipment
A15: Sub Group C-2 Service
A16: Group D- Single Function Printers
A17: Group D Service
A18: Sub Group D-1- Specialty Printers
A19: Sub Group D-1 Service
A20: Group E - Large/Wide Format
A21: Group E Service
A22: Group F -Scanners
A23: Group F Service
A24: Supplies
A25: Accessories for Discontinued Devices
A26: Discontinued Service Supplies
A27: After Hours

Sheet Instructions
A1: Konica Minolta Business Solutions U.S.A., Inc.
A2: Instructions - How to Calculate Monthly Lease Payment
A3: To calulate lease payments, mutiply the MSRP minus discount which is the contract purchase price by the applicable lease rate factor.
A4: Lease=purchase price*lease rate function
A5: Example:
A6: Model | B6: Description | D6: MSRP | E6: Discount off | F6: Contract | G6: Lease Rate Factor
E7: of MSRP | F7: Price | G7: 18M | H7: 24M | I7: 36M | J7: 48M | K7: 60M
G8: 0.0745 | H8: 0.0554 | I8: 0.0359 | J8: 0.0291 | K8: 0.0248
A9: C361I COLOR COPIER/PRINTER WITH DF-714 | D9: 20064 | E9: =100%-(F9/D9) -> 0.65 | F9: 7022.4 | G9: =F9*G8 -> 523.1688 | H9: =F9*H8 -> 389.04096 | I9: =F9*I8 -> 252.10416 | J9: =F9*J8 -> 204.35184 | K9: =F9*K8 -> 174.15552
A10: PC-116 PAPER FEED CABINET | D10: 1005 | E10: 0.65 | F10: 351.75 | G10: =F10*G8 -> 26.205375 | H10: =F10*H8 -> 19.48695 | I10: =F10*I8 -> 12.627825 | J10: =F10*J8 -> 10.235925 | K10: =F10*K8 -> 8.7234
A11: LU-302 LARGE CAPACITY UNIT | D11: 1959 | E11: 0.65 | F11: 685.65 | G11: =F11*G8 -> 51.080925 | H11: =F11*H8 -> 37.98501 | I11: =F11*I8 -> 24.614835 | J11: =F11*J8 -> 19.952415 | K11: =F11*K8 -> 17.00412
A12: RELAY UNIT RU-513 | D12: 231 | E12: 0.65 | F12: 80.85 | G12: =F12*G8 -> 6.023325 | H12: =F12*H8 -> 4.47909 | I12: =F12*I8 -> 2.902515 | J12: =F12*J8 -> 2.352735 | K12: =F12*K8 -> 2.00508
A13: FS-539 SD | D13: 3515 | E13: 0.65 | F13: 1230.25 | G13: =F13*G8 -> 91.653625 | H13: =F13*H8 -> 68.15585 | I13: =F13*I8 -> 44.165975 | J13: =F13*J8 -> 35.800275 | K13: =F13*K8 -> 30.5102
A14: PK-524 2/3 PUNCH UNIT FOR FS-539 | D14: 645 | E14: 0.65 | F14: 225.75 | G14: =F14*G8 -> 16.818375 | H14: =F14*H8 -> 12.50655 | I14: =F14*I8 -> 8.104425 | J14: =F14*J8 -> 6.569325 | K14: =F14*K8 -> 5.5986
D15: Total | F15: =SUM(F9:F14) -> 9596.65 | G15: 714.950425 | H15: 531.65441 | I15: 344.519735 | J15: 279.262515 | K15: 237.99692
D16: Total + Service | G16: =G15+C21 -> 739.040425 | H16: =H15+C21 -> 555.74441 | I16: =I15+C21 -> 368.609735 | J16: =J15+C21 -> 303.352515 | K16: =K15+C21 -> 262.08692
A18: Service
A19: Monthly Base Charge Option 1
A20: Included Number of Clicks per Month | C20: Base Charge - includes Compatible toner, parts, labor (no staples) | D20: Base Charge - includes OEM toner, parts, labor (no staples) | E20: Base Charge - parts and labor only (no supplies) Color & BW | F20: Overage Rate Color & BW | G20: % Increase in rate for inclusion of staples | I20: % Increase in rate for Rural Service Zone | J20: % Increase in rate for Remote Service Zone
A21: 3000 | C21: 24.09 | D21: 24.09 | E21: $0.0500 & $0.0080 | F21: $0.0500 & $0.0080 | G21: Included | I21: 0.1 | J21: 40

Sheet Lease and Rental Rates
A1: Konica Minolta Business Solutions U.S.A., Inc.
A2: Standard Financing Terms (Months) | B2: Daily Treasury Yield Curve Rate | C2: Published Date of Rate (must be quarter end date) | D2: Lease and Rental Rates
D3: Fair Market Value Lease | E3: Capital Lease ($1 Buyout) | F3: Straight Lease | G3: Short-Term Rental | H3: Cancellable Rental
A4: 12 | B4: N/A | C4: N/A | D4: N/A | E4: N/A | F4: N/A | G4: N/A | H4: N/A
A5: 18 | B5: N/A | C5: N/A | D5: 0.0745 | E5: 0.07599 | F5: 0.0745 | G5: N/A | H5: N/A
A6: 24 | B6: 0.0397 | C6: cob 3/31/2023 | D6: 0.0554 | E6: 0.05651 | F6: 0.0554 | H6: 0.05817
A7: 36 | B7: 0.0373 | C7: cob 3/31/2023 | D7: 0.0359 | E7: 0.03662 | F7: 0.0359 | H7: 0.0377
A8: 48 | B8: N/A | C8: N/A | D8: 0.0291 | E8: 0.02968 | F8: 0.0291 | H8: 0.03056
A9: 60 | B9: 0.0352 | C9: cob 3/31/2023 | D9: 0.0248 | E9: 0.0253 | F9: 0.0248 | H9: 0.02604
A11: Property Tax is included in the lease rate

Sheet Group A
A1: Konica Minolta Business Solutions U.S.A., Inc. | H1: Table of Contents
A2: Group A | B2: Item Number | C2: Item Description | D2: MSRP | E2: NASPO Customer Price | F2: Discount
A3: Segment 2 | B3: A7AK019 | C3: BIZHUB 227 4GB MEMORY COPIER/PRINTER | D3: 6986 | E3: 1886.13 | F3: =100%-(E3/D3) -> 0.7300128829
A4: B&W 20-30
B5: DOCUMENT HANDLING OPTIONS: Select one
B6: A7YPWY1 | C6: OC-514 ORIGINAL COVER | D6: 111 | E6: 38.95 | F6: =100%-(E6/D6) -> 0.6490990991
B7: A7V7WY2 | C7: DF-628 DOCUMENT FEEDER | D7: 1152 | E7: 403.34 | F7: 0.6498784722
B8: PAPER SUPPLY OPTIONS: Select one
B9: A7VA013 | C9: PC-413 PAPER FEED CABINET | D9: 1651 | E9: 577.85 | F9: =100%-(E9/D9) -> 0.65
B10: A7VAWY8 | C10: PC-213 PAPER FEED CABINET | D10: 1403 | E10: 490.97 | F10: 0.6500570207
B11: A7VAWY7 | C11: PC-113 PAPER FEED CABINET | D11: 1075 | E11: 376.37 | F11: 0.6498883721
B12: 135310 | C12: DK-513X FLATPACK CABINET | D12: 255 | E12: 216.75 | F12: 0.15
B13: OUTPUT OPTIONS:
B14: A2YVWY2 | C14: JS-506 JOB SEPARATOR | D14: 589 | E14: 205.98 | F14: =100%-(E14/D14) -> 0.6502886248
B15: ADDCWY1 | C15: FS-542 INNER FINISHER | D15: 1829 | E15: 640.02 | F15: 0.6500710771
B16: A3EPWY3 | C16: FS-534 50-SHEET STAPLING FINISHER | D16: 1937 | E16: 677.85 | F16: 0.6500516262
B17: A84GWY2 | C17: RELAY UNIT RU-514 | D17: 247 | E17: 86.51 | F17: 0.649757085
B18: A3EPWYE | C18: FS-534 50-SHEET STAPLING FINISHER+SD-511 | D18: 3643 | E18: 1275.17 | F18: 0.6499670601
B19: ADDDW11 | C19: PK-527 PUNCH KIT - FOR FS-542 2/3 HOLES | D19: 690 | E19: 241.55 | F19: 0.6499275362
B20: A3ETW11 | C20: PK-520 PUNCH KIT FOR FS-534/FS-536 | D20: 690 | E20: 241.55 | F20: 0.6499275362
B21: EH91539 | C21: CS-2 CONVENIENCE STAPLER | D21: 329 | E21: 279.65 | F21: 0.15
B22: FAX OPTIONS:
B23: A879012 | C23: FK-513 FAX KIT | D23: 1259 | E23: 440.79 | F23: =100%-(E23/D23) -> 0.6498888006
B24: 4614506 | C24: SP-501 STAMP UNIT | D24: 57 | E24: 19.85 | F24: 0.651754386
B25: 4614511 | C25: SPARE TX MARKER STAMP 2 | D25: 32 | E25: 11.24 | F25: 0.64875
B26: i-OPTION ACCESSORIES:
B27: A0PD117 | C27: LK-104 V3 I-OPTION VOICE GUIDANCE | D27: 785 | E27: 274.75 | F27: =100%-(E27/D27) -> 0.65
B28: A0PD119 | C28: LK-106 I-OPTION BAR CODE FONT | D28: 821 | E28: 287.35 | F28: 0.65
B29: A0PD11F | C29: LK-107 I-OPTION UNICODE FONT | D29: 690 | E29: 241.5 | F29: 0.65
B30: A0PD11G | C30: LK-108 I-OPTION OCR FONT | D30: 191 | E30: 66.85 | F30: 0.65
B31: A0PD11U | C31: LK-110 V2 I-OPTION OOXML ENHANCED PDF | D31: 668 | E31: 233.73 | F31: 0.6501047904
B32: A0PD11K | C32: LK-111 I-OPTION THIN PRINT | D32: 250 | E32: 87.5 | F32: 0.65
B33: MISC. OPTIONS:
B34: G844100LCMUS2 | C34: EXTERNAL KEYBOARD | D34: 223 | E34: 189.21 | F34: =100%-(E34/D34) -> 0.1515246637
B35: A4NRWY3 | C35: KEYBOARD HOLDER KH-102 | D35: 136 | E35: 47.6 | F35: 0.65
B36: A64TWY4 | C36: KEYPAD KP-101 | D36: 149 | E36: 52.06 | F36: 0.6506040268
B37: A88AWY2 | C37: EK-608 LOCAL INTERFACE KIT | D37: 235 | E37: 82.39 | F37: 0.6494042553
B38: A87DWY2 | C38: EK-609 LOCAL INTERFACE KIT | D38: 328 | E38: 114.97 | F38: 0.6494817073
B39: A0W4WY4 | C39: WORKING TABLE WT-506 | D39: 133 | E39: 46.44 | F39: 0.6508270677
B40: YSQB09030771 | C40: YSOFT MFX READER KM US CONFIG LIFE WARTY | D40: 310 | E40: 263.5 | F40: 0.15
B41: R5427011136466GEN2 | C41: AU-205HGEN2 SQ-2020-94643 | D41: 399 | E41: 339.15 | F41: 0.15
B42: 7640013468 | C42: AU-204H MagStripe CARD READER | D42: 130 | E42: 110.49 | F42: 0.1500769231
B43: W225015120 | C43: PWRFILTER W INRUSH PROTECT 120V/15A | D43: 299 | E43: 254.15 | F43: 0.15
B44: A4NMWY1 | C44: MK-735 IC CARD MOUNT KIT | D44: 71 | E44: 24.72 | F44: 0.6518309859
B45: A5C1192104 | C45: STYLUS PEN | D45: 35 | E45: 12.36 | F45: 0.6468571429
B46: A87EWY4 | C46: UK-212 WIRELESS UPGRADE KIT | D46: 306 | E46: 107.11 | F46: 0.6499673203
B47: PROFESSIONAL SERVICES:
B48: 7640015657 | C48: BIZHUB SECURE | D48: 250 | E48: 250 | F48: =100%-(E48/D48) -> 0
B49: 7640019024 | C49: BIZHUB SECURE HEALTHCARE | D49: 400 | E49: 400 | F49: 0
B50: 7640020787 | C50: BIZHUB SECURE PLATINUM | D50: 499 | E50: 499 | F50: 0
B51: 7640019485 | C51: KMBS PROFESSIONAL PROJECT SERVICES | D51: 1 | E51: 1 | F51: 0
A54: Segment 2 | B54: A7AH019 | C54: BIZHUB 287 4GB MEMORY COPIER/PRINTER | D54: 8358 | E54: 2256.66 | F54: =100%-(E54/D54) -> 0.73
A55: B&W 20-30
B56: DOCUMENT HANDLING OPTIONS: Select one
B57: A7YPWY1 | C57: OC-514 ORIGINAL COVER | D57: 111 | E57: 38.95 | F57: 0.6490990991
B58: A7V7WY2 | C58: DF-628 DOCUMENT FEEDER | D58: 1152 | E58: 403.34 | F58: 0.6498784722
B59: PAPER SUPPLY OPTIONS: Select one
B60: A7VA013 | C60: PC-413 PAPER FEED CABINET | D60: 1651 | E60: 577.85 | F60: 0.65
B61: A7VAWY8 | C61: PC-213 PAPER FEED CABINET | D61: 1403 | E61: 490.97 | F61: 0.6500570207
B62: A7VAWY7 | C62: PC-113 PAPER FEED CABINET | D62: 1075 | E62: 376.37 | F62: 0.6498883721
B63: 135310 | C63: DK-513X FLATPACK CABINET | D63: 255 | E63: 216.75 | F63: 0.15
B64: OUTPUT OPTIONS:
B65: A2YVWY2 | C65: JS-506 JOB SEPARATOR | D65: 589 | E65: 205.98 | F65: 0.6502886248
B66: ADDCWY1 | C66: FS-542 INNER FINISHER | D66: 1829 | E66: 640.02 | F66: =100%-(E66/D66) -> 0.6500710771
B67: A3EPWY3 | C67: FS-534 50-SHEET STAPLING FINISHER | D67: 1937 | E67: 677.85 | F67: 0.6500516262
B68: A84GWY2 | C68: RELAY UNIT RU-514 | D68: 247 | E68: 86.51 | F68: 0.649757085
B69: A3EPWYE | C69: FS-534 50-SHEET STAPLING FINISHER+SD-511 | D69: 3643 | E69: 1275.17 | F69: 0.6499670601
B70: ADDDW11 | C70: PK-527 PUNCH KIT - FOR FS-542 2/3 HOLES | D70: 690 | E70: 241.55 | F70: =100%-(E70/D70) -> 0.6499275362
B71: A3ETW11 | C71: PK-520 PUNCH KIT FOR FS-534/FS-536 | D71: 690 | E71: 241.55 | F71: 0.6499275362
B72: EH91539 | C72: CS-2 CONVENIENCE STAPLER | D72: 329 | E72: 279.65 | F72: 0.15
B73: FAX OPTIONS:
B74: A879012 | C74: FK-513 FAX KIT | D74: 1259 | E74: 440.79 | F74: 0.6498888006
B75: 4614506 | C75: SP-501 STAMP UNIT | D75: 57 | E75: 19.85 | F75: 0.651754386
B76: 4614511 | C76: SPARE TX MARKER STAMP 2 | D76: 32 | E76: 11.24 | F76: 0.64875
B77: i-OPTION ACCESSORIES:
B78: A0PD117 | C78: LK-104 V3 I-OPTION VOICE GUIDANCE | D78: 785 | E78: 274.75 | F78: 0.65
B79: A0PD119 | C79: LK-106 I-OPTION BAR CODE FONT | D79: 821 | E79: 287.35 | F79: 0.65
B80: A0PD11F | C80: LK-107 I-OPTION UNICODE FONT | D80: 690 | E80: 241.5 | F80: 0.65
B81: A0PD11G | C81: LK-108 I-OPTION OCR FONT | D81: 191 | E81: 66.85 | F81: 0.65
B82: A0PD11U | C82: LK-110 V2 I-OPTION OOXML ENHANCED PDF | D82: 668 | E82: 233.73 | F82: 0.6501047904
B83: A0PD11K | C83: LK-111 I-OPTION THIN PRINT | D83: 250 | E83: 87.5 | F83: 0.65
B84: MISC. OPTIONS:
B85: G844100LCMUS2 | C85: EXTERNAL KEYBOARD | D85: 223 | E85: 189.21 | F85: 0.1515246637
B86: A4NRWY3 | C86: KEYBOARD HOLDER KH-102 | D86: 136 | E86: 47.6 | F86: 0.65
B87: A64TWY4 | C87: KEYPAD KP-101 | D87: 149 | E87: 52.06 | F87: 0.6506040268
B88: A88AWY2 | C88: EK-608 LOCAL INTERFACE KIT | D88: 235 | E88: 82.39 | F88: 0.6494042553
B89: A87DWY2 | C89: EK-609 LOCAL INTERFACE KIT | D89: 328 | E89: 114.97 | F89: 0.6494817073
B90: A0W4WY4 | C90: WORKING TABLE WT-506 | D90: 133 | E90: 46.44 | F90: 0.6508270677
B91: YSQB09030771 | C91: YSOFT MFX READER KM US CONFIG LIFE WARTY | D91: 310 | E91: 263.5 | F91: 0.15
B92: R5427011136466GEN2 | C92: AU-205HGEN2 SQ-2020-94643 | D92: 399 | E92: 339.15 | F92: 0.15
B93: 7640013468 | C93: AU-204H MagStripe CARD READER | D93: 130 | E93: 110.49 | F93: 0.1500769231
B94: W225015120 | C94: PWRFILTER W INRUSH PROTECT 120V/15A | D94: 299 | E94: 254.15 | F94: 0.15
B95: A4NMWY1 | C95: MK-735 IC CARD MOUNT KIT | D95: 71 | E95: 24.72 | F95: 0.6518309859
B96: A5C1192104 | C96: STYLUS PEN | D96: 35 | E96: 12.36 | F96: 0.6468571429
B97: A87EWY4 | C97: UK-212 WIRELESS UPGRADE KIT | D97: 306 | E97: 107.11 | F97: 0.6499673203
B98: PROFESSIONAL SERVICES:
B99: 7640015657 | C99: BIZHUB SECURE | D99: 250 | E99: 250 | F99: 0
B100: 7640019024 | C100: BIZHUB SECURE HEALTHCARE | D100: 400 | E100: 400 | F100: 0
B101: 7640020787 | C101: BIZHUB SECURE PLATINUM | D101: 499 | E101: 499 | F101: 0
B102: 7640019485 | C102: KMBS PROFESSIONAL PROJECT SERVICES | D102: 1 | E102: 1 | F102: 0
A104: Segment 2 | B104: ADXW013 | C104: BH 301i COPIER/PRINTER WITH DF-714 | D104: 12351 | E104: 3334.81 | F104: 0.7299967614
A105: B&W 20-30
B106: PAPER SUPPLY OPTIONS/CABINET OPTIONS:
B107: AAV5016 | C107: PC-417 PAPER FEED CASSETTE (2500-SHEET) | D107: 1965 | E107: 687.58 | F107: 0.650086514
B108: AAV5019 | C108: PC-416 CABINET | D108: 1651 | E108: 577.85 | F108: 0.65
B109: AAV5WY8 | C109: PC-216 CABINET | D109: 1403 | E109: 490.97 | F109: 0.6500570207
B110: AAV5WY7 | C110: PC-116 CABINET | D110: 1075 | E110: 376.37 | F110: 0.6498883721
B111: 135700 | C111: DK-516 COPY DESK | D111: 302 | E111: 105.61 | F111: 0.6502980132
B112: A87VW12 | C112: LU-302 LARGE CAPACITY UNIT | D112: 1959 | E112: 685.65 | F112: 0.65
B113: OUTPUT OPTIONS: Select one
B114: A2YVWY2 | C114: JS-506 JOB SEPARATOR | D114: 589 | E114: 205.98 | F114: 0.6502886248
B115: ADDCWY1 | C115: FS-542 INNER FINISHER | D115: 1829 | E115: 640.02 | F115: 0.6500710771
B116: AAR4WY1 | C116: FS-539 50-SHEET STAPLE FINISHER | D116: 2060 | E116: 720.91 | F116: 0.6500436893
B117: AAR4WYA | C117: FS-539 SD 50-SHEET BOOKLET FINISHER | D117: 3761 | E117: 1316.37 | F117: 0.6499946823
B118: A87JWY5 | C118: RELAY UNIT RU-513 | D118: 247 | E118: 86.51 | F118: =100%-(E118/D118) -> 0.649757085
B119: ADDDW11 | C119: PK-527 PUNCH KIT - FOR FS-542 2/3 HOLES | D119: 690 | E119: 241.55 | F119: 0.6499275362
B120: AC28W11 | C120: PK-524 2/3 PUNCH UNIT FOR FS-539 | D120: 690 | E120: 241.55 | F120: =100%-(E120/D120) -> 0.6499275362
B121: EH91539 | C121: CS-2 CONVENIENCE STAPLER | D121: 329 | E121: 279.65 | F121: 0.15
B122: ACCGWY2 | C122: FS-P04 OFFLINE STAPLER | D122: 330 | E122: 115.35 | F122: 0.6504545455
B123: FAX / SCAN OPTIONS:
B124: A883012 | C124: FK-514 FAX KIT (1st & 2nd LINE) | D124: 1259 | E124: 440.79 | F124: 0.6498888006
B125: A884W11 | C125: FK-515 FAX KIT (3rd & 4th LINE) | D125: 1258 | E125: 440.41 | F125: 0.6499125596
B126: A886WY1 | C126: MK-742 FAX MOUNT KIT | D126: 141 | E126: 49.43 | F126: 0.6494326241
B127: 4614506 | C127: SP-501 STAMP UNIT | D127: 57 | E127: 19.85 | F127: 0.651754386
B128: 4614511 | C128: SPARE TX MARKER STAMP 2 | D128: 32 | E128: 11.24 | F128: 0.64875
B129: i-OPTION ACCESSORIES:
B130: A0PD117 | C130: LK-104 V3 I-OPTION VOICE GUIDANCE | D130: 785 | E130: 274.75 | F130: 0.65
B131: A0PD119 | C131: LK-106 I-OPTION BAR CODE FONT | D131: 821 | E131: 287.35 | F131: 0.65
B132: A0PD11F | C132: LK-107 I-OPTION UNICODE FONT | D132: 690 | E132: 241.5 | F132: 0.65
B133: A0PD11G | C133: LK-108 I-OPTION OCR FONT | D133: 191 | E133: 66.85 | F133: =100%-(E133/D133) -> 0.65
B134: A0PD11U | C134: LK-110 V2 I-OPTION OOXML ENHANCED PDF | D134: 668 | E134: 233.73 | F134: 0.6501047904
B135: A0PD11K | C135: LK-111 I-OPTION THIN PRINT | D135: 250 | E135: 87.5 | F135: 0.65
B136: A0PDAA1 | C136: LK-116 - LICENSE | D136: 250 | E136: 138.25 | F136: 0.447
B137: MISC. OPTIONS:
B138: G844100LCMUS2 | C138: EXTERNAL KEYBOARD | D138: 223 | E138: 189.21 | F138: 0.1515246637
B139: A4NRWY3 | C139: KEYBOARD HOLDER KH-102 | D139: 136 | E139: 47.6 | F139: 0.65
B140: ACCJWY1 | C140: KP-102 KEYPAD (10" PANEL) | D140: 149 | E140: 52.06 | F140: 0.6506040268
B141: A88AWY2 | C141: EK-608 LOCAL INTERFACE KIT | D141: 235 | E141: 82.39 | F141: 0.6494042553
B142: A87DWY2 | C142: EK-609 LOCAL INTERFACE KIT | D142: 328 | E142: 114.97 | F142: 0.6494817073
B143: A0W4WY4 | C143: WORKING TABLE WT-506 | D143: 133 | E143: 46.44 | F143: 0.6508270677
B144: YSQB09030771 | C144: YSOFT MFX READER KM US CONFIG LIFE WARTY | D144: 310 | E144: 263.5 | F144: 0.15
B145: 7640013468 | C145: AU-204H MagStripe CARD READER | D145: 130 | E145: 110.49 | F145: 0.1500769231
B146: R5427011136466GEN2 | C146: AU-205HGEN2 SQ-2020-94643 | D146: 399 | E146: 339.15 | F146: 0.15
B147: A4NMWY1 | C147: MK-735 IC CARD MOUNT KIT | D147: 71 | E147: 24.72 | F147: 0.6518309859
B148: A4MEWY2 | C148: MK-730 MOUNT KIT | D148: 996 | E148: 348.66 | F148: 0.649939759
B149: A5C1192104 | C149: STYLUS PEN | D149: 35 | E149: 12.36 | F149: 0.6468571429
B150: ACDMWY2 | C150: UPGRADE KIT UK-221 | D150: 306 | E150: 107.11 | F150: 0.6499673203
B151: 4623486 | C151: KEY COUNTER MOUNT KIT 1 | D151: 102 | E151: 35.58 | F151: 0.6511764706
B152: AEEXWY1 | C152: IM-103 INTELLIGENT MEDIA SENSOR | D152: 352 | E152: 123.21 | F152: 0.6499715909
B153: ACDJWY1 | C153: EM-908 1 TB SSD | D153: 999 | E153: 349.78 | F153: 0.6498698699
B154: W225015120 | C154: PWRFILTER W INRUSH PROTECT 120V/15A | D154: 299 | E154: 254.15 | F154: =100%-(E154/D154) -> 0.15
B155: ACDKWY2 | C155: SECURITY KIT SC-509 | D155: 1442 | E155: 504.83 | F155: 0.6499098474
B156: PROFESSIONAL SERVICES:
B157: 7640015657 | C157: BIZHUB SECURE | D157: 250 | E157: 250 | F157: 0
B158: 7640019024 | C158: BIZHUB SECURE HEALTHCARE | D158: 400 | E158: 400 | F158: 0
B159: 7640020787 | C159: BIZHUB SECURE PLATINUM | D159: 499 | E159: 499 | F159: 0
B160: 7640019485 | C160: KMBS PROFESSIONAL PROJECT SERVICES | D160: 1 | E160: 1 | F160: 0
A162: Segment 2 | B162: ADXM013 | C162: C251I COLOR COPIER/PRINTER WITH DF-714 | D162: 15525 | E162: 4191.65 | F162: 0.7300064412
A163: Color/B&W 20-30
B164: PAPER SUPPLY OPTIONS/CABINET OPTIONS:
B165: AAV5016 | C165: PC-417 PAPER FEED CASSETTE (2500-SHEET) | D165: 1965 | E165: 687.58 | F165: 0.650086514
B166: AAV5019 | C166: PC-416 CABINET | D166: 1651 | E166: 577.85 | F166: 0.65
B167: AAV5WY8 | C167: PC-216 CABINET | D167: 1403 | E167: 490.97 | F167: 0.6500570207
B168: AAV5WY7 | C168: PC-116 CABINET | D168: 1075 | E168: 376.37 | F168: 0.6498883721
B169: 135700 | C169: DK-516 COPY DESK | D169: 302 | E169: 105.61 | F169: 0.6502980132
B170: A87VW12 | C170: LU-302 LARGE CAPACITY UNIT | D170: 1959 | E170: 685.65 | F170: 0.65
B171: OUTPUT OPTIONS:
B172: A2YVWY2 | C172: JS-506 JOB SEPARATOR | D172: 589 | E172: 205.98 | F172: 0.6502886248
B173: ADDCWY1 | C173: FS-542 INNER FINISHER | D173: 1829 | E173: 640.02 | F173: =100%-(E173/D173) -> 0.6500710771
B174: A87JWY5 | C174: RELAY UNIT RU-513 | D174: 247 | E174: 86.51 | F174: 0.649757085
B175: ADDDW11 | C175: PK-527 PUNCH KIT - FOR FS-542 2/3 HOLES | D175: 690 | E175: 241.55 | F175: =100%-(E175/D175) -> 0.6499275362
B176: AAR4WY1 | C176: FS-539 50-SHEET STAPLE FINISHER | D176: 2060 | E176: 720.91 | F176: 0.6500436893
B177: AAR4WYA | C177: FS-539 SD 50-SHEET BOOKLET FINISHER | D177: 3761 | E177: 1316.37 | F177: 0.6499946823
B178: AC28W11 | C178: PK-524 2/3 PUNCH UNIT FOR FS-539 | D178: 690 | E178: 241.55 | F178: 0.6499275362
B179: EH91539 | C179: CS-2 CONVENIENCE STAPLER | D179: 329 | E179: 279.65 | F179: 0.15
B180: ACCGWY2 | C180: FS-P04 OFFLINE STAPLER | D180: 330 | E180: 115.35 | F180: 0.6504545455
B181: FAX OPTIONS:
B182: A883012 | C182: FK-514 FAX KIT (1st & 2nd LINE) | D182: 1259 | E182: 440.79 | F182: 0.6498888006
B183: A884W11 | C183: FK-515 FAX KIT (3rd & 4th LINE) | D183: 1258 | E183: 440.41 | F183: 0.6499125596
B184: 4614506 | C184: SP-501 STAMP UNIT | D184: 57 | E184: 19.85 | F184: 0.651754386
B185: 4614511 | C185: SPARE TX MARKER STAMP 2 | D185: 32 | E185: 11.24 | F185: 0.64875
B186: A886WY1 | C186: MK-742 FAX MOUNT KIT | D186: 141 | E186: 49.43 | F186: 0.6494326241
B187: PRINT CONTROLLER OPTIONS:
B188: ACDEWY2 | C188: IC-420 FIERY CONTROLLER | D188: 4449 | E188: 3781.7 | F188: 0.1499887615
B189: ACDHWY1 | C189: VI-516 INTERFACE KIT | D189: 349 | E189: 122.09 | F189: 0.6501719198
B190: ACDFWY1 | C190: UK-115 UPGRADE KIT FOR IC-420 | D190: 670 | E190: 234.44 | F190: 0.6500895522
B191: 45111142 | C191: EFI HOT FOLDERS & VIRTUAL S/W LICENSE | D191: 1045 | E191: 888.04 | F191: 0.1502009569
B192: 45111094 | C192: EFI AUTO TRAP S/W LICENSE | D192: 1045 | E192: 888.04 | F192: 0.1502009569
B193: 45202146 | C193: KIT OPTION ES-3000 HARDWARE ONLY | D193: 1470 | E193: 1249.5 | F193: 0.15
B194: 45201393 | C194: FIERY IMPOSE 1YEAR SUBSCRIPTION | D194: 809 | E194: 687.65 | F194: 0.15
B195: 45201395 | C195: FIERY IMPOSE 2YEAR SUBSCRIPTION | D195: 1617 | E195: 1374.45 | F195: 0.15
B196: 45201397 | C196: FIERY IMPOSE 3YEAR SUBSCRIPTION | D196: 2306 | E196: 1960.1 | F196: =100%-(E196/D196) -> 0.15
B197: 45201399 | C197: FIERY IMPOSE 4YEAR SUBSCRIPTION | D197: 2427 | E197: 2062.95 | F197: 0.15
B198: 45201401 | C198: FIERY IMPOSE 5YEAR SUBSCRIPTION | D198: 2601 | E198: 2210.85 | F198: 0.15
B199: 45201403 | C199: FIERY COMPOSE 1YEAR SUBSCRIPTION | D199: 362 | E199: 307.7 | F199: 0.15
B200: 45201405 | C200: FIERY COMPOSE 2YEAR SUBSCRIPTION | D200: 725 | E200: 616.25 | F200: 0.15
B201: 45201407 | C201: FIERY COMPOSE 3YEAR SUBSCRIPTION | D201: 1033 | E201: 878.05 | F201: 0.15
B202: 45201410 | C202: FIERY COMPOSE 4YEAR SUBSCRIPTION | D202: 1088 | E202: 924.8 | F202: 0.15
B203: 45201412 | C203: FIERY COMPOSE 5YEAR SUBSCRIPTION | D203: 1145 | E203: 973.25 | F203: 0.15
B204: 45201414 | C204: FIERY IMPOSE-COMPOSE 1YEAR SUBSCRIPTION | D204: 943 | E204: 801.55 | F204: 0.15
... 951 more rows

Sheet Group A Service
A1: Konica Minolta Business Solutions U.S.A., Inc.
A2: Group A | AB2: Table of Contents
A3: Multi-function Devices (MFD), A3
A4: Service and Supplies Pricing
A5: Includes B&W and Color/B&W Segments
A6: Service and Supply Pricing | C6: Segment 2 | D6: Segment 2 | E6: Segment 2 | F6: Segment 2 | H6: Segment 2 | J6: Segment 3 | K6: Segment 3 | M6: Segment 4 | N6: Segment 4 | P6: Segment 5 | Q6: Segment 5 | S6: Segment 6 | T6: Segment 6 | V6: Segment 7 | W6: Segment 7 | X6: Segment 7 | Y6: Segment 7
C7: (20 - 30) | D7: (20 - 30) | E7: (20 - 30) | F7: (20 - 30) | H7: (20 - 30) | J7: (31 - 40) | K7: (31-40) | M7: (41 - 50) | N7: (41 - 50) | P7: (51 - 60) | Q7: (51 - 60) | S7: (61 - 70) | T7: (61 - 70) | V7: (71 - 90) | W7: (71 - 90) | X7: (71 - 90) | Y7: (71 - 90)
C8: B&W | D8: B&W | E8: B&W | F8: Color | G8: B&W | H8: Color | I8: B&W | J8: B&W | K8: Color | L8: B&W | M8: B&W | N8: Color | O8: B&W | P8: B&W | Q8: Color | R8: B&W | S8: B&W | T8: Color | U8: B&W | V8: B&W | W8: B&W | X8: B&W | Y8: Color | Z8: B&W
A9: Make | C9: Konica Minolta | D9: Konica Minolta | E9: Konica Minolta | F9: Konica Minolta | H9: Konica Minolta | J9: Konica Minolta | K9: Konica Minolta | M9: Konica Minolta | N9: Konica Minolta | P9: Konica Minolta | Q9: Konica Minolta | S9: Konica Minolta | T9: Konica Minolta | V9: Konica Minolta | W9: Konica Minolta | X9: Konica Minolta | Y9: Konica Minolta
A10: Model | C10: bizhub 227 | D10: bizhub 287 | E10: bizhub 301i | F10: bizhub C251i | H10: bizhub C301i | J10: bizhub 361i | K10: bizhub C361i | M10: bizhub 451i | N10: bizhub C451i | P10: bizhub 551i | Q10: bizhub C551i | S10: bizhub 651i | T10: bizhub C651i | V10: bizhub 751i | W10: bizhub 850i | X10: bizhub 950i | Y10: bizhub C751i
A11: Maintenance Agreements
A12: Zero Base Charge | B12: Includes OEM toner, parts, labor (no staples) | C12: 0.0098 | D12: 0.0098 | E12: 0.0098 | F12: 0.05 | G12: 0.0086 | H12: 0.05 | I12: 0.0086 | J12: 0.0088 | K12: 0.05 | L12: 0.0083 | M12: 0.0079 | N12: 0.049 | O12: 0.0079 | P12: 0.0077 | Q12: 0.045 | R12: 0.0077 | S12: 0.0066 | T12: 0.045 | U12: 0.0075 | V12: 0.0064 | W12: 0.0064 | X12: 0.0064 | Y12: 0.043 | Z12: 0.0064
B13: Includes Compatible toner, parts, labor (no staples) | C13: 0.0098 | D13: 0.0098 | E13: 0.0098 | F13: 0.05 | G13: 0.0086 | H13: 0.05 | I13: 0.0086 | J13: 0.0088 | K13: 0.05 | L13: 0.0083 | M13: 0.0079 | N13: 0.049 | O13: 0.0079 | P13: 0.0077 | Q13: 0.045 | R13: 0.0077 | S13: 0.0066 | T13: 0.045 | U13: 0.0075 | V13: 0.0064 | W13: 0.0064 | X13: 0.0064 | Y13: 0.043 | Z13: 0.0064
B14: Parts and labor only (no supplies) | C14: 0.0088 | D14: 0.0088 | E14: 0.0088 | F14: 0.045 | G14: 0.0077 | H14: 0.045 | I14: 0.0077 | J14: 0.0079 | K14: 0.045 | L14: 0.0075 | M14: 0.0072 | N14: 0.0441 | O14: 0.0072 | P14: 0.0069 | Q14: 0.0405 | R14: 0.0069 | S14: 0.0059 | T14: 0.0405 | U14: 0.0067 | V14: 0.007 | W14: 0.0057 | X14: 0.0057 | Y14: 0.0387 | Z14: 0.0057
B15: 11 x 17" impressions (counts as 2 clicks) | C15: Included | D15: Included | E15: Included | F15: Included | H15: Included | J15: Included | K15: Included | M15: Included | N15: Included | P15: Included | Q15: Included | S15: Included | T15: Included | V15: Included | W15: Included | X15: Included | Y15: Included
B16: % Increase in rate for inclusion of staples | C16: Included | D16: Included | E16: Included | F16: Included | H16: Included | J16: Included | K16: Included | M16: Included | N16: Included | P16: Included | Q16: Included | S16: Included | T16: Included | V16: Included | W16: Included | X16: Included | Y16: Included
B17: % Increase in rate for Rural Service Zone | C17: 0.1 | D17: 0.1 | E17: 0.1 | F17: 0.1 | H17: 0.1 | J17: 0.1 | K17: 0.1 | M17: 0.1 | N17: 0.1 | P17: 0.1 | Q17: 0.1 | S17: 0.1 | T17: 0.1 | V17: 0.1 | W17: 0.1 | X17: 0.1 | Y17: 0.1
B18: % Increase in rate for Remote Service Zone | C18: 40 | D18: 40 | E18: 40 | F18: 40 | H18: 40 | J18: 40 | K18: 40 | M18: 40 | N18: 40 | P18: 40 | Q18: 40 | S18: 40 | T18: 40 | V18: 40 | W18: 40 | X18: 40 | Y18: 40
A20: Flat Rate Fee | B20: Parts, labor, supplies | C20: 61 | D20: 67 | E20: 73 | F20: 148 | H20: 187 | J20: 91 | K20: 210 | M20: 122 | N20: 240 | P20: 147 | Q20: 315 | S20: 168 | T20: 420 | V20: 200 | W20: 232 | X20: 825 | Y20: 555
B21: % Increase in rate for Rural Service Zone | C21: 0.1 | D21: 0.1 | E21: 0.1 | F21: 0.1 | H21: 0.1 | J21: 0.1 | K21: 0.1 | M21: 0.1 | N21: 0.1 | P21: 0.1 | Q21: 0.1 | S21: 0.1 | T21: 0.1 | V21: 0.1 | W21: 0.1 | X21: 0.1 | Y21: 0.1
B22: % Increase in rate for Remote Service Zone | C22: 40 | D22: 40 | E22: 40 | F22: 40 | H22: 40 | J22: 40 | K22: 40 | M22: 40 | N22: 40 | P22: 40 | Q22: 40 | S22: 40 | T22: 40 | V22: 40 | W22: 40 | X22: 40 | Y22: 40
A24: Monthly Base Charge Option 1 | B24: Included Number of Clicks per Month | C24: 2000 | D24: 2000 | E24: 2000 | F24: 0 | G24: 2000 | H24: 0 | I24: 2000 | J24: 4000 | K24: 0 | L24: 3000 | M24: 6000 | N24: 0 | O24: 4000 | P24: 11000 | Q24: 0 | R24: 5000 | S24: 16000 | T24: 0 | U24: 8000 | V24: 20000 | W24: 24000 | X24: 34000 | Y24: 0 | Z24: 9000
B25: Base Charge - includes OEM toner, parts, labor (no staples) | C25: 19 | D25: 19 | E25: 19 | G25: 16.5 | I25: 16.5 | J25: 32.56 | L25: 24.09 | M25: 42.9 | O25: 30.8 | P25: 76.23 | R25: 37.4 | S25: 98.56 | U25: 58.08 | V25: 121 | W25: 145.2 | X25: 205.7 | Z25: 55.44
B26: Base Charge - includes Compatible toner, parts, labor (no staples) | C26: 19 | D26: 19 | E26: 19 | G26: 16.5 | I26: 16.5 | J26: 32.56 | L26: 24.09 | M26: 42.9 | O26: 30.8 | P26: 76.23 | R26: 37.4 | S26: 98.56 | U26: 58.08 | V26: 121 | W26: 145.2 | X26: 205.7 | Z26: 55.44
B27: Base Charge - parts and labor only (no supplies) | C27: 0.0095 | D27: 0.0095 | E27: 0.0095 | F27: 0.05 | G27: 0.0083 | H27: 0.05 | I27: 0.0083 | J27: 0.0081 | K27: 0.05 | L27: 0.008 | M27: 0.0072 | N27: 0.047 | O27: 0.0077 | P27: 0.0069 | Q27: 0.044 | R27: 0.0075 | S27: 0.0062 | U27: 0.0073 | V27: 0.0061 | W27: 0.0061 | X27: 0.0061 | Y27: 0.042 | Z27: 0.0062
B28: Overage Rate | C28: 0.0095 | D28: 0.0095 | E28: 0.0095 | F28: 0.05 | G28: 0.0083 | H28: 0.05 | I28: 0.0083 | J28: 0.0081 | K28: 0.05 | L28: 0.008 | M28: 0.0072 | N28: 0.047 | O28: 0.0077 | P28: 0.0069 | Q28: 0.044 | R28: 0.0075 | S28: 0.0062 | U28: 0.0073 | V28: 0.0061 | W28: 0.0061 | X28: 0.0061 | Y28: 0.042 | Z28: 0.0062
B29: % Increase in rate for inclusion of staples | C29: Included | D29: Included | E29: Included | F29: Included | H29: Included | J29: Included | K29: Included | M29: Included | N29: Included | P29: Included | Q29: Included | S29: Included | T29: Included | V29: Included | W29: Included | X29: Included | Y29: Included
B30: % Increase in rate for Rural Service Zone | C30: 0.1 | D30: 0.1 | E30: 0.1 | F30: 0.1 | H30: 0.1 | J30: 0.1 | K30: 0.1 | M30: 0.1 | N30: 0.1 | P30: 0.1 | Q30: 0.1 | S30: 0.1 | T30: 0.1 | V30: 0.1 | W30: 0.1 | X30: 0.1 | Y30: 0.1
B31: % Increase in rate for Remote Service Zone | C31: 40 | D31: 40 | E31: 40 | F31: 40 | H31: 40 | J31: 40 | K31: 40 | M31: 40 | N31: 40 | P31: 40 | Q31: 40 | S31: 40 | T31: 40 | V31: 40 | W31: 40 | X31: 40 | Y31: 40
A33: Additional Service Coverage (per hour)
A34: Urban Service Zone | B34: 2 x 5 coverage (2 eight hour shifts, 5 days a week) | C34: Quote upon request
B35: 3 x 5 coverage (3 eight hour shifts, 5 days a week)
B36: 1 x 7 coverage (1 eight hour shift, 7 days a week)
B37: 2 x 7 coverage (2 eight hour shifts, 7 days a week)
B38: 3 x 7 coverage (3 eight hour shifts, 7 days a week)
A40: Rural Service Zone | B40: 2 x 5 coverage (2 eight hour shifts, 5 days a week) | C40: Quote upon request
B41: 3 x 5 coverage (3 eight hour shifts, 5 days a week)
B42: 1 x 7 coverage (1 eight hour shift, 7 days a week)
B43: 2 x 7 coverage (2 eight hour shifts, 7 days a week)
B44: 3 x 7 coverage (3 eight hour shifts, 7 days a week)
A46: Remote Service Zone | B46: 2 x 5 coverage (2 eight hour shifts, 5 days a week) | C46: Quote upon request
B47: 3 x 5 coverage (3 eight hour shifts, 5 days a week)
B48: 1 x 7 coverage (1 eight hour shift, 7 days a week)
B49: 2 x 7 coverage (2 eight hour shifts, 7 days a week)
B50: 3 x 7 coverage (3 eight hour shifts, 7 days a week)
A51: Service Calls not covered under the Maintenance Agreement
A52: Urban Service Zone | B52: Price Per Hour | C52: 135 | D52: 135 | E52: 135 | F52: 135 | H52: 135 | J52: 135 | K52: 135 | M52: 135 | N52: 135 | P52: 135 | Q52: 135 | S52: 135 | T52: 135 | V52: 135 | W52: 135 | X52: 135 | Y52: 135
A54: Rural Service Zone | B54: Flat Rate Charge | C54: N/A | D54: N/A | E54: N/A | F54: N/A | H54: N/A | J54: N/A | K54: N/A | M54: N/A | N54: N/A | P54: N/A | Q54: N/A | S54: N/A | T54: N/A | V54: N/A | W54: N/A | X54: N/A | Y54: N/A
B55: Price Per Mile | C55: N/A | D55: N/A | E55: N/A | F55: N/A | H55: N/A | J55: N/A | K55: N/A | M55: N/A | N55: N/A | P55: N/A | Q55: N/A | S55: N/A | T55: N/A | V55: N/A | W55: N/A | X55: N/A | Y55: N/A
B56: Price Per Hour | C56: 135 | D56: 135 | E56: 135 | F56: 135 | H56: 135 | J56: 135 | K56: 135 | M56: 135 | N56: 135 | P56: 135 | Q56: 135 | S56: 135 | T56: 135 | V56: 135 | W56: 135 | X56: 135 | Y56: 135
A58: Remote Service Zone | B58: Flat Rate Charge | C58: N/A | D58: N/A | E58: N/A | F58: N/A | H58: N/A | J58: N/A | K58: N/A | M58: N/A | N58: N/A | P58: N/A | Q58: N/A | S58: N/A | T58: N/A | V58: N/A | W58: N/A | X58: N/A | Y58: N/A
B59: Price Per Mile | C59: N/A | D59: N/A | E59: N/A | F59: N/A | H59: N/A | J59: N/A | K59: N/A | M59: N/A | N59: N/A | P59: N/A | Q59: N/A | S59: N/A | T59: N/A | V59: N/A | W59: N/A | X59: N/A | Y59: N/A
B60: Price Per Hour | C60: 135 | D60: 135 | E60: 135 | F60: 135 | H60: 135 | J60: 135 | K60: 135 | M60: 135 | N60: 135 | P60: 135 | Q60: 135 | S60: 135 | T60: 135 | V60: 135 | W60: 135 | X60: 135 | Y60: 135
A61: End-User Training and Support (per hour) - beyond the required one free hour
A62: Additional End-User taining on Device and/or software | C62: 75 | D62: 75 | E62: 75 | F62: 75 | H62: 75 | J62: 75 | K62: 75 | M62: 75 | N62: 75 | P62: 75 | Q62: 75 | S62: 75 | T62: 75 | V62: 75 | W62: 75 | X62: 75 | Y62: 75
A63: After hours technical phone support | C63: Quote upon request
A64: Additional Advanced/ IT Training Cost by hours | C64: 175 | D64: 175 | E64: 175 | F64: 175 | H64: 175 | J64: 175 | K64: 175 | M64: 175 | N64: 175 | P64: 175 | Q64: 175 | S64: 175 | T64: 175 | V64: 175 | W64: 175 | X64: 175 | Y64: 175
A65: Additional IT Support by hours | C65: 175 | D65: 175 | E65: 175 | F65: 175 | H65: 175 | J65: 175 | K65: 175 | M65: 175 | N65: 175 | P65: 175 | Q65: 175 | S65: 175 | T65: 175 | V65: 175 | W65: 175 | X65: 175 | Y65: 175
A66: Additional Services
A67: Equipment Move Service Zone 2 | B67: Flat Rate Charge | C67: 770 | D67: 770 | E67: 770 | F67: 770 | H67: 770 | J67: 770 | K67: 770 | M67: 770 | N67: 770 | P67: 770 | Q67: 770 | S67: 770 | T67: 770 | V67: 770 | W67: 770 | X67: 770 | Y67: 770
B68: Price Per Mile | C68: N/A | D68: N/A | E68: N/A | F68: N/A | H68: N/A | J68: N/A | K68: N/A | M68: N/A | N68: N/A | P68: N/A | Q68: N/A | S68: N/A | T68: N/A | V68: N/A | W68: N/A | X68: N/A | Y68: N/A
B69: Price Per Hour | C69: N/A | D69: N/A | E69: N/A | F69: N/A | H69: N/A | J69: N/A | K69: N/A | M69: N/A | N69: N/A | P69: N/A | Q69: N/A | S69: N/A | T69: N/A | V69: N/A | W69: N/A | X69: N/A | Y69: N/A
A71: Equipment Move Service Zone 3 | B71: Flat Rate Charge | C71: 850 | D71: 850 | E71: 850 | F71: 850 | H71: 850 | J71: 850 | K71: 850 | M71: 850 | N71: 850 | P71: 850 | Q71: 850 | S71: 850 | T71: 850 | V71: 850 | W71: 850 | X71: 850 | Y71: 850
B72: Price Per Mile | C72: N/A | D72: N/A | E72: N/A | F72: N/A | H72: N/A | J72: N/A | K72: N/A | M72: N/A | N72: N/A | P72: N/A | Q72: N/A | S72: N/A | T72: N/A | V72: N/A | W72: N/A | X72: N/A | Y72: N/A
B73: Price Per Hour | C73: N/A | D73: N/A | E73: N/A | F73: N/A | H73: N/A | J73: N/A | K73: N/A | M73: N/A | N73: N/A | P73: N/A | Q73: N/A | S73: N/A | T73: N/A | V73: N/A | W73: N/A | X73: N/A | Y73: N/A
A75: Hard Drive Removal and Surrender | B75: Flat Rate Charge | C75: 300 | D75: 300 | E75: 300 | F75: 300 | H75: 300 | J75: 300 | K75: 300 | M75: 300 | N75: 300 | P75: 300 | Q75: 300 | S75: 300 | T75: 300 | V75: 300 | W75: 300 | X75: 300 | Y75: 300
A77: Digital Solutions Center - per month | C77: 12 | D77: 12 | E77: 12 | F77: 12 | H77: 12 | J77: 12 | K77: 12 | M77: 12 | N77: 12 | P77: 12 | Q77: 12 | S77: 12 | T77: 12 | V77: 12 | W77: 12 | X77: 12 | Y77: 12
A78: bizhub secure- Flat Fee | C78: 250 | D78: 250 | E78: 250 | F78: 250 | H78: 250 | J78: 250 | K78: 250 | M78: 250 | N78: 250 | P78: 250 | Q78: 250 | S78: 250 | T78: 250 | V78: 250 | W78: 250 | X78: 250 | Y78: 250
A79: bizhub secure platinum- Flat Fee | C79: 499 | D79: 499 | E79: 499 | F79: 499 | H79: 499 | J79: 499 | K79: 499 | M79: 499 | N79: 499 | P79: 499 | Q79: 499 | S79: 499 | T79: 499 | V79: 499 | W79: 499 | X79: 499 | Y79: 499

Sheet Group B
A1: Konica Minolta Business Solutions U.S.A., Inc. | H1: Table of Contents
A2: Group B | B2: Item Number | C2: Item Description | D2: MSRP | E2: NASPO Customer Price | F2: Discount
A3: Segment 3 | B3: AAJP017 | C3: BIZHUB C3321I - COLOR A4 AIO/35 PPM | D3: 2749 | E3: 1099.56 | F3: =100%-(E3/D3) -> 0.6000145507
A4: Color/B&W 31-40
B5: PAPER SUPPLY OPTIONS
B6: AAJUW14 | C6: PF-P28 500-SHEET PAPER TRAY | D6: 413 | E6: 144.56 | F6: =100%-(E6/D6) -> 0.6499757869
B7: AAJUW12 | C7: PF-P25 HEIGHT ADJUSTMENT UNIT | D7: 374 | E7: 126.83 | F7: 0.6608823529
B8: 135900 | C8: DK-P05 COPY DESK | D8: 375 | E8: 318.75 | F8: 0.15
B9: OUTPUT OPTIONS:
B10: ACCGWY2 | C10: FS-P04 OFFLINE STAPLER | D10: 330 | E10: 115.35 | F10: 0.6504545455
B11: EH91539 | C11: CS-2 CONVENIENCE STAPLER | D11: 329 | E11: 279.65 | F11: 0.15
B12: i-Option ACCESSORIES:
B13: A0PDAA1 | C13: LK-116 - LICENSE | D13: 250 | E13: 138.25 | F13: 0.447
B14: CARD READERS
B15: YSQB09030771 | C15: YSOFT MFX READER KM US CONFIG LIFE WARTY | D15: 310 | E15: 263.5 | F15: 0.15
B16: 7640013468 | C16: AU-204H MagStripe CARD READER | D16: 130 | E16: 110.49 | F16: 0.1500769231
B17: R5427011136466GEN2 | C17: AU-205HGEN2 SQ-2020-94643 | D17: 399 | E17: 339.15 | F17: 0.15
B18: ACCKWY1 | C18: MK-P08 MOUNT KIT | D18: 102 | E18: 35.58 | F18: 0.6511764706
B19: MISC. OPTIONS:
B20: AA1K011 | C20: FK-517 FAX KIT | D20: 281 | E20: 98.49 | F20: 0.6495017794
B21: ACDMWY2 | C21: UPGRADE KIT UK-221 | D21: 306 | E21: 117.82 | F21: 0.6149673203
B22: ACCRWY1 | C22: WT-P03 WORKING TABLE | D22: 128 | E22: 44.94 | F22: 0.64890625
B23: ACCTWY1 | C23: EK-P08 LOCAL INTERFACE KIT | D23: 235 | E23: 82.39 | F23: 0.6494042553
B24: ACCVWY1 | C24: EK-P09 LOCAL INTERFACE KIT W/ BLUETOOTH | D24: 328 | E24: 114.97 | F24: 0.6494817073
B25: ACCHWY1 | C25: EK-P10 LOCAL INTERFACE KIT | D25: 104 | E25: 36.33 | F25: 0.6506730769
B26: ACCEWY1 | C26: KP-P03 KEYPAD (7" PANEL) | D26: 149 | E26: 52.06 | F26: 0.6506040268
B27: G844100LCMUS2 | C27: EXTERNAL KEYBOARD | D27: 223 | E27: 189.21 | F27: 0.1515246637
B28: ACCFWY1 | C28: KH-P02 KEYBOARD HOLDER | D28: 146 | E28: 50.93 | F28: 0.6511643836
B29: W25015120 | C29: SINGLE OUTLET PWRFILTER 120V/15A | D29: 51 | E29: 41.65 | F29: 0.1833333333
B30: PTL5A | C30: PTL-5-A TRAY LOCK | D30: 102 | E30: 75.65
B31: PROFESSIONAL SERVICES:
B32: 7640018745 | C32: BIZHUB SECURE SMALL MFP | D32: 199 | E32: 199 | F32: 0
B33: 7640020786 | C33: BIZHUB SECURE PLATINUM SMALL MFP | D33: 299 | E33: 299 | F33: 0
B34: 7640019026 | C34: BIZHUB SECURE HEALTHCARE SMALL MFP | D34: 200 | E34: 200 | F34: 0
A36: Segment 3 | B36: A93E017 | C36: BIZHUB C3351I - COLOR A4 MFP/35 PPM | D36: 5347 | E36: 2138.72 | F36: 0.6000149617
A37: Color/B&W 31-40
B38: PAPER SUPPLY OPTIONS: Select one
B39: AAJUW14 | C39: PF-P28 500-SHEET PAPER TRAY | D39: 413 | E39: 144.56 | F39: 0.6499757869
B40: AAJUW12 | C40: PF-P25 HEIGHT ADJUSTMENT UNIT | D40: 374 | E40: 126.83 | F40: 0.6608823529
B41: 135900 | C41: DK-P05 COPY DESK | D41: 375 | E41: 318.75 | F41: 0.15
B42: OUTPUT OPTIONS:
B43: ACCGWY2 | C43: FS-P04 OFFLINE STAPLER | D43: 330 | E43: 115.35 | F43: 0.6504545455
B44: EH91539 | C44: CS-2 CONVENIENCE STAPLER | D44: 329 | E44: 279.65 | F44: 0.15
B45: i-OPTION ACCESSORIES:
B46: A0PD117 | C46: LK-104 V3 I-OPTION VOICE GUIDANCE | D46: 785 | E46: 274.75 | F46: 0.65
B47: A0PD119 | C47: LK-106 I-OPTION BAR CODE FONT | D47: 821 | E47: 287.35 | F47: 0.65
B48: A0PD11F | C48: LK-107 I-OPTION UNICODE FONT | D48: 690 | E48: 241.5 | F48: 0.65
B49: A0PD11G | C49: LK-108 I-OPTION OCR FONT | D49: 191 | E49: 66.85 | F49: 0.65
B50: A0PD11U | C50: LK-110 V2 I-OPTION OOXML ENHANCED PDF | D50: 668 | E50: 233.73 | F50: 0.6501047904
B51: A0PD11K | C51: LK-111 I-OPTION THIN PRINT | D51: 250 | E51: 87.5 | F51: 0.65
B52: A0PDAA1 | C52: LK-116 - LICENSE | D52: 250 | E52: 138.25 | F52: 0.447
B53: CARD READERS
B54: YSQB09030771 | C54: YSOFT MFX READER KM US CONFIG LIFE WARTY | D54: 310 | E54: 263.5 | F54: 0.15
B55: 7640013468 | C55: AU-204H MagStripe CARD READER | D55: 130 | E55: 110.49 | F55: 0.1500769231
B56: R5427011136466GEN2 | C56: AU-205HGEN2 SQ-2020-94643 | D56: 399 | E56: 339.15 | F56: 0.15
B57: ACCKWY1 | C57: MK-P08 MOUNT KIT | D57: 102 | E57: 35.58 | F57: 0.6511764706
B58: MISC. OPTIONS:
B59: AA1K011 | C59: FK-517 FAX KIT | D59: 281 | E59: 98.49 | F59: 0.6495017794
B60: ACCNWY1 | C60: UK-P19 DOUBLE FEED DETECTION KIT | D60: 128 | E60: 44.94 | F60: =100%-(E60/D60) -> 0.64890625
B61: G844100LCMUS2 | C61: EXTERNAL KEYBOARD | D61: 223 | E61: 189.21 | F61: 0.1515246637
B62: ACCFWY1 | C62: KH-P02 KEYBOARD HOLDER | D62: 146 | E62: 50.93 | F62: 0.6511643836
B63: ACCTWY1 | C63: EK-P08 LOCAL INTERFACE KIT | D63: 235 | E63: 82.39 | F63: 0.6494042553
B64: ACCVWY1 | C64: EK-P09 LOCAL INTERFACE KIT W/ BLUETOOTH | D64: 328 | E64: 114.97 | F64: 0.6494817073
B65: ACCRWY1 | C65: WT-P03 WORKING TABLE | D65: 128 | E65: 44.94 | F65: 0.64890625
B66: ACCJWY1 | C66: KP-102 KEYPAD (10" PANEL) | D66: 149 | E66: 52.06 | F66: 0.6506040268
B67: W225015120 | C67: PWRFILTER W INRUSH PROTECT 120V/15A | D67: 299 | E67: 254.15 | F67: 0.15
B68: ACDJWY1 | C68: EM-908 1 TB SSD | D68: 999 | E68: 349.78 | F68: 0.6498698699
B69: PROFESSIONAL SERVICES:
B70: 7640015657 | C70: BIZHUB SECURE | D70: 250 | E70: 250 | F70: 0
B71: 7640019024 | C71: BIZHUB SECURE HEALTHCARE | D71: 400 | E71: 400 | F71: 0
B72: 7640020787 | C72: BIZHUB SECURE PLATINUM | D72: 499 | E72: 499 | F72: 0
B73: 7640019485 | C73: KMBS PROFESSIONAL PROJECT SERVICES | D73: 1 | E73: 1 | F73: 0
A75: Segment 3 | B75: AAJN017 | C75: BIZHUB C4051I COLOR MFP | D75: 7255 | E75: 2756.75 | F75: 0.6200206754
A76: Color/B&W 31-40
B77: PAPER SUPPLY OPTIONS: Select one
B78: AAJUW14 | C78: PF-P28 500-SHEET PAPER TRAY | D78: 413 | E78: 144.56 | F78: 0.6499757869
B79: AAJUW12 | C79: PF-P25 HEIGHT ADJUSTMENT UNIT | D79: 374 | E79: 126.83 | F79: 0.6608823529
B80: 135900 | C80: DK-P05 COPY DESK | D80: 375 | E80: 318.75 | F80: 0.15
B81: OUTPUT OPTIONS:
B82: ACCGWY2 | C82: FS-P04 OFFLINE STAPLER | D82: 330 | E82: 115.35 | F82: 0.6504545455
B83: EH91539 | C83: CS-2 CONVENIENCE STAPLER | D83: 329 | E83: 279.65 | F83: 0.15
B84: i-OPTION ACCESSORIES:
B85: A0PD117 | C85: LK-104 V3 I-OPTION VOICE GUIDANCE | D85: 785 | E85: 274.75 | F85: 0.65
B86: A0PD119 | C86: LK-106 I-OPTION BAR CODE FONT | D86: 821 | E86: 287.35 | F86: 0.65
B87: A0PD11F | C87: LK-107 I-OPTION UNICODE FONT | D87: 690 | E87: 241.5 | F87: 0.65
B88: A0PD11G | C88: LK-108 I-OPTION OCR FONT | D88: 191 | E88: 66.85 | F88: 0.65
B89: A0PD11U | C89: LK-110 V2 I-OPTION OOXML ENHANCED PDF | D89: 668 | E89: 233.73 | F89: 0.6501047904
B90: A0PD11K | C90: LK-111 I-OPTION THIN PRINT | D90: 250 | E90: 87.5 | F90: 0.65
B91: A0PDAA1 | C91: LK-116 - LICENSE | D91: 250 | E91: 138.25 | F91: 0.447
B92: CARD READERS
B93: YSQB09030771 | C93: YSOFT MFX READER KM US CONFIG LIFE WARTY | D93: 310 | E93: 263.5 | F93: 0.15
B94: 7640013468 | C94: AU-204H MagStripe CARD READER | D94: 130 | E94: 110.49 | F94: 0.1500769231
B95: R5427011136466GEN2 | C95: AU-205HGEN2 SQ-2020-94643 | D95: 399 | E95: 339.15 | F95: 0.15
B96: ACCKWY1 | C96: MK-P08 MOUNT KIT | D96: 102 | E96: 35.58 | F96: 0.6511764706
B97: MISC. OPTIONS:
B98: ACCNWY1 | C98: UK-P19 DOUBLE FEED DETECTION KIT | D98: 128 | E98: 44.94 | F98: 0.64890625
B99: G844100LCMUS2 | C99: EXTERNAL KEYBOARD | D99: 223 | E99: 189.21 | F99: 0.1515246637
B100: ACCFWY1 | C100: KH-P02 KEYBOARD HOLDER | D100: 146 | E100: 50.93 | F100: 0.6511643836
B101: ACCTWY1 | C101: EK-P08 LOCAL INTERFACE KIT | D101: 235 | E101: 82.39 | F101: 0.6494042553
B102: ACCVWY1 | C102: EK-P09 LOCAL INTERFACE KIT W/ BLUETOOTH | D102: 328 | E102: 114.97 | F102: 0.6494817073
B103: ACCRWY1 | C103: WT-P03 WORKING TABLE | D103: 128 | E103: 44.94 | F103: 0.64890625
B104: ACCJWY1 | C104: KP-102 KEYPAD (10" PANEL) | D104: 149 | E104: 52.06 | F104: 0.6506040268
B105: W225015120 | C105: PWRFILTER W INRUSH PROTECT 120V/15A | D105: 299 | E105: 254.15 | F105: =100%-(E105/D105) -> 0.15
B106: ACDJWY1 | C106: EM-908 1 TB SSD | D106: 999 | E106: 349.78 | F106: 0.6498698699
B107: PROFESSIONAL SERVICES:
B108: 7640015657 | C108: BIZHUB SECURE | D108: 250 | E108: 250 | F108: 0
B109: 7640019024 | C109: BIZHUB SECURE HEALTHCARE | D109: 400 | E109: 400 | F109: 0
B110: 7640020787 | C110: BIZHUB SECURE PLATINUM | D110: 499 | E110: 499 | F110: 0
B111: 7640019485 | C111: KMBS PROFESSIONAL PROJECT SERVICES | D111: 1 | E111: 1 | F111: 0
A113: Segment 4 | B113: AE7J011 | C113: BIZHUB C4751I | D113: 8399.5 | E113: 3191.81 | F113: =100%-(E113/D113) -> 0.62
A114: Color/B&W 41-50
B115: PAPER SUPPLY OPTIONS: Select one
B116: AAJUW14 | C116: PF-P28 500-SHEET PAPER TRAY | D116: 413 | E116: 144.56 | F116: =100%-(E116/D116) -> 0.6499757869
B117: AAJUW12 | C117: PF-P25 HEIGHT ADJUSTMENT UNIT | D117: 374 | E117: 126.83 | F117: 0.6608823529
B118: 135900 | C118: DK-P05 COPY DESK | D118: 375 | E118: 318.75 | F118: 0.15
B119: OUTPUT OPTIONS:
B120: ACCGWY2 | C120: FS-P04 OFFLINE STAPLER | D120: 330 | E120: 115.35 | F120: =100%-(E120/D120) -> 0.6504545455
B121: EH91539 | C121: CS-2 CONVENIENCE STAPLER | D121: 329 | E121: 279.65 | F121: 0.15
B122: i-OPTION ACCESSORIES:
B123: A0PD117 | C123: LK-104 V3 I-OPTION VOICE GUIDANCE | D123: 785 | E123: 274.75 | F123: =100%-(E123/D123) -> 0.65
B124: A0PD119 | C124: LK-106 I-OPTION BAR CODE FONT | D124: 821 | E124: 287.35 | F124: 0.65
B125: A0PD11F | C125: LK-107 I-OPTION UNICODE FONT | D125: 690 | E125: 241.5 | F125: 0.65
B126: A0PD11G | C126: LK-108 I-OPTION OCR FONT | D126: 191 | E126: 66.85 | F126: 0.65
B127: A0PD11U | C127: LK-110 V2 I-OPTION OOXML ENHANCED PDF | D127: 668 | E127: 233.73 | F127: 0.6501047904
B128: A0PD11K | C128: LK-111 I-OPTION THIN PRINT | D128: 250 | E128: 87.5 | F128: 0.65
B129: A0PDAA1 | C129: LK-116 - LICENSE | D129: 250 | E129: 138.25 | F129: 0.447
B130: CARD READERS
B131: YSQB09030771 | C131: YSOFT MFX READER KM US CONFIG LIFE WARTY | D131: 310 | E131: 263.5 | F131: =100%-(E131/D131) -> 0.15
B132: 7640013468 | C132: AU-204H MagStripe CARD READER | D132: 130 | E132: 110.49 | F132: 0.1500769231
B133: R5427011136466GEN2 | C133: AU-205HGEN2 SQ-2020-94643 | D133: 399 | E133: 339.15 | F133: 0.15
B134: ACCKWY1 | C134: MK-P08 MOUNT KIT | D134: 102 | E134: 35.58 | F134: 0.6511764706
B135: MISC. OPTIONS:
B136: ACCNWY1 | C136: UK-P19 DOUBLE FEED DETECTION KIT | D136: 128 | E136: 44.94 | F136: =100%-(E136/D136) -> 0.64890625
B137: G844100LCMUS2 | C137: EXTERNAL KEYBOARD | D137: 223 | E137: 189.21 | F137: 0.1515246637
B138: ACCFWY1 | C138: KH-P02 KEYBOARD HOLDER | D138: 146 | E138: 50.93 | F138: 0.6511643836
B139: ACCTWY1 | C139: EK-P08 LOCAL INTERFACE KIT | D139: 235 | E139: 82.39 | F139: 0.6494042553
B140: ACCVWY1 | C140: EK-P09 LOCAL INTERFACE KIT W/ BLUETOOTH | D140: 328 | E140: 114.97 | F140: 0.6494817073
B141: ACCRWY1 | C141: WT-P03 WORKING TABLE | D141: 128 | E141: 44.94 | F141: 0.64890625
B142: ACCJWY1 | C142: KP-102 KEYPAD (10" PANEL) | D142: 149 | E142: 52.06 | F142: 0.6506040268
B143: W225015120 | C143: PWRFILTER W INRUSH PROTECT 120V/15A | D143: 299 | E143: 254.15 | F143: 0.15
B144: XGPCS15D | C144: *120V/15AMP POWER PROT | D144: 320 | E144: 272 | F144: 0.15
B145: ACDJWY1 | C145: EM-908 1 TB SSD | D145: 999 | E145: 349.78 | F145: 0.6498698699
B146: PROFESSIONAL SERVICES:
B147: 7640015657 | C147: BIZHUB SECURE | D147: 250 | E147: 250 | F147: =100%-(E147/D147) -> 0
B148: 7640019024 | C148: BIZHUB SECURE HEALTHCARE | D148: 400 | E148: 400 | F148: 0
B149: 7640020787 | C149: BIZHUB SECURE PLATINUM | D149: 499 | E149: 499 | F149: 0
B150: 7640019485 | C150: KMBS PROFESSIONAL PROJECT SERVICES | D150: 1 | E150: 1 | F150: 0
A152: Segment 4 | B152: ACT9017 | C152: BIZHUB 4051I 42 PPM A4 MFP | D152: 4362 | E152: 2834.98 | F152: 0.3500733608
A153: B&W 41-50
B154: PAPER SUPPLY OPTIONS:
B155: AAJUW14 | C155: PF-P28 500-SHEET PAPER TRAY | D155: 413 | E155: 144.56 | F155: =100%-(E155/D155) -> 0.6499757869
B156: AAJUW12 | C156: PF-P25 HEIGHT ADJUSTMENT UNIT | D156: 374 | E156: 126.83 | F156: 0.6608823529
B157: 135900 | C157: DK-P05 COPY DESK | D157: 375 | E157: 318.75 | F157: 0.15
B158: OUTPUT OPTIONS
B159: ACCGWY2 | C159: FS-P04 OFFLINE STAPLER | D159: 330 | E159: 115.35 | F159: 0.6504545455
B160: EH91539 | C160: CS-2 CONVENIENCE STAPLER | D160: 329 | E160: 279.65 | F160: 0.15
B161: i-Option ACCESSORIES
B162: A0PD117 | C162: LK-104 V3 I-OPTION VOICE GUIDANCE | D162: 785 | E162: 274.75 | F162: 0.65
B163: A0PD119 | C163: LK-106 I-OPTION BAR CODE FONT | D163: 821 | E163: 287.35 | F163: 0.65
B164: A0PD11F | C164: LK-107 I-OPTION UNICODE FONT | D164: 690 | E164: 241.5 | F164: 0.65
B165: A0PD11G | C165: LK-108 I-OPTION OCR FONT | D165: 191 | E165: 66.85 | F165: 0.65
B166: A0PD11U | C166: LK-110 V2 I-OPTION OOXML ENHANCED PDF | D166: 668 | E166: 233.73 | F166: 0.6501047904
B167: A0PD11K | C167: LK-111 I-OPTION THIN PRINT | D167: 250 | E167: 87.5 | F167: 0.65
B168: A0PDAA1 | C168: LK-116 - LICENSE | D168: 250 | E168: 138.25 | F168: 0.447
B169: AUTHENTICATION OPTIONS:
B170: R5427011136466GEN2 | C170: AU-205HGEN2 SQ-2020-94643 | D170: 399 | E170: 339.15 | F170: 0.15
B171: ACCKWY1 | C171: MK-P08 MOUNT KIT | D171: 102 | E171: 35.58 | F171: 0.6511764706
B172: YSQB09030771 | C172: YSOFT MFX READER KM US CONFIG LIFE WARTY | D172: 310 | E172: 263.5 | F172: 0.15
B173: 7640013468 | C173: AU-204H MagStripe CARD READER | D173: 130 | E173: 110.49 | F173: 0.1500769231
B174: MISC. OPTIONS:
B175: AA1K011 | C175: FK-517 FAX KIT | D175: 281 | E175: 98.49 | F175: 0.6495017794
B176: ACCNWY1 | C176: UK-P19 DOUBLE FEED DETECTION KIT | D176: 128 | E176: 44.94 | F176: 0.64890625
B177: G844100LCMUS2 | C177: EXTERNAL KEYBOARD | D177: 223 | E177: 189.21 | F177: 0.1515246637
B178: ACCFWY1 | C178: KH-P02 KEYBOARD HOLDER | D178: 146 | E178: 50.93 | F178: 0.6511643836
B179: ACCTWY1 | C179: EK-P08 LOCAL INTERFACE KIT | D179: 235 | E179: 82.39 | F179: 0.6494042553
B180: ACCVWY1 | C180: EK-P09 LOCAL INTERFACE KIT W/ BLUETOOTH | D180: 328 | E180: 114.97 | F180: 0.6494817073
B181: ACCRWY1 | C181: WT-P03 WORKING TABLE | D181: 128 | E181: 44.94 | F181: 0.64890625
B182: ACCJWY1 | C182: KP-102 KEYPAD (10" PANEL) | D182: 149 | E182: 52.06 | F182: 0.6506040268
B183: W225015120 | C183: PWRFILTER W INRUSH PROTECT 120V/15A | D183: 299 | E183: 254.15 | F183: 0.15
B184: ACDJWY1 | C184: EM-908 1 TB SSD | D184: 999 | E184: 349.78 | F184: 0.6498698699
B185: PROFESSIONAL SERVICES:
B186: 7640015657 | C186: BIZHUB SECURE | D186: 250 | E186: 250 | F186: 0
B187: 7640019024 | C187: BIZHUB SECURE HEALTHCARE | D187: 400 | E187: 400 | F187: 0
B188: 7640020787 | C188: BIZHUB SECURE PLATINUM | D188: 499 | E188: 499 | F188: 0
B189: 7640019485 | C189: KMBS PROFESSIONAL PROJECT SERVICES | D189: 1 | E189: 1 | F189: 0
A191: Segment 4 | B191: ACER011 | C191: BIZHUB 4020i 42 PPM MONO AIO | D191: 895 | E191: 581.44 | F191: 0.3503463687
A192: B&W 41-50
B193: PAPER HANDLING OPTIONS:
B194: ACEVWY1 | C194: PF-P23 PAPER TRAY (250-SHEET CAPACITY) | D194: 191 | E194: 66.85 | F194: 0.65
B195: ACEWWY1 | C195: PF-P24 PAPER TRAY (520-SHEET CAPACITY) | D195: 290 | E195: 101.5 | F195: 0.65
B196: OTHER OPTIONS AND ACCESSORIES:
B197: W25015120 | C197: SINGLE OUTLET PWRFILTER 120V/15A | D197: 51 | E197: 41.65 | F197: 0.1833333333
B198: EH91539 | C198: CS-2 CONVENIENCE STAPLER | D198: 329 | E198: 279.65 | F198: 0.15
A200: Segment 4 | B200: AF29011 | C200: BIZHUB 4201I 44 PPM SFP | D200: 515 | E200: 334.75 | F200: =100%-(E200/D200) -> 0.35
A201: B&W 41-50
B202: PAPER HANDLING OPTIONS:
B203: ACEVWY1 | C203: PF-P23 PAPER TRAY (250-SHEET CAPACITY) | D203: 191 | E203: 66.85 | F203: =100%-(E203/D203) -> 0.65
B204: ACEWWY1 | C204: PF-P24 PAPER TRAY (520-SHEET CAPACITY) | D204: 290 | E204: 101.5 | F204: 0.65
B205: OTHER OPTIONS AND ACCESSORIES:
B206: W25015120 | C206: SINGLE OUTLET PWRFILTER 120V/15A | D206: 51 | E206: 41.65 | F206: =100%-(E206/D206) -> 0.1833333333
... 69 more rows

Sheet Group B Service
A1: Konica Minolta Business Solutions U.S.A., Inc. | N1: Table of Contents
A2: Group B Multi-function Devices (MFD), A4 Service and Supplies Pricing
A3: Includes B&W and Color/B&W Segments
A4: Service and Supply Pricing | C4: Segment 3 | E4: Segment 3 | G4: Segment 3 | I4: Segment 4 | J4: Segment 4 | K4: Segment 4 | L4: Segment 5
C5: (31 - 40) | E5: (31 - 40) | G5: (31 - 40) | I5: (41 - 50) | J5: (41 - 50) | K5: (41 - 50) | L5: (51 - 60)
C6: Color | D6: B&W | E6: Color | F6: B&W | G6: Color | H6: B&W
A7: Make | C7: Konica Minolta | E7: Konica Minolta | G7: Konica Minolta | I7: Konica Minolta | J7: Konica Minolta | K7: Konica Minolta | L7: Konica Minolta
A8: Model | C8: bizhub C3320i | E8: bizhub C3350i | G8: bizhub C4050i | I8: bizhub 4050i | J8: bizhub 4020i | K8: bizhub 4750i | L8: bizhub 5020i
A9: Maintenance Agreements
A10: Zero Base Charge | B10: Includes OEM toner, parts, labor (no staples) | C10: 0.1442 | D10: 0.0255 | E10: 0.06 | F10: 0.0176 | G10: 0.057 | H10: 0.0136 | I10: 0.0165 | J10: 0.0319 | K10: 0.0165 | L10: 0.019
B11: Includes Compatible toner, parts, labor (no staples) | C11: 0.1442 | D11: 0.0255 | E11: 0.06 | F11: 0.0176 | G11: 0.057 | H11: 0.0136 | I11: 0.0165 | J11: 0.0319 | K11: 0.0165 | L11: 0.019
B12: Parts and labor only (no supplies) | C12: 0.1584 | D12: 0.0222 | E12: 0.054 | F12: 0.0158 | G12: 0.0513 | H12: 0.0123 | I12: 0.0149 | J12: 0.0303 | K12: 0.0149 | L12: 0.0174
B13: % Increase in rate for inclusion of staples | C13: Included | D13: Included | E13: Included | F13: Included | G13: Included | H13: Included | I13: Included | J13: Included | K13: Included | L13: Included
B14: % Increase in rate for Rural Service Zone | C14: 0.1 | D14: 0.1 | E14: 0.1 | F14: 0.1 | G14: 0.1 | H14: 0.1 | I14: 0.1 | J14: 0.1 | K14: 0.1 | L14: 0.1
B15: % Increase in rate for Remote Service Zone | C15: 40 | D15: 40 | E15: 40 | F15: 40 | G15: 40 | H15: 40 | I15: 40 | J15: 40 | K15: 40 | L15: 40
A17: Flat Rate Fee | B17: Parts, labor, supplies | C17: 61.3 | E17: 60.3 | G17: 60.3 | I17: 37.8 | J17: 37.8 | K17: 37.8 | L17: 37.8
B18: % Increase in rate for Rural Service Zone | C18: 0.1 | D18: 0.1 | E18: 0.1 | F18: 0.1 | G18: 0.1 | H18: 0.1 | I18: 0.1 | J18: 0.1 | K18: 0.1 | L18: 0.1
B19: % Increase in rate for Remote Service Zone | C19: 40 | D19: 40 | E19: 40 | F19: 40 | G19: 40 | H19: 40 | I19: 40 | J19: 40 | K19: 40 | L19: 40
A21: Monthly Base Charge Option 1 | B21: Included Number of Clicks per Month | C21: 800 | D21: 3700 | E21: 800 | F21: 3700 | G21: 800 | H21: 3700 | I21: 2700 | J21: 2100 | K21: 3600 | L21: 2100
B22: Base Charge - includes OEM toner, parts, labor (no staples) | C22: N/A | D22: N/A | E22: N/A | F22: N/A | G22: N/A | H22: N/A | I22: N/A | J22: N/A | K22: N/A | L22: N/A
B23: Base Charge - includes Compatible toner, parts, labor (no staples) | C23: 80.64 | D23: 79.37 | E23: 44 | F23: 61.05 | G23: 43.2 | H23: 47.21 | I23: 41.88 | J23: 70.45 | K23: 50.76 | L23: 64
B24: Base Charge - parts and labor only (no supplies) | C24: N/A | D24: N/A | E24: N/A | F24: N/A | G24: N/A | H24: N/A | I24: N/A | J24: N/A | K24: N/A | L24: N/A
B25: Overage Rate | C25: 0.1008 | D25: 0.0215 | E25: 0.055 | F25: 0.0165 | G25: 0.054 | H25: 0.0128 | I25: 0.0155 | J25: 0.0336 | K25: 0.0141 | L25: 0.0305
B26: % Increase in rate for inclusion of staples | C26: Included | D26: Included | E26: Included | F26: Included | G26: Included | H26: Included | I26: Included | J26: Included | K26: Included | L26: Included
B27: % Increase in rate for Rural Service Zone | C27: 0.1 | D27: 0.1 | E27: 0.1 | F27: 0.1 | G27: 0.1 | H27: 0.1 | I27: 0.1 | J27: 0.1 | K27: 0.1 | L27: 0.1
B28: % Increase in rate for Remote Service Zone | C28: 40 | D28: 40 | E28: 40 | F28: 40 | G28: 40 | H28: 40 | I28: 40 | J28: 40 | K28: 40 | L28: 40
A30: Monthly Base Charge Option 2 | B30: Included Number of Clicks per Month | C30: N/A | D30: N/A | E30: N/A | F30: N/A | G30: N/A | H30: N/A | I30: N/A | J30: N/A | K30: N/A | L30: N/A
B31: Base Charge - includes OEM toner, parts, labor (no staples) | C31: N/A | D31: N/A | E31: N/A | F31: N/A | G31: N/A | H31: N/A | I31: N/A | J31: N/A | K31: N/A | L31: N/A
B32: Base Charge - includes Compatible toner, parts, labor (no staples) | C32: N/A | D32: N/A | E32: N/A | F32: N/A | G32: N/A | H32: N/A | I32: N/A | J32: N/A | K32: N/A | L32: N/A
B33: Base Charge - parts and labor only (no supplies) | C33: N/A | D33: N/A | E33: N/A | F33: N/A | G33: N/A | H33: N/A | I33: N/A | J33: N/A | K33: N/A | L33: N/A
B34: Overage Rate | C34: N/A | D34: N/A | E34: N/A | F34: N/A | G34: N/A | H34: N/A | I34: N/A | J34: N/A | K34: N/A | L34: N/A
B35: % Increase in rate for inclusion of staples | C35: 0 | D35: 0 | E35: 0 | F35: 0 | G35: 0 | H35: 0 | I35: 0 | J35: 0 | K35: 0 | L35: 0
B36: % Increase in rate for Rural Service Zone | C36: 0 | D36: 0 | E36: 0 | F36: 0 | G36: 0 | H36: 0 | I36: 0 | J36: 0 | K36: 0 | L36: 0
B37: % Increase in rate for Remote Service Zone | C37: 0 | D37: 0 | E37: 0 | F37: 0 | G37: 0 | H37: 0 | I37: 0 | J37: 0 | K37: 0 | L37: 0
A39: Monthly Base Charge Option 3 | B39: Included Number of Clicks per Month | C39: N/A | D39: N/A | E39: N/A | F39: N/A | G39: N/A | H39: N/A | I39: N/A | J39: N/A | K39: N/A | L39: N/A
B40: Base Charge - includes OEM toner, parts, labor (no staples) | C40: N/A | D40: N/A | E40: N/A | F40: N/A | G40: N/A | H40: N/A | I40: N/A | J40: N/A | K40: N/A | L40: N/A
B41: Base Charge - includes Compatible toner, parts, labor (no staples) | C41: N/A | D41: N/A | E41: N/A | F41: N/A | G41: N/A | H41: N/A | I41: N/A | J41: N/A | K41: N/A | L41: N/A
B42: Base Charge - parts and labor only (no supplies) | C42: N/A | D42: N/A | E42: N/A | F42: N/A | G42: N/A | H42: N/A | I42: N/A | J42: N/A | K42: N/A | L42: N/A
B43: Overage Rate | C43: N/A | D43: N/A | E43: N/A | F43: N/A | G43: N/A | H43: N/A | I43: N/A | J43: N/A | K43: N/A | L43: N/A
B44: % Increase in rate for inclusion of staples | C44: 0 | D44: 0 | E44: 0 | F44: 0 | G44: 0 | H44: 0 | I44: 0 | J44: 0 | K44: 0 | L44: 0
B45: % Increase in rate for Rural Service Zone | C45: 0 | D45: 0 | E45: 0 | F45: 0 | G45: 0 | H45: 0 | I45: 0 | J45: 0 | K45: 0 | L45: 0
B46: % Increase in rate for Remote Service Zone | C46: 0 | D46: 0 | E46: 0 | F46: 0 | G46: 0 | H46: 0 | I46: 0 | J46: 0 | K46: 0 | L46: 0
A47: Additional Service Coverage (per hour)
A48: Urban Service Zone | B48: 2 x 5 coverage (2 eight hour shifts, 5 days a week) | C48: Quote upon request
B49: 3 x 5 coverage (3 eight hour shifts, 5 days a week)
B50: 1 x 7 coverage (1 eight hour shift, 7 days a week)
B51: 2 x 7 coverage (2 eight hour shifts, 7 days a week)
B52: 3 x 7 coverage (3 eight hour shifts, 7 days a week)
A54: Rural Service Zone | B54: 2 x 5 coverage (2 eight hour shifts, 5 days a week) | C54: Quote upon request
B55: 3 x 5 coverage (3 eight hour shifts, 5 days a week)
B56: 1 x 7 coverage (1 eight hour shift, 7 days a week)
B57: 2 x 7 coverage (2 eight hour shifts, 7 days a week)
B58: 3 x 7 coverage (3 eight hour shifts, 7 days a week)
A60: Remote Service Zone | B60: 2 x 5 coverage (2 eight hour shifts, 5 days a week) | C60: Quote upon request
B61: 3 x 5 coverage (3 eight hour shifts, 5 days a week)
B62: 1 x 7 coverage (1 eight hour shift, 7 days a week)
B63: 2 x 7 coverage (2 eight hour shifts, 7 days a week)
B64: 3 x 7 coverage (3 eight hour shifts, 7 days a week)
A65: Service Calls not covered under the Maintenance Agreement
A66: Urban Service Zone | B66: Price Per Hour | C66: 135 | E66: 135 | G66: 135 | I66: 135 | J66: 135 | K66: 135 | L66: 135
A68: Rural Service Zone | B68: Flat Rate Charge | C68: N/A | E68: N/A | G68: N/A | I68: N/A | J68: N/A | K68: N/A | L68: N/A
B69: Price Per Mile | C69: N/A | E69: N/A | G69: N/A | I69: N/A | J69: N/A | K69: N/A | L69: N/A
B70: Price Per Hour | C70: 135 | E70: 135 | G70: 135 | I70: 135 | J70: 135 | K70: 135 | L70: 135
A72: Remote Service Zone | B72: Flat Rate Charge | C72: N/A | E72: N/A | G72: N/A | I72: N/A | J72: N/A | K72: N/A | L72: N/A
B73: Price Per Mile | C73: N/A | E73: N/A | G73: N/A | I73: N/A | J73: N/A | K73: N/A | L73: N/A
B74: Price Per Hour | C74: 135 | E74: 135 | G74: 135 | I74: 135 | J74: 135 | K74: 135 | L74: 135
A75: End-User Training and Support (per hour) - beyond the required one free hour
A76: Additional End-User taining on Device and/or software | C76: 75 | E76: 75 | G76: 75 | I76: 75 | J76: 75 | K76: 75 | L76: 75
A77: After hours technical phone support | C77: Quote upon request
A78: Additional Advanced/IT Training Cost by hours | C78: 175 | E78: 175 | G78: 175 | I78: 175 | J78: 175 | K78: 175 | L78: 175
A79: Additional IT Support by hours | C79: 175 | E79: 175 | G79: 175 | I79: 175 | J79: 175 | K79: 175 | L79: 175
A80: Additional Services
A81: Equipment Move Service Zone 2 | B81: Flat Rate Charge | C81: 770 | E81: 770 | G81: 770 | I81: 770 | J81: 770 | K81: 770 | L81: 770
B82: Price Per Mile | C82: N/A | D82: N/A | E82: N/A | G82: N/A | I82: N/A | J82: N/A | K82: N/A | L82: N/A
B83: Price Per Hour | C83: N/A | D83: N/A | E83: N/A | G83: N/A | I83: N/A | J83: N/A | K83: N/A | L83: N/A
A85: Equipment Move Service Zone 3 | B85: Flat Rate Charge | C85: 850 | E85: 850 | G85: 850 | I85: 850 | J85: 850 | K85: 850 | L85: 850
B86: Price Per Mile | C86: N/A | D86: N/A | E86: N/A | G86: N/A | I86: N/A | J86: N/A | K86: N/A | L86: N/A
B87: Price Per Hour | C87: N/A | D87: N/A | E87: N/A | G87: N/A | I87: N/A | J87: N/A | K87: N/A | L87: N/A
A89: Hard Drive Removal and Surrender | B89: Flat Rate Charge | C89: 300 | E89: 300 | G89: 300 | I89: 300 | J89: 300 | K89: 300 | L89: 300
A91: Digital Solutions Center - per month | C91: 12 | E91: 12 | G91: 12 | I91: 12 | J91: 12 | K91: 12 | L91: 12
A92: bizhub secure- Flat Fee | C92: 250 | E92: 250 | G92: 250 | I92: 250 | J92: 250 | K92: 250 | L92: 250
A93: bizhub secure platimum- Flat Fee | C93: 499 | E93: 499 | G93: 499 | I93: 499 | J93: 499 | K93: 499 | L93: 499

Sheet Group C
A1: Konica Minolta Business Solutions U.S.A., Inc. | H1: Table of Contents
A2: Group C | B2: Item Number | C2: Item Description | D2: MSRP | E2: NASPO Customer Price | F2: Discount
A3: Segment 1 | B3: ACC2012 | C3: ACCURIOPRINT C4065 | D3: 56337 | E3: 21407.87 | F3: =100%-(E3/D3) -> 0.6200033726
A4: Color/B&W 65-79
B5: 7640012602 | C5: BASIC PROFESSIONAL SERVICES - LEVEL 4 | D5: 2200 | E5: 2200 | F5: =100%-(E5/D5) -> 0
B6: 7640020218 | C6: EXPERT COLOR PRODUCTION TRAINING | D6: 5000 | E6: 5000 | F6: 0
B7: 7640015255 | C7: PROFESSIONAL SERVICES PROJECT FEE | D7: 1 | E7: 1 | F7: 0
B8: DOCUMENT HANDLING OPTIONS:
B9: AAMPWY1 | C9: DF-713 AUTO DUPLEX DOCUMENT FEEDER | D9: 3398 | E9: 1189.19 | F9: 0.650032372
B10: ACMHWY1 | C10: UK-112 HDD | D10: 3146 | E10: 1101.1 | F10: 0.65
B11: A3PMWY1 | C11: OC-511 ORIGINAL COVER | D11: 111 | E11: 38.95 | F11: 0.6490990991
B12: PAPER SUPPLY OPTIONS:
B13: A0U4WY3 | C13: PF-602 PAPER FEED UNIT | D13: 8124 | E13: 2843.24 | F13: 0.6500196947
B14: A15AWY1 | C14: HT-505 HEATER FAN UNIT | D14: 2662 | E14: 931.73 | F14: 0.6499887303
B15: A03WWY2 | C15: LU-202M LARGE CAPACITY TRAY | D15: 4482 | E15: 1568.77 | F15: 0.649984382
B16: A8K4WY2 | C16: LU-202XLM XL PAPER FEED (29.5 IN MAX) | D16: 6921 | E16: 2422.42 | F16: 0.6499898859
B17: A8ACWY1 | C17: MK-746 ENVELOPE GUIDE KIT | D17: 755 | E17: 264.26 | F17: 0.649986755
B18: A0410Y0 | C18: HT-503 DEHUMID HEATER FOR LU-202 | D18: 1682 | E18: 588.59 | F18: 0.6500653983
B19: A041WY1 | C19: HT-515 HEATER FOR LU-202XLM | D19: 2235 | E19: 782.38 | F19: 0.6499418345
B20: A55CWY3 | C20: PF-707M PAPER FEED UNIT | D20: 13490 | E20: 4721.52 | F20: 0.6499985174
B21: A1RKWY3 | C21: HT-506 HEATER FOR PF-710 | D21: 2936 | E21: 1027.43 | F21: 0.6500579019
B22: ACE7WY1 | C22: MB-509 MULTI BYPASS TRAY | D22: 733 | E22: 256.66 | F22: 0.6498499318
B23: AA01WY1 | C23: MB-508 BANNER SHEET BYPASS TRAY | D23: 5569 | E23: 1949.15 | F23: 0.65
B24: ACR3WY1 | C24: MK-760 BANNER INPUT KIT | D24: 617 | E24: 215.82 | F24: 0.6502106969
B25: ACR4WY1 | C25: MK-761 BANNER OUTPUT KIT | D25: 969 | E25: 339.14 | F25: 0.6500103199
B26: A69EWY1 | C26: FA-502 FEED ADJUSTER | D26: 881 | E26: 308.31 | F26: 0.650045403
B27: ACKHW11 | C27: EF-107 ENVELOPE FUSER | D27: 6292 | E27: 2202.2 | F27: 0.65
B28: ACCXWY1 | C28: IM-101 INTELLIGENT MEDIA SENSOR | D28: 1963 | E28: 687.09 | F28: 0.649979623
B29: OUTPUT OPTIONS:
B30: A043WY1 | C30: OT-511 OUTPUT TRAY | D30: 869 | E30: 304.3 | F30: 0.6498273878
B31: AC8WWY1 | C31: OT-512 OUTPUT TRAY | D31: 4780 | E31: 1672.87 | F31: 0.6500271967
B32: A57UWY1 | C32: WT-511 WORKING TABLE | D32: 730 | E32: 255.45 | F32: 0.6500684932
B33: A5VKWY1 | C33: HT-511 UPPER TRAY OPTION HEATER | D33: 315 | E33: 110.11 | F33: 0.6504444444
B34: A04HWY2 | C34: PI-502 POST INSERTER FOR FS-532 | D34: 1401 | E34: 490.49 | F34: 0.6499000714
B35: A4F3WY6 | C35: FS-532M STAPLE FINISHER | D35: 6551 | E35: 2292.69 | F35: 0.6500244238
B36: AC8UW11 | C36: PK-525 PUNCH KIT | D36: 1051 | E36: 367.97 | F36: 0.649885823
B37: A4F5WY1 | C37: MK-732 MOUNT KIT FOR PI-506 | D37: 561 | E37: 196.2 | F37: 0.6502673797
B38: A4F4WY1 | C38: SD-510 SADDLE STITCH UNIT | D38: 2489 | E38: 871.27 | F38: 0.6499517879
B39: PRINT CONTROLLER OPTIONS:
B40: ACC0WY2 | C40: IC-419 EFI EMBEDDED IMAGE CONTROLLER | D40: 9900 | E40: 3465 | F40: 0.65
B41: 01001980A | C41: IC-316E CREO IMAGE CONTROLLER | D41: 25370 | E41: 21564.5 | F41: 0.15
B42: 45201393 | C42: FIERY IMPOSE 1YEAR SUBSCRIPTION | D42: 809 | E42: 687.65 | F42: 0.15
B43: 45201395 | C43: FIERY IMPOSE 2YEAR SUBSCRIPTION | D43: 1617 | E43: 1374.45 | F43: 0.15
B44: 45201397 | C44: FIERY IMPOSE 3YEAR SUBSCRIPTION | D44: 2306 | E44: 1960.1 | F44: 0.15
B45: 45201399 | C45: FIERY IMPOSE 4YEAR SUBSCRIPTION | D45: 2427 | E45: 2062.95 | F45: 0.15
B46: 45201401 | C46: FIERY IMPOSE 5YEAR SUBSCRIPTION | D46: 2601 | E46: 2210.85 | F46: 0.15
B47: 45201403 | C47: FIERY COMPOSE 1YEAR SUBSCRIPTION | D47: 362 | E47: 307.7 | F47: 0.15
B48: 45201405 | C48: FIERY COMPOSE 2YEAR SUBSCRIPTION | D48: 725 | E48: 616.25 | F48: 0.15
B49: 45201407 | C49: FIERY COMPOSE 3YEAR SUBSCRIPTION | D49: 1033 | E49: 878.05 | F49: 0.15
B50: 45201410 | C50: FIERY COMPOSE 4YEAR SUBSCRIPTION | D50: 1088 | E50: 924.8 | F50: 0.15
B51: 45201412 | C51: FIERY COMPOSE 5YEAR SUBSCRIPTION | D51: 1145 | E51: 973.25 | F51: 0.15
B52: 45201414 | C52: FIERY IMPOSE-COMPOSE 1YEAR SUBSCRIPTION | D52: 943 | E52: 801.55 | F52: 0.15
B53: 45201416 | C53: FIERY IMPOSE-COMPOSE 2YEAR SUBSCRIPTION | D53: 1887 | E53: 1603.95 | F53: 0.15
B54: 45201418 | C54: FIERY IMPOSE-COMPOSE 3YEAR SUBSCRIPTION | D54: 2688 | E54: 2284.8 | F54: 0.15
B55: 45201423 | C55: FIERY IMPOSE-COMPOSE 4YEAR SUBSCRIPTION | D55: 2830 | E55: 2405.5 | F55: 0.15
B56: 45201425 | C56: FIERY IMPOSE-COMPOSE 5YEAR SUBSCRIPTION | D56: 3104 | E56: 2638.4 | F56: 0.15
B57: 45201427 | C57: FIERY JOBMASTER 1YEAR SUBSCRIPTION | D57: 1851 | E57: 1573.35 | F57: 0.15
B58: 45201429 | C58: FIERY JOBMASTER 2YEAR SUBSCRIPTION | D58: 3703 | E58: 3147.55 | F58: 0.15
B59: 45201431 | C59: FIERY JOBMASTER 3YEAR SUBSCRIPTION | D59: 5278 | E59: 4486.3 | F59: 0.15
B60: 45201433 | C60: FIERY JOBMASTER 4YEAR SUBSCRIPTION | D60: 6667 | E60: 5666.95 | F60: 0.15
B61: 45201435 | C61: FIERY JOBMASTER 5YEAR SUBSCRIPTION | D61: 7909 | E61: 6722.65 | F61: 0.15
B62: 45219823 | C62: ADOBE ACROBAT PRO 2020 FOR FIERY MAKERDY | D62: 473 | E62: 401.63 | F62: 0.1508879493
B63: 45198237 | C63: FIERY COLORRIGHT - 1YR LICENSE KIT | D63: 1067 | E63: 907.23 | F63: 0.149737582
B64: 45201515 | C64: FIERY COLORRIGHT - 2YR LICENSE KIT | D64: 2022 | E64: 1718.96 | F64: 0.1498714144
B65: 45201517 | C65: FIERY COLORRIGHT - 3YR LICENSE KIT | D65: 2876 | E65: 2444.74 | F65: 0.1499513213
B66: 45201519 | C66: FIERY COLORRIGHT - 4YR LICENSE KIT | D66: 3404 | E66: 2893.58 | F66: 0.149947121
B67: 45201521 | C67: FIERY COLORRIGHT - 5YR LICENSE KIT | D67: 3988 | E67: 3390.17 | F67: 0.1499072217
B68: 45199274 | C68: FIERY AUTOMATION - 1YR LICENSE KIT | D68: 899 | E68: 763.98 | F68: 0.150189099
B69: 45201523 | C69: FIERY AUTOMATION - 2YR LICENSE KIT | D69: 1708 | E69: 1451.56 | F69: 0.1501405152
B70: 45201525 | C70: FIERY AUTOMATION - 3YR LICENSE KIT | D70: 2416 | E70: 2053.2 | F70: 0.1501655629
B71: 45201527 | C71: FIERY AUTOMATION - 4YR LICENSE KIT | D71: 2865 | E71: 2435.19 | F71: 0.1500209424
B72: 45201529 | C72: FIERY AUTOMATION - 5YR LICENSE KIT | D72: 3359 | E72: 2855.38 | F72: 0.1499315272
B73: 45111142 | C73: EFI HOT FOLDERS & VIRTUAL S/W LICENSE | D73: 1045 | E73: 888.04 | F73: 0.1502009569
B74: 45200712 | C74: BRACKET (REQ IC-419 & PF-707M) | D74: 155 | E74: 131.78 | F74: 0.1498064516
B75: ACMG0Y1 | C75: IC-607 KM IMAGE CONTROLLER - C4065 | D75: 6710 | E75: 5703.5 | F75: 0.15
B76: ACMKWY1 | C76: VI-515 VIDEO INTERFACE FOR CONTROLLER | D76: 1133 | E76: 396.4 | F76: 0.6501323919
B77: MISCELLANEOUS OPTIONS
B78: KONI66002 | C78: LR5402C CUST TOWER LIGHT ASSEMBLY | D78: 385 | E78: 327.05 | F78: =100%-(E78/D78) -> 0.1505194805
B79: R5427011136466GEN2 | C79: AU-205HGEN2 SQ-2020-94643 | D79: 399 | E79: 339.15 | F79: 0.15
B80: P250015120 | C80: DIAGNOSTIC PWRFILTER BLUETOOTH 120V/15A | D80: 295 | E80: 250.74 | F80: 0.1500338983
B81: W225020208 | C81: PWRFILTER W PREMIUM INRUSH 208V/20A | D81: 445 | E81: 378.25 | F81: 0.15
B82: 2CL133 | C82: SMART-UPS 1500VA LCD 120V WITH SMARTCONN | D82: 773 | E82: 657.05 | F82: 0.15
B83: PROFESSIONAL SERVICES:
B84: 9967005050 | C84: PROKOM MEMBERSHIP | D84: 0 | E84: 0 | F84: 0
B85: 7640021190 | C85: ACCURIOPRO SECURE | D85: 499 | E85: 499 | F85: 0
B86: Color Management Tools
B87: ACJ1101 | C87: SPECTRODENSITOMETER MYIRO | D87: 1345 | E87: 1143.25 | F87: 0.15
B88: 45202146 | C88: KIT OPTION ES-3000 HARDWARE ONLY | D88: 1470 | E88: 1249.5 | F88: 0.15
B89: ACJ1600 | C89: SOFT CASE MY-A03 | D89: 115 | E89: 97.75 | F89: 0.15
B90: ACJ1700 | C90: CALIBRATION CAP MY-A01 | D90: 172 | E90: 146.2 | F90: 0.15
B91: ACJ1701 | C91: RULER MY-A02 | D91: 115 | E91: 97.75 | F91: 0.15
B92: ACJ1703 | C92: AMBIENT LIGHT ADAPTER MY-A04 | D92: 172 | E92: 146.2 | F92: 0.15
B93: ACJ1706 | C93: USB CABLE(2M) IF-A41 | D93: 23 | E93: 19.55 | F93: 0.15
B94: ACJ1797 | C94: CALIBRATION CERTIFICATE FOR MYIRO-1 | D94: 438 | E94: 371.88 | F94: 0.1509589041
B95: ACJ1798 | C95: CALIBRATION CERT FOR CALIBRATION CAP | D95: 324 | E95: 275.51 | F95: 0.1496604938
B96: A8AN306 | C96: MYIRO-9 SCANNING SPECTROPHOTOMETER | D96: 6100 | E96: 5185 | F96: 0.15
B97: 7640021934 | C97: FD-9 AND MYIRO-9 RECERTIFICATION | D97: 1231 | E97: 1046.07 | F97: 0.1502274574
B98: EO2AST | C98: i1iO AUTOMATED SCANNING TABLE 2ND GEN | D98: 2760 | E98: 2346 | F98: 0.15
B99: 7640015919 | C99: GTI PDV3EKM LIGHTBOX | D99: 1125 | E99: 956.25 | F99: 0.15
B100: 7640015921 | C100: GTI L217 RELAMP KIT FOR PDV LIGHT BOXES | D100: 74 | E100: 63.04 | F100: 0.1481081081
B101: 3000005453 | C101: SB,KIT, FIERY CPS V5.0,SOFTWARE ONLY | D101: 2415 | E101: 2052.75 | F101: 0.15
B102: 3000005455 | C102: SB,KIT, FIERY CPS, UPGRADE V3.X TO V4.0 | D102: 899 | E102: 764.15 | F102: 0.15
B103: 3000007372 | C103: FIERY CPS V5.X SOFTWARE ONLY W 3 YR SMSA | D103: 3255 | E103: 2766.75 | F103: 0.15
B104: 3000007373 | C104: FIERY CPS V5.X SOFTWARE ONLY W 5 YR SMSA | D104: 4095 | E104: 3480.75 | F104: 0.15
B105: 100000006105 | C105: CPS SUPPORT&MNTCONTRACTCPS V5.0ADDL YR | D105: 420 | E105: 357 | F105: 0.15
B106: 3000013448 | C106: CPS UPGRADE 4X TO 5X INCLUDES 1YR SMSA | D106: 1155 | E106: 981.75 | F106: 0.15
B107: EO3HW | C107: I1PRO 3 HARDWARE ONLY OEM | D107: 1400 | E107: 1190 | F107: 0.15
B108: EFI Fiery Options
B109: 45190864 | C109: IC-310 WINDOWS10 UPGRADE KIT V1.0- V2.2 | D109: 5404 | E109: 4593.4 | F109: 0.15
B110: 45190148 | C110: IC-310 WINDOWS10 UPGRADE KIT V2.X- V2.2 | D110: 3236 | E110: 2750.6 | F110: 0.15
B111: 45190146 | C111: IC-308 WIN10 UPGR KIT V1.X OR 2.X- V2.2 | D111: 2079 | E111: 1767.15 | F111: 0.15
B112: 45210304 | C112: IC-313 V1.X TO V2.2 UPGRADE KIT | D112: 1733 | E112: 1472.63 | F112: 0.1502423543
B113: 45210295 | C113: IC-315 V1.X TO V2.2 UPGRADE KIT | D113: 1733 | E113: 1472.63 | F113: 0.1502423543
B114: 45179651 | C114: IC-417 UPGRADE KIT V1.X TO V2.1 | D114: 175 | E114: 148.75 | F114: 0.15
B115: 45177486 | C115: EFI MEMORY UPGRADE 16GB (4X4GB) IC315 | D115: 1331 | E115: 1131.69 | F115: 0.149744553
B116: 45177480 | C116: EFI MEM UPGR 16GB (4X4GB)IC308 IC313 | D116: 683 | E116: 580.13 | F116: 0.1506149341
B117: 45177481 | C117: EFI MEMORY UPGRADE 32GB (8X4GB) IC310 | D117: 1365 | E117: 1160.25 | F117: 0.15
B118: 45177484 | C118: EFI MEM UPGR 4GB (2X2GB) IC308 IC313 | D118: 315 | E118: 267.75 | F118: 0.15
B119: 45177482 | C119: EFI MEMORY UPGRADE 8GB MIC4150 | D119: 297 | E119: 252.14 | F119: 0.151043771
B120: 45177485 | C120: EFI MEMORY UPGRADE 8GB (4X2GB) IC310 | D120: 743 | E120: 631.52 | F120: 0.1500403769
B121: 45177483 | C121: EFI MEMORY UPGRADE IC-313 2.2 (NX) 16GB | D121: 595 | E121: 505.45 | F121: 0.1505042017
B122: 45223473 | C122: IC-419 V3.0 UPGRADE KIT | D122: 566 | E122: 481.47 | F122: 0.1493462898
B123: 45223468 | C123: IC-319 IC-318 318L IC-317 V2.1 UPGRD KIT | D123: 1019 | E123: 866.32 | F123: 0.1498331698
B124: 100000015299 | C124: EFI IQ MANAGE 1 YR DIGITAL | D124: 536 | E124: 455.18 | F124: 0.1507835821
B125: 100000015301 | C125: EFI IQ MANAGE 2 YR DIGITAL | D125: 961 | E125: 816.64 | F125: 0.1502185224
B126: 100000015302 | C126: EFI IQ MANAGE 3 YR DIGITAL | D126: 1444 | E126: 1227.19 | F126: 0.1501454294
B127: 100000015303 | C127: EFI IQ MANAGE 4 YR DIGITAL | D127: 1927 | E127: 1637.74 | F127: 0.1501089777
B128: 100000015304 | C128: EFI IQ MANAGE 5 YR DIGITAL | D128: 2405 | E128: 2043.83 | F128: 0.1501746362
A130: Segment 1 | B130: AC58012 | C130: ACCURIOPRESS C4070 | D130: 89858 | E130: 34146 | F130: 0.6200004451
A131: Color/B&W 65-79
B132: 7640012602 | C132: BASIC PROFESSIONAL SERVICES - LEVEL 4 | D132: 2200 | E132: 2200 | F132: 0
B133: 7640020218 | C133: EXPERT COLOR PRODUCTION TRAINING | D133: 5000 | E133: 5000 | F133: 0
B134: 7640015255 | C134: PROFESSIONAL SERVICES PROJECT FEE | D134: 1 | E134: 1 | F134: 0
B135: DOCUMENT HANDLING OPTIONS:
B136: AAMPWY1 | C136: DF-713 AUTO DUPLEX DOCUMENT FEEDER | D136: 3398 | E136: 1189.19 | F136: 0.650032372
B137: ACMHWY1 | C137: UK-112 HDD | D137: 3146 | E137: 1101.1 | F137: 0.65
B138: A3PMWY1 | C138: OC-511 ORIGINAL COVER | D138: 111 | E138: 38.95 | F138: 0.6490990991
B139: PAPER SUPPLY OPTIONS:
B140: A0U4WY3 | C140: PF-602 PAPER FEED UNIT | D140: 8124 | E140: 2843.24 | F140: 0.6500196947
B141: A15AWY1 | C141: HT-505 HEATER FAN UNIT | D141: 2662 | E141: 931.73 | F141: =100%-(E141/D141) -> 0.6499887303
B142: A03WWY2 | C142: LU-202M LARGE CAPACITY TRAY | D142: 4482 | E142: 1568.77 | F142: 0.649984382
B143: A8K4WY2 | C143: LU-202XLM XL PAPER FEED (29.5 IN MAX) | D143: 6921 | E143: 2422.42 | F143: 0.6499898859
B144: A8ACWY1 | C144: MK-746 ENVELOPE GUIDE KIT | D144: 755 | E144: 264.26 | F144: 0.649986755
B145: A0410Y0 | C145: HT-503 DEHUMID HEATER FOR LU-202 | D145: 1682 | E145: 588.59 | F145: 0.6500653983
B146: A041WY1 | C146: HT-515 HEATER FOR LU-202XLM | D146: 2235 | E146: 782.38 | F146: 0.6499418345
B147: A55CWY3 | C147: PF-707M PAPER FEED UNIT | D147: 13490 | E147: 4721.52 | F147: 0.6499985174
B148: A1RKWY3 | C148: HT-506 HEATER FOR PF-710 | D148: 2936 | E148: 1027.43 | F148: 0.6500579019
B149: ACE7WY1 | C149: MB-509 MULTI BYPASS TRAY | D149: 733 | E149: 256.66 | F149: 0.6498499318
B150: AA01WY1 | C150: MB-508 BANNER SHEET BYPASS TRAY | D150: 5569 | E150: 1949.15 | F150: 0.65
B151: ACR3WY1 | C151: MK-760 BANNER INPUT KIT | D151: 617 | E151: 215.82 | F151: 0.6502106969
B152: ACR4WY1 | C152: MK-761 BANNER OUTPUT KIT | D152: 969 | E152: 339.14 | F152: 0.6500103199
B153: A69EWY1 | C153: FA-502 FEED ADJUSTER | D153: 881 | E153: 308.31 | F153: 0.650045403
B154: ACKHW11 | C154: EF-107 ENVELOPE FUSER | D154: 6292 | E154: 2202.2 | F154: 0.65
B155: ACCXWY1 | C155: IM-101 INTELLIGENT MEDIA SENSOR | D155: 1963 | E155: 687.09 | F155: 0.649979623
B156: OUTPUT OPTIONS:
B157: A9CEWY2 | C157: RU-518M RELAY UNIT | D157: 11074 | E157: 3875.87 | F157: 0.650002709
B158: A9CFWY1 | C158: HM-103 HUMIDIFICATION UNIT FOR RU-518 | D158: 13339 | E158: 4668.66 | F158: 0.6499992503
B159: A8FRWY1 | C159: IQ-501 INTELLIGENT QUALITY OPTIMIZER | D159: 22651 | E159: 7927.92 | F159: 0.6499969096
B160: 7640022213 | C160: ADV IQ-501 IMPLEMENTATION/TRAIN-LEVEL 1 | D160: 1200 | E160: 1200 | F160: 0
B161: 7640022214 | C161: ADV IQ-501 IMPLEMENTATION/TRAIN-LEVEL 2 | D161: 2400 | E161: 2400 | F161: 0
B162: 7640022215 | C162: ADV IQ-501 IMPLEMENTATION/TRAIN-LEVEL 3 | D162: 3600 | E162: 3600 | F162: 0
B163: ACMAWY2 | C163: VIDEO INTERFACE KIT VI-514 | D163: 4025 | E163: 1408.61 | F163: 0.6500347826
B164: A043WY1 | C164: OT-511 OUTPUT TRAY | D164: 869 | E164: 304.3 | F164: 0.6498273878
B165: AC8WWY1 | C165: OT-512 OUTPUT TRAY | D165: 4780 | E165: 1672.87 | F165: 0.6500271967
B166: A57UWY1 | C166: WT-511 WORKING TABLE | D166: 730 | E166: 255.45 | F166: 0.6500684932
B167: A5VKWY1 | C167: HT-511 UPPER TRAY OPTION HEATER | D167: 315 | E167: 110.11 | F167: 0.6504444444
B168: A04HWY2 | C168: PI-502 POST INSERTER FOR FS-532 | D168: 1401 | E168: 490.49 | F168: 0.6499000714
B169: A4F3WY6 | C169: FS-532M STAPLE FINISHER | D169: 6551 | E169: 2292.69 | F169: 0.6500244238
B170: AC8UW11 | C170: PK-525 PUNCH KIT | D170: 1051 | E170: 367.97 | F170: 0.649885823
B171: A4F5WY1 | C171: MK-732 MOUNT KIT FOR PI-506 | D171: 561 | E171: 196.2 | F171: 0.6502673797
B172: A4F4WY1 | C172: SD-510 SADDLE STITCH UNIT | D172: 2489 | E172: 871.27 | F172: 0.6499517879
B173: AC3TWY3 | C173: TRIMMER UNIT TU-510E | D173: 41332 | E173: 14466.37 | F173: 0.649995887
B174: 7640022216 | C174: ADV TU-510 IMPLEMENTATION/TRAIN-LEVEL 1 | D174: 1200 | E174: 1200 | F174: 0
B175: 7640022217 | C175: ADV TU-510 IMPLEMENTATION/TRAIN-LEVEL 2 | D175: 2400 | E175: 2400 | F175: 0
B176: 7640022218 | C176: ADV TU-510 IMPLEMENTATION/TRAIN-LEVEL 3 | D176: 3600 | E176: 3600 | F176: 0
B177: ACJ6WY2 | C177: TU-504E SLITTER FOR TU-510E | D177: 6223 | E177: 2178.18 | F177: 0.6499791098
B178: ACJ5WY1 | C178: CR-102 CREASER FOR TU-510 | D178: 4225 | E178: 1478.67 | F178: 0.6500189349
B179: ACWKWY1 | C179: CR-103 CONVEX CREASING UNIT FOR TU-510 | D179: 3524 | E179: 1233.23 | F179: 0.6500482406
B180: ACWNWY2 | C180: PE-101 FEED DIRECTION PERF FOR TU-510E | D180: 7047 | E180: 2466.46 | F180: 0.649998581
B181: ACWPWY2 | C181: PE-102 CROSS DIRECTION PERF TU-510 | D181: 4933 | E181: 1726.53 | F181: 0.6500040543
B182: ACWMWY1 | C182: MK-765 DUST BOX FOR TU-510 | D182: 4225 | E182: 1478.67 | F182: 0.6500189349
B183: ACJ7WY1 | C183: MK-764 BANNER OUTPUT FOR TU-510 | D183: 5277 | E183: 1847.04 | F183: 0.6499829449
B184: ACJ8WY2 | C184: JS-507 BUSINESS CARD TRAY FOR TU-510 | D184: 1409 | E184: 493.3 | F184: 0.6498935415
B185: A0H0W12 | C185: FD-503 MULTI FOLDING UNIT | D185: 23811 | E185: 8333.93 | F185: 0.6499966402
B186: A0H2WY3 | C186: SD-506 SADDLE STITCH UNIT | D186: 35016 | E186: 12255.44 | F186: 0.6500045693
B187: A65UWY2 | C187: SD-513 SADDLE STITCHER | D187: 20406 | E187: 7141.94 | F187: 0.6500078408
B188: A729WY1 | C188: SD-513/F SADDLE STITCH UNIT - FRONT | D188: 20377 | E188: 7131.93 | F188: 0.6500009815
B189: A65XWY1 | C189: CR-101 CREASER UNIT FOR SD-513 | D189: 13289 | E189: 4651.04 | F189: 0.6500082775
B190: A65VWY1 | C190: FD-504 SQUARE FOLD MODULE FOR SD-513 | D190: 14723 | E190: 5153.15 | F190: 0.6499932079
B191: A65WWY1 | C191: TU-503 TRIMMER UNIT FOR SD-513 | D191: 19933 | E191: 6976.58 | F191: 0.649998495
B192: AAPKWY1 | C192: LS-507 LARGE STACKER | D192: 26366 | E192: 9228.02 | F192: 0.6500030342
B193: ACHKWY1 | C193: LC-502 STACKER CART | D193: 1121 | E193: 392.39 | F193: 0.6499643176
B194: A15XW13 | C194: PB-503 PERFECT BINDER | D194: 56424 | E194: 19748.53 | F194: 0.649997696
B195: A4FCWY2 | C195: RU-510 RELAY UNIT | D195: 4508 | E195: 1577.73 | F195: 0.650015528
B196: 4707000 | C196: PLOCKMATIC HIGH CAPACITY BELT STACKER | D196: 7547 | E196: 6199.9 | F196: 0.1784947661
B197: 13700022 | C197: PLOCKMATIC SD-450 UPGRADE KIT | D197: 18624 | E197: 15294.9 | F197: 0.1787532216
B198: 13307100 | C198: PLOCKMATIC FM-400 FINISHING MODULE | D198: 31147 | E198: 25579.9 | F198: 0.1787363149
B199: 12207100 | C199: PLOCKMATIC RCT 3.0 MODULE | D199: 51146 | E199: 42004.45 | F199: 0.1787344074
B200: 13200002 | C200: PLOCKMATIC HAND FEED TRAY | D200: 663 | E200: 545.7 | F200: 0.1769230769
B201: 13300005 | C201: PLOCKMATIC CAREPACK FM-400 | D201: 1610 | E201: 1321.92 | F201: 0.178931677
... 1774 more rows

Sheet Group C Service
A1: Konica Minolta Business Solutions U.S.A., Inc.
A2: Group C | W2: Table of Contents
A3: Production Equipment
A4: Service and Supplies Pricing
A5: Includes B&W and Color/B&W Segments
A6: Service and Supply Pricing | C6: Segment 1 | E6: Segment 1 | G6: Segment 2 | I6: Segment 2 | K6: Segment 3 | L6: Segment 3 | N6: Segment 4 | O6: Segment 4 | Q6: Segment 5 | R6: Segment 5 | S6: Segment 5 | T6: Segment 5
C7: (65 - 79) | E7: (65 - 79) | G7: (80 - 89) | I7: (80 - 89) | K7: (90 - 110) | L7: (90 - 110) | N7: (111 - 130) | O7: (111 - 130) | Q7: (131+) | R7: (131+) | S7: (131+) | T7: (131+)
C8: Color | D8: B&W | E8: Color | F8: B&W | G8: Color | H8: B&W | I8: Color | J8: B&W | K8: B&W | L8: Color | M8: B&W | N8: B&W | O8: Color | P8: B&W | Q8: B&W | R8: B&W | S8: B&W | T8: Color | U8: B&W
A9: Make | C9: Konica Minolta | E9: Konica Minolta | G9: Konica Minolta | I9: Konica Minolta | K9: Konica Minolta | L9: Konica Minolta | N9: Konica Minolta | O9: Konica Minolta | Q9: Konica Minolta | R9: Konica Minolta | S9: Konica Minolta | T9: Konica Minolta
A10: Model | C10: AccurioPrint C4065 | E10: AccurioPrint C4070 | G10: AccurioPrint C4080 | I10: AccurioPrint C7090 | K10: AccurioPrint 2100 | L10: AccurioPrint C7100 | N10: AccurioPress 6120 | O10: AccurioPrint C12000 | Q10: AccurioPress 6136 | R10: AccurioPress 6136P | S10: AccurioPress 6272P | T10: AccurioPrint C14000
A11: Maintenance Agreements
A12: Zero Base Charge | B12: Includes OEM toner, parts, labor (no staples) | C12: 0.0428 | D12: 0.0112 | E12: 0.0428 | F12: 0.0112 | G12: 0.0428 | H12: 0.0112 | I12: 0.06 | J12: 0.02 | K12: 0.0045 | L12: 0.045 | M12: 0.0155 | N12: 0.0045 | O12: 0.045 | P12: 0.0155 | Q12: 0.0037 | R12: 0.0037 | S12: 0.0037 | T12: 0.045 | U12: 0.0155
B13: Includes Compatible toner, parts, labor (no staples) | C13: 0.0428 | D13: 0.0112 | E13: 0.0428 | F13: 0.0112 | G13: 0.0428 | H13: 0.0112 | I13: 0.06 | J13: 0.02 | K13: 0.0045 | L13: 0.045 | M13: 0.0155 | N13: 0.0045 | O13: 0.045 | P13: 0.0155 | Q13: 0.0037 | R13: 0.0037 | S13: 0.0037 | T13: 0.045 | U13: 0.0155
B14: Parts and labor only (no supplies) | C14: 0.0385 | D14: 0.0101 | E14: 0.0385 | F14: 0.0101 | G14: 0.0385 | H14: 0.0101 | I14: 0.054 | J14: 0.018 | K14: 0.0041 | L14: 0.0405 | M14: 0.014 | N14: 0.0041 | O14: 0.0405 | P14: 0.014 | Q14: 0.0033 | R14: 0.0033 | S14: 0.0033 | T14: 0.0405 | U14: 0.014
B15: 11 x 17" impressions (counts as 2 clicks) | C15: 0.0856 | D15: 0.0224 | E15: 0.0856 | F15: 0.0224 | G15: 0.0856 | H15: 0.0224 | I15: 0.12 | J15: 0.04 | K15: 0.009 | L15: 0.09 | M15: 0.031 | N15: 0.009 | O15: 0.09 | P15: 0.031 | Q15: 0.0074 | R15: 0.0074 | S15: Included | T15: 0.09 | U15: 0.031
B16: ALL paper sizes (counts as 1 click, and includes OEM toner, parts, labor - NO staples) | C16: 0.0428 | D16: 0.0112 | E16: 0.0428 | F16: 0.0112 | G16: 0.0428 | H16: 0.0112 | I16: 0.06 | J16: 0.02 | K16: 0.0045 | L16: 0.045 | M16: 0.0155 | N16: 0.0045 | O16: 0.045 | P16: 0.0155 | Q16: 0.0037 | R16: 0.0037 | S16: 0.0037 | T16: 0.045 | U16: 0.0155
B17: ALL paper sizes (counts as 1 click, and includes Compatible toner, parts, labor - NO staples) | C17: 0.0428 | D17: 0.0112 | E17: 0.0428 | F17: 0.0112 | G17: 0.0428 | H17: 0.0112 | I17: 0.06 | J17: 0.02 | K17: 0.0045 | L17: 0.045 | M17: 0.0155 | N17: 0.0045 | O17: 0.045 | P17: 0.0155 | Q17: 0.0037 | R17: 0.0037 | S17: 0.0037 | T17: 0.045 | U17: 0.0155
B18: % Increase in rate for inclusion of staples | C18: Included | D18: Included | E18: Included | F18: Included | G18: Included | H18: Included | I18: Included | J18: Included | K18: Included | L18: Included | M18: Included | N18: Included | O18: Included | P18: Included | Q18: Included | R18: Included | S18: Included | T18: Included | U18: Included
B19: % Increase in rate for Rural Service Zone | C19: 0.1 | D19: 0.1 | E19: 0.1 | F19: 0.1 | G19: 0.1 | H19: 0.1 | I19: 0.1 | J19: 0.1 | K19: 0.1 | L19: 0.1 | M19: 0.1 | N19: 0.1 | O19: 0.1 | P19: 0.1 | Q19: 0.1 | R19: 0.1 | S19: 0.1 | T19: 0.1 | U19: 0.1
B20: % Increase in rate for Remote Service Zone | C20: 40 | D20: 40 | E20: 40 | F20: 40 | G20: 40 | H20: 40 | I20: 40 | J20: 40 | K20: 40 | L20: 40 | M20: 40 | N20: 40 | O20: 40 | P20: 40 | Q20: 40 | R20: 40 | S20: 40 | T20: 40 | U20: 40
B22: Parts and labor only (no supplies) | C22: 18750 | E22: 18750 | G22: 18750 | I22: 18750 | K22: 18750 | L22: 18750 | N22: 18750 | O22: 18750 | Q22: 18750 | R22: 18750 | S22: 18750 | T22: 18750
B23: % Increase in rate for Rural Service Zone | C23: 0.1 | D23: 0.1 | E23: 0.1 | F23: 0.1 | G23: 0.1 | H23: 0.1 | I23: 0.1 | J23: 0.1 | K23: 0.1 | L23: 0.1 | M23: 0.1 | N23: 0.1 | O23: 0.1 | P23: 0.1 | Q23: 0.1 | R23: 0.1 | S23: 0.1 | T23: 0.1 | U23: 0.1
B24: % Increase in rate for Remote Service Zone | C24: 40 | D24: 40 | E24: 40 | F24: 40 | G24: 40 | H24: 40 | I24: 40 | J24: 40 | K24: 40 | L24: 40 | M24: 40 | N24: 40 | O24: 40 | P24: 40 | Q24: 40 | R24: 40 | S24: 40 | T24: 40 | U24: 40
A26: Monthly Base Charge Option 1 | B26: Included Number of Clicks per Month | C26: 40000 | D26: 0 | E26: 40000 | F26: 0 | G26: 50000 | H26: 0 | I26: 85000 | J26: 0 | K26: 90000 | L26: 135000 | M26: 0 | N26: 125000 | O26: 135000 | P26: 0 | Q26: 200000 | R26: 200000 | S26: 200000 | T26: 135000 | U26: 0
B27: Base Charge - includes OEM toner, parts, labor (no staples) | C27: 1533.6 | E27: 1533.6 | G27: 1915 | I27: 4284 | K27: 348.3 | L27: 5103 | N27: 462.5 | O27: 5103 | Q27: 630 | R27: 630 | S27: 630 | T27: 5103
B28: Base Charge - includes Compatible toner, parts, labor (no staples) | C28: 1533.6 | E28: 1533.6 | G28: 1915 | I28: 4284 | K28: 348.3 | L28: 5103 | N28: 462.5 | O28: 5103 | Q28: 630 | R28: 630 | S28: 630 | T28: 5103
B29: Base Charge - parts and labor only (no supplies) | C29: N/A | D29: N/A | E29: N/A | F29: N/A | G29: N/A | H29: N/A | I29: N/A | J29: N/A | K29: N/A | L29: N/A | M29: N/A | N29: N/A | O29: N/A | P29: N/A | Q29: N/A | R29: N/A | S29: N/A | T29: N/A | U29: N/A
B30: Overage Rate | C30: 0.0383 | D30: 0.0101 | E30: 0.0383 | F30: 0.0101 | G30: 0.0383 | H30: 0.0101 | I30: 0.0504 | J30: 0.0153 | K30: 0.0039 | L30: 0.0378 | M30: 0.014 | N30: 0.0037 | O30: 0.0378 | P30: 0.014 | Q30: 0.0032 | R30: 0.0032 | S30: 0.0032 | T30: 0.0378 | U30: 0.014
B31: % Increase in rate for inclusion of staples | C31: Included | D31: Included | E31: Included | F31: Included | G31: Included | H31: Included | I31: Included | J31: Included | K31: Included | L31: Included | M31: Included | N31: Included | O31: Included | P31: Included | Q31: Included | R31: Included | S31: Included | T31: Included | U31: Included
B32: % Increase in rate for Rural Service Zone | C32: 0.1 | D32: 0.1 | E32: 0.1 | F32: 0.1 | G32: 0.1 | H32: 0.1 | I32: 0.1 | J32: 0.1 | K32: 0.1 | L32: 0.1 | M32: 0.1 | N32: 0.1 | O32: 0.1 | P32: 0.1 | Q32: 0.1 | R32: 0.1 | S32: 0.1 | T32: 0.1 | U32: 0.1
B33: % Increase in rate for Remote Service Zone | C33: 40 | D33: 40 | E33: 40 | F33: 40 | G33: 40 | H33: 40 | I33: 40 | J33: 40 | K33: 40 | L33: 40 | M33: 40 | N33: 40 | O33: 40 | P33: 40 | Q33: 40 | R33: 40 | S33: 40 | T33: 40 | U33: 40
A35: Additional Service Coverage (per hour)
A36: Urban Service Zone | B36: 2 x 5 coverage (2 eight hour shifts, 5 days a week) | C36: Quote upon request
B37: 3 x 5 coverage (3 eight hour shifts, 5 days a week)
B38: 1 x 7 coverage (1 eight hour shift, 7 days a week)
B39: 2 x 7 coverage (2 eight hour shifts, 7 days a week)
B40: 3 x 7 coverage (3 eight hour shifts, 7 days a week)
A42: Rural Service Zone | B42: 2 x 5 coverage (2 eight hour shifts, 5 days a week) | C42: Quote upon request
B43: 3 x 5 coverage (3 eight hour shifts, 5 days a week)
B44: 1 x 7 coverage (1 eight hour shift, 7 days a week)
B45: 2 x 7 coverage (2 eight hour shifts, 7 days a week)
B46: 3 x 7 coverage (3 eight hour shifts, 7 days a week)
A48: Remote Service Zone | B48: 2 x 5 coverage (2 eight hour shifts, 5 days a week) | C48: Quote upon request
B49: 3 x 5 coverage (3 eight hour shifts, 5 days a week)
B50: 1 x 7 coverage (1 eight hour shift, 7 days a week)
B51: 2 x 7 coverage (2 eight hour shifts, 7 days a week)
B52: 3 x 7 coverage (3 eight hour shifts, 7 days a week)
A53: Service Calls not covered under the Maintenance Agreement
A54: Urban Service Zone | B54: Price Per Hour | C54: 135 | E54: 135 | G54: 135 | I54: 135 | K54: 135 | L54: 135 | N54: 135 | O54: 135 | Q54: 135 | R54: 135 | S54: 135 | T54: 135
A56: Rural Service Zone | B56: Flat Rate Charge | C56: 135 | E56: 135 | G56: 135 | I56: 135 | K56: 135 | L56: 135 | N56: 135 | O56: 135 | Q56: 135 | R56: 135 | S56: 135 | T56: 135
B57: Price Per Mile | C57: N/A | E57: N/A | G57: N/A | I57: N/A | K57: N/A | L57: N/A | N57: N/A | O57: N/A | Q57: N/A | R57: N/A | S57: N/A | T57: N/A
B58: Price Per Hour | C58: N/A | E58: N/A | G58: N/A | I58: N/A | K58: N/A | L58: N/A | N58: N/A | O58: N/A | Q58: N/A | R58: N/A | S58: N/A | T58: N/A
A60: Remote Service Zone | B60: Flat Rate Charge | C60: 135 | E60: 135 | G60: 135 | I60: 135 | K60: 135 | L60: 135 | N60: 135 | O60: 135 | Q60: 135 | R60: 135 | S60: 135 | T60: 135
B61: Price Per Mile | C61: N/A | E61: N/A | G61: N/A | I61: N/A | K61: N/A | L61: N/A | N61: N/A | O61: N/A | Q61: N/A | R61: N/A | S61: N/A | T61: N/A
B62: Price Per Hour | C62: N/A | E62: N/A | G62: N/A | I62: N/A | K62: N/A | L62: N/A | N62: N/A | O62: N/A | Q62: N/A | R62: N/A | S62: N/A | T62: N/A
A63: End-User Training and Support (per hour) - beyond the required one free hour
A64: Additional End-User taining on Device and/or software | C64: 75 | E64: 75 | G64: 75 | I64: 75 | K64: 75 | L64: 75 | N64: 75 | O64: 75 | Q64: 75 | R64: 75 | S64: 75 | T64: 75
A65: After hours technical phone support | C65: Quote upon request
A66: Additional Advanced/IT Training by hours | C66: 175 | E66: 175 | G66: 175 | I66: 175 | K66: 175 | L66: 175 | N66: 175 | O66: 175 | Q66: 175 | R66: 175 | S66: 175 | T66: 175
A67: Additional IR Support by hours | C67: 175 | E67: 175 | G67: 175 | I67: 175 | K67: 175 | L67: 175 | N67: 175 | O67: 175 | Q67: 175 | R67: 175 | S67: 175 | T67: 175
A68: Additional Services
A69: Equipment Move Service Zone 2 | B69: Flat Rate Charge | C69: 770 | E69: 770 | G69: 770 | I69: 770 | K69: 770 | L69: 770 | N69: 770 | O69: 770 | Q69: 770 | R69: 770 | S69: 770 | T69: 770
B70: Price Per Mile | C70: N/A | E70: N/A | G70: N/A | I70: N/A | K70: N/A | L70: N/A | N70: N/A | O70: N/A | Q70: N/A | R70: N/A | S70: N/A | T70: N/A
B71: Price Per Hour | C71: N/A | E71: N/A | G71: N/A | I71: N/A | K71: N/A | L71: N/A | N71: N/A | O71: N/A | Q71: N/A | R71: N/A | S71: N/A | T71: N/A
A73: Equipment Move Service Zone 3 | B73: Flat Rate Charge | C73: 850 | E73: 850 | G73: 850 | I73: 850 | K73: 850 | L73: 850 | N73: 850 | O73: 850 | Q73: 850 | R73: 850 | S73: 850 | T73: 850
B74: Price Per Mile | C74: N/A | E74: N/A | G74: N/A | I74: N/A | K74: N/A | L74: N/A | N74: N/A | O74: N/A | Q74: N/A | R74: N/A | S74: N/A | T74: N/A
B75: Price Per Hour | C75: N/A | E75: N/A | G75: N/A | I75: N/A | K75: N/A | L75: N/A | N75: N/A | O75: N/A | Q75: N/A | R75: N/A | S75: N/A | T75: N/A
A77: Hard Drive Removal and Surrender | B77: Flat Rate Charge | C77: 300 | E77: 300 | G77: 300 | I77: 300 | K77: 300 | L77: 300 | N77: 300 | O77: 300 | Q77: 300 | R77: 300 | S77: 300 | T77: 300
A79: Operational Training (priced based on flat rate fee, excluding travel and per diem) | C79: 5000 | E79: 5000 | G79: 5000 | I79: 5000 | K79: 5000 | L79: 5000 | N79: 5000 | O79: 5000 | Q79: 5000 | R79: 5000 | S79: 5000 | T79: 5000
A80: Digital Solutions Center - per month | C80: 12 | E80: 12 | G80: 12 | I80: 12 | K80: 12 | L80: 12 | N80: 12 | O80: 12 | Q80: 12 | R80: 12 | S80: 12 | T80: 12
A81: bizhub secure- Flat Fee | C81: 250 | E81: 250 | G81: 250 | I81: 250 | K81: 250 | L81: 250 | N81: 250 | O81: 250 | Q81: 250 | R81: 250 | S81: 250 | T81: 250
A82: bizhub secure platinum- Flat Fee | C82: 499 | E82: 499 | G82: 499 | I82: 499 | K82: 499 | L82: 499 | N82: 499 | O82: 499 | Q82: 499 | R82: 499 | S82: 499 | T82: 499
A83: SD-506 Saddle Stitch Unit - Mothly Service Charge | C83: N/A | E83: 70 | G83: 70 | I83: 70 | K83: N/A | L83: 70 | N83: 70 | O83: 70 | Q83: 70 | R83: 70 | S83: 125 | T83: 70
A84: SD-513 Saddle Stitcher - Monthly Service Charge | C84: N/A | E84: 70 | G84: 70 | I84: 70 | K84: N/A | L84: 70 | N84: 70 | O84: 70 | Q84: 70 | R84: 70 | S84: 125 | T84: 70
A85: PB-503 Perfect Binder | C85: N/A | E85: 60 | G85: 60 | I85: 60 | K85: N/A | L85: 60 | N85: 60 | O85: 60 | Q85: 60 | R85: 60 | S85: 110 | T85: 60
A86: SDD | C86: N/A | E86: 400 | G86: 400 | I86: 400 | K86: N/A | L86: 400 | N86: 400 | O86: 400 | Q86: 400 | R86: 400 | S86: 400 | T86: 400
A87: SD-435 Bookletmaker | C87: N/A | E87: 300 | G87: 300 | I87: 300 | K87: N/A | L87: 300 | N87: 300 | O87: 300 | Q87: 300 | R87: 300 | S87: 300 | T87: 300
A88: Plockmatic RCT 3.0 Module | C88: N/A | E88: 245 | G88: 245 | I88: 245 | K88: N/A | L88: 245 | N88: 245 | O88: 245 | Q88: 245 | R88: 245 | S88: 245 | T88: 245

Sheet Sub-Group C-1
A2: Konica Minolta Business Solutions U.S.A., Inc. | H2: Table of Contents
A3: Subgroup C-1 | B3: Item Number | C3: Item Description | D3: MSRP | E3: NASPO Customer Price | F3: Discount
B4: COLEX
B5: Colex Sharpcut Flatbed Cutters
B6: TN00106 | C6: COLEX SX1732 FLATBED CUTTER 5X10 | D6: 84900 | E6: 83202 | F6: =100%-(E6/D6) -> 0.02
B7: TN00107 | C7: COLEX SXC1732 FLATBED CUTTER 5X10 W/CVYR | D7: 104900 | E7: 102802 | F7: =100%-(E7/D7) -> 0.02
B8: T00110 | C8: COLEX SX3216C SHARPCUT CONVEYOR 10X5 | D8: 129000 | E8: 126420 | F8: =100%-(E8/D8) -> 0.02
B9: T00111 | C9: COLEX SX3216 FLATBED CUTTER 10X5 W/NO CB | D9: 109900 | E9: 107702 | F9: =100%-(E9/D9) -> 0.02
B10: T00109 | C10: FLATBED CUTTER 10X10 W/CONVEYOR | D10: 169900 | E10: 166502 | F10: =100%-(E10/D10) -> 0.02
B11: Colex Sharpcut Flatbed Cutter - Creator
B12: TN00105 | C12: COLEX SX1717 FLATBED CUTTER 67"X67" | D12: 64900 | E12: 63602 | F12: =100%-(E12/D12) -> 0.02
B13: TN00105C | C13: COLEX SXC1717 FLATBED CUTTER 67"X67" | D13: 69900 | E13: 68502 | F13: =100%-(E13/D13) -> 0.02
B14: Tool Holders
B15: T00120 | C15: FIXED DOUBLE-EDGE KNIFE | D15: 1650 | E15: 1617 | F15: =100%-(E15/D15) -> 0.02
B16: T00126 | C16: NEW OSCILLATING KNIFE | D16: 3750 | E16: 3675 | F16: 0.02
B17: T00130 | C17: CREASE WHEEL | D17: 1650 | E17: 1617 | F17: 0.02
B18: T00135A | C18: KISS CUTTING KNIFE | D18: 1870 | E18: 1832.6 | F18: 0.02
B19: T00138 | C19: COROPLAST KNIFE | D19: 1650 | E19: 1617 | F19: 0.02
B20: T00139 | C20: UNIVERSAL SINGLE EDGE KNIFE | D20: 1650 | E20: 1617 | F20: 0.02
B21: T00140A | C21: ADJUSTABLE V-CUT KNIFE | D21: 1890 | E21: 1852.2 | F21: 0.02
B22: T00141 | C22: UNIVERSAL DRAWING TOOL | D22: 1650 | E22: 1617 | F22: 0.02
B23: T00143 | C23: ROT KNIFE MOTORIZED-FABRIC/TESTILE | D23: 3750 | E23: 3675 | F23: 0.02
B24: T00143HD | C24: HEAVY DUTY ROTARY KNIFE FABRIC/TEXTILE | D24: 5400 | E24: 5292 | F24: 0.02
B25: T00144 | C25: PERFORATING WHEEL | D25: 1650 | E25: 1617 | F25: 0.02
B26: Options
B27: T00145 | C27: ROLL FEEDER | D27: 2450 | E27: 2401 | F27: =100%-(E27/D27) -> 0.02
B28: T00146 | C28: POWER TEXTILE/FABRIC FEEDER 126IN | D28: 38420 | E28: 37651.6 | F28: 0.02
B29: T00946 | C29: MOTORIZED FEEDER 70IN WITH EDGE ADJUST | D29: 11900 | E29: 11662 | F29: 0.02
B30: T00947 | C30: MOTORIZED FEEDER 126IN WITH EDGE ADJUST | D30: 19153.33 | E30: 18770.2634 | F30: 0.02
B31: T00948 | C31: CATCH BASKET FOR 5FT SHARPCUT | D31: 2450 | E31: 2401 | F31: 0.02
B32: T00949 | C32: CATCH BASKET FOR 10FT SHARPCUT | D32: 4476.67 | E32: 4387.1366 | F32: 0.02
B33: T00148 | C33: AUTO BOARD FEEDER W PALLET TABLE SXC1732 | D33: 25800 | E33: 25284 | F33: 0.02
B34: T00148B | C34: AUTO BOARD FEEDER W PALLET TABLE-SXC3216 | D34: 33773.33 | E34: 33097.8634 | F34: 0.02
B35: T00152 | C35: 1.3HP ROUTER/SPINDLE W/DEBRS EXTRCT SYS | D35: 3800 | E35: 3724 | F35: 0.02
B36: T00150 | C36: ROUTER MOTOR (HVY DTY) 24000 RPM 3HP | D36: 5800 | E36: 5684 | F36: 0.02
B37: T00152A | C37: ROUTER/SPINDLE 24KRPM 1.3HP SXC1717 ONLY | D37: 3800 | E37: 3724 | F37: 0.02
B38: T00150A | C38: ROUTER/SPINDLE 24 RPM 3HP SXC1717 ONLY | D38: 5800 | E38: 5684 | F38: 0.02
B39: T00153 | C39: 5HP ROUTER/SPINDLE W/DEBRIS EXTRACT SYS | D39: 7800 | E39: 7644 | F39: 0.02
B40: TOP166 | C40: BAR CODE SCANNER | D40: 104 | E40: 101.92 | F40: 0.02
B41: T00158 | C41: SEMI-AUTOMATIC TOOL CHANGER/TOOLS/COLLET | D41: 11890 | E41: 11652.2 | F41: 0.02
B42: TN00101 | C42: CONVEYOR READY OPTION FOR SX1732 | D42: 2000 | E42: 1960 | F42: 0.02
B43: L030 | C43: SHARPCUT UNLIMITED PHONE SUPPORT 1 YEAR | D43: 3400 | E43: 3332 | F43: 0.02
B44: Replacement Accessories
B45: T00149 | C45: ROUTER MOTOR (STD) 10K-29K RPM (INCL) | D45: 850 | E45: 833 | F45: =100%-(E45/D45) -> 0.02
B46: T00165 | C46: MAT BEIGE UNDERLINE 5X10 INCL 2SIDE TAPE | D46: 150 | E46: 147 | F46: 0.02
B47: T00170 | C47: MAT BLK FELT-1/8 THICK 4X5 SPOILER MAT | D47: 50 | E47: 49 | F47: 0.02
B48: T00177 | C48: MAT SPOILER GREEN (63" x 124") | D48: 238 | E48: 233.24 | F48: 0.02
B49: T00175 | C49: MAT BLU FELT-1/8 THICK 5X10-KISS CUTTING | D49: 195 | E49: 191.1 | F49: 0.02
B50: T00180 | C50: CONVEYOR MAT 64INCH WIDE | D50: 2460 | E50: 2410.8 | F50: 0.02
B51: T00201 | C51: NON-SLIP MAT FOR SML PARTS 49IN X 60IN | D51: 96.33 | E51: 94.4034 | F51: 0.02
B52: T00910 | C52: MISTER 1 GALLON CONTAINER | D52: 1580 | E52: 1548.4 | F52: 0.02
B53: T00750 | C53: CONVEYOR BELT 64IN WIDE FOR 1631C | D53: 2210 | E53: 2165.8 | F53: 0.02
B54: T00752 | C54: CONVEYOR BELT 69IN WIDE FOR 1732C | D54: 2210 | E54: 2165.8 | F54: 0.02
B55: T00754 | C55: CONVEYOR BELT 69IN WIDE FOR 1717C | D55: 1110.67 | E55: 1088.4566 | F55: 0.02
B56: T00756 | C56: CONVEYOR BELT 1331IN WIDE FOR 3216 | D56: 4136.67 | E56: 4053.9366 | F56: 0.02
B57: T00757 | C57: CONVEYOR BELT 1331IN WIDE FOR 3232 | D57: 4476.67 | E57: 4387.1366 | F57: 0.02
B58: Packaging Software
B59: T00900 | C59: ENGVIEW PACKAGING SOFTWARE | D59: 2190 | E59: 2146.2 | F59: =100%-(E59/D59) -> 0.02
B60: T00901 | C60: OPTISCOUT PREPARE/DESIGN 8 | D60: 1200 | E60: 1176 | F60: =100%-(E60/D60) -> 0.02
B61: T00902 | C61: OPTISCOUT PRODUCTION MANAGER (QR CODE) | D61: 2720 | E61: 2665.6 | F61: =100%-(E61/D61) -> 0.02
B62: T00903 | C62: OPTISCOUT TRUE NESTING | D62: 3950 | E62: 3871 | F62: =100%-(E62/D62) -> 0.02
B63: Colex Applicator Tables
B64: AB0201 | C64: COLEX APPLICATOR TABLE 1728 65in X 8ft | D64: 17950 | E64: 17591 | F64: =100%-(E64/D64) -> 0.02
B65: AB0203 | C65: COLEX APPLICATOR TABLE 1734 65in X 10ft | D65: 19950 | E65: 19551 | F65: 0.02
B66: AB0205 | C66: COLEX APPLICATOR TABLE 1740 65in x 12ft | D66: 21950 | E66: 21511 | F66: 0.02
B67: AB0207 | C67: COLEX APPLICATOR TABLE 1754 65in x 16f5i | D67: 24950 | E67: 24451 | F67: 0.02
B68: AR1138 | C68: PRO SELF-HEALING MATS 280/145 | D68: 442 | E68: 433.16 | F68: 0.02
B69: AR1140 | C69: PRO SELF-HEALING MAT 280/170 | D69: 544 | E69: 533.12 | F69: 0.02
B70: AR1141 | C70: PRO SELF-HEALING MATS 340/170 | D70: 668.67 | E70: 655.2966 | F70: 0.02
B71: AR1146 | C71: PRO SELF-HEALING MATS 540/170+E22:E26 | D71: 1190 | E71: 1166.2 | F71: 0.02
B72: AB0125 | C72: APPLICATOR TABLE CASTER WHEELS QTY.4 | D72: 181.33 | E72: 177.7034 | F72: 0.02
B73: TOP300 | C73: COMPRESSOR SILENT 2CFM | D73: 450 | E73: 441 | F73: 0.02
B74: AB0235 | C74: ELECTRIC HEIGHT ADJUST 33-1/2IN X 43IN | D74: 5610 | E74: 5497.8 | F74: 0.02
B75: Laminators (customer installable only, no training is provided)
B76: M00101 | C76: LAMINATOR M564 CLASSIC MODEL + TRAINING | D76: 8185 | E76: 8021.3 | F76: =100%-(E76/D76) -> 0.02
B77: M00105 | C77: LAMINATOR C364 PNEUMATIC MODEL +TRAINING | D77: 9385 | E77: 9197.3 | F77: =100%-(E77/D77) -> 0.02
B79: TECNAU SHEETFEEDER KM 2250
B80: 800172 | C80: KM2250 TECNAU UNWINDER | D80: 40000 | E80: 39200 | F80: =100%-(E80/D80) -> 0.02
B81: 507207 | C81: KM2250 TECNAU CUTTER | D81: 30000 | E81: 29400 | F81: =100%-(E81/D81) -> 0.02
B82: 507208 | C82: KM2250 TECNAU TRANSPORT | D82: 14500 | E82: 14210 | F82: =100%-(E82/D82) -> 0.02
B83: A6H9WY2 | C83: MK-737 MOUNT KIT FOR 3RD PARTY OPTIONS | D83: 1794 | E83: 1757.91 | F83: =100%-(E83/D83) -> 0.02011705686
B84: Accessories
B85: 800002CS | C85: KM2250 3" CORE CHUCK SET | D85: 380 | E85: 372.4 | F85: =100%-(E85/D85) -> 0.02
B86: 800015CS | C86: KM2250 5" CORE CHUCK SET | D86: 380 | E86: 372.4 | F86: 0.02
B87: 800003CS | C87: KM2250 6" CORE CHUCK SET | D87: 380 | E87: 372.4 | F87: 0.02
B88: 800080 | C88: KM2250 70mm CORE CHUCK SET | D88: 490 | E88: 480.2 | F88: 0.02
B89: 800093 | C89: KM2250 150mm CORE CHUCK SET | D89: 520 | E89: 509.6 | F89: 0.02
B90: 800119 | C90: KM2250 200mm CORE CHUCK SET | D90: 655 | E90: 641.9 | F90: 0.02
B91: 503232 | C91: KM2250 RUNNING PERFERATOR | D91: 4750 | E91: 4655 | F91: 0.02
B92: 80004101 | C92: KM2250 ROLL CART | D92: 1449.64 | E92: 1420.6472 | F92: 0.02
B93: 505076015 | C93: KM2250 3-HOLE PUNCH (5/16" DIAMETER) | D93: 9000 | E93: 8820 | F93: 0.02
B94: 505076019 | C94: KM2250 3-HOLE PUNCH (9/32" DIAMETER) | D94: 9000 | E94: 8820 | F94: 0.02
B95: 505071 | C95: KM2250 90 DEGREE INPUT KIT | D95: 1352 | E95: 1324.96 | F95: 0.02
B97: DUPLO
B98: Folding Machines
B99: DF850 | C99: DUPLO DF-850 MANUAL SETTING FOLDER | D99: 2880 | E99: 2822.4 | F99: =100%-(E99/D99) -> 0.02
B100: DF990A | C100: DF990A AUTOMATIC SETTING FOLDER | D100: 4906.67 | E100: 4808.5366 | F100: 0.02
B101: DF999A | C101: DF999A AUTOMATIC SETTING FOLDER | D101: 5653.33 | E101: 5540.2634 | F101: 0.02
B102: DF999AULSKIT | C102: DUPLO ULTRASONIC KIT FOR DF999A | D102: 490.67 | E102: 480.8566 | F102: 0.02
B103: DF99HFKIT | C103: DUPLO HANDFEED KIT OPT FOR DF990A/DF999A | D103: 320 | E103: 313.6 | F103: 0.02
B104: DF870 | C104: DF-870 AUTOMATIC SETTING FOLDER | D104: 4053.33 | E104: 3972.2634 | F104: 0.02
B105: DF1300L | C105: DUPLO DF1300L AIR SUCTION FOLDER | D105: 9706.67 | E105: 9512.5366 | F105: 0.02
B106: DC746IFS | C106: IFS ST1 LONG CONVY STKR FOR DC746 | D106: 30454.4 | E106: 29845.312 | F106: 0.02
B107: DC646IFS | C107: IFS ST1 LONG CONVY STKR FOR DC646 | D107: 30454.4 | E107: 29845.312 | F107: 0.02
B108: DCF2 | C108: DUPLO KNIFE FOLDER MODULE | D108: 16426.67 | E108: 16098.1366 | F108: 0.02
B109: DCK73 | C109: CNNCTNG KT FOR DC-646 W/ DC-SC2 & DC-F2 | D109: 700 | E109: 686 | F109: 0.02
B110: DCK84 | C110: CONNECTING KIT FOR DC516/618-ST3 | D110: 373.33 | E110: 365.8634 | F110: 0.02
B111: DCSC2 | C111: DUPLO STRAIGHT CONVEYOR FOR DC-F2 | D111: 7786.67 | E111: 7630.9366 | F111: 0.02
B112: DCST1 | C112: DUPLO LONG STACKER FOR DC-F2 | D112: 6933.33 | E112: 6794.6634 | F112: 0.02
B113: DCST2 | C113: DUPLO SHORT STACKER FOR DC-F2 | D113: 3306.67 | E113: 3240.5366 | F113: 0.02
B114: DCST3 | C114: DCST3 CONVEYOR STACKER | D114: 8213.33 | E114: 8049.0634 | F114: 0.02
B115: Bookletmakers & Trimmers
B116: DBM150 | C116: DUPLO DBM-150 BOOKLETMAKER | D116: 10666.67 | E116: 10453.3366 | F116: =100%-(E116/D116) -> 0.02
B117: DBM150MODKIT | C117: MODIFICATION KIT (DBM150 TO DBM150SXS) | D117: 1066.67 | E117: 1045.3366 | F117: 0.02
B118: DBM150S | C118: DUPLO DBM-150S BOOKLETMAKER | D118: 11733.33 | E118: 11498.6634 | F118: 0.02
B119: DBM150T | C119: DUPLO DBM-150T FACE TRIMMER | D119: 8746.67 | E119: 8571.7366 | F119: 0.02
B120: DBMSSADDLESYSTEM | C120: DBMS S-S | D120: 108373.33 | E120: 106205.8634 | F120: 0.02
B121: DBMS3STITCHHEADKIT | C121: DUPLO DBMS-3-STITCHHEADKIT | D121: 1280 | E121: 1254.4 | F121: 0.02
B122: DBMS4STITCHHEADKIT | C122: DUPLO DBMS-4-STITCHHEADKIT | D122: 3200 | E122: 3136 | F122: 0.02
B123: DPORT | C123: D-PORT CONVERTER | D123: 501.33 | E123: 491.3034 | F123: 0.02
B124: 999STITCHERWIRE | C124: 25 GUAGE STITCHER WIRE (5LB SPOOL) | D124: 22.67 | E124: 22.2166 | F124: 0.02
B125: 999STITCHERWIRE35 | C125: 25 GUAGE STITCHER WIRE ( 35LB SPOOL) | D125: 89.33 | E125: 87.5434 | F125: 0.02
B126: 999STICHERWIREDSP | C126: DE-SPOOLER WIRE HOLDER 35LB SPOOL | D126: 445.33 | E126: 436.4234 | F126: 0.02
B127: DBM350SBKIT | C127: DBM350SBKIT SMALL BOOK KIT | D127: 437.33 | E127: 428.5834 | F127: 0.02
B128: DBM350CKIT | C128: DBM350CSKIT CORNER/SIDE STITCH KIT | D128: 554.67 | E128: 543.5766 | F128: 0.02
B129: DBM350HFKIT | C129: HAND FEED KIT FOR DMB350 | D129: 2773.33 | E129: 2717.8634 | F129: 0.02
B130: DBM350INSERTKIT | C130: DBM350 6-PAGE NEWSLETTER INSERT KIT | D130: 298.67 | E130: 292.6966 | F130: 0.02
B131: 7640016138 | C131: DUPLO DBM-350 MIDRANGE BOOKLETMAKER | D131: 32426.67 | E131: 31778.1366 | F131: 0.02
B132: 7640016141 | C132: DUPLO DBM-350T MIDRANGE FACE TRIMMER | D132: 10986.67 | E132: 10766.9366 | F132: 0.02
B133: DSSHF | C133: HAND FEED OPTION FOR DSS350 SQ SPINE | D133: 320 | E133: 313.6 | F133: 0.02
B134: DBM600LSW | C134: DUPLO DBM600LSW CONVEYOR | D134: 2133.33 | E134: 2090.6634 | F134: 0.02
B135: AAADBMLSWBCK | C135: BARCODE KIT FOR DBM-LSW | D135: 4480 | E135: 4390.4 | F135: 0.02
B136: DBMSSW | C136: DUPLO DBMSSW SHORT STACKER | D136: 789.33 | E136: 773.5434 | F136: 0.02
B137: DSS350 | C137: DUPLO DSS-350 SQUARE SPINE UNIT | D137: 16853.33 | E137: 16516.2634 | F137: 0.02
B138: DBMSS2 | C138: DBMSS2 SHORT STACKER DSS350 TO DBM-120 | D138: 960 | E138: 940.8 | F138: 0.02
B139: 7640016129 | C139: DUPLO DKT-K BACK KICKER | D139: 1226.67 | E139: 1202.1366 | F139: 0.02
B140: DKTS200 | C140: DUPLO DKTS200 HEAD & FOOT TRIMMER | D140: 64000 | E140: 62720 | F140: 0.02
B141: DBMLSW2 | C141: **DUPLO LONG STACKER FOR DKTS200 | D141: 3840 | E141: 3763.2 | F141: 0.02
B142: DKTSK | C142: DUPLO DKTSK BATCH KICKER FOR DKTS200 | D142: 1120 | E142: 1097.6 | F142: 0.02
B143: DKTSG6 | C143: DUPLO DKTSG6 GUTTER CUTTER 6MM (DKTS200) | D143: 7040 | E143: 6899.2 | F143: 0.02
B144: DKTSG8 | C144: DUPLO DKTSG8 GUTTER CUTTER 8MM (DKTS200) | D144: 7573.33 | E144: 7421.8634 | F144: 0.02
B145: DKTSB | C145: DUPLO DKTSB ANGLE BLADE FOR DKTS200 | D145: 5653.33 | E145: 5540.2634 | F145: 0.02
B146: DSS350STAND | C146: STAND - DSS-350 CONNECT TO DBM-500/600 | D146: 562.13 | E146: 550.8874 | F146: 0.02
B147: System Configurations
B148: 150DIGITALBOOKLETS | C148: DSF-2200 BOOKLETMAKER PKG - LT PROD | D148: 48440 | E148: 47471.2 | F148: =100%-(E148/D148) -> 0.02
B149: 350DIGITALBOOKLETS | C149: DSF-2200 MID PROD BOOKLETMAKER | D149: 73444.27 | E149: 71975.3846 | F149: 0.02
B150: DSF2200PCCS | C150: DUPLO DSF-2200 PC CONTROLLER SOFTWARE | D150: 1600 | E150: 1568 | F150: 0.02
B151: DBMIBASICSYSTEM | C151: DBMI BASIC SYSTEM | D151: 134058.7 | E151: 131377.526 | F151: 0.02
B152: DBMIPRO1SYSTEM | C152: DBMI PRO 1 SYSTEM | D152: 192122.7 | E152: 188280.246 | F152: 0.02
B153: DBMIPRO2SYSTEM | C153: DBMI PRO 2 SYSTEM | D153: 202928 | E153: 198869.44 | F153: 0.02
B154: 541860 | C154: DUPLO 054-1860 HORNER STITCHER HEAD | D154: 2380 | E154: 2332.4 | F154: 0.02
B155: ST300 | C155: HIGH PILE STACKER | D155: 14613.33 | E155: 14321.0634 | F155: 0.02
B156: Die-Cutting
B157: UD310Package | C157: ROTARY DIE CUTTER W/ SEP UNIT AAO-UD300C | D157: 95253.33 | E157: 93348.2634 | F157: =100%-(E157/D157) -> 0.02
B158: AAAUDM300 | C158: DUPLO HAND FEED DIE CUTTER | D158: 33600 | E158: 32928 | F158: 0.02
B159: UD300ST3 | C159: MODIFICATION KIT FOR UD300ST3 | D159: 1120 | E159: 1097.6 | F159: 0.02
B160: AASSEP300PKG | C160: DUPLO Optional Package for UD-300 | D160: 10666.67 | E160: 10453.3366 | F160: 0.02
B161: UL300BRIDGE | C161: IN-LINE BRIDGE FOR ULTRA300AI | D161: 11200 | E161: 10976 | F161: 0.02
B162: DPC400 | C162: DIGITAL DIE CUTTER | D162: 29760 | E162: 29164.8 | F162: 0.02
B163: 9DP00C831J372 | C163: SCORING WHEEL 8A (0.3 CARD) | D163: 34.67 | E163: 33.9766 | F163: 0.02
B164: 9DP00C831J380 | C164: SCORING WHEEL 8A (0.63 CARD) | D164: 34.67 | E164: 33.9766 | F164: 0.02
B165: 9DP00C831J382 | C165: SCORING WHEEL 8A (1.0 CARD) | D165: 34.67 | E165: 33.9766 | F165: 0.02
B166: 9DP00K831J201 | C166: CUTTING KNIFE 27 (1.0 CARD VINYL 5PACK) | D166: 34.67 | E166: 33.9766 | F166: 0.02
B167: 9DP00K831J202 | C167: CUTTING KNIFE 38 (0.5 CARD VINYL 5PACK) | D167: 34.67 | E167: 33.9766 | F167: 0.02
B168: 9DP00K831J204 | C168: CUTTING KNIFE 33 (1.1 CARD 5PACK) | D168: 34.67 | E168: 33.9766 | F168: 0.02
B169: 9DP00K831J206 | C169: CUTTING KNIFE 45A (0.3 TNFM/CDVYL5PACK) | D169: 50.67 | E169: 49.6566 | F169: 0.02
B170: 9DP00K831J208 | C170: CUTTING KNIFE 45B (0.5 TNLM/CDVYL5PACK) | D170: 50.67 | E170: 49.6566 | F170: 0.02
B171: 9DP00T831J209 | C171: TOOL HOLDER UNIT FOR DPC400 | D171: 85.33 | E171: 83.6234 | F171: 0.02
B172: 9DP00P831J381 | C172: PERFORATION WHEEL 8 (0.63 CARD) | D172: 34.67 | E172: 33.9766 | F172: 0.02
B173: 9DP00T831J209 | C173: TOOL HOLDER UNIT FOR DPC400 | D173: 85.33 | E173: 83.6234 | F173: 0.02
B174: DPC400PCC | C174: DPC CONNECT S/W FOR DPC400 | D174: 3200 | E174: 3136 | F174: 0.02
B175: 9DPKIT832J3111 | C175: OSILLATING KNIVES PACKAGE | D175: 3416 | E175: 3347.68 | F175: 0.02
B176: UD300CNV2 | C176: UD-300 CONVEYOR W/HTADJ/EXSEN UD300/310 | D176: 5973.33 | E176: 5853.8634 | F176: 0.02
B177: SF200AIRKIT | C177: AIR KIT OPTION FOR DPC600 | D177: 1024 | E177: 1003.52 | F177: 0.02
B178: DSF6000BCCFL | C178: BAR CODE KIT FOR DSF-CFL COVER FEEDER | D178: 8960 | E178: 8780.8 | F178: 0.02
B179: DSF6000BCLSW | C179: BAR CODE KIT FOR DBM600LSW | D179: 4480 | E179: 4390.4 | F179: 0.02
B180: DSF6000BCK | C180: BAR CODE KIT FOR DSF-6000 | D180: 4480 | E180: 4390.4 | F180: 0.02
B181: Perfect Binding Systems
B182: AAODPB500WS | C182: DUPLO DPB500WS WING SCORE KIT | D182: 2666.67 | E182: 2613.3366 | F182: =100%-(E182/D182) -> 0.02
B183: AAGPBGLUE | C183: DPB500 PB GLUE FOR DPB500 (50LB. CARTON) | D183: 332.8 | E183: 326.144 | F183: =100%-(E183/D183) -> 0.02
B184: DUPLO21GP | C184: DIGITAL GLOSS UV COATING (5 GAL PAIL) | D184: 345.33 | E184: 338.4234 | F184: =100%-(E184/D184) -> 0.02
B185: AABDB290TAPE30 | C185: SPIR:SPITAPDB290 279X30100PC | D185: 46.67 | E185: 45.7366 | F185: =100%-(E185/D185) -> 0.02
B186: AABDB290TAPE43 | C186: SPIR:SPITAPDB290 279X43100PC | D186: 57.33 | E186: 56.1834 | F186: =100%-(E186/D186) -> 0.02
B187: UV Coaters
B188: ULTRA300AI | C188: ULTRA 300AI IN-LINE UV COATING SYS | D188: 62933.33 | E188: 61674.6634 | F188: =100%-(E188/D188) -> 0.02
B189: ULTRA300A | C189: ULTRA 300A 20 IN UV COATER SYS | D189: 64960 | E189: 63660.8 | F189: 0.02
B190: Ultra200PRO | C190: DUPLO ULTRA 200PRO 20IN UV COATER | D190: 34240 | E190: 33555.2 | F190: 0.02
B191: 987620000A | C191: DUAL IR KIT FOR ULTRA 200PRO | D191: 2026.67 | E191: 1986.1366 | F191: 0.02
B192: ULTRA300AF | C192: DUPLO ULTRA 300AF 20.5 IN UV COATING SYS | D192: 72320 | E192: 70873.6 | F192: 0.02
B193: SF300 | C193: 20.5" AIR SUCTION FEEDER FOR ULTRA300A | D193: 9600 | E193: 9408 | F193: 0.02
B194: SF300F | C194: HIGH PILE AIR SUCTION | D194: 16853.33 | E194: 16516.2634 | F194: 0.02
B195: AA0UL1249911 | C195: AA0-UL1249911 PRIMER KIT FOR ULTRA200A | D195: 213.33 | E195: 209.0634 | F195: 0.02
B196: DUPLO101G | C196: DIGITAL GLOSS UV COATING (5 GALLON PAIL) | D196: 357 | E196: 349.86 | F196: 0.02
B197: AAGPBGLUE | C197: DPB500 PB GLUE FOR DPB500 (50LB. CARTON) | D197: 332.8 | E197: 326.144 | F197: 0.02
B198: DUPLO201SG | C198: SEMI-GLOSS UV COATING (5 GALLON PAIL) | D198: 405.33 | E198: 397.2234 | F198: 0.02
B199: DUPLO301S | C199: 301S SATIN UV COATING (5 GALLON PAIL) | D199: 405.33 | E199: 397.2234 | F199: 0.02
B200: DUPLO402D | C200: 402D MATTE UV COATING (5 GALLON PAIL) | D200: 533.33 | E200: 522.6634 | F200: 0.02
B201: DUPLO6220G | C201: DIGITAL GLOSS (REC-KMBS PRINTED OUTPUT) | D201: 512 | E201: 501.76 | F201: 0.02
B202: SF200PRO | C202: 20.0" AIR SUCTION FEEDER | D202: 8426.67 | E202: 8258.1366 | F202: 0.02
B203: 9UL00P0000698 | C203: 28 IN EXTENSION TRAY KIT SF-200 FEEDER | D203: 157.33 | E203: 154.1834 | F203: 0.02
... 1732 more rows

Sheet Sub-Group C-1 Service
A2: Konica Minolta Business Solutions U.S.A., Inc. | H2: Table of Contents
A3: Subgroup C-1 Service | B3: Item Number | C3: Item Description | D3: NASPO Customer Price
B4: COLEX
B5: AB0500 | C5: APPLICATOR TABLE TRAINING/INSTALLATION | D5: 2850
B6: Colex Freight
B7: 7640019841 | C7: COLEX FREIGHT | D7: 1
B8: Colex Sharpcut Flatbed Cutter - Creator
B9: L035A | C9: SHARPCUT SERVICE CONTRACT 3216 | D9: 17200
B10: L035B | C10: SHARPCUT SERVICE CONTRACT 3232 | D10: 19866.67
B12: TECNAU SHEETFEEDER KM 2250 | D12: 650
B13: Options
B14: 7670525510 | C14: MFP DELIVERY CHARGE - LEVEL FIVE | D14: 1075
B15: 7640019706 | C15: KM2250 TECNAU INSTALL & TRAINING - KM | D15: 2500
B16: Additional with Each Order
B17: 7640014788 | C17: TEC LTG:FREIGHT UV COATER WEST ROCKIES | D17: 1333.33
B18: 7640014789 | C18: TEC LTG FREIGHT UV COATER WEST MISS | D18: 1600
B19: 7640014790 | C19: TEC LTG FREIGHT UV COATER EAST MISS | D19: 1866.67
B20: FRT4 | C20: TEC LTG:FREIGHT ADDIT'L PCS(FEED STACKER | D20: 1066.67
B21: FRT5 | C21: FREIGHT FOR C745 AIR PURIFIER | D21: 133.33
B22: FRT6 | C22: TECH LTG:MISC FREIGHT - 200 | D22: 266.67
B23: HSC-30 UV Flood Coater
B24: 7640014790 | C24: TEC LTG FREIGHT UV COATER EAST MISS | D24: 1866.67
B25: 7640014789 | C25: TEC LTG FREIGHT UV COATER WEST MISS | D25: 1600
B26: Megacoat 45
B27: FRT7 | C27: FREIGHT FOR MEGACOAT | D27: 4666.67
B28: Megacoat 50
B29: FRT7 | C29: FREIGHT FOR MEGACOAT | D29: 4666.67
B30: Megacoat 63
B31: FRT7 | C31: FREIGHT FOR MEGACOAT | D31: 4666.67
B33: DUPLO
B34: Folding Machines
B35: 7640020788 | C35: INSTALL & TRNG FOR DUPLO DF850 | D35: 600
B36: 7640020789 | C36: ANNUAL SVC FOR DF850 | D36: 584
B37: 7640021062 | C37: INSTALL & TRNG FOR DF990A | D37: 600
B38: 7640021063 | C38: ANNUAL SVC FOR DF990A | D38: 857.33
B39: 7640021064 | C39: INSTALL & TRNG FOR DF999A | D39: 600
B40: 7640021065 | C40: ANNUAL SVC FOR DF999A | D40: 997.33
B41: 7640021469 | C41: INSTALL & TRNG FOR ULTRASONIC SENSOR KIT | D41: 200
B42: 7640021470 | C42: ANNUAL SVC FOR ULTRASONIC SENSOR KIT | D42: 65.33
B43: 7640021471 | C43: INSTALL & TRNG FOR DUPLO DF99HFKIT | D43: 266.67
B44: 7640021472 | C44: ANNUAL SVC FOR DUPLO DF99HFKIT | D44: 42.67
B45: 7640020810 | C45: INSTALL & TRNG FOR DUPLO DF870 | D45: 600
B46: 7640020811 | C46: ANNUAL SVC FOR DF870 | D46: 840
B47: 7640021967 | C47: INSTALL & TRNG FOR DUPLO DF1300L | D47: 800
B48: 7640021968 | C48: ANNUAL SVC FOR DUPLO DF1300L | D48: 2006.67
B49: 7640018448 | C49: INSTALL & TRNG FOR DUPLO DC746IFS | D49: 2000
B50: 7640018450 | C50: ANNUAL SVC FOR DUPLO DC746IFS | D50: 14161
B51: 7640018860 | C51: INSTALL & TRNG FOR DUPLO DC646IFS | D51: 2000
B52: 7640022075 | C52: INSTALL & TRNG FOR DC646IFS PACKAGE | D52: 4000
B53: 7640022076 | C53: ANNUAL SVC FOR DC646IFS PACKAGE | D53: 11482.67
B54: 7640019803 | C54: I+T FOR DUPLO DC-F2 KNIFE FOLDER | D54: 666.67
B55: 7640019804 | C55: ANNUAL SVC FOR DUPLO DC-F2 KNIFE FOLDER | D55: 2196
B56: 7640019805 | C56: I+T FOR DUPLO DC-SC2 STRAIGHT CONVR | D56: 555.56
B57: 7640019806 | C57: ANNUAL SVC - DUPLO DC-SC2 STRAIGHT CONVR | D57: 1033.33
B58: 7640019807 | C58: INSTALL+TRNG FOR DC-ST1 LONG STACKER | D58: 444.44
B59: 7640019808 | C59: ANNUAL SVC FOR DC-ST1 LONG STACKER | D59: 928
B60: Bookletmakers & Trimmers
B61: 7640018765 | C61: INSTALL+TRNG FOR DUPLO DBM-150 | D61: 933.33
B62: 7640018766 | C62: ANNUAL SVC FOR DUPLO DBM-150 | D62: 2216.67
B63: 7640022048 | C63: INSTALL & TRNG FOR DBM150MODKIT | D63: 533.33
B64: 7640022049 | C64: ANNUAL SVC FOR DBM150MODKIT | D64: 142.67
B65: 7640020782 | C65: INSTALL+TRNG FOR DUPLO DBM-150S | D65: 933.33
B66: 7640020783 | C66: ANNUAL SVC FOR DUPLO DBM-150S | D66: 2216.67
B67: 7640018767 | C67: INSTALL+TRNG FOR DUPLO DBM-150T | D67: 666.67
B68: 7640018768 | C68: ANNUAL SVC FOR DUPLO DBM-150T | D68: 2217.33
B69: 7640018775 | C69: I+T D-PORT CONVERTER INTERFACE BOX | D69: 14.67
B70: 7640018776 | C70: SVC D-PORT CONVERTER INTERFACE BOX | D70: 66.67
B71: 7640018800 | C71: INSTALL+TRNG FOR DUPLO INSERT KIT | D71: 160
B72: 7640018801 | C72: ANNUAL SVC FOR DUPLO INSERT KIT | D72: 206.67
B73: 7640018804 | C73: INSTALL+TRNG DBM350SBKIT SMALL BOOK KIT | D73: 160
B74: 7640018805 | C74: ANNUAL SVC DBM350SBKIT SMALL BOOK KIT | D74: 89.33
B75: 7640018806 | C75: ANNUAL SVC FOR DUPLO DBM-350CSKIT | D75: 116
B76: 7640018809 | C76: INSTALL+TRNG DUPLO INSERT KIT | D76: 160
B77: 7640018810 | C77: ANNUAL SVC DUPLO INSERT KIT | D77: 61.33
B78: 7640016139 | C78: INSTALL+TRNG FOR DUPLO DBM-350 | D78: 1200
B79: 7640016140 | C79: ANNUAL SVC FOR DUPLO DBM-350 | D79: 3853.33
B80: 7640016142 | C80: INSTALL+TRNG FOR DUPLO DBM-350T | D80: 1200
B81: 7640016143 | C81: ANNUAL SVC FOR DUPLO DBM-350T | D81: 1960
B82: 7640019914 | C82: INSTALL+TRNG FOR DUPLO DBM-LSW | D82: 66.67
B83: 7640019915 | C83: ANNUAL SVC FOR DBMLSW | D83: 285.33
B84: 7640019696 | C84: INSTALL&TRNG FOR BARCODE KIT DBM-LSW | D84: 266.67
B85: 7640019697 | C85: ANNUAL SVC FOR BARCODE KIT DBM-LSW | D85: 600
B86: 7640019916 | C86: INSTALL+TRNG FOR DUPLO DBMSSW | D86: 33.33
B87: 7640019917 | C87: ANNUAL SVC FOR DUPLO DBMSSW | D87: 106.67
B88: 7640018181 | C88: INSTALL+TRNG FOR DUPLO DSS-350 | D88: 733.33
B89: 7640018182 | C89: ANNUAL SVC FOR DUPLO DSS-350 | D89: 2133.33
B90: 7640018802 | C90: INSTALL+TRNG FOR DUPLO DBMSS2 | D90: 33.33
B91: 7640018803 | C91: ANNUAL SVC FOR DUPLO DBMSS2 | D91: 200
B92: 7640021958 | C92: INSTALL & TRNG FOR DUPLO DKTS200 | D92: 2000
B93: 7640021959 | C93: ANNUAL SVC FOR DUPLO DKTS200 | D93: 8565.33
B94: 7640021960 | C94: INSTALL & TRNG FOR DBMLSW2 | D94: 66.67
B95: 7640021961 | C95: ANNUAL SVC FOR DBMLSW2 | D95: 510.67
B96: 7640021962 | C96: INSTALL & TRNG FOR DKTSK | D96: 66.67
B97: 7640021963 | C97: ANNUAL SVC FOR DKTSK | D97: 150.67
B98: 7640021964 | C98: INSTALL & TRNG FOR DKTSG6 | D98: 400
B99: 7640021965 | C99: INSTALL & TRNG FOR DKTSG8 | D99: 400
B100: 7640021966 | C100: INSTALL & TRNG FOR DKTSB | D100: 266.67
B101: System Configurations
B102: 7640018817 | C102: INSTALL+TRNG DUPLO DSF-2200PCCSW | D102: 160
B103: 7640018818 | C103: ANNUAL SVC DUPLO DSF-2200PC Control SW | D103: 210
B104: 7640020578 | C104: INSTALL+TRNG 600I BOOK WITH LCD | D104: 2933.33
B105: Die-Cutting
B106: 7640019442 | C106: INSTALL+TRNG FOR DUPLO UD-310 DIE-CUTTER | D106: 2666.67
B107: 7640019443 | C107: ANNUAL SVC FOR DUPLO UD-310 DIE-CUTTER S | D107: 12750.67
B108: 7640019932 | C108: INSTALL+TRNG FOR DUPLO UDM300 | D108: 1733.33
B109: 7640019933 | C109: ANNUAL SVC FOR DUPLO UDM300 | D109: 4500
B110: 7640019934 | C110: INSTALL+TRNG DUPLO SEP300PKG | D110: 533.33
B111: 7640019935 | C111: ANNUAL SVC DUPLO UD-300PKG | D111: 1500
B112: 7640021652 | C112: INSTALL & TRNG FOR DUPLO DPC400 | D112: 2400
B113: 7640021653 | C113: ANNUAL SVC FOR DUPLO DPC400 | D113: 3750.67
B114: 7640022020 | C114: INSTALL & TRNG FOR DUPLO DPC400PCC | D114: 400
B115: 7640022019 | C115: INSTALL & TRNG FOR DUPLO DPC600TSC | D115: 200
B116: 7640022020 | C116: INSTALL & TRNG FOR DUPLO DPC400PCC | D116: 400
B117: 7640022133 | C117: INSTALL & TRNG FOR UD300CNV2 | D117: 666.67
B118: 7640022134 | C118: ANNUAL SVC FOR UD300CNV2 | D118: 840
B119: 7640022290 | C119: INSTALL & TRNG FOR PUMP KIT | D119: 400
B120: 7640022291 | C120: ANNUAL SVC FOR PUMP KIT | D120: 308
B121: 7640022292 | C121: INSTALL & TRNG FOR DUPLO AIR KIT | D121: 400
B122: 7640022293 | C122: ANNUAL SVC FOR DUPLO AIR KIT | D122: 192
B123: 7640022284 | C123: INSTALL & TRNG FOR DSF6000BCCFL | D123: 533.33
B124: 7640022285 | C124: ANNUAL SVC FOR DSF6000BCCFL | D124: 1260
B125: 7640022286 | C125: INSTALL & TRNG FOR DSF600LSW | D125: 533.33
B126: 7640022287 | C126: ANNUAL SVC FOR DSF600LSW | D126: 630.67
B127: 7640022288 | C127: INSTALL & TRNG FOR DSF-6000 | D127: 533.33
B128: 7640022289 | C128: ANNUAL SVC FOR DSF-6000 | D128: 630.67
B129: Perfect Binding Systems
B130: 7640012841 | C130: DUPLO INSTALL+TRNG FOR 7640012711 | D130: 3333.33
B131: 7640012842 | C131: DUPLO ANNUAL SVC FOR 7640012711 | D131: 6630.67
B132: UV Coaters
B133: 7640018896 | C133: INSTALL+TRNG FOR ULTRA 300A | D133: 3333.33
B134: 7640018897 | C134: ANNUAL SVC FOR ULTRA 300A | D134: 8700
B135: 7640020061 | C135: INSTALL+TRNG FOR DUPLO ULTRA200PRO | D135: 3333.33
B136: 7640020062 | C136: ANNUAL SVC FOR DUPLO ULTRA200PRO | D136: 4574.67
B137: 7640019448 | C137: INST+TRNG FOR IN-LINE BRIDGE ULTRA300AI | D137: 333.33
B138: 7640019449 | C138: ANNUAL SVC FOR IN-LINE BRIDGE ULTRA300AI | D138: 1500
B139: 7640020619 | C139: INSTALL+TRNG ULTRA 300AF 20.5 IN COAT SY | D139: 4666.67
B140: 7640020620 | C140: ANNUAL SVC ULTRA 300AF 20.5 IN COAT SYS | D140: 9674.67
B141: 7640019813 | C141: I+T FOR SF-300 AIR SUCTION FEEDER | D141: 533.33
B142: 7640019814 | C142: ANNUAL SVC FOR SF-300 AIR SUCTION FEEDER | D142: 1276
B143: 7640019813 | C143: I+T FOR SF-300 AIR SUCTION FEEDER | D143: 533.33
B144: 7640019814 | C144: ANNUAL SVC FOR SF-300 AIR SUCTION FEEDER | D144: 1276
B145: 7640019815 | C145: I+T - SF-200PRO AIR SUCTION FEEDER | D145: 533.33
B146: 7640019816 | C146: ANNUAL SVC - SF-200PRO AIR SUCTION FEEDR | D146: 1124
B147: Dry Coat/Foil/Laminataor
B148: 7640020525 | C148: INSTALL & TRNG FOR DUPLO DFL-500 | D148: 1066.67
B149: 7640020526 | C149: ANNUAL SVC FOR DUPLO DFL-500 | D149: 3500
B150: 7640012841 | C150: DUPLO INSTALL+TRNG FOR 7640012711 | D150: 3333.33
B151: 7640012842 | C151: DUPLO ANNUAL SVC FOR 7640012711 | D151: 6630.67
B152: Paper Bander - Supplies
B153: AABUP240BRNTAPE | C153: BROWN CRAFT TAPE UP 240 (40 ROLLS) | D153: 602.67
B154: AABUP240WHTTAPE | C154: WHITE CRAFT TAPE UP 240 (40 ROLLS) | D154: 522.67
B155: AABUP240CLRTAPE | C155: CLEAR TAPE UP 240(32 ROLLS/CTN) *SPECORD | D155: 956
B156: Forms Bursting
B157: 7640018907 | C157: INSTALL+TRNG FOR DUPLO V-417 | D157: 466.67
B158: 7640018908 | C158: ANNUAL SVC FOR DUPLO V-417 | D158: 1260
B159: 7640018909 | C159: I+T AAO-CNV05 CONVEYOR STACKER V-417 | D159: 58.67
B160: 7640018910 | C160: SVC AAO-CNV05 CONVEYOR STACKER V-417 | D160: 410.67
B161: Collaters
B162: 7640018948 | C162: I+T DUPLO DSC1060PCC PC CONTROLLER | D162: 160
B163: 7640018949 | C163: SVC DUPLO DSC1060PCC PC CONTROLLER | D163: 270
B164: 7640020331 | C164: INSTALL+TRNG FOR DUPLO DSC1060LUR | D164: 266.67
B165: 7640020332 | C165: ANNUAL SVC FOR DUPLO DSC1060LUR | D165: 462
B166: 7640018942 | C166: INSTALL+TRNG FOR DUPLO DSC-10/60I BRIDGE | D166: 160
B167: 7640018955 | C167: I+T DSC1060ENVLP ENV. KIT DSC-10/60I | D167: 160
B168: 7640018956 | C168: SVC DSC1060ENVLP ENV. KIT DSC-10/60I | D168: 270
B169: 7640018217 | C169: ANNUAL SVC FOR CC-330 CONVEYOR STACKER | D169: 230.67
B170: 7640018936 | C170: I+T DUPLO DC1060LULBC DVS SYSTEM | D170: 533.33
B171: 7640018937 | C171: ANNUAL SVC DUPLO DC1060LULBC DVS SYSTEM | D171: 1110
B172: 7640012855 | C172: INSTALL + TRNG FOR DUPLO UJ600AS FOR DC- | D172: 400
B173: 7640012856 | C173: ANNUAL SVC FOR DUPLO UJ600AS FOR DC-10/2 | D173: 780
B174: 7640020704 | C174: INSTALL+TRNG FOR DUPLO DUETTO4 | D174: 7333.33
B175: 7640020705 | C175: ANNUAL SVC FOR DUPLO DUETTO4 | D175: 31054.67
B176: 7640018940 | C176: INSTALL+TRNG FOR DUPLO DSC1060LDR | D176: 533.33
B177: 7640018941 | C177: ANNUAL SVC FOR DUPLO DSC1060LDR | D177: 750
B178: 7640018946 | C178: INSTALL+TRNG FOR DUPLO DSC10/60ULSKIT | D178: 160
B179: 7640018951 | C179: I+T DBM-400STR DEEP-PILE REAR STACKER | D179: 533.33
B180: 7640018952 | C180: SVC DBM-400STR DEEP-PILE REAR STACKER | D180: 1350
B181: 7640018938 | C181: I+T DUPLO LUR LIFT UNIT DBM-400STR | D181: 266.67
B182: 7640018939 | C182: SVC DUPLO LUR LIFT UNIT DBM-400STR | D182: 462
B183: 7640018957 | C183: I+T DUPLO DCR-ST CROSS STACKER | D183: 533.33
B184: 7640018958 | C184: ANNUAL SVC DUPLO DCR-ST CROSS STACKER | D184: 1200
B185: 7640018959 | C185: I+T DCR-BP BYPASS BRIDGE CROSS STACKER | D185: 160
B186: 7640018960 | C186: SVC DCR-BP BYPASS BRIDGE CROSS STACKER | D186: 525
B187: 7640016109 | C187: INSTALL+TRNG FOR DUPLO DC-10/60D | D187: 32
B188: 7640020550 | C188: INSTALL+TRNG FOR DUPLO BCLUL | D188: 533.33
B189: 7640020551 | C189: ANNUAL SVC FOR DUPLO BCLUL | D189: 2100
B190: 7640020552 | C190: INSTALL+TRNG FOR DUPLO DBMSF2COV6 | D190: 266.67
B191: 7640020553 | C191: ANNUAL SVC FOR DUPLO DBMSF2COV6 | D191: 369.33
B192: 7640022082 | C192: INSTALL & TRNG FOR ESPER | D192: 4000
B193: 7640022083 | C193: ANNUAL SVC FOR ESPER | D193: 9750.67
B194: 7640022084 | C194: INSTALL & TRNG FOR DSME | D194: 533.33
B195: 7640022085 | C195: ANNUAL SVC FOR DSME | D195: 1260
B196: Perfect Binders
B197: 7640020133 | C197: INSTALL&TRNG FOR DUPLO DB-290 | D197: 933.33
B198: 7640020134 | C198: ANNUAL SVC FOR DUPLO DB-290 | D198: 1574.67
B199: 7640021040 | C199: INSTALL & TRNG FOR DCST3 | D199: 533.33
B200: 7640021041 | C200: ANNUAL SVC FOR DCST3 | D200: 1094.67
B201: 7640022021 | C201: INSTALL + TRNG FOR DUPLO DBMHSC | D201: 1000
B202: 7640022022 | C202: ANNUAL SVC FOR DUPLO DBMHSC | D202: 4574.67
B203: 7640022023 | C203: INSTALL + TRNG FOR DUPLO HSCSLIT | D203: 666.67
... 992 more rows

Sheet Sub-Group C-2
A2: Konica Minolta Business Solutions U.S.A., Inc. | H2: Table of Contents
A3: Sub-group C2 | B3: Item Number | C3: Item Description | D3: MSRP | E3: NASPO Purchase Price | F3: Discount
C4: ACCURIOSHINE
B5: 19100AS | C5: ACCURIOSHINE 3600 MAIN UNIT | D5: 214756 | E5: =D5*0.95 -> 204018.2 | F5: =100%-(E5/D5) -> 0.05
B6: 11105SO | C6: CTS UNIT | D6: 27800 | E6: =D6*0.95 -> 26410 | F6: 0.05
B7: A020973 | C7: CTS OZONE FILTER ASSY | D7: 420 | E7: 399 | F7: 0.05
B8: 19110 | C8: JV3D ONE AUTO PDF CONVERT C1 PC | D8: 4265 | E8: 4051.75 | F8: 0.05
B9: 19111 | C9: JV3D ONE VDP CAMERA/VDP CARD | D9: 5569 | E9: 5290.55 | F9: 0.05
B10: 9910N | C10: IFOIL ONE UNIT - OPTION | D10: 89990 | E10: 85490.5 | F10: 0.05
B11: 7640015255 | C11: PROFESSIONAL SERVICES -Remote Designer Support-8 hours | D11: 1200 | E11: 1140 | F11: 0.05
B12: 19112R | C12: JV3D ONE MET SUBSTRATE LIGHTING RETROKIT | D12: 2215 | E12: 2104.25 | F12: 0.05
B13: 7640020167 | C13: MGI OPERATOR TRAINING 5 DAY - KM | D13: 8000 | E13: 7600 | F13: 0.05
B14: 7640020191 | C14: MGI ADV. OPERATOR TRAINING 5 DAY - KM | D14: 8000 | E14: 7600 | F14: 0.05
B15: 7640019481 | C15: MGI FREIGHT - KM | D15: 4000 | E15: 3800 | F15: 0.05
B16: 7640021318 | C16: MGI JETVARNISH 3D ONE INSTALLATION - KM | D16: 7500 | E16: 7125 | F16: 0.05
B17: 7640019763 | C17: MGI IFOIL S INSTALLATION - KM | D17: 3500 | E17: 3325 | F17: 0.05
B18: 7640021910 | C18: CTS iNSTALLATION | D18: 1800 | E18: 1710 | F18: 0.05
B19: 10109S | C19: MGI JV3D ONE - GLOSSY VARNISH - 10L | D19: 1498 | E19: 1423.1 | F19: 0.05
B20: 8484S | C20: INKJET HEAD CLEANR JETSERIES 5L CANISTR | D20: 96.3 | E20: 91.485 | F20: 0.05
B21: 10677K | C21: 1x Printheads JV3DS/JV3D One + Indexing Mechanical Spare for Head + License | D21: 5723.74 | E21: 5437.553 | F21: 0.05
B22: 11087A | C22: Black Pipe Int 6mm Ext 8mm Length 1m | D22: 8 | E22: 7.6 | F22: 0.05
B23: KP88637 | C23: Printing Belt | D23: 4616.48 | E23: 4385.656 | F23: 0.05
B24: 7332 | C24: Flexible Transparent Pipe Int 4mm / Ext 6mm | D24: 15.73 | E24: 14.9435 | F24: 0.05
B25: 5131 | C25: 5L Waste Bottle | D25: 12.84 | E25: 12.198 | F25: 0.05
B26: 5280 | C26: Box of Gloves (100 Pieces) Single Use | D26: 52.43 | E26: 49.8085 | F26: 0.05
B27: 7898B | C27: Cleaning Foam (500) + Tips (10) Kit | D27: 243.96 | E27: 231.762 | F27: 0.05
B28: 10467 | C28: 50 Wiping Towels | D28: 59 | E28: 56.05 | F28: 0.05
B29: 7312A | C29: Flush Syringe JETseries | D29: 8.99 | E29: 8.5405 | F29: 0.05
B30: 16777 | C30: CTS OZONE Filter 225x500mm 1000m3/h | D30: 419.654 | E30: 398.6713 | F30: 0.05
B31: 16294C | C31: CTS CERAMIC ELECTRODE BAR 434mm_JV3D One & 3DS | D31: 1163.4003 | E31: 1105.230285 | F31: 0.05
B32: 16285C | C32: CTS CARBON CONTACT PAD | D32: 124.3233 | E32: 118.107135 | F32: 0.05
B33: 3418C | C33: CTS ANTI-STATIC BARS 475mm | D33: 190.6205 | E33: 181.089475 | F33: 0.05
B34: ISKMGD03 | C34: GOLD 3 FOIL | D34: 146 | E34: 138.7 | F34: 0.05
C35: MGI EVO52L
B36: 14200ALP | C36: MGI JV3D 52L+T2+AIS+PALL FEED L/STACK L | D36: 478375 | E36: =D36*0.98 -> 468807.5 | F36: =100%-(E36/D36) -> 0.02
B37: 9910L | C37: MGI IFOIL L FINISHER FOR JV3D/EVO SERIES | D37: 179995 | E37: 176395.1 | F37: 0.02
B38: 11105 | C38: MGI JV3D EVO CORONA TREATMENT MODULE | D38: 56704 | E38: 55569.92 | F38: 0.02
B39: 14594 | C39: JETVARNISH 3D EVO VDP HIGH PERF | D39: 18916 | E39: 18537.68 | F39: 0.02
B40: 7640015255 | C40: PROFESSIONAL SERVICES -Remote Designer Support-8 hours | D40: 1200 | E40: 1176 | F40: 0.02
B41: 7640020167 | C41: MGI OPERATOR TRAINING 5 DAY - KM | D41: 8000 | E41: 7840 | F41: 0.02
B42: 7640020191 | C42: MGI ADV. OPERATOR TRAINING 5 DAY - KM | D42: 8000 | E42: 7840 | F42: 0.02
B43: 7640020191 | C43: MGI ADV. OPERATOR TRAINING 5 DAY - KM-Week 3 | D43: 8000 | E43: 7840 | F43: 0.02
B44: 7640019481 | C44: MGI FREIGHT - KM | D44: 6000 | E44: 5880 | F44: 0.02
B45: 7640020409 | C45: MGI JV3D EVO INSTALLATION - KM | D45: 15000 | E45: 14700 | F45: 0.02
B46: 7640020410 | C46: MGI IFOIL L INSTALLATION - KM | D46: 4500 | E46: 4410 | F46: 0.02
B47: 7640020411 | C47: MGI CORONA MODULE INSTALLATION - KM | D47: 4500 | E47: 4410 | F47: 0.02
B48: 7640020412 | C48: MGI VARIABLE DATA KIT INSTALLATION - KM | D48: 2500 | E48: 2450 | F48: 0.02
B49: 10361 | C49: MGI JV3D CLASSIC SILVER FOIL SET OF 2 ROLLS (1x500mm + 1x140mm x400M) | D49: 554 | E49: 542.92 | F49: 0.02
B50: 14083S | C50: MGI EVO 3D GLOSSY VARNISH 18LTR | D50: 1875.71 | E50: 1838.1958 | F50: 0.02
B51: 8484S | C51: INKJET HEAD CLEANR JETSERIES 5L CANISTR | D51: 96.3 | E51: 94.374 | F51: 0.02
B52: 12964K | C52: Printhead JV3D EVO Series + Indexing Holder + License: | D52: 5723.7403 | E52: 5609.265494 | F52: 0.02
B53: 12964K | C53: Printhead JV3D EVO Series + Indexing Holder + License: | D53: 5723.7403 | E53: 5609.265494 | F53: 0.02
B54: 4842 | C54: IR Lamp — Length 540mm — for JV3D / JV3DL / EVO Series | D54: 908.216 | E54: 890.05168 | F54: 0.02
B55: 4842 | C55: IR Lamp — Length 540mm — for JV3D / JV3DL / EVO Series | D55: 908.216 | E55: 890.05168 | F55: 0.02
B56: 4842 | C56: IR Lamp — Length 540mm — for JV3D / JV3DL / EVO Series | D56: 908.216 | E56: 890.05168 | F56: 0.02
B57: 4842 | C57: IR Lamp — Length 540mm — for JV3D / JV3DL / EVO Series | D57: 908.216 | E57: 890.05168 | F57: 0.02
B58: KP97674 | C58: JV3D-EVO 75 Printing Belt | D58: 8271.3033 | E58: 8105.877234 | F58: 0.02
B59: 3102 | C59: Feeding Drum Friction Rubber | D59: 68.587 | E59: 67.21526 | F59: 0.02
B60: KP43628 | C60: Vacuum Suction Cup SGP 244 Parts per Feeder Module | D60: 52.0555 | E60: 51.01439 | F60: 0.02
B61: 2259 | C61: Bellow Suction Cup | D61: 17.869 | E61: 17.51162 | F61: 0.02
B62: 14166 | C62: UV Lamp 75 for UV Dryer Unit EVO Series 1 Part / Machine | D62: 1216.3546 | E62: 1192.027508 | F62: 0.02
B63: 10743 | C63: EVO-75 Blue Transport Roller | D63: 401.25 | E63: 393.225 | F63: 0.02
B64: 10744 | C64: EVO-75 Cleaning Roller Green | D64: 429.07 | E64: 420.4886 | F64: 0.02
B65: S1234 | C65: Corona Sleeve Kit (1 x Sleeve + 1 x Earth Brush) | D65: 431.1244 | E65: 422.501912 | F65: 0.02
B66: MK1002 | C66: GEN 2 & 3 Flush Maintenance Kit - 1 year | D66: 6413.4944 | E66: 6285.224512 | F66: 0.02
B67: MK1006 | C67: GEN 3 Degassing Maintenance Kit - 1 year | D67: 4504.0045 | E67: 4413.92441 | F67: 0.02
B68: 5131 | C68: 5L Waste Bottle | D68: 12.84 | E68: 12.5832 | F68: 0.02
B69: 5280 | C69: Box of Gloves (100 Pieces) Single Use | D69: 52.43 | E69: 51.3814 | F69: 0.02
B70: 5110 | C70: Box of Cleaning Towels (100 Pieces) | D70: 83.46 | E70: 81.7908 | F70: 0.02
B71: 11103 | C71: Wiping Towels 93 x 12cm Set (75 items) | D71: 95.23 | E71: 93.3254 | F71: 0.02
B72: 10271 | C72: Toothed Belt Short 16 at 5/420 | D72: 92.0735 | E72: 90.23203 | F72: 0.02
B73: KP100763 | C73: Heated Drum iFOIL L — Complete Mounted | D73: 6886.7875 | E73: 6749.05175 | F73: 0.02
B74: KP20813 | C74: Toothed Belt 10 T 5/455 | D74: 55.747 | E74: 54.63206 | F74: 0.02
B75: KP96474 | C75: Toothed Belt 16 at 5/2440 | D75: 244.9444 | E75: 240.045512 | F75: 0.02
B76: KP96473 | C76: Toothed Belt 16 at 5/660 | D76: 122.4615 | E76: 120.01227 | F76: 0.02
B77: KP101517 | C77: Toothed Belt 16 AT5 / 5001 Part per Feeder Module | D77: 44.5976 | E77: 43.705648 | F77: 0.02
C78: MGI EVO52L Options
B79: 14020XLR | C79: MGI JV3D/EVO PAL FEEDER 75X120 RETRO KIT | D79: 65264.65 | E79: =D79*0.98 -> 63959.357 | F79: =100%-(E79/D79) -> 0.02
C80: MGI EVO75
B81: 14200CP | C81: MGI JV3D EVO 75 + TWIN BAR + AIS+PALL FEED+STACK | D81: 801769 | E81: =D81*0.98 -> 785733.62 | F81: =100%-(E81/D81) -> 0.02
B82: 9910L | C82: MGI IFOIL L FINISHER FOR JV3D/EVO SERIES | D82: 179995 | E82: 176395.1 | F82: 0.02
B83: 11105 | C83: MGI JV3D EVO CORONA TREATMENT MODULE | D83: 56704 | E83: 55569.92 | F83: 0.02
B84: 14594 | C84: JETVARNISH 3D EVO VDP HIGH PERF | D84: 18916 | E84: 18537.68 | F84: 0.02
B85: 7640015255 | C85: PROFESSIONAL SERVICES -Remote Designer Support-8 hours | D85: 1200 | E85: 1176 | F85: 0.02
B86: 7640020167 | C86: MGI OPERATOR TRAINING 5 DAY - KM | D86: 8000 | E86: 7840 | F86: 0.02
B87: 7640020191 | C87: MGI ADV. OPERATOR TRAINING 5 DAY - KM | D87: 8000 | E87: 7840 | F87: 0.02
B88: 7640020191 | C88: MGI ADV. OPERATOR TRAINING 5 DAY - KM-Week 3 | D88: 8000 | E88: 7840 | F88: 0.02
B89: 7640019481 | C89: MGI FREIGHT - KM | D89: 6000 | E89: 5880 | F89: 0.02
B90: 7640020409 | C90: MGI JV3D EVO INSTALLATION - KM | D90: 15000 | E90: 14700 | F90: 0.02
B91: 7640020410 | C91: MGI IFOIL L INSTALLATION - KM | D91: 4500 | E91: 4410 | F91: 0.02
B92: 7640020411 | C92: MGI CORONA MODULE INSTALLATION - KM | D92: 4500 | E92: 4410 | F92: 0.02
B93: 7640020412 | C93: MGI VARIABLE DATA KIT INSTALLATION - KM | D93: 2500 | E93: 2450 | F93: 0.02
B94: 14096 | C94: GLEAM GOLD FOIL FOR IFOIL L SET OF 2 ROLLS (1x740mm + 1x540mm x400M) | D94: 554 | E94: 542.92 | F94: 0.02
B95: 14083S | C95: MGI EVO 3D GLOSSY VARNISH 18LTR | D95: 1875.71 | E95: 1838.1958 | F95: 0.02
B96: 8484S | C96: INKJET HEAD CLEANR JETSERIES 5L CANISTR | D96: 96.3 | E96: 94.374 | F96: 0.02
B97: 12964K | C97: Printhead JV3D EVO Series + Indexing Holder + License: | D97: 5723.7403 | E97: 5609.265494 | F97: 0.02
B98: 12964K | C98: Printhead JV3D EVO Series + Indexing Holder + License: | D98: 5723.7403 | E98: 5609.265494 | F98: 0.02
B99: 4842 | C99: IR Lamp — Length 540mm — for JV3D / JV3DL / EVO Series | D99: 908.216 | E99: 890.05168 | F99: 0.02
B100: 4842 | C100: IR Lamp — Length 540mm — for JV3D / JV3DL / EVO Series | D100: 908.216 | E100: 890.05168 | F100: 0.02
B101: 4842 | C101: IR Lamp — Length 540mm — for JV3D / JV3DL / EVO Series | D101: 908.216 | E101: 890.05168 | F101: 0.02
B102: 4842 | C102: IR Lamp — Length 540mm — for JV3D / JV3DL / EVO Series | D102: 908.216 | E102: 890.05168 | F102: 0.02
B103: KP97674 | C103: JV3D-EVO 75 Printing Belt | D103: 8271.3033 | E103: 8105.877234 | F103: 0.02
B104: 3102 | C104: Feeding Drum Friction Rubber | D104: 68.587 | E104: 67.21526 | F104: 0.02
B105: KP43628 | C105: Vacuum Suction Cup SGP 244 Parts per Feeder Module | D105: 52.0555 | E105: 51.01439 | F105: 0.02
B106: 2259 | C106: Bellow Suction Cup | D106: 17.869 | E106: 17.51162 | F106: 0.02
B107: 141667 | C107: UV Lamp 75 for UV Dryer Unit EVO Series 1 Part / Machine | D107: 1216.3546 | E107: 1192.027508 | F107: 0.02
B108: 10743 | C108: EVO-75 Blue Transport Roller | D108: 401.25 | E108: 393.225 | F108: 0.02
B109: 10744 | C109: EVO-75 Cleaning Roller Green | D109: 429.07 | E109: 420.4886 | F109: 0.02
B110: S1234 | C110: Corona Sleeve Kit (1 x Sleeve + 1 x Earth Brush) | D110: 431.1244 | E110: 422.501912 | F110: 0.02
B111: MK1002 | C111: GEN 2 & 3 Flush Maintenance Kit - 1 year | D111: 6413.4944 | E111: 6285.224512 | F111: 0.02
B112: MK1006 | C112: GEN 3 Degassing Maintenance Kit - 1 year | D112: 4504.0045 | E112: 4413.92441 | F112: 0.02
B113: 5131 | C113: 5L Waste Bottle | D113: 12.84 | E113: 12.5832 | F113: 0.02
B114: 5280 | C114: Box of Gloves (100 Pieces) Single Use | D114: 52.43 | E114: 51.3814 | F114: 0.02
B115: 5110 | C115: Box of Cleaning Towels (100 Pieces) | D115: 83.46 | E115: 81.7908 | F115: 0.02
B116: 11103 | C116: Wiping Towels 93 x 12cm Set (75 items) | D116: 95.23 | E116: 93.3254 | F116: 0.02
B117: 10271 | C117: Toothed Belt Short 16 at 5/420 | D117: 92.0735 | E117: 90.23203 | F117: 0.02
B118: KP100763 | C118: Heated Drum iFOIL L — Complete Mounted | D118: 6886.7875 | E118: 6749.05175 | F118: 0.02
B119: KP20813 | C119: Toothed Belt 10 T 5/455 | D119: 55.747 | E119: 54.63206 | F119: 0.02
B120: KP96474 | C120: Toothed Belt 16 at 5/2440 | D120: 244.9444 | E120: 240.045512 | F120: 0.02
B121: KP96473 | C121: Toothed Belt 16 at 5/660 | D121: 122.4615 | E121: 120.01227 | F121: 0.02
B122: KP101517 | C122: Toothed Belt 16 AT5 / 5001 Part per Feeder Module | D122: 44.5976 | E122: 43.705648 | F122: 0.02
C123: AL230 Label Pressincludes 14 items below | D123: 190288.0782 | E123: 180773.6743 | F123: 0.05
B124: AAK7011 | C124: AccurioLabel 230
B125: 9967008723 | C125: KM/UWRW UNWINDER REWINDER
B126: 9967007061 | C126: KM/UWRW WEB CLEAN
B127: 9967008389 | C127: KM/UWRW AIR COMPRESSOR (USA)
B128: 7640021168 | C128: Freight for AL230
B129: 7640019485 | C129: KMBS Professional Project Services
B130: AAMYWY1 | C130: UK-218 (APPE Upgrade Kit)
B131: KONI66002 | C131: LR5402C PATLITE STATUS LIGHT KIT
B132: 760000003297 | C132: FD5 Package with Ruler
B133: A8AN306 | C133: MYIRO 9 Auto Scan Spectrophotometer
B134: KONICASAMPLEKIT | C134: Media Welcome Kit
B135: 9967010901 | C135: ACCURIOPRO FLUX LABEL SET (INCL. SMP)
B136: P350030240NH | C136: DIAG PWRFILTER 208V/240V/30A W NTWRK HUB
B137: P350030240NH | C137: DIAG PWRFILTER 208V/240V/30A W NTWRK HUB
B138: Suplies and CRUs
B139: A8J3130 | C139: TN623K (Yield 1750 msi, 15% coverage) | D139: 65.2704 | E139: =D139*0.95 -> 62.00688 | F139: =100%-(E139/D139) -> 0.05
B140: A8J3230 | C140: TN623Y (Yield 1840 msi, 15% coverage) | D140: 143.1456 | E140: 135.98832 | F140: 0.05
B141: A8J3330 | C141: TN623M (Yield 1400 msi, 15% coverage) | D141: 109.8656 | E141: 104.37232 | F141: 0.05
B142: A8J3430 | C142: TN623C (Yield 1980 msi, 15% coverage) | D142: 157.248 | E142: 149.3856 | F142: 0.05
B143: A5WJ0Y0 | C143: DU106 Drum | D143: 495.78 | E143: 470.991 | F143: 0.05
B144: A50UR70K22 | C144: Belt Cleaning Blade | D144: 18.51428571 | E144: 17.58857143 | F144: 0.05
B145: A1DU504203 | C145: Intermediate transfer belt | D145: 182.1714286 | E145: 173.0628571 | F145: 0.05
B146: A50U520001 | C146: 2nd transfer roller /Lw | D146: 158.5142857 | E146: 150.5885714 | F146: 0.05
B147: A57V720200 | C147: Fusing Belt | D147: 432.6 | E147: 410.97 | F147: 0.05
B148: A9VE720300 | C148: Fusing roller /1 | D148: 213.2 | E148: 202.54 | F148: 0.05
B149: AAK7765500 | C149: Fusing Roller/Lw | D149: 171.0285714 | E149: 162.4771429 | F149: 0.05
B150: A50UR70115 | C150: Waste Toner Box (C71cf) | D150: 65.37142857 | E150: 62.10285714 | F150: 0.05
B151: Options
B152: ACANWY1 | C152: ES-101 Re-register Option | D152: 6448 | E152: =D152*0.95 -> 6125.6 | F152: =100%-(E152/D152) -> 0.05
B153: 9967007063 | C153: KM/UWRW LENGTH SLITTING CRUSH KNIVES | D153: 3767 | E153: 3578.65 | F153: 0.05
B154: 13067 | C154: MH400A roll handler w/ 39 inches vertical lift | D154: 3161.33 | E154: 3003.2635 | F154: 0.05
B155: 13846 | C155: MH400 Roller Core Boom Attachment | D155: 521.33 | E155: 495.2635 | F155: 0.05
B156: MCDMRR4013KM | C156: Crating for Aztech Roll Lift Cart | D156: 400 | E156: 380 | F156: 0.05
B157: MSDMRR4013KM | C157: Shipping | D157: 800 | E157: 760 | F157: 0.05
B158: ACYA011 | C158: AP COLORMANAGER ENGINETUNE E-LICENSE | D158: 400 | E158: 380 | F158: 0.05
B159: ACYA0Y5 | C159: APCM SUITE W/O PRINT 1Y | D159: 1632 | E159: 1550.4 | F159: 0.05
B160: ACYA0V3 | C160: APCM SUITE W/O PRINT 3Y | D160: 4896 | E160: 4651.2 | F160: 0.05
B161: ACYA0V5 | C161: APCM SUITE W/O PRINT 5Y | D161: 8160 | E161: 7752 | F161: 0.05
B162: PO23299 | C162: Rewinder Table Model 300 | D162: 17875 | E162: 16981.25 | F162: 0.05
B163: PP2800 | C163: Plate Mounter | D163: 1500 | E163: 1425 | F163: 0.05
B164: 9967010902 | C164: ANNUAL SOFTWARE SUPPORT FLUX LABEL | D164: 514.08 | E164: 488.376 | F164: 0.05
B165: AL230 Label Press | C165: includes 14 items below | D165: 190288.0782 | E165: 180773.6743 | F165: 0.05
B166: AAK7011 | C166: AccurioLabel 230
B167: 9967008723 | C167: KM/UWRW UNWINDER REWINDER
B168: 9967007061 | C168: KM/UWRW WEB CLEAN
B169: 9967008389 | C169: KM/UWRW AIR COMPRESSOR (USA)
B170: 7640021168 | C170: Freight for AL230
B171: 7640019485 | C171: KMBS Professional Project Services
B172: AAMYWY1 | C172: UK-218 (APPE Upgrade Kit)
B173: KONI66002 | C173: LR5402C PATLITE STATUS LIGHT KIT
B174: 760000003297 | C174: FD5 Package with Ruler
B175: A8AN306 | C175: MYIRO 9 Auto Scan Spectrophotometer
B176: KONICASAMPLEKIT | C176: Media Welcome Kit
B177: 9967010901 | C177: ACCURIOPRO FLUX LABEL SET (INCL. SMP)
B178: P350030240NH | C178: DIAG PWRFILTER 208V/240V/30A W NTWRK HUB
B179: P350030240NH | C179: DIAG PWRFILTER 208V/240V/30A W NTWRK HUB
B180: Suplies and CRUs
B181: A8J3130 | C181: TN623K (Yield 1750 msi, 15% coverage) | D181: 65.2704 | E181: =D181*0.95 -> 62.00688 | F181: =100%-(E181/D181) -> 0.05
B182: A8J3230 | C182: TN623Y (Yield 1840 msi, 15% coverage) | D182: 143.1456 | E182: 135.98832 | F182: 0.05
B183: A8J3330 | C183: TN623M (Yield 1400 msi, 15% coverage) | D183: 109.8656 | E183: 104.37232 | F183: 0.05
B184: A8J3430 | C184: TN623C (Yield 1980 msi, 15% coverage) | D184: 157.248 | E184: 149.3856 | F184: 0.05
B185: A5WJ0Y0 | C185: DU106 Drum | D185: 495.78 | E185: 470.991 | F185: 0.05
B186: A50UR70K22 | C186: Belt Cleaning Blade | D186: 18.51428571 | E186: 17.58857143 | F186: 0.05
B187: A1DU504203 | C187: Intermediate transfer belt | D187: 182.1714286 | E187: 173.0628571 | F187: 0.05
B188: A50U520001 | C188: 2nd transfer roller /Lw | D188: 158.5142857 | E188: 150.5885714 | F188: 0.05
B189: A57V720200 | C189: Fusing Belt | D189: 432.6 | E189: 410.97 | F189: 0.05
B190: A9VE720300 | C190: Fusing roller /1 | D190: 213.2 | E190: 202.54 | F190: 0.05
B191: AAK7765500 | C191: Fusing Roller/Lw | D191: 171.0285714 | E191: 162.4771429 | F191: 0.05
B192: A50UR70115 | C192: Waste Toner Box (C71cf) | D192: 65.37142857 | E192: 62.10285714 | F192: 0.05
B193: Options
B194: ACANWY1 | C194: ES-101 Re-register Option | D194: 6448 | E194: =D194*0.95 -> 6125.6 | F194: =100%-(E194/D194) -> 0.05
B195: 9967007063 | C195: KM/UWRW LENGTH SLITTING CRUSH KNIVES | D195: 3767 | E195: 3578.65 | F195: 0.05
B196: 13067 | C196: MH400A roll handler w/ 39 inches vertical lift | D196: 3161.33 | E196: 3003.2635 | F196: 0.05
B197: 13846 | C197: MH400 Roller Core Boom Attachment | D197: 521.33 | E197: 495.2635 | F197: 0.05
B198: MCDMRR4013KM | C198: Crating for Aztech Roll Lift Cart | D198: 400 | E198: 380 | F198: 0.05
B199: MSDMRR4013KM | C199: Shipping | D199: 800 | E199: 760 | F199: 0.05
B200: ACYA011 | C200: AP COLORMANAGER ENGINETUNE E-LICENSE | D200: 400 | E200: 380 | F200: 0.05
B201: ACYA0Y5 | C201: APCM SUITE W/O PRINT 1Y | D201: 1632 | E201: 1550.4 | F201: 0.05
... 26 more rows

Sheet Sub-Group C-2 Service
A2: Konica Minolta Business Solutions U.S.A., Inc. | F2: Table of Contents
A3: SubGroup C-2 Service | B3: Item Number | C3: Item Description | D3: NASPO Customer Price
A4: Digital Embelleshment Products Service
B5: N/A | C5: AS3600 Base Service Maintenance Per Month | D5: 2450
B6: N/A | C6: EVO52L Base Service Maintenance Per Month | D6: 3150
B7: N/A | C7: EVO75 Base Service Maintenance Per Month | D7: 3750
A8: AL 230 Label Printer
B9: N/A | C9: AL230 Monthly Maintenance | D9: 900
A10: KM-1 Service
B11: A7W43DD | C11: Ink Jet Head (per inkjet head module - 2 heads per module) | D11: 4750
B12: FLTR Pk | C12: Filter Pack (monthly) | D12: 1000
B13: A8GU10A | C13: MC101 Wiping Cloth | D13: 500
B14: A88PYBA | C14: HS101YA Ink for KM-1 (5kg) / 4.8L | D14: 577.92
B15: A88PMBA | C15: HS101MA Ink for KM-1 (5kg) / 4.8L | D15: 577.92
B16: A88PCBA | C16: HS101CA Ink for KM-1 (5kg) / 4.8L | D16: 577.92
B17: A88PKBA | C17: HS101KA Ink for KM-1 (5kg) / 4.8L | D17: 577.92
B18: EMS | C18: Monthly Base Maintenance Contract Charge | D18: 7314
B19: MCW | C19: MicroClick Inkjet Head Warranty Program - Tier 1 (Customer Averaging < 300,000 sides per month+) | D19: 0.0125
B20: 7640019973 | C20: KM-1 Training and Professional Services | D20: 10000
B21: 7640019971 | C21: KM-1 Service Training Charge - 1 Week | D21: 4000
B22: PC75KVAAG02 | C22: ESP GPI Series 2000 75kVA Power Conditioner | D22: 15117
B23: PC75KVAAG | C23: Power Conditioner 208VAC480VACin/208VACout | D23: 16900
B24: PC100KVAAG | C24: 100KVA Power Conditioner480Vin/208V out | D24: 16900

Sheet Group D
A1: Konica Minolta Business Solutions U.S.A., Inc. | H1: Table of Contents
A2: Group D | B2: Item Number | C2: Item Description | D2: MSRP | E2: NASPO Customer Price | F2: Discount
A3: Segment 2 | B3: AAJT017 | C3: BIZHUB C3301I COLOR SFP | D3: 1308 | E3: 850.14 | F3: =100%-(E3/D3) -> 0.3500458716
A4: B&W 21-40
B5: PAPER SUPPLY OPTIONS
B6: AAJUW14 | C6: PF-P28 500-SHEET PAPER TRAY | D6: 413 | E6: 144.56 | F6: =100%-(E6/D6) -> 0.6499757869
B7: AAJUW12 | C7: PF-P25 HEIGHT ADJUSTMENT UNIT | D7: 374 | E7: 126.83 | F7: 0.6608823529
B8: 135900 | C8: DK-P05 COPY DESK | D8: 375 | E8: 318.75 | F8: 0.15
B9: OUTPUT OPTIONS:
B10: ACCGWY2 | C10: FS-P04 OFFLINE STAPLER | D10: 330 | E10: 115.35 | F10: 0.6504545455
B11: EH91539 | C11: CS-2 CONVENIENCE STAPLER | D11: 329 | E11: 279.65 | F11: 0.15
B12: CARD READERS
B13: YSQB09030771 | C13: YSOFT MFX READER KM US CONFIG LIFE WARTY | D13: 310 | E13: 263.5 | F13: 0.15
B14: 7640013468 | C14: AU-204H MagStripe CARD READER | D14: 130 | E14: 110.49 | F14: 0.1500769231
B15: R5427011136466GEN2 | C15: AU-205HGEN2 SQ-2020-94643 | D15: 399 | E15: 339.15 | F15: 0.15
B16: ACCKWY1 | C16: MK-P08 MOUNT KIT | D16: 102 | E16: 35.58 | F16: 0.6511764706
B17: MISC. OPTIONS:
B18: ACDMWY2 | C18: UPGRADE KIT UK-221 | D18: 306 | E18: 107.11 | F18: 0.6499673203
B19: ACCRWY1 | C19: WT-P03 WORKING TABLE | D19: 128 | E19: 44.94 | F19: 0.64890625
B20: ACCTWY1 | C20: EK-P08 LOCAL INTERFACE KIT | D20: 235 | E20: 82.39 | F20: 0.6494042553
B21: ACCVWY1 | C21: EK-P09 LOCAL INTERFACE KIT W/ BLUETOOTH | D21: 328 | E21: 114.97 | F21: 0.6494817073
B22: ACCHWY1 | C22: EK-P10 LOCAL INTERFACE KIT | D22: 104 | E22: 36.33 | F22: 0.6506730769
B23: ACCEWY1 | C23: KP-P03 KEYPAD (7" PANEL) | D23: 149 | E23: 52.06 | F23: 0.6506040268
B24: G844100LCMUS2 | C24: EXTERNAL KEYBOARD | D24: 223 | E24: 189.21 | F24: 0.1515246637
B25: ACCFWY1 | C25: KH-P02 KEYBOARD HOLDER | D25: 146 | E25: 50.93 | F25: 0.6511643836
B26: W25015120 | C26: SINGLE OUTLET PWRFILTER 120V/15A | D26: 51 | E26: 41.65 | F26: 0.1833333333
B27: PTL5A | C27: PTL-5-A TRAY LOCK | D27: 102 | E27: 75.65 | F27: 0.2583333333
B28: PROFESSIONAL SERVICES:
B29: 7640018745 | C29: BIZHUB SECURE SMALL MFP | D29: 199 | E29: 199 | F29: 0
B30: 7640020786 | C30: BIZHUB SECURE PLATINUM SMALL MFP | D30: 299 | E30: 299 | F30: 0
B31: 7640019026 | C31: BIZHUB SECURE HEALTHCARE SMALL MFP | D31: 200 | E31: 200 | F31: 0
B32: 7640019485 | C32: KMBS PROFESSIONAL PROJECT SERVICES | D32: 1 | E32: 1 | F32: 0
A34: Segment 3 | B34: ACTA017 | C34: BIZHUB 4701I | D34: 1807 | E34: 1084.38 | F34: 0.3999003874
A35: B&W 41-60
B36: PAPER SUPPLY OPTIONS:
B37: AAJUW14 | C37: PF-P28 500-SHEET PAPER TRAY | D37: 413 | E37: 144.56 | F37: 0.6499757869
B38: AAJUW12 | C38: PF-P25 HEIGHT ADJUSTMENT UNIT | D38: 374 | E38: 126.83 | F38: 0.6608823529
B39: 135900 | C39: DK-P05 COPY DESK | D39: 375 | E39: 318.75 | F39: 0.15
B40: OUTPUT OPTIONS
B41: ACCGWY2 | C41: FS-P04 OFFLINE STAPLER | D41: 330 | E41: 115.35 | F41: 0.6504545455
B42: EH91539 | C42: CS-2 CONVENIENCE STAPLER | D42: 329 | E42: 279.65 | F42: 0.15
B43: AUTHENTICATION OPTIONS:
B44: YSQB09030771 | C44: YSOFT MFX READER KM US CONFIG LIFE WARTY | D44: 310 | E44: 263.5 | F44: 0.15
B45: 7640013468 | C45: AU-204H MagStripe CARD READER | D45: 130 | E45: 110.49 | F45: 0.1500769231
B46: R5427011136466GEN2 | C46: AU-205HGEN2 SQ-2020-94643 | D46: 399 | E46: 339.15 | F46: 0.15
B47: ACCKWY1 | C47: MK-P08 MOUNT KIT | D47: 102 | E47: 35.58 | F47: 0.6511764706
B48: MISC. OPTIONS:
B49: ACDMWY2 | C49: UPGRADE KIT UK-221 | D49: 306 | E49: 107.11 | F49: 0.6499673203
B50: ACCRWY1 | C50: WT-P03 WORKING TABLE | D50: 128 | E50: 44.94 | F50: 0.64890625
B51: ACCTWY1 | C51: EK-P08 LOCAL INTERFACE KIT | D51: 235 | E51: 82.39 | F51: 0.6494042553
B52: ACCVWY1 | C52: EK-P09 LOCAL INTERFACE KIT W/ BLUETOOTH | D52: 328 | E52: 114.97 | F52: 0.6494817073
B53: ACCHWY1 | C53: EK-P10 LOCAL INTERFACE KIT | D53: 104 | E53: 36.33 | F53: 0.6506730769
B54: ACCEWY1 | C54: KP-P03 KEYPAD (7" PANEL) | D54: 149 | E54: 52.06 | F54: 0.6506040268
B55: G844100LCMUS2 | C55: EXTERNAL KEYBOARD | D55: 223 | E55: 189.21 | F55: 0.1515246637
B56: ACCFWY1 | C56: KH-P02 KEYBOARD HOLDER | D56: 146 | E56: 50.93 | F56: 0.6511643836
B57: W225015120 | C57: PWRFILTER W INRUSH PROTECT 120V/15A | D57: 299 | E57: 254.15 | F57: 0.15
B58: PROFESSIONAL SERVICES:
B59: 7640018745 | C59: BIZHUB SECURE SMALL MFP | D59: 199 | E59: 199 | F59: 0
B60: 7640019026 | C60: BIZHUB SECURE HEALTHCARE SMALL MFP | D60: 200 | E60: 200 | F60: 0
A62: Segment 3 | B62: ACF1011 | C62: BIZHUB 5000I 52 PPM MONO SFP | D62: 1764 | E62: 1058.66 | F62: 0.3998526077
A63: B&W 41-60
B64: PAPER HANDLING OPTIONS:
B65: ACEVWY1 | C65: PF-P23 PAPER TRAY (250-SHEET CAPACITY) | D65: 191 | E65: 66.85 | F65: 0.65
B66: ACEWWY1 | C66: PF-P24 PAPER TRAY (520-SHEET CAPACITY) | D66: 290 | E66: 101.5 | F66: 0.65
B67: OTHER OPTIONS AND ACCESSORIES:
B68: W25015120 | C68: SINGLE OUTLET PWRFILTER 120V/15A | D68: 51 | E68: 41.65 | F68: 0.1833333333
B69: EH91539 | C69: CS-2 CONVENIENCE STAPLER | D69: 329 | E69: 279.65 | F69: =100%-(E69/D69) -> 0.15
A71: Segment 3 | B71: AF27011 | C71: BIZHUB 5001I 52 PPM SFP | D71: 1906 | E71: 1143.6 | F71: =100%-(E71/D71) -> 0.4
A72: B&W 41-60
B73: PAPER HANDLING OPTIONS:
B74: ACEVWY1 | C74: PF-P23 PAPER TRAY (250-SHEET CAPACITY) | D74: 191 | E74: 66.85 | F74: =100%-(E74/D74) -> 0.65
B75: ACEWWY1 | C75: PF-P24 PAPER TRAY (520-SHEET CAPACITY) | D75: 290 | E75: 101.5 | F75: 0.65
B76: CARD READERS:
B77: YSQB09030771 | C77: YSOFT MFX READER KM US CONFIG LIFE WARTY | D77: 310 | E77: 263.5 | F77: 0.15
B78: 7640013468 | C78: AU-204H MagStripe CARD READER | D78: 130 | E78: 110.49 | F78: 0.1500769231
B79: R5427011136466GEN2 | C79: AU-205HGEN2 SQ-2020-94643 | D79: 399 | E79: 339.15 | F79: 0.15
B80: OTHER OPTIONS AND ACCESSORIES:
B81: W25015120 | C81: SINGLE OUTLET PWRFILTER 120V/15A | D81: 51 | E81: 41.65 | F81: =100%-(E81/D81) -> 0.1833333333
B82: S1 | C82: ESP COMPACT POWER FILTER 120V/15A | D82: 60 | E82: 51 | F82: 0.15
B83: EH91539 | C83: CS-2 CONVENIENCE STAPLER | D83: 329 | E83: 279.65 | F83: 0.15
A85: Segment 3 | B85: AAJR017 | C85: BIZHUB C4001I COLOR SFP | D85: 1527 | E85: 916.13 | F85: 0.4000458415
A86: B&W 41-60
B87: PAPER SUPPLY OPTIONS
B88: AAJUW14 | C88: PF-P28 500-SHEET PAPER TRAY | D88: 413 | E88: 144.56 | F88: 0.6499757869
B89: AAJUW12 | C89: PF-P25 HEIGHT ADJUSTMENT UNIT | D89: 374 | E89: 126.83 | F89: 0.6608823529
B90: 135900 | C90: DK-P05 COPY DESK | D90: 375 | E90: 318.75 | F90: 0.15
B91: OUTPUT OPTIONS:
B92: ACCGWY2 | C92: FS-P04 OFFLINE STAPLER | D92: 330 | E92: 115.35 | F92: 0.6504545455
B93: EH91539 | C93: CS-2 CONVENIENCE STAPLER | D93: 329 | E93: 279.65 | F93: 0.15
B94: CARD READERS
B95: YSQB09030771 | C95: YSOFT MFX READER KM US CONFIG LIFE WARTY | D95: 310 | E95: 263.5 | F95: 0.15
B96: 7640013468 | C96: AU-204H MagStripe CARD READER | D96: 130 | E96: 110.49 | F96: 0.1500769231
B97: R5427011136466GEN2 | C97: AU-205HGEN2 SQ-2020-94643 | D97: 399 | E97: 339.15 | F97: 0.15
B98: ACCKWY1 | C98: MK-P08 MOUNT KIT | D98: 102 | E98: 35.58 | F98: 0.6511764706
B99: MISC. OPTIONS:
B100: ACDMWY2 | C100: UPGRADE KIT UK-221 | D100: 306 | E100: 107.11 | F100: 0.6499673203
B101: ACCRWY1 | C101: WT-P03 WORKING TABLE | D101: 128 | E101: 44.94 | F101: 0.64890625
B102: ACCTWY1 | C102: EK-P08 LOCAL INTERFACE KIT | D102: 235 | E102: 82.39 | F102: 0.6494042553
B103: ACCVWY1 | C103: EK-P09 LOCAL INTERFACE KIT W/ BLUETOOTH | D103: 328 | E103: 114.97 | F103: 0.6494817073
B104: ACCHWY1 | C104: EK-P10 LOCAL INTERFACE KIT | D104: 104 | E104: 36.33 | F104: 0.6506730769
B105: ACCEWY1 | C105: KP-P03 KEYPAD (7" PANEL) | D105: 149 | E105: 52.06 | F105: 0.6506040268
B106: G844100LCMUS2 | C106: EXTERNAL KEYBOARD | D106: 223 | E106: 189.21 | F106: 0.1515246637
B107: ACCFWY1 | C107: KH-P02 KEYBOARD HOLDER | D107: 146 | E107: 50.93 | F107: 0.6511643836
B108: W25015120 | C108: SINGLE OUTLET PWRFILTER 120V/15A | D108: 51 | E108: 41.65 | F108: 0.1833333333
B109: PTL5A | C109: PTL-5-A TRAY LOCK | D109: 102 | E109: 75.65 | F109: 0.2583333333
B110: PROFESSIONAL SERVICES:
B111: 7640018745 | C111: BIZHUB SECURE SMALL MFP | D111: 199 | E111: 199 | F111: 0
B112: 7640020786 | C112: BIZHUB SECURE PLATINUM SMALL MFP | D112: 299 | E112: 299 | F112: 0
B113: 7640019026 | C113: BIZHUB SECURE HEALTHCARE SMALL MFP | D113: 200 | E113: 200 | F113: 0

Sheet Group D Service
A1: Konica Minolta Business Solutions U.S.A., Inc.
A2: Group D | J2: Table of Contents
A3: Single-function Printers
A4: Service and Supplies Pricing
A5: Includes B&W and Color/B&W Segments
A6: Service and Supply Pricing | C6: Segment 2 | E6: Segment 3 | F6: Segment 3 | G6: Segment 3
C7: (21 - 40) | E7: (41 - 60) | F7: (41 - 60) | G7: (41 - 60)
C8: Color | D8: B&W | E8: B&W | F8: B&W | G8: Color | H8: B&W
A9: Make | C9: Konica Minolta | E9: Konica Minolta | F9: Konica Minolta | G9: Konica Minolta
A10: Model | C10: bizhub C3301i | E10: bizhub 4701i | F10: bizhub 5000i | G10: bizhub C4001i
A11: Maintenance Agreements
A12: Zero Base Charge | B12: Includes OEM toner, parts, labor (no staples) | C12: 0.176 | D12: 0.0338 | E12: 0.0351 | F12: 0.0324 | G12: 0.176 | H12: 0.0338
B13: Includes Compatible toner, parts, labor (no staples) | C13: 0.176 | D13: 0.0338 | E13: 0.0351 | F13: 0.0324 | G13: 0.176 | H13: 0.0338
B14: Parts and labor only (no supplies) | C14: 0.1584 | D14: 0.0304 | E14: 0.0316 | F14: 0.0289 | G14: 0.1584 | H14: 0.0304
B15: % Increase in rate for inclusion of staples | C15: Included | D15: Included | E15: Included | F15: Included | G15: Included | H15: Included
B16: % Increase in rate for Rural Service Zone | C16: 0.1 | D16: 0.1 | E16: 0.1 | F16: 0.1 | G16: 0.1 | H16: 0.1
B17: % Increase in rate for Remote Service Zone | C17: 40 | D17: 40 | E17: 40 | F17: 40 | G17: 40 | H17: 40
B19: Parts and labor only (no supplies) | C19: 60.3 | E19: 37.8 | F19: 37.8 | G19: 60.3
B20: % Increase in rate for Rural Service Zone | C20: 0.1 | D20: 0.1 | E20: 0.1 | F20: 0.1 | G20: 0.1 | H20: 0.1
B21: % Increase in rate for Remote Service Zone | C21: 40 | D21: 40 | E21: 40 | F21: 40 | G21: 40 | H21: 40
A23: Additional Service Coverage (per hour)
A24: Urban Service Zone | B24: 2 x 5 coverage (2 eight hour shifts, 5 days a week)
B25: 3 x 5 coverage (3 eight hour shifts, 5 days a week)
B26: 1 x 7 coverage (1 eight hour shift, 7 days a week)
B27: 2 x 7 coverage (2 eight hour shifts, 7 days a week)
B28: 3 x 7 coverage (3 eight hour shifts, 7 days a week)
A30: Rural Service Zone | B30: 2 x 5 coverage (2 eight hour shifts, 5 days a week)
B31: 3 x 5 coverage (3 eight hour shifts, 5 days a week)
B32: 1 x 7 coverage (1 eight hour shift, 7 days a week)
B33: 2 x 7 coverage (2 eight hour shifts, 7 days a week)
B34: 3 x 7 coverage (3 eight hour shifts, 7 days a week)
A36: Remote Service Zone | B36: 2 x 5 coverage (2 eight hour shifts, 5 days a week)
B37: 3 x 5 coverage (3 eight hour shifts, 5 days a week)
B38: 1 x 7 coverage (1 eight hour shift, 7 days a week)
B39: 2 x 7 coverage (2 eight hour shifts, 7 days a week)
B40: 3 x 7 coverage (3 eight hour shifts, 7 days a week)
A41: Service Calls not covered under the Maintenance Agreement
A42: Urban Service Zone | B42: Price Per Hour | C42: 135 | E42: 135 | F42: 135 | G42: 135
A44: Rural Service Zone | B44: Flat Rate Charge | C44: N/A | E44: N/A | F44: N/A | G44: N/A
B45: Price Per Mile | C45: N/A | E45: N/A | F45: N/A | G45: N/A
B46: Price Per Hour | C46: 135 | E46: 135 | F46: 135 | G46: 135
A48: Remote Service Zone | B48: Flat Rate Charge | C48: N/A | E48: N/A | F48: N/A | G48: N/A
B49: Price Per Mile | C49: N/A | E49: N/A | F49: N/A | G49: N/A
B50: Price Per Hour | C50: 135 | E50: 135 | F50: 135 | G50: 135
A51: End-User Training and Support (per hour) - beyond the required one free hour
A52: Additional End-User taining on Device and/or software | C52: 75 | E52: 75 | F52: 75 | G52: 75
A53: After hours technical phone support | C53: Quote upon request
A54: Additional Advanced/IT Training Cost by hours | C54: 175 | E54: 175 | F54: 175 | G54: 175
A55: Additional IT Support hours | C55: 175 | E55: 175 | F55: 175 | G55: 175
A56: Additional Services
A57: Equipment Move Service Zone 2 | B57: Flat Rate Charge | C57: 770 | E57: 770 | F57: 770 | G57: 770
B58: Price Per Mile | C58: N/A | E58: N/A | F58: N/A | G58: N/A
B59: Price Per Hour | C59: N/A | E59: N/A | F59: N/A | G59: N/A
A61: Equipment Move Service Zone 3 | B61: Flat Rate Charge | C61: 850 | E61: 850 | F61: 850 | G61: 850
B62: Price Per Mile | C62: N/A | E62: N/A | F62: N/A | G62: N/A
B63: Price Per Hour | C63: N/A | E63: N/A | F63: N/A | G63: N/A
A65: Hard Drive Removal and Surrender | B65: Flat Rate Charge | C65: 300 | E65: 300 | F65: 300 | G65: 300
A67: Digital Solutions Center - per month | C67: 12 | E67: 12 | F67: 12 | G67: 12
A68: 2-Year Warranty Extension | C68: 189 | E68: 375 | F68: 189 | G68: 375

Sheet Sub-Group D-1
A2: Konica Minolta Business Solutions U.S.A., Inc. | H2: Table of Contents
A3: Subgroup D-1 | B3: Item Number | C3: Item Description | D3: MSRP | E3: NASPO Customer Price | F3: Discount
B4: MICR
B5: A9JW011X002MICR | C5: ACCURIOPRESS 6272P MICR PRINTER | D5: 306346 | E5: 291028.7 | F5: =100%-(E5/D5) -> 0.05
B6: PAPER SUPPLY OPTIONS:
B7: A08RWY1 | C7: PP-701 PREPRINTED PAPER KIT | D7: 1682 | E7: 588.59 | F7: =100%-(E7/D7) -> 0.6500653983
B8: A7W7WY3 | C8: PF-709 PAPER FEED UNIT | D8: 8124 | E8: 2843.24 | F8: 0.6500196947
B9: A9JXWY1 | C9: PF-710 PAPER FEED UNIT | D9: 13313 | E9: 4659.46 | F9: 0.6500067603
B10: A9JYWY1 | C10: FA-503 PI-PFU CONNECTION KIT | D10: 6563 | E10: 2297.1 | F10: 0.6499923815
B11: A1RKWY3 | C11: HT-506 HEATER FOR PF-710 | D11: 2936 | E11: 1027.43 | F11: 0.6500579019
B12: ADP6WY1 | C12: TD-502 TANDEM UNIT FOR 6272P | D12: 81070 | E12: 28374.5 | F12: 0.65
B13: OUTPUT OPTIONS:
B14: A8FRWY1 | C14: IQ-501 INTELLIGENT QUALITY OPTIMIZER | D14: 22651 | E14: 7927.92 | F14: 0.6499969096
B15: AAANWY1 | C15: VIDEO INTERFACE KIT VI-512 | D15: 1510 | E15: 528.53 | F15: 0.6499801325
B16: AC8WWY1 | C16: OT-512 OUTPUT TRAY | D16: 4780 | E16: 1672.87 | F16: 0.6500271967
B17: A04HWY2 | C17: PI-502 POST INSERTER FOR FS-532 | D17: 1401 | E17: 490.49 | F17: 0.6499000714
B18: A0H0W12 | C18: FD-503 MULTI FOLDING UNIT | D18: 23811 | E18: 8333.93 | F18: 0.6499966402
B19: AAPKWY1 | C19: LS-507 LARGE STACKER | D19: 26366 | E19: 9228.02 | F19: 0.6500030342
B20: ACHKWY1 | C20: LC-502 STACKER CART | D20: 1121 | E20: 392.39 | F20: 0.6499643176
B21: A0H2WY3 | C21: SD-506 SADDLE STITCH UNIT | D21: 35016 | E21: 12255.44 | F21: 0.6500045693
B22: A65UWY2 | C22: SD-513 SADDLE STITCHER | D22: 20406 | E22: 7141.94 | F22: 0.6500078408
B23: A729WY1 | C23: SD-513/F SADDLE STITCH UNIT - FRONT | D23: 20377 | E23: 7131.93 | F23: 0.6500009815
B24: A65XWY1 | C24: CR-101 CREASER UNIT FOR SD-513 | D24: 13289 | E24: 4651.04 | F24: 0.6500082775
B25: A65VWY1 | C25: FD-504 SQUARE FOLD MODULE FOR SD-513 | D25: 14723 | E25: 5153.15 | F25: 0.6499932079
B26: A65WWY1 | C26: TU-503 TRIMMER UNIT FOR SD-513 | D26: 19933 | E26: 6976.58 | F26: 0.649998495
B27: A15XW13 | C27: PB-503 PERFECT BINDER | D27: 56424 | E27: 19748.53 | F27: 0.649997696
B28: A9CEWY2 | C28: RU-518M RELAY UNIT | D28: 11074 | E28: 3875.87 | F28: 0.650002709
B29: A9CFWY1 | C29: HM-103 HUMIDIFICATION UNIT FOR RU-518 | D29: 13339 | E29: 4668.66 | F29: 0.6499992503
B30: A4F3WY6 | C30: FS-532M STAPLE FINISHER | D30: 6551 | E30: 2292.69 | F30: 0.6500244238
B31: A4F4WY1 | C31: SD-510 SADDLE STITCH UNIT | D31: 2489 | E31: 871.27 | F31: 0.6499517879
B32: A4F5WY1 | C32: MK-732 MOUNT KIT FOR PI-506 | D32: 561 | E32: 196.2 | F32: 0.6502673797
B33: AC8UW11 | C33: PK-525 PUNCH KIT | D33: 1051 | E33: 367.97 | F33: 0.649885823
B34: A4FCWY2 | C34: RU-510 RELAY UNIT | D34: 4508 | E34: 1577.73 | F34: 0.650015528
B35: 4707000 | C35: PLOCKMATIC HIGH CAPACITY BELT STACKER | D35: 7294 | E35: 6199.9 | F35: 0.15
B36: 13207010 | C36: SD-435 BOOKLET MAKER | D36: 25233 | E36: 21448.05 | F36: 0.15
B37: 13700022 | C37: PLOCKMATIC SD-450 UPGRADE KIT | D37: 17994 | E37: 15294.9 | F37: 0.15
B38: 13307100 | C38: PLOCKMATIC FM-400 FINISHING MODULE | D38: 30094 | E38: 25579.9 | F38: 0.15
B39: 12207100 | C39: PLOCKMATIC RCT 3.0 MODULE | D39: 49417 | E39: 42004.45 | F39: 0.15
B40: 13200002 | C40: PLOCKMATIC HAND FEED TRAY | D40: 642 | E40: 545.7 | F40: 0.15
B41: 13200005 | C41: PLOCKMATIC CAREPACK SD-435 | D41: 2430 | E41: 2065.5 | F41: 0.15
B42: 13300005 | C42: PLOCKMATIC CAREPACK FM-400 | D42: 1555.2 | E42: 1321.92 | F42: 0.15
B43: 12200032 | C43: TRIM WASTE CONVEYOR 2.0 | D43: 6382 | E43: 5424.7 | F43: 0.15
B44: A6H9WY2 | C44: MK-737 MOUNT KIT FOR 3RD PARTY OPTIONS | D44: 1794 | E44: 627.83 | F44: 0.650039019
B45: 7714901 | C45: DIE COIL RND 44/47H | D45: 1580.85 | E45: 553.2975 | F45: 0.65
B46: 7714902 | C46: DIE WIRE 2:1 RND 21/23H | D46: 1580.85 | E46: 553.2975 | F46: 0.65
B47: 7714903 | C47: DIE WIRE 3:1 RND 32/34H | D47: 1580.85 | E47: 553.2975 | F47: 0.65
B48: 7714904 | C48: DIE 3 HOLE 8MM | D48: 1500.81 | E48: 525.2835 | F48: 0.65
B49: 7714905 | C49: DIE 3/5/7 HOLE 8MM | D49: 1500.81 | E49: 525.2835 | F49: 0.65
B50: 7714909 | C50: DIE VELOBIND 11 HOLE LTR | D50: 1580.85 | E50: 553.2975 | F50: 0.65
B51: 7714911 | C51: DIE COMBBIND 19/21H | D51: 1380.76 | E51: 483.266 | F51: 0.65
B52: 7714912 | C52: DIE WIRE 2:1 SQ 21/23H | D52: 1500.81 | E52: 525.2835 | F52: 0.65
B53: 7714913 | C53: DIE WIRE 3:1 SQ 32/34H | D53: 1500.81 | E53: 525.2835 | F53: 0.65
B54: 7714914 | C54: DIE COIL OVAL 44/47H | D54: 3501.91 | E54: 1225.6685 | F54: 0.65
B55: 7714906 | C55: DIE 2/4 HOLE 8MM | D55: 1500.81 | E55: 1275.6885 | F55: 0.15
B56: 7714917 | C56: DIE COIL RND 44/47H HD | D56: 4502.47 | E56: 3827.0995 | F56: 0.15
B57: 7714918 | C57: DIE 3 HOLE 8MM HD | D57: 2601.41 | E57: 2211.1985 | F57: 0.15
B58: 7714919 | C58: DIE COMBBIND 19/21H HD | D58: 5002.74 | E58: 4252.329 | F58: 0.15
B59: 7723000 | C59: GBC WIRE BINDER G1 | D59: 47440.18 | E59: 40324.153 | F59: 0.15
B60: 7714915 | C60: DIE EWIRE RND | D60: 1600.87 | E60: 560.3045 | F60: 0.65
B61: 7714916 | C61: DIE EWIRE SQ | D61: 1600.87 | E61: 560.3045 | F61: 0.65
B62: 7717962 | C62: EWIRE SPOOL ELEMENT SIZE 'A' BLACK | D62: 141.21 | E62: 127.089 | F62: 0.1
B63: 7717963 | C63: EWIRE SPOOL ELEMENT SIZE 'B' BLACK | D63: 122.89 | E63: 110.601 | F63: 0.1
B64: 7717964 | C64: EWIRE SPOOL ELEMENT SIZE 'C' BLACK | D64: 113.74 | E64: 102.366 | F64: 0.1
B65: 7717965 | C65: EWIRE SPOOL ELEMENT SIZE 'D' BLACK | D65: 111.45 | E65: 100.305 | F65: 0.1
B66: 7717966 | C66: EWIRE SPOOL ELEMENT SIZE 'E' BLACK | D66: 102.27 | E66: 92.043 | F66: 0.1
B67: 7717968 | C67: EWIRE SPOOL ELEMENT SIZE 'A' WHITE | D67: 142.6 | E67: 128.34 | F67: 0.1
B68: 7717969 | C68: EWIRE SPOOL ELEMENT SIZE 'B' WHITE | D68: 124.08 | E68: 111.672 | F68: 0.1
B69: 7717970 | C69: EWIRE SPOOL ELEMENT SIZE 'C' WHITE | D69: 114.89 | E69: 103.401 | F69: 0.1
B70: 7717971 | C70: EWIRE SPOOL ELEMENT SIZE 'D' WHITE | D70: 112.55 | E70: 101.295 | F70: 0.1
B71: 7717972 | C71: EWIRE SPOOL ELEMENT SIZE 'E' WHITE | D71: 103.1 | E71: 92.79 | F71: 0.1
B72: 7717974 | C72: EWIRE SPOOL ELEMENT SIZE 'A' SILVER | D72: 154.84 | E72: 139.356 | F72: =100%-(E72/D72) -> 0.1
B73: 7717975 | C73: EWIRE SPOOL ELEMENT SIZE 'B' SILVER | D73: 134.54 | E73: 121.086 | F73: 0.1
B74: 7717976 | C74: EWIRE SPOOL ELEMENT SIZE 'C' SILVER | D74: 124.34 | E74: 111.906 | F74: 0.1
B75: 7717977 | C75: EWIRE SPOOL ELEMENT SIZE 'D' SILVER | D75: 122.49 | E75: 110.241 | F75: 0.1
B76: 7717978 | C76: EWIRE SPOOL ELEMENT SIZE 'E' SILVER | D76: 111.77 | E76: 100.593 | F76: 0.1
B77: WSM7724400 | C77: GBC PUNCH G3 | D77: 22968.75 | E77: 19523.4375 | F77: 0.15
B78: WSM7724154 | C78: DIE G3 CREASE 75-300GSM | D78: 4038.83 | E78: 3433.0055 | F78: 0.15
B79: WSM7724155 | C79: DIE G3 PERF 75-120GSM | D79: 3583.13 | E79: 3045.6605 | F79: 0.15
B80: WSM7724156 | C80: DIE G3 PERF 120-300GSM | D80: 3583.13 | E80: 3045.6605 | F80: 0.15
B81: WSM7717967 | C81: EWIRE SPOOL ELEMENT SIZE F BLACK | D81: 99.44 | E81: 89.496 | F81: 0.1
B82: WSM7717973 | C82: EWIRE SPOOL ELEMENT SIZE F WHITE | D82: 99.44 | E82: 89.496 | F82: 0.1
B83: WSM7717979 | C83: EWIRE SPOOL ELEMENT SIZE F SILVER | D83: 99.44 | E83: 89.496 | F83: 0.1
B84: PRINT CONTROLLER OPTIONS:
B85: AAAMWY1 | C85: UK-217 UPGRADE KIT | D85: 645 | E85: 548.44 | F85: 0.1497054264
B86: 45236414 | C86: MIC-4170 FIERY IMAGE CONTROLLER | D86: 18000 | E86: 15300 | F86: 0.15
B87: 45162875 | C87: 22IN FACI/FURNITURE BUNDLE FOR NX | D87: 3087 | E87: 2623.95 | F87: 0.15
B88: 45150368 | C88: FURNITURE FOR FIERY NX STATION LS W 27IN | D88: 6689 | E88: 5685.23 | F88: 0.1500627897
B89: 45111149 | C89: IMAGEVIEWER FOR B&W | D89: 4620 | E89: 3927 | F89: 0.15
B90: 45206712 | C90: FIERY IMPOSE WITHOUT ACRBT-PTSTP | D90: 2625 | E90: 2231.25 | F90: 0.15
B91: 45225044 | C91: DISK SECURITY 2 DRIVE CARRIER NX PRO III | D91: 3150 | E91: 2677.5 | F91: 0.15
B92: 45229084 | C92: ADDL DRIVES/CARRIER OPTION NX PRO III | D92: 1888 | E92: 1604.37 | F92: 0.1502277542
B93: 45206716 | C93: FIERY COMPOSE WITHOUT ACRBT-PTSTP | D93: 1155 | E93: 981.75 | F93: 0.15
B94: 45206719 | C94: FIERY IMPOSE-COMPOSE WITHOUT ACRBT-PTSTP | D94: 3150 | E94: 2677.5 | F94: 0.15
B95: 45206722 | C95: FIERY JOBMASTER WITHOUT ACRBT-PTSTP | D95: 4410 | E95: 3748.5 | F95: 0.15
B96: 45206725 | C96: FIERY JOBMASTER-IMPOSE W-OUT ACRBT-PTSTP | D96: 6300 | E96: 5355 | F96: 0.15
B97: 45112781 | C97: FIERY JOBFLOW W / MAINT | D97: 5664 | E97: 4814.15 | F97: 0.1500441384
B98: 45202146 | C98: KIT OPTION ES-3000 HARDWARE ONLY | D98: 1470 | E98: 1249.5 | F98: 0.15
B99: 100000006365 | C99: FIERY JOBFLOW ANNUAL MAINTENANCE | D99: 944 | E99: 802.36 | F99: 0.1500423729
B100: 3000014327 | C100: JOBFLOW w/1YR Support-PITSTOP-IMPOSE 5YR | D100: 12289 | E100: 10445.82 | F100: 0.1499861665
B101: 45201393 | C101: FIERY IMPOSE 1YEAR SUBSCRIPTION | D101: 809 | E101: 687.65 | F101: 0.15
B102: 45201395 | C102: FIERY IMPOSE 2YEAR SUBSCRIPTION | D102: 1617 | E102: 1374.45 | F102: 0.15
B103: 45201397 | C103: FIERY IMPOSE 3YEAR SUBSCRIPTION | D103: 2306 | E103: 1960.1 | F103: 0.15
B104: 45201399 | C104: FIERY IMPOSE 4YEAR SUBSCRIPTION | D104: 2427 | E104: 2062.95 | F104: 0.15
B105: 45201401 | C105: FIERY IMPOSE 5YEAR SUBSCRIPTION | D105: 2601 | E105: 2210.85 | F105: 0.15
B106: 45201403 | C106: FIERY COMPOSE 1YEAR SUBSCRIPTION | D106: 362 | E106: 307.7 | F106: 0.15
B107: 45201405 | C107: FIERY COMPOSE 2YEAR SUBSCRIPTION | D107: 725 | E107: 616.25 | F107: 0.15
B108: 45201407 | C108: FIERY COMPOSE 3YEAR SUBSCRIPTION | D108: 1033 | E108: 878.05 | F108: 0.15
B109: 45201410 | C109: FIERY COMPOSE 4YEAR SUBSCRIPTION | D109: 1088 | E109: 924.8 | F109: 0.15
B110: 45201412 | C110: FIERY COMPOSE 5YEAR SUBSCRIPTION | D110: 1145 | E110: 973.25 | F110: 0.15
B111: 45201414 | C111: FIERY IMPOSE-COMPOSE 1YEAR SUBSCRIPTION | D111: 943 | E111: 801.55 | F111: 0.15
B112: 45201416 | C112: FIERY IMPOSE-COMPOSE 2YEAR SUBSCRIPTION | D112: 1887 | E112: 1603.95 | F112: 0.15
B113: 45201418 | C113: FIERY IMPOSE-COMPOSE 3YEAR SUBSCRIPTION | D113: 2688 | E113: 2284.8 | F113: 0.15
B114: 45201423 | C114: FIERY IMPOSE-COMPOSE 4YEAR SUBSCRIPTION | D114: 2830 | E114: 2405.5 | F114: 0.15
B115: 45201425 | C115: FIERY IMPOSE-COMPOSE 5YEAR SUBSCRIPTION | D115: 3104 | E115: 2638.4 | F115: 0.15
B116: 45201427 | C116: FIERY JOBMASTER 1YEAR SUBSCRIPTION | D116: 1851 | E116: 1573.35 | F116: 0.15
B117: 45201429 | C117: FIERY JOBMASTER 2YEAR SUBSCRIPTION | D117: 3703 | E117: 3147.55 | F117: 0.15
B118: 45201431 | C118: FIERY JOBMASTER 3YEAR SUBSCRIPTION | D118: 5278 | E118: 4486.3 | F118: 0.15
B119: 45201433 | C119: FIERY JOBMASTER 4YEAR SUBSCRIPTION | D119: 6667 | E119: 5666.95 | F119: 0.15
B120: 45201435 | C120: FIERY JOBMASTER 5YEAR SUBSCRIPTION | D120: 7909 | E120: 6722.65 | F120: 0.15
B121: 100000006366 | C121: FIERY JOBMASTER ANNUAL MAINTENANCE | D121: 735 | E121: 624.75 | F121: 0.15
B122: 100000006367 | C122: FIERY JOBMASTER-IMPOSE ANNUAL MAINT | D122: 1050 | E122: 892.5 | F122: 0.15
B123: 45219823 | C123: ADOBE ACROBAT PRO 2020 FOR FIERY MAKERDY | D123: 473 | E123: 401.63 | F123: 0.1508879493
B124: A9G1WY2 | C124: VI-509 VIDEO INTERFACE KIT | D124: 1258 | E124: 1069.64 | F124: 0.1497297297
B125: 01002011A | C125: IC-316M CREO IMAGE CONTROLLER | D125: 21275 | E125: 18083.75 | F125: 0.15
B126: 63900307A | C126: CREO DONGLE FOR 6272 | D126: 7650 | E126: 6502.5 | F126: 0.15
B127: 63900289A | C127: IC-316 FAST PACK | D127: 5200 | E127: 4420 | F127: 0.15
B128: 63900290A | C128: IC-316 ACTION PACK | D128: 5200 | E128: 4420 | F128: 0.15
B129: 63900292A | C129: IC-316 TRANS PACK | D129: 9995 | E129: 8495.75 | F129: 0.15
B130: MISC. OPTIONS:
B131: CO2700 | C131: DocuVison Stock Verification System | D131: 25500 | E131: 24225 | F131: 0.05
B132: P350030240NH | C132: DIAG PWRFILTER 208V/240V/30A W NTWRK HUB | D132: 1450 | E132: 1232.5 | F132: 0.15
B133: ORU:
B134: 7640021473 | C134: ORU PARTS KIT 6136 SERIES ENGINES | D134: 4036.76 | E134: 3431.246 | F134: =100%-(E134/D134) -> 0.15
B136: MICR
B137: AE1N011MICR | C137: ACCURIOPRESS 7136P MICR PRINTER | D137: 143601 | E137: 136420.95 | F137: 0.05
B138: PAPER SUPPLY OPTIONS:
B139: A08RWY1 | C139: PP-701 PREPRINTED PAPER KIT | D139: 1682 | E139: 588.59 | F139: =100%-(E139/D139) -> 0.6500653983
B140: A7W7WY3 | C140: PF-709 PAPER FEED UNIT | D140: 8124 | E140: 2843.24 | F140: 0.6500196947
B141: A9JXWY2 | C141: PF-710 PAPER FEED UNIT | D141: 13313 | E141: 4659.46 | F141: 0.6500067603
B142: A9JYWY1 | C142: FA-503 PI-PFU CONNECTION KIT | D142: 6563 | E142: 2297.1 | F142: 0.6499923815
B143: A1RKWY3 | C143: HT-506 HEATER FOR PF-710 | D143: 2936 | E143: 1027.43 | F143: 0.6500579019
B144: ACCXWY2 | C144: IM-101 INTELLIGENT MEDIA SENSOR | D144: 1963 | E144: 687.09 | F144: 0.649979623
B145: OUTPUT OPTIONS:
B146: A8FRWY1 | C146: IQ-501 INTELLIGENT QUALITY OPTIMIZER | D146: 22651 | E146: 7927.92 | F146: 0.6499969096
B147: AAANWY2 | C147: VIDEO INTERFACE KIT VI-512 | D147: 1510 | E147: 528.53 | F147: 0.6499801325
B148: AC5MWY2 | C148: VIDEO INTERFACE KIT VI-513 | D148: 1190 | E148: 416.42 | F148: 0.6500672269
B149: AC8WWY1 | C149: OT-512 OUTPUT TRAY | D149: 4780 | E149: 1672.87 | F149: 0.6500271967
B150: A04HWY2 | C150: PI-502 POST INSERTER FOR FS-532 | D150: 1401 | E150: 490.49 | F150: 0.6499000714
B151: A0H0W12 | C151: FD-503 MULTI FOLDING UNIT | D151: 23811 | E151: 8333.93 | F151: 0.6499966402
B152: AAPKWY1 | C152: LS-507 LARGE STACKER | D152: 26366 | E152: 9228.02 | F152: 0.6500030342
B153: A0H2WY3 | C153: SD-506 SADDLE STITCH UNIT | D153: 35016 | E153: 12255.44 | F153: 0.6500045693
B154: A65UWY2 | C154: SD-513 SADDLE STITCHER | D154: 20406 | E154: 7141.94 | F154: 0.6500078408
B155: A729WY1 | C155: SD-513/F SADDLE STITCH UNIT - FRONT | D155: 20377 | E155: 7131.93 | F155: 0.6500009815
B156: A65XWY1 | C156: CR-101 CREASER UNIT FOR SD-513 | D156: 13289 | E156: 4651.04 | F156: 0.6500082775
B157: A65VWY1 | C157: FD-504 SQUARE FOLD MODULE FOR SD-513 | D157: 14723 | E157: 5153.15 | F157: 0.6499932079
B158: A65WWY1 | C158: TU-503 TRIMMER UNIT FOR SD-513 | D158: 19933 | E158: 6976.58 | F158: 0.649998495
B159: A15XW13 | C159: PB-503 PERFECT BINDER | D159: 56424 | E159: 19748.53 | F159: 0.649997696
B160: ACHKWY1 | C160: LC-502 STACKER CART | D160: 1121 | E160: 392.39 | F160: 0.6499643176
B161: A9CEWY2 | C161: RU-518M RELAY UNIT | D161: 11074 | E161: 3875.87 | F161: 0.650002709
B162: A9CFWY1 | C162: HM-103 HUMIDIFICATION UNIT FOR RU-518 | D162: 13339 | E162: 4668.66 | F162: 0.6499992503
B163: AE58WY1 | C163: EF-109 ENVELOPE FUSER | D163: 4337 | E163: 1517.91 | F163: 0.650009223
B164: A4F3WY6 | C164: FS-532M STAPLE FINISHER | D164: 6551 | E164: 2292.69 | F164: 0.6500244238
B165: AAUUWY1 | C165: FS-541 STAPLE FINISHER | D165: 7433 | E165: 2601.4 | F165: 0.6500201803
B166: A4F4WY1 | C166: SD-510 SADDLE STITCH UNIT | D166: 2489 | E166: 871.27 | F166: 0.6499517879
B167: A4F5WY1 | C167: MK-732 MOUNT KIT FOR PI-506 | D167: 561 | E167: 196.2 | F167: 0.6502673797
B168: AC8UW11 | C168: PK-525 PUNCH KIT | D168: 1051 | E168: 367.97 | F168: 0.649885823
B169: A4FCWY2 | C169: RU-510 RELAY UNIT | D169: 4508 | E169: 1577.73 | F169: 0.650015528
B170: AC3TWY3 | C170: TRIMMER UNIT TU-510E | D170: 41332 | E170: 14466.37 | F170: 0.649995887
B171: 7640022216 | C171: ADV TU-510 IMPLEMENTATION/TRAIN-LEVEL 1 | D171: 1200 | E171: 1200 | F171: 0
B172: 7640022217 | C172: ADV TU-510 IMPLEMENTATION/TRAIN-LEVEL 2 | D172: 2400 | E172: 2400 | F172: 0
B173: 7640022218 | C173: ADV TU-510 IMPLEMENTATION/TRAIN-LEVEL 3 | D173: 3600 | E173: 3600 | F173: 0
B174: ACJ6WY1 | C174: TU-504 SLITTER FOR TU-510 | D174: 6223 | E174: 2178.18 | F174: 0.6499791098
B175: ACJ5WY1 | C175: CR-102 CREASER FOR TU-510 | D175: 4225 | E175: 1478.67 | F175: 0.6500189349
B176: ACWKWY1 | C176: CR-103 CONVEX CREASING UNIT FOR TU-510 | D176: 3524 | E176: 1233.23 | F176: 0.6500482406
B177: ACWNWY1 | C177: PE-101 FEED DIRECTION PERF FOR TU-510 | D177: 7047 | E177: 2466.46 | F177: 0.649998581
B178: ACWPWY2 | C178: PE-102 CROSS DIRECTION PERF TU-510 | D178: 4933 | E178: 1726.53 | F178: 0.6500040543
B179: ACWMWY1 | C179: MK-765 DUST BOX FOR TU-510 | D179: 4225 | E179: 1478.67 | F179: 0.6500189349
B180: ACJ8WY2 | C180: JS-507 BUSINESS CARD TRAY FOR TU-510 | D180: 1409 | E180: 493.3 | F180: 0.6498935415
B181: 4707000 | C181: PLOCKMATIC HIGH CAPACITY BELT STACKER | D181: 7294 | E181: 6199.9 | F181: 0.15
B182: 13207010 | C182: SD-435 BOOKLET MAKER | D182: 25233 | E182: 21448.05 | F182: 0.15
B183: 13700022 | C183: PLOCKMATIC SD-450 UPGRADE KIT | D183: 17994 | E183: 15294.9 | F183: 0.15
B184: 13307100 | C184: PLOCKMATIC FM-400 FINISHING MODULE | D184: 30094 | E184: 25579.9 | F184: 0.15
B185: 12207100 | C185: PLOCKMATIC RCT 3.0 MODULE | D185: 49417 | E185: 42004.45 | F185: 0.15
B186: 13200002 | C186: PLOCKMATIC HAND FEED TRAY | D186: 642 | E186: 545.7 | F186: 0.15
B187: 13200005 | C187: PLOCKMATIC CAREPACK SD-435 | D187: 2430 | E187: 2065.5 | F187: 0.15
B188: 13300005 | C188: PLOCKMATIC CAREPACK FM-400 | D188: 1555.2 | E188: 1321.92 | F188: 0.15
B189: 12200032 | C189: TRIM WASTE CONVEYOR 2.0 | D189: 6382 | E189: 5424.7 | F189: 0.15
B190: A6H9WY2 | C190: MK-737 MOUNT KIT FOR 3RD PARTY OPTIONS | D190: 1794 | E190: 627.83 | F190: 0.650039019
B191: 7714901 | C191: DIE COIL RND 44/47H | D191: 1580.85 | E191: 553.2975 | F191: 0.65
B192: 7714902 | C192: DIE WIRE 2:1 RND 21/23H | D192: 1580.85 | E192: 553.2975 | F192: 0.65
B193: 7714903 | C193: DIE WIRE 3:1 RND 32/34H | D193: 1580.85 | E193: 553.2975 | F193: 0.65
B194: 7714904 | C194: DIE 3 HOLE 8MM | D194: 1500.81 | E194: 525.2835 | F194: 0.65
B195: 7714905 | C195: DIE 3/5/7 HOLE 8MM | D195: 1500.81 | E195: 525.2835 | F195: 0.65
B196: 7714909 | C196: DIE VELOBIND 11 HOLE LTR | D196: 1580.85 | E196: 553.2975 | F196: 0.65
B197: 7714911 | C197: DIE COMBBIND 19/21H | D197: 1380.76 | E197: 483.266 | F197: 0.65
B198: 7714912 | C198: DIE WIRE 2:1 SQ 21/23H | D198: 1500.81 | E198: 525.2835 | F198: 0.65
B199: 7714913 | C199: DIE WIRE 3:1 SQ 32/34H | D199: 1500.81 | E199: 525.2835 | F199: 0.65
B200: 7714914 | C200: DIE COIL OVAL 44/47H | D200: 3501.91 | E200: 1225.6685 | F200: 0.65
B201: 7714906 | C201: DIE 2/4 HOLE 8MM | D201: 1500.81 | E201: 1275.6885 | F201: =100%-(E201/D201) -> 0.15
B202: 7714917 | C202: DIE COIL RND 44/47H HD | D202: 4502.47 | E202: 3827.0995 | F202: 0.15
... 295 more rows

Sheet Sub-Group D1 Service
A2: Konica Minolta Business Solutions U.S.A., Inc. | H2: Table of Contents
A3: Subgroup D-1 Service | B3: Item Number | C3: Item Description | D3: NASPO Customer Price
B4: ACCURIOPRESS 6272P MICR PRINTER
B5: Service
C6: Zero Base Charge | D6: 0.0078
B7: 9967005050 | C7: PROKOM MEMBERSHIP | D7: 0
B8: 7640021190 | C8: ACCURIOPRO SECURE | D8: 499
B9: Installation & Training
B10: 7640012599 | C10: BASIC PROFESSIONAL SERVICES LEVEL 3 | D10: 1200
B11: 7640015255 | C11: PROFESSIONAL SERVICES PROJECT FEE | D11: 1
B12: DVINST | C12: Install & TRNG 3-days onsite | D12: 17500
B13: Consumables
B14: 14YH | C14: SK601 STAPLE FOR SD-501 | D14: 114.48
B15: A85VWY1 | C15: SK-601H STAPLES | D15: 114.48
B16: 14YK | C16: SK-602 STAPLE KIT | D16: 64.87
B17: A4RCWY1 | C17: SK-703 STAPLES FOR FS-532 (5,000 x 5) | D17: 216
B18: 760025 | C18: PLOCKMATIC STAPLE CARTRIDGE (5K X 3) | D18: 119.7
B19: A080WY1 | C19: GC-501 GLUE FOR PERFECT BINDER | D19: 36
B20: A9K1130 | C20: TN017 TONER FOR 6136/6120 | D20: 247.5
B22: ACCURIOPRESS 7136P MICR PRINTER
B23: Service
C24: Zero Base Charge | D24: 0.008
B25: 9967005050 | C25: PROKOM MEMBERSHIP | D25: 0
B26: 7640021190 | C26: ACCURIOPRO SECURE | D26: 499
B27: Installation & Training
B28: 7640012599 | C28: BASIC PROFESSIONAL SERVICES LEVEL 3 | D28: 1200
B29: 7640015255 | C29: PROFESSIONAL SERVICES PROJECT FEE | D29: 1
B30: DVINST | C30: Install & TRNG 3-days onsite | D30: 17500
B31: Consumables
B32: 14YH | C32: SK601 STAPLE FOR SD-501 | D32: 114.48
B33: A85VWY1 | C33: SK-601H STAPLES | D33: 114.48
B34: 14YK | C34: SK-602 STAPLE KIT | D34: 64.87
B35: A4RCWY1 | C35: SK-703 STAPLES FOR FS-532 (5,000 x 5) | D35: 216
B36: 760025 | C36: PLOCKMATIC STAPLE CARTRIDGE (5K X 3) | D36: 119.7
B37: A080WY1 | C37: GC-501 GLUE FOR PERFECT BINDER | D37: 36
B38: A9K1130 | C38: TN017 TONER FOR 7136/7120 | D38: 247.5
B40: ACCURIOPRESS 7120 MICR PRINTER
B41: Service
C42: Zero Base Charge | D42: 0.009
B43: 9967005050 | C43: PROKOM MEMBERSHIP | D43: 0
B44: 7640021190 | C44: ACCURIOPRO SECURE | D44: 499
B45: Installation & Training
B46: 7640012599 | C46: BASIC PROFESSIONAL SERVICES LEVEL 3 | D46: 1200
B47: 7640015255 | C47: PROFESSIONAL SERVICES PROJECT FEE | D47: 1
B48: DVINST | C48: Install & TRNG 3-days onsite | D48: 17500
B49: Consumables
B50: 14YH | C50: SK601 STAPLE FOR SD-501 | D50: 114.48
B51: A85VWY1 | C51: SK-601H STAPLES | D51: 114.48
B52: 14YK | C52: SK-602 STAPLE KIT | D52: 64.87
B53: A4RCWY1 | C53: SK-703 STAPLES FOR FS-532 (5,000 x 5) | D53: 216
B54: 760025 | C54: PLOCKMATIC STAPLE CARTRIDGE (5K X 3) | D54: 119.7
B55: A080WY1 | C55: GC-501 GLUE FOR PERFECT BINDER | D55: 36
B56: A9K1130 | C56: TN017 TONER FOR 7136/7120 | D56: 247.5
B58: PKG-800
B59: Installation & Training3
B60: TECRCMT8 | C60: RIP COLOR MANAGEMENT TRAINING | D60: 3595
B61: TECINST4 | C61: INSTALLATION & TRAINING 5-DAYS (MTEX) | D61: 3295
B62: Start-Up Kit4
B63: KMMUL800SK | C63: PKG -800 STARTER KIT (PIGMENT INK) | D63: 3450
B64: Consumables5
B65: 93008000500 | C65: MT PKG INKJET PRINTHEADS (EACH) | D65: 2499
B66: 93008000100 | C66: INK BOTTLE WB PIGMENT MT 5L CYAN | D66: 499
B67: 93008000200 | C67: INK BOTTLE WB PIGMENT MT 5L MAGENTA | D67: 499
B68: 93008000300 | C68: INK BOTTLE WB PIGMENT MT 5L YELLOW | D68: 499
B69: 93008000400 | C69: INK BOTTLE WB PIGMENT MT 5L BLACK | D69: 499
B70: 93008001100 | C70: INK BOTTLE WB DYE MT 5L CYAN | D70: 499
B71: 93008001300 | C71: INK BOTTLE WB DYE MT 5L MAGENTA | D71: 499
B72: 93008001200 | C72: INK BOTTLE WB DYE MT 5L YELLOW | D72: 499
B73: 93008001000 | C73: INK BOTTLE WB DYE MT 5L BLACK | D73: 499
B74: 99904000100 | C74: MTEX CLEANER 1L | D74: 20
B75: 93106026100 | C75: INK FILTER | D75: 22
B76: 93118001200 | C76: AIR FILTER | D76: 9.9
B77: 92500000100 | C77: NITRILE GLOVES | D77: 30.5
B78: 93004000500 | C78: CLEANING WIPES | D78: 75
B79: 300857 | C79: BERKSHIRE WIPES MP4000HP (1 BAG/EA.) | D79: 102
B80: Delivery6
B81: 76400223737 | C81: DELIVERY CHARGE (QUOTABLE) | D81: 1
B83: PKG-1300
B84: Installation & Training4
B85: TECRCMT13 | C85: ERGOSOFT COLOR MGMT TRAINING (MTEX) OPT | D85: 11500
B86: TECINST5 | C86: INSTALL & TRNG - 5 DAYS (MTEX) MANDATORY | D86: 11500
B87: Start-Up Kit5
B88: KMMUL1300SK | C88: PKG-1300 STARTER KIT (PIIGMENT INK)PKG-1 | D88: 7800
B89: Consumables6
B90: 93008000500 | C90: MT PKG INKJET PRINTHEADS (EACH) | D90: 2499
B91: 93008000100 | C91: INK BOTTLE WB PIGMENT MT 5L CYAN | D91: 499
B92: 93008000200 | C92: INK BOTTLE WB PIGMENT MT 5L MAGENTA | D92: 499
B93: 93008000300 | C93: INK BOTTLE WB PIGMENT MT 5L YELLOW | D93: 499
B94: 93008000400 | C94: INK BOTTLE WB PIGMENT MT 5L BLACK | D94: 499
B95: 93008001100 | C95: INK BOTTLE WB DYE MT 5L CYAN | D95: 499
B96: 93008001300 | C96: INK BOTTLE WB DYE MT 5L MAGENTA | D96: 499
B97: 93008001200 | C97: INK BOTTLE WB DYE MT 5L YELLOW | D97: 499
B98: 93008001000 | C98: INK BOTTLE WB DYE MT 5L BLACK | D98: 499
B99: 93118001000 | C99: PERISTALTIC PUMP | D99: 259
B100: 99904000100 | C100: MTEX CLEANER 1L | D100: 20
B101: 93106026100 | C101: INK FILTER | D101: 22
B102: 93118001200 | C102: AIR FILTER | D102: 9.9
B103: 92500000100 | C103: NITRILE GLOVES | D103: 30.5
B104: 93004000500 | C104: CLEANING WIPES | D104: 75
B105: 300857 | C105: BERKSHIRE WIPES MP4000HP (1 BAG/EA.) | D105: 102
B106: Delivery7
B107: 76400223737 | C107: DELIVERY CHARGE (QUOTABLE) | D107: 1
B109: INTOPRINT DP-50 ENVELOPE PRESS W/ FEEDER
B110: Installation & Training
B111: 7640018734 | C111: INTOPRINT DP50 INSTALLATION & TRAINING | D111: 1666.67
B112: Warranty
B113: 7640019144 | C113: DP50 ADDTL WARRANTY PER YEAR | D113: 1193.33
B114: Consumables
B115: TDP50BK | C115: DP50 BLACK TONER | D115: 139
B116: TDP50CY | C116: DP50 CYAN TONER | D116: 224
B117: TDP50MG | C117: DP50 MAGENTA TONER | D117: 224
B118: TDP50YE | C118: DP50 YELLOW TONER | D118: 224
B119: DDP50BK | C119: DP50 BLACK DRUM | D119: 160
B120: DDP50CY | C120: DP50 CYAN DRUM | D120: 160
B121: DDP50MG | C121: DP50 MAGENTA DRUM | D121: 160
B122: DDP50YE | C122: DP50 YELLOW DRUM | D122: 160
B123: 44848804 | C123: FUSER UNIT DP50 | D123: 184
B124: 44846205 | C124: TRANSFER BELT DP50 | D124: 147
B125: Miscellaneous
B126: 7640018735 | C126: INTOPRINT FLAT FREIGHT CHARGE - LEVEL 1 | D126: 275
B127: 7640017409 | C127: INTOPRINT LIFTGATE DELIVERY | D127: 1350
B129: INTOPRINT SHEET AND ENVELOPE PRINTING SYSTEMS
B130: Services
B131: INSTALLLEVEL1 | C131: 1 DAY INSTALL OPERATOR TRAIN CONT. U.S. | D131: 2495
B132: INSTALLLEVEL2 | C132: 2 DAY INSTALL OPERATOR TRAIN CONT. U.S. | D132: 4895
B133: WARRANTYMPSPLEVEL1 | C133: 2 YEAR ON-SITE WNTY MP/SP SERIES PRINTRS | D133: 3995
B134: WARRANTYMPSPLEVEL2 | C134: 3 YEAR ON-SITE WNTY MP/SP SERIES PRINTRS | D134: 5695
B135: MP200 Series Consumables
B136: TMP200CY | C136: MP200 CYAN TONER (38K) | D136: 280
B137: TMP200MG | C137: MP200 MAGENTA TONER (38K) | D137: 280
B138: TMP200YE | C138: MP200 YELLOW TONER (38K) | D138: 280
B139: TMP200BK | C139: MP200 BLACK TONER (38K) | D139: 147
B140: TMP200WYE | C140: MP200W YELLOW TONER (24K) | D140: 178
B141: TMP200WWH | C141: MP200W WHITE TONER (15K) | D141: 504
B142: DMP200CY | C142: MP200 CYAN DRUM | D142: 525
B143: DMP200MG | C143: MP200 MAGENTA DRUM | D143: 525
B144: DMP200YE | C144: MP200 YELLOW DRUM | D144: 525
B145: DMP200BK | C145: MP200 BLACK DRUM | D145: 315
B146: DMP200WWH | C146: MP200W WHITE DRUM | D146: 460
B147: MP200FUSER | C147: MP200 FUSER (150K) | D147: 436
B148: MP200FUSERENV | C148: MP200 FUSER (150K) OVERSIZE ENVELOPES | D148: 436
B149: MP200BELT | C149: MP200 TRANSFER BELT (150K) | D149: 340
B150: MP200WASTE | C150: MP200 WASTE TONER (40K) | D150: 24
B151: SP1360 Series Consumables
B152: TSP1360CY | C152: SP1360/SP1360W/SP1360S CYAN TONER (38K) | D152: 280
B153: TSP1360MG | C153: SP1360/SP1360W/SP1360S MAGTA TONER (38K) | D153: 280
B154: TSP1360YE | C154: SP1360/SP1360S YELLOW TONER (38K) | D154: 280
B155: TSP1360BK | C155: SP1360/SP1360W/SP1360S BLACK TONER (38K) | D155: 159
B156: TSP1360WYE | C156: SP1360W YELLOW TONER (24K) | D156: 178
B157: TSP1360WWH | C157: SP1360W WHITE TONER (15K) | D157: 529
B158: DSP1360CY | C158: SP1360/SP1360W/SP1360S CYAN DRUM | D158: 499
B159: DSP1360MG | C159: SP1360/SP1360W/SP1360S MAGENTA DRUM | D159: 499
B160: DSP1360YE | C160: SP1360/SP1360W/SP1360S YELLOW DRUM | D160: 499
B161: DSP1360BK | C161: SP1360/SP1360W/SP1360S BLACK DRUM | D161: 309
B162: DSP1360WWH | C162: SP1360W WHITE DRUM | D162: 495
B163: SP1360FUSER | C163: SP1360-FUSER (150K) | D163: 472
B164: SP1360FUSERENV | C164: SP1360 FUSER (150K) OVERSIZE ENVELOPES | D164: 472
B165: SP1360BELT | C165: SP1360 TRANSFER BELT (150K) | D165: 363
B166: SP1360WASTE | C166: SP1360 WASTE TONER (40K) | D166: 26
B167: Services
B168: FREIGHTLEVEL2 | C168: FLAT FREIGHT CHARGE DELIVERY CONT. U.S. | D168: 600
B169: LIFTGATE | C169: LIFTGATE SERVICE IF REQUIRED | D169: 233.33
B171: QUADIENT ADDRESS PRINTERS
B172: Freight - Installation - Support
B173: QUADIENTMAINT | C173: QUANDEINT GENERIC MAINT PER QUOTE UNITS | D173: 1
B174: QUADIENTINSTALL | C174: QUADIENT INSTALLATION PER QUOTE UNIIT | D174: 1
B175: QUADIENTMETER | C175: QUADIENT ANN METER RENTAL PER QUOTE UNIT | D175: 1
B176: QUADIENTTRAIN | C176: QUADIENT TRAINING PER QUOTE UNIT | D176: 1
B177: QUADIENTDEPOT | C177: QUADIENT DEPOT REPAIR FOR ITEMS | D177: 1
B178: QUADIENTSWSUB | C178: QUADIENT ANN CLOUD SUB PER QUOTE(1 YEAR) | D178: 1
B179: QUADIENTSWSUPPORT | C179: QUADIENT ANN SOFTWARE SUPPORT PR QUOTE | D179: 1
B180: Freight - Installation - Support
B181: QUADIENTFREIGHT | C181: QUADIENT FREIGHT PER QUOTE UNIT | D181: 1
B182: QUADIENTPS | C182: QUADIENT PROFESSIONAL SERVICES PR QUOTE | D182: 1
B183: QUADIENTSHIPSUB | C183: QUADIENT CLOUD SUB MULTI-CARRIERSHIPPING | D183: 1
B184: QUADIENTSWSUPPORT | C184: QUADIENT ANN SOFTWARE SUPPORT PR QUOTE | D184: 1
B185: Additional Support & Training
B186: TRAININGPKGA | C186: TRAINING PACKAGE A | D186: 566
B187: TRAININGPKGB | C187: (DISTRICT ONLY) 4HRS TRAINING (IX/IM/IN | D187: 695
B188: TRAININGPKGC | C188: (DISTRICT ONLY) 6HRS TRAINING (IX/IM/IN | D188: 895
B189: TRAININGPKGD | C189: (DISTRICT ONLY) 8HRS TRAINING (IX/IM/IN | D189: 1460
B190: TRAININGPKGSW | C190: AFTER INSTALL SW SUPPORT. BULKMAILER | D190: 147.06
B191: DS1XASSIT3 | C191: ONSITE SUPPORT/TRAINING ASSISTANCE 3 | D191: 7239
B192: DS1XASSIT4 | C192: ONSITE SUPPORT/TRAINING ASSISTANCE 4 | D192: 9009.33
B193: DS1XASSIT5 | C193: ONSITE SUPPORT/TRAINING ASSISTANCE 5 | D193: 14071.75
B194: DS1XASSIT7 | C194: ONSITE SUPPORT/TRAINING ASSISTANCE 7 | D194: 19705.58

Sheet Group E
A1: Konica Minolta Business Solutions U.S.A., Inc. | H1: Table of Contents
A2: Group E | B2: Item Number | C2: Item Description | D2: MSRP | E2: NASPO Customer Price | F2: Discount | K2: FMA
A3: Segment Low | B3: HP DesignJet T1600 Printer series
A4: Color/B&W 0-3 | B4: 3EK11FB1K | C4: HP DESIGNJET T1600 36-IN PS PRINTER | D4: 6895 | E4: 6550.25 | F4: =100%-(E4/D4) -> 0.05
A5: 24"-44"
B6: Accessories
B7: L4R66A | C7: HP 36 INCH ROLL FEED SPINDLE | D7: 95 | E7: 94.05 | F7: =100%-(E7/D7) -> 0.01
B8: CN538A | C8: HP DESIGNJET 3-IN SPINDLE ADAPTER KIT | D8: 15 | E8: 14.85 | F8: =100%-(E8/D8) -> 0.01
B9: Inks and Printhead(s)
B10: B3P06A | C10: HP 727 DESIGNJET PRINTHEAD | D10: 504.81 | E10: 479.56 | F10: =100%-(E10/D10) -> 0.05001881896
B11: 1XB25A | C11: HP 730F 300ML YELLOW INK | D11: 203.29 | E11: =D11*0.95 -> 193.1255 | F11: 0.05
B12: 1XB26A | C12: HP 730F 300ML MAGENTA INK | D12: 203.29 | E12: 193.1255 | F12: 0.05
B13: 1XB27A | C13: HP 730F 300ML CYAN INK | D13: 203.29 | E13: 193.1255 | F13: 0.05
B14: 1XB28A | C14: HP 730F 300ML PHOTO BLACK INK | D14: 203.29 | E14: 193.1255 | F14: 0.05
B15: 1XB29A | C15: HP 730F 300ML GRAY INK | D15: 203.29 | E15: 193.1255 | F15: 0.05
B16: 1XB30A | C16: HP 730F 300ML MATTE BLACK INK | D16: 203.29 | E16: 193.1255 | F16: 0.05
B17: Installation and HP Care Pack Warranty Service
B18: H4518E | C18: HP DESIGNJET NETWORK INSTALL 400-6100 | D18: 847 | E18: 847 | F18: =100%-(E18/D18) -> 0
B19: U1XV4E | C19: HP PREV MAINT HW SUPPORTT & Z AND D5800 | D19: 347 | E19: 347 | F19: 0
B20: UC6M2E | C20: HP 3Y NBD+DMR DJ T1600 F-SERIES 1R HS | D20: 1183 | E20: 1183 | F20: 0
B21: UC6M3E | C21: HP 4Y NBD+DMR DJ T1600 F-SERIES 1R HS | D21: 1705 | E21: 1705 | F21: 0
B22: UC6M4E | C22: HP 5Y NBD+DMR DJ T1600 F-SERIES 1R HS | D22: 2250 | E22: 2250 | F22: 0
B23: UC6M5PE | C23: HP 1Y PW NBD+DMR DJ T1600 F-SERIES 1R HS | D23: 649 | E23: 649 | F23: 0
B24: UC6M6PE | C24: HP 2Y PW NBD+DMR DJ T1600 F-SERIES 1R HS | D24: 1232 | E24: 1232 | F24: 0
A25: Segment Low | B25: HP DesignJet T1700 Printer series (1-roll version)
A26: Color/B&W 0-3 | B26: 1VD87FB1K | C26: HP DESIGNJET T1700 44-IN PS PRINTER | D26: 8050 | E26: 7647.5 | F26: =100%-(E26/D26) -> 0.05
A27: 24"-44"
B28: Accessories
B29: Q6709A | C29: HP DESIGNJET T1100 OFFICE 44IN SPINDLE | D29: 95 | E29: 94.05 | F29: =100%-(E29/D29) -> 0.01
B30: CN538A | C30: HP DESIGNJET 3-IN SPINDLE ADAPTER KIT | D30: 15 | E30: 14.85 | F30: =100%-(E30/D30) -> 0.01
B31: C0C66B | C31: HP DESIGNJET POST SCRIPT UPGRADE | D31: 1700 | E31: 1683 | F31: =100%-(E31/D31) -> 0.01
B32: Inks and Printhead(s)
B33: B3P06A | C33: HP 727 DESIGNJET PRINTHEAD | D33: 504.81 | E33: 479.56 | F33: =100%-(E33/D33) -> 0.05001881896
B34: 1XB25A | C34: HP 730F 300ML YELLOW INK | D34: 203.29 | E34: =D34*0.95 -> 193.1255 | F34: 0.05
B35: 1XB26A | C35: HP 730F 300ML MAGENTA INK | D35: 203.29 | E35: 193.1255 | F35: 0.05
B36: 1XB27A | C36: HP 730F 300ML CYAN INK | D36: 203.29 | E36: 193.1255 | F36: 0.05
B37: 1XB28A | C37: HP 730F 300ML PHOTO BLACK INK | D37: 203.29 | E37: 193.1255 | F37: 0.05
B38: 1XB29A | C38: HP 730F 300ML GRAY INK | D38: 203.29 | E38: 193.1255 | F38: 0.05
B39: 1XB30A | C39: HP 730F 300ML MATTE BLACK INK | D39: 203.29 | E39: 193.1255 | F39: 0.05
B40: Installation and HP Care Pack Warranty Service
B41: H4518E | C41: HP DESIGNJET NETWORK INSTALL 400-6100 | D41: 847 | E41: 847 | F41: =100%-(E41/D41) -> 0
B42: U1XV4E | C42: HP PREV MAINT HW SUPPORTT & Z AND D5800 | D42: 347 | E42: 347 | F42: 0
B43: UD2V5E | C43: HP 3Y NBD + DMR DJ T1700F 1 ROLL HWS | D43: 748 | E43: 748 | F43: 0
B44: UD2V6E | C44: HP 4Y NBD + DMR DJ T1700F 1 ROLL HWS | D44: 1084 | E44: 1084 | F44: 0
B45: UD2V7E | C45: HP 5Y NBD + DMR DJ T1700F 1 ROLL HWS | D45: 1403 | E45: 1403 | F45: 0
B46: U9QS2PE | C46: HP 1YPW NBD+DMR DSNJTT1700 1 ROLL HW SUP | D46: 407 | E46: 407 | F46: 0
B47: U9QS3PE | C47: HP 2YPW NBD+DMR DJ T1700 1 ROLL HW SUPP | D47: 770 | E47: 770 | F47: 0
A48: Segment Low | B48: HP DesignJet T2600 Printer series (1-roll version)
A49: Color/B&W 0-3 | B49: 3XB78FB1K | C49: HP DESIGNJET T2600 36-IN PS MFP PRINTER | D49: 12225 | E49: 11613.75 | F49: =100%-(E49/D49) -> 0.05
A50: 24"-44"
B51: Accessories
B52: L4R66A | C52: HP 36 INCH ROLL FEED SPINDLE | D52: 95 | E52: 94.05 | F52: =100%-(E52/D52) -> 0.01
B53: CN538A | C53: HP DESIGNJET 3-IN SPINDLE ADAPTER KIT | D53: 15 | E53: 14.85 | F53: =100%-(E53/D53) -> 0.01
B54: Inks and Printhead(s)
B55: B3P06A | C55: HP 727 DESIGNJET PRINTHEAD | D55: 504.81 | E55: 479.56 | F55: =100%-(E55/D55) -> 0.05001881896
B56: 1XB25A | C56: HP 730F 300ML YELLOW INK | D56: 203.29 | E56: =D56*0.95 -> 193.1255 | F56: 0.05
B57: 1XB26A | C57: HP 730F 300ML MAGENTA INK | D57: 203.29 | E57: 193.1255 | F57: 0.05
B58: 1XB27A | C58: HP 730F 300ML CYAN INK | D58: 203.29 | E58: 193.1255 | F58: 0.05
B59: 1XB28A | C59: HP 730F 300ML PHOTO BLACK INK | D59: 203.29 | E59: 193.1255 | F59: 0.05
B60: 1XB29A | C60: HP 730F 300ML GRAY INK | D60: 203.29 | E60: 193.1255 | F60: 0.05
B61: 1XB30A | C61: HP 730F 300ML MATTE BLACK INK | D61: 203.29 | E61: 193.1255 | F61: 0.05
B62: Installation and HP Care Pack Warranty Service
B63: H4518E | C63: HP DESIGNJET NETWORK INSTALL 400-6100 | D63: 847 | E63: 847 | F63: =100%-(E63/D63) -> 0
B64: UC6N8E | C64: HP 3Y NBD+DMR DJ T2600 F-SERIES 1R HS | D64: 1947 | E64: 1947 | F64: 0
B65: UC6N9E | C65: HP 4Y NBD+DMR DJ T2600 F-SERIES 1R HS | D65: 2822 | E65: 2822 | F65: 0
B66: UC6P0E | C66: HP 5Y NBD+DMR DJ T2600 F-SERIES 1R HS | D66: 3718 | E66: 3718 | F66: 0
B67: UC6P1PE | C67: HP 1Y PW NBD+DMR DJ T2600 F-SERIES 1R HS | D67: 1067 | E67: 1067 | F67: 0
B68: UC6P2PE | C68: HP 2Y PW NBD+DMR DJ T2600 F-SERIES 1R HS | D68: 2008 | E68: 2008 | F68: 0
A69: Segment Low | B69: HP DesignJet T2600 Printer series (2-roll version)
A70: Color/B&W 0-3 | B70: 3EK15FB1K | C70: HP DESIGNJET T2600DR 36IN PS MFP PRINTR | D70: 15125 | E70: 14367.75 | F70: =100%-(E70/D70) -> 0.0500661157
A71: 24"-44"
B72: Accessories
B73: L4R66A | C73: HP 36 INCH ROLL FEED SPINDLE | D73: 95 | E73: 94.05 | F73: =100%-(E73/D73) -> 0.01
B74: CN538A | C74: HP DESIGNJET 3-IN SPINDLE ADAPTER KIT | D74: 15 | E74: 14.85 | F74: =100%-(E74/D74) -> 0.01
B75: Inks and Printhead(s)
B76: B3P06A | C76: HP 727 DESIGNJET PRINTHEAD | D76: 504.81 | E76: 479.56 | F76: =100%-(E76/D76) -> 0.05001881896
B77: 1XB25A | C77: HP 730F 300ML YELLOW INK | D77: 203.29 | E77: =D77*0.95 -> 193.1255 | F77: 0.05
B78: 1XB26A | C78: HP 730F 300ML MAGENTA INK | D78: 203.29 | E78: 193.1255 | F78: 0.05
B79: 1XB27A | C79: HP 730F 300ML CYAN INK | D79: 203.29 | E79: 193.1255 | F79: 0.05
B80: 1XB28A | C80: HP 730F 300ML PHOTO BLACK INK | D80: 203.29 | E80: 193.1255 | F80: 0.05
B81: 1XB29A | C81: HP 730F 300ML GRAY INK | D81: 203.29 | E81: 193.1255 | F81: 0.05
B82: 1XB30A | C82: HP 730F 300ML MATTE BLACK INK | D82: 203.29 | E82: 193.1255 | F82: 0.05
B83: Installation and HP Care Pack Warranty Service
B84: H4518E | C84: HP DESIGNJET NETWORK INSTALL 400-6100 | D84: 847 | E84: 847 | F84: =100%-(E84/D84) -> 0
B85: UC6P6E | C85: HP 3Y NBD+DMR DJ T2600 F-SERIES 2R HS | D85: 1947 | E85: 1947 | F85: 0
B86: UC6P7E | C86: HP 4Y NBD+DMR DJ T2600 F-SERIES 2R HS | D86: 2822 | E86: 2822 | F86: 0
B87: UC6P8E | C87: HP 5Y NBD+DMR DJ T2600 F-SERIES 2R HS | D87: 3718 | E87: 3718 | F87: 0
B88: UC6P9PE | C88: HP1Y PW NBD+DMR DJ T2600 F-SERIES 2R HS | D88: 1067 | E88: 1067 | F88: 0
B89: UC6Q0PE | C89: HP 2Y PW NBD+DMR DJ T2600 F-SERIES 1R HS | D89: 2008 | E89: 2008 | F89: 0
A90: Segment Low | B90: HP DesignJet XL 3600 MFP series
A91: Color/B&W 0-3 | B91: 6KD26F | C91: HP DESIGNJET XL 3600DR MFP | D91: 18150 | E91: 17242.5 | F91: =100%-(E91/D91) -> 0.05
A92: 24"-44"
B93: Accessories
B94: L3J69A | C94: HP SMARTSTREAM PREFLIGHT MANAGER-DONGLE | D94: 1400 | E94: 1386 | F94: =100%-(E94/D94) -> 0.01
B95: 2NH46AAE | C95: HP SMARTSTREAM DOCUMENT ORGANIZER MODULE | D95: 995 | E95: 985.05 | F95: =100%-(E95/D95) -> 0.01
B96: 2NH47AAE | C96: HP SMARTSTREAM PIXEL ANALYSIS MODULE | D96: 995 | E96: 985.05 | F96: =100%-(E96/D96) -> 0.01
B97: Inks and Printhead(s)
B98: B3P06A | C98: HP 727 DESIGNJET PRINTHEAD | D98: 504.81 | E98: 479.56 | F98: =100%-(E98/D98) -> 0.05001881896
B99: 1XB31A | C99: HP 766F 300ML YELLOW DESIGNJET INK CRTGE | D99: 138 | E99: 131.1 | F99: 0.05
B100: 1XB32A | C100: HP 766F 300ML MAGENTA INK | D100: 138 | E100: 131.1 | F100: 0.05
B101: 1XB33A | C101: HP 766F 300ML CYAN DESIGNJET INK CARTRID | D101: 138 | E101: 131.1 | F101: 0.05
B102: 1XB34A | C102: HP 766F 300ML PHOTO DESIGNJET INK CARTRI | D102: 138 | E102: 131.1 | F102: 0.05
B103: 1XB35A | C103: HP 766F 300ML GRAY INK | D103: 138 | E103: 131.1 | F103: 0.05
B104: 1XB36A | C104: HP 766F 300ML MATTE DESIGNJET INK CARTR | D104: 138 | E104: 131.1 | F104: 0.05
B105: Installation and HP Care Pack Warranty Service
B106: UC0J5E | C106: HP DESIGNJET XL 3600 MFP INSTALLATION | D106: 1821 | E106: 1821 | F106: =100%-(E106/D106) -> 0
B107: UC0H2E | C107: HP 3Y NBD+DMR+MKR DJXL 3600MFP HWS | D107: 5577 | E107: 5577 | F107: =100%-(E107/D107) -> 0
B108: UC0H4E | C108: HP 5Y NBD+DMR+MKR DJ XL 3600MFP HWS | D108: 10065 | E108: 10065 | F108: 0
B109: UC0H5PE | C109: HP 1Y PW NBD+DMR+MKR DJXL3600MFP HS | D109: 2184 | E109: 2184 | F109: 0
B110: UC0H6PE | C110: HP 2Y PW NBD+DMR+MKR DJXL 3600MFP HWS | D110: 4367 | E110: 4367 | F110: 0
A111: Segment Low | B111: T8W15AB1K | C111: HP DESIGNJET Z6 24IN POSTSCRIPT PRINTER | D111: 4195 | E111: 3985.25 | F111: 0.05
A112: Color/B&W 0-3
A113: 24"-44"
B114: Accessories
B115: CN538A | C115: HP DESIGNJET 3-IN SPINDLE ADAPTER KIT | D115: 15 | E115: 14.85 | F115: =100%-(E115/D115) -> 0.01
B116: Q6700A | C116: HP DESIGNJET ZX100 24IN SPINDLE | D116: 95 | E116: 94.05 | F116: =100%-(E116/D116) -> 0.01
B117: Inks and Printhead(s)
B118: P2V25A | C118: HP 746 PRINTHEAD | D118: 172.56 | E118: 163.93 | F118: =100%-(E118/D118) -> 0.05001159017
B119: P2V81A | C119: HP 746 300-ML CHRMTC RED INK CARTRIDGE | D119: 205.1 | E119: 194.84 | F119: 0.05002437835
B120: P2V80A | C120: HP 746 300-ML CYAN INK CARTRIDGE | D120: 205.1 | E120: 194.84 | F120: 0.05002437835
B121: P2V78A | C121: HP 746 300-ML MAGENTA INK CARTRIDGE | D121: 205.1 | E121: 194.84 | F121: 0.05002437835
B122: P2V83A | C122: HP 746 300-ML MATTE BLACK INK CARTRIDGE | D122: 205.1 | E122: 194.84 | F122: 0.05002437835
B123: P2V82A | C123: HP 746 300-ML PHOTO BLACK INK CARTRIDGE | D123: 205.1 | E123: 194.84 | F123: 0.05002437835
B124: P2V79A | C124: HP 746 300-ML YELLOW INK CARTRIDGE | D124: 205.1 | E124: 194.84 | F124: 0.05002437835
B125: Installation and HP Care Pack Warranty Service
B126: H4518E | C126: HP DESIGNJET NETWORK INSTALL 400-6100 | D126: 847 | E126: 847 | F126: =100%-(E126/D126) -> 0
B127: U9WP9E | C127: HP 2Y NBD+DMR DESIGNJET Z6-24 1 ROLL HWS | D127: 649 | E127: 649 | F127: 0
B128: U9WQ0E | C128: HP 3Y NBD+DMR DESIGNJET Z6-24 1 ROLL HWS | D128: 1216 | E128: 1216 | F128: 0
B129: U9YX7E | C129: HP 4Y NBD+DMR DESIGNJET Z6-24 1 ROLL HWS | D129: 1777 | E129: 1777 | F129: 0
B130: U9YX8E | C130: HP 5Y NBD+DMR DESIGNJET Z6-24 1 ROLL HWS | D130: 2343 | E130: 2343 | F130: 0
B131: U9YX9PE | C131: HP 1Y PW NBD+DMR DSNJT Z6-24 1 ROLL HWS | D131: 715 | E131: 715 | F131: 0
B132: U9YY0PE | C132: HP 2Y PW NBD+DMR DSNJT Z6-24 1 ROLL HWS | D132: 1337 | E132: 1337 | F132: 0
B133: HP DesignJet Z9+dr 44-in PostScript Printer with V-Trimmer
B134: X9D24FB1K | C134: HP DESIGNJET Z9DR 44-IN PS PTR V-TRIM | D134: 10125 | E134: 9618.75 | F134: =100%-(E134/D134) -> 0.05
B135: Accessories
B136: 2QX55AB1K | C136: HP GLOSS ENHANCER UPGRADE KIT | D136: 300 | E136: 297 | F136: =100%-(E136/D136) -> 0.01
B137: CN538A | C137: HP DESIGNJET 3-IN SPINDLE ADAPTER KIT | D137: 15 | E137: 14.85 | F137: =100%-(E137/D137) -> 0.01
B138: Q6700A | C138: HP DESIGNJET ZX100 24IN SPINDLE | D138: 95 | E138: 94.05 | F138: =100%-(E138/D138) -> 0.01
B139: Q6709A | C139: HP DESIGNJET T1100 OFFICE 44IN SPINDLE | D139: 95 | E139: 94.05 | F139: =100%-(E139/D139) -> 0.01
B140: 1QF38AB1K | C140: HP DESIGNJET 44-INCH TAKE-UP REEL | D140: 1200 | E140: 1188 | F140: =100%-(E140/D140) -> 0.01
B141: Inks and Printhead(s)
B142: P2V25A | C142: HP 746 PRINTHEAD | D142: 172.56 | E142: 163.93 | F142: =100%-(E142/D142) -> 0.05001159017
B143: P2V81A | C143: HP 746 300-ML CHRMTC RED INK CARTRIDGE | D143: 205.1 | E143: 194.84 | F143: 0.05002437835
B144: P2V80A | C144: HP 746 300-ML CYAN INK CARTRIDGE | D144: 205.1 | E144: 194.84 | F144: 0.05002437835
B145: P2V78A | C145: HP 746 300-ML MAGENTA INK CARTRIDGE | D145: 205.1 | E145: 194.84 | F145: 0.05002437835
B146: P2V83A | C146: HP 746 300-ML MATTE BLACK INK CARTRIDGE | D146: 205.1 | E146: 194.84 | F146: 0.05002437835
B147: P2V82A | C147: HP 746 300-ML PHOTO BLACK INK CARTRIDGE | D147: 205.1 | E147: 194.84 | F147: 0.05002437835
B148: P2V79A | C148: HP 746 300-ML YELLOW INK CARTRIDGE | D148: 205.1 | E148: 194.84 | F148: 0.05002437835
B149: P2V85A | C149: HP 747 300-ML CHRMTC BLUE INK CARTRIDGE | D149: 205.1 | E149: 194.84 | F149: 0.05002437835
B150: P2V84A | C150: HP 747 300-ML CHRMTC GREEN INK CARTRIDGE | D150: 205.1 | E150: 194.84 | F150: 0.05002437835
B151: P2V87A | C151: HP 747 300-ML GLOSS ENHANCER INK CRTG | D151: 205.1 | E151: 194.84 | F151: 0.05002437835
B152: P2V86A | C152: HP 747 300-ML GRAY INK CARTRIDGE | D152: 205.1 | E152: 194.84 | F152: 0.05002437835
B153: Installation and HP Care Pack Warranty Service
B154: H4518E | C154: HP DESIGNJET NETWORK INSTALL 400-6100 | D154: 847 | E154: 847 | F154: =100%-(E154/D154) -> 0
B155: UD4Y6E | C155: HP 3Y NBD+DMR DJ Z9-44F 2 ROLL HWS | D155: 2189 | E155: 2189 | F155: =100%-(E155/D155) -> 0
B156: UD4Y7E | C156: HP 4Y NBD+DMR DJ Z9-44F 2 ROLL HWS | D156: 3179 | E156: 3179 | F156: 0
B157: UD4Y8E | C157: HP 5Y NBD+DMR DJ Z9-44F 2 ROLL HWS | D157: 4158 | E157: 4158 | F157: 0
B158: U9ZG0PE | C158: HP 1Y PW NBD+DMR DSNJT Z9-44 2 ROLL HWS | D158: 1205 | E158: 1205 | F158: 0
B159: U9ZG1PE | C159: HP 2Y PW NBD+DMR DSNJT Z9-44 2 ROLL HWS | D159: 2294 | E159: 2294 | F159: 0
A160: Segment Low | B160: T8W18FB1K | C160: HP DESIGNJET Z6DR 44-IN PS PTR V-TRIM | D160: 8995 | E160: 8545.25 | F160: 0.05
A161: Color/B&W 0-3
A162: 24"-44"
B163: Accessories
B164: 4Z7Z7AA | C164: HP USB 3.0 TO GIG RJ45 ADAPTER G2 | D164: 50 | E164: 49.5 | F164: =100%-(E164/D164) -> 0.01
B165: CN538A | C165: HP DESIGNJET 3-IN SPINDLE ADAPTER KIT | D165: 15 | E165: 14.85 | F165: 0.01
B166: Q6709A | C166: HP DESIGNJET T1100 OFFICE 44IN SPINDLE | D166: 95 | E166: 94.05 | F166: 0.01
B167: 1QF38AB1K | C167: HP DESIGNJET 44-INCH TAKE-UP REEL | D167: 1200 | E167: 1188 | F167: 0.01
B168: 5EK01AB1K | C168: HP DESIGNJET SD PRO 2 44-IN SCANNER | D168: 13750 | E168: 12375 | F168: 0.1
B169: Inks and Printhead(s)
B170: P2V25A | C170: HP 746 PRINTHEAD | D170: 172.56 | E170: 163.93 | F170: 0.05001159017
B171: P2V81A | C171: HP 746 300-ML CHRMTC RED INK CARTRIDGE | D171: 205.1 | E171: 194.84 | F171: 0.05002437835
B172: P2V80A | C172: HP 746 300-ML CYAN INK CARTRIDGE | D172: 205.1 | E172: 194.84 | F172: 0.05002437835
B173: P2V78A | C173: HP 746 300-ML MAGENTA INK CARTRIDGE | D173: 205.1 | E173: 194.84 | F173: 0.05002437835
B174: P2V83A | C174: HP 746 300-ML MATTE BLACK INK CARTRIDGE | D174: 205.1 | E174: 194.84 | F174: 0.05002437835
B175: P2V82A | C175: HP 746 300-ML PHOTO BLACK INK CARTRIDGE | D175: 205.1 | E175: 194.84 | F175: 0.05002437835
B176: P2V79A | C176: HP 746 300-ML YELLOW INK CARTRIDGE | D176: 205.1 | E176: 194.84 | F176: 0.05002437835
B177: Installation and HP Care Pack Warranty Service
B178: H4518E | C178: HP DESIGNJET NETWORK INSTALL 400-6100 | D178: 847 | E178: 847 | F178: 0
B179: UD3K7E | C179: HP 3Y NBD+DMR DJ Z6-44F 2 ROLL HWS | D179: 1854 | E179: 1854 | F179: 0
B180: UD3K8E | C180: HP 4Y NBD+DMR DJ Z6-44F 2 ROLL HWS | D180: 2690 | E180: 2690 | F180: 0
B181: UD3K9E | C181: HP 5Y NBD+DMR DJ Z6-44F 2 ROLL HWS | D181: 3526 | E181: 3526 | F181: 0
B182: HP Care Pack Post Warranty Service (not to be sold with new printers)
B183: U9ZE5PE | C183: HP 1Y PW NBD+DMR DSNJT Z6-44 2 ROLL HWS | D183: 1018 | E183: 1018 | F183: 0
B184: U9ZE6PE | C184: HP 2Y PW NBD+DMR DSNJT Z6-44 2 ROLL HWS | D184: 1936 | E184: 1936 | F184: 0
A186: Segment Low | B186: T8W16FB1K | C186: HP DESIGNJET Z6 44-IN PS PRINTER | D186: 5850 | E186: 5557.5 | F186: =100%-(E186/D186) -> 0.05
A187: Color/B&W 0-3
A188: 24"-44"
B189: Accessories
B190: 4Z7Z7AA | C190: HP USB 3.0 TO GIG RJ45 ADAPTER G2 | D190: 50 | E190: 49.5 | F190: =100%-(E190/D190) -> 0.01
B191: CN538A | C191: HP DESIGNJET 3-IN SPINDLE ADAPTER KIT | D191: 15 | E191: 14.85 | F191: 0.01
B192: Q6709A | C192: HP DESIGNJET T1100 OFFICE 44IN SPINDLE | D192: 95 | E192: 94.05 | F192: 0.01
B193: 1QF38AB1K | C193: HP DESIGNJET 44-INCH TAKE-UP REEL | D193: 1200 | E193: 1188 | F193: 0.01
B194: 5EK01AB1K | C194: HP DESIGNJET SD PRO 2 44-IN SCANNER | D194: 13750 | E194: 12375 | F194: 0.1
B195: Inks and Printhead(s)
B196: P2V25A | C196: HP 746 PRINTHEAD | D196: 172.56 | E196: 163.93 | F196: =100%-(E196/D196) -> 0.05001159017
B197: P2V81A | C197: HP 746 300-ML CHRMTC RED INK CARTRIDGE | D197: 205.1 | E197: 194.84 | F197: 0.05002437835
B198: P2V80A | C198: HP 746 300-ML CYAN INK CARTRIDGE | D198: 205.1 | E198: 194.84 | F198: 0.05002437835
B199: P2V78A | C199: HP 746 300-ML MAGENTA INK CARTRIDGE | D199: 205.1 | E199: 194.84 | F199: 0.05002437835
B200: P2V83A | C200: HP 746 300-ML MATTE BLACK INK CARTRIDGE | D200: 205.1 | E200: 194.84 | F200: 0.05002437835
B201: P2V82A | C201: HP 746 300-ML PHOTO BLACK INK CARTRIDGE | D201: 205.1 | E201: 194.84 | F201: 0.05002437835
... 376 more rows

Sheet Group E Service
A1: Konica Minolta Business Solutions U.S.A., Inc.
A2: Group E | AJ2: Table of Contents
A3: Large/Wide Format Equipment
A4: Service and Supplies Pricing
A5: Includes B&W and Color/B&W Segments
A6: Service and Supply Pricing | C6: Segment Low Color/B&W (0 - 3) 24" - 44" | E6: Segment Low Color/B&W (0 - 3) 24" - 44" | G6: Segment Low Color/B&W (0 - 3) 24" - 44" | I6: Segment Low Color/B&W (0 - 3) 24" - 44" | K6: Segment Low Color/B&W (0 - 3) 24" - 44" | M6: Segment Low Color/B&W (0 - 3) 46"+ | O6: Segment Medium Low Color/B&W (4 - 9) 24" - 44" | Q6: Segment Medium Low Color/B&W (4 - 9) 24" - 44" | S6: Segment Medium Low Color/B&W (4 - 9) 46"+ | U6: Segment Medium High Color/B&W (10 - 19) 24" - 44" | W6: Segment Medium High Color/B&W (10 - 19) 24" - 44" | Y6: Segment Medium High Color/B&W (10 - 19) 24" - 44" | AA6: Segment Medium High Color/B&W (10 - 19) 24" - 44" | AC6: Segment High Color/B&W (20+) 24" - 44" | AE6: Segment High Color/B&W (20+) 24" - 44" | AG6: Segment High Color/B&W (20+) 24" - 44"
C7: Color | D7: B/W | E7: Color | F7: B/W | G7: Color | H7: B/W | I7: Color | J7: B/W | K7: Color | L7: B/W | M7: Color | N7: B/W | O7: Color | P7: B/W | Q7: Color | R7: B/W | S7: Color | T7: B/W | U7: Color | V7: B/W | W7: Color | X7: B/W | Y7: Color | Z7: B/W | AA7: Color | AB7: B/W | AC7: Color | AD7: B/W | AE7: Color | AF7: B/W | AG7: Color | AH7: B/W
A8: Make | C8: HP | E8: HP | G8: HP | I8: HP | K8: HP | M8: HP | O8: HP | Q8: HP | S8: HP | U8: HP | W8: HP | Y8: HP | AA8: HP | AC8: HP | AE8: HP | AG8: HP
A9: Model | C9: DesignJet T1600 | E9: DesignJet T1700 | G9: DesignJet T2600 | I9: DesignJet XL 3600DR MFP | K9: DesignJet Z6 PS PRO | M9: DesignJet Z6 PRO | O9: PageWide XL 3920 MFP | Q9: DesignJet Z9+ PS PRO | S9: DesignJet Z9+ PRO | U9: PageWide XL 4200 MFP | W9: PageWide XL 4700 MFP | Y9: PageWide XL 5200 MFP | AA9: PageWide XL PRO 5200 MFP | AC9: PageWide XL 8200 Printer | AE9: PageWide XL PRO 8200 Printer | AG9: PageWide XL PRO 10000 Printer
A10: Width | C10: 36" | E10: 44" | G10: 36" | I10: 36" | K10: 24" | M10: 64" | O10: 40" | Q10: 44" | S10: 64" | U10: 40" | W10: 40" | Y10: 40" | AA10: 40" | AC10: 40" | AE10: 40" | AG10: 40"
A11: Maintenance Agreements
B12: Parts and labor only (no supplies) | C12: 46.54 | E12: 30.54 | G12: 77.08 | I12: 174.28 | K12: 61.08 | M12: 61.08 | O12: 363.75 | Q12: 71.98 | S12: 71.98 | U12: 363.75 | W12: 363.75 | Y12: 681.25 | AA12: 634 | AC12: 873.75 | AE12: 907 | AG12: 1181
B13: % Increase in rate for Rural Service Zone | C13: 0.1 | D13: 0.1 | E13: 0.1 | F13: 0.1 | G13: 0.1 | H13: 0.1 | I13: 0.1 | J13: 0.1 | K13: 0.1 | L13: 0.1 | M13: 0.1 | N13: 0.1 | O13: 0.1 | P13: 0.1 | Q13: 0.1 | R13: 0.1 | S13: 0.1 | T13: 0.1 | U13: 0.1 | V13: 0.1 | W13: 0.1 | X13: 0.1 | Y13: 0.1 | Z13: 0.1 | AA13: 0.1 | AB13: 0.1 | AC13: 0.1 | AD13: 0.1 | AE13: 0.1 | AF13: 0.1 | AG13: 0.1 | AH13: 0.1
B14: % Increase in rate for Remote Service Zone | C14: 40 | D14: 40 | E14: 40 | F14: 40 | G14: 40 | H14: 40 | I14: 40 | J14: 40 | K14: 40 | L14: 40 | M14: 40 | N14: 40 | O14: 40 | P14: 40 | Q14: 40 | R14: 40 | S14: 40 | T14: 40 | U14: 40 | V14: 40 | W14: 40 | X14: 40 | Y14: 40 | Z14: 40 | AA14: 40 | AB14: 40 | AC14: 40 | AD14: 40 | AE14: 40 | AF14: 40 | AG14: 40 | AH14: 40
A16: Additional Service Coverage (per hour)
A17: Urban Service Zone | B17: 2 x 5 coverage (2 eight hour shifts, 5 days a week)
B18: 3 x 5 coverage (3 eight hour shifts, 5 days a week)
B19: 1 x 7 coverage (1 eight hour shift, 7 days a week)
B20: 2 x 7 coverage (2 eight hour shifts, 7 days a week)
B21: 3 x 7 coverage (3 eight hour shifts, 7 days a week)
A23: Rural Service Zone | B23: 2 x 5 coverage (2 eight hour shifts, 5 days a week)
B24: 3 x 5 coverage (3 eight hour shifts, 5 days a week)
B25: 1 x 7 coverage (1 eight hour shift, 7 days a week)
B26: 2 x 7 coverage (2 eight hour shifts, 7 days a week)
B27: 3 x 7 coverage (3 eight hour shifts, 7 days a week)
A29: Remote Service Zone | B29: 2 x 5 coverage (2 eight hour shifts, 5 days a week)
B30: 3 x 5 coverage (3 eight hour shifts, 5 days a week)
B31: 1 x 7 coverage (1 eight hour shift, 7 days a week)
B32: 2 x 7 coverage (2 eight hour shifts, 7 days a week)
B33: 3 x 7 coverage (3 eight hour shifts, 7 days a week)
A34: Service Calls not covered under the Maintenance Agreement
A35: Urban Service Zone | B35: Price Per Hour | C35: 200 | E35: 200 | G35: 200 | I35: 200 | K35: 200 | M35: 200 | O35: 200 | Q35: 200 | S35: 200 | U35: 200 | W35: 200 | Y35: 200 | AA35: 200 | AC35: 200 | AD35: 200 | AE35: 200 | AF35: 200 | AG35: 200 | AH35: 200
A37: Rural Service Zone | B37: Flat Rate Charge | C37: N/A | E37: N/A | G37: N/A | I37: N/A | K37: N/A | M37: N/A | O37: N/A | Q37: N/A | S37: N/A | U37: N/A | W37: N/A | Y37: N/A | AA37: N/A | AC37: N/A | AD37: N/A | AE37: N/A | AF37: N/A | AG37: N/A | AH37: N/A
B38: Price Per Mile | C38: N/A | E38: N/A | G38: N/A | I38: N/A | K38: N/A | M38: N/A | O38: N/A | Q38: N/A | S38: N/A | U38: N/A | W38: N/A | Y38: N/A | AA38: N/A | AC38: N/A | AD38: N/A | AE38: N/A | AF38: N/A | AG38: N/A | AH38: N/A
B39: Price Per Hour | C39: 200 | E39: 200 | G39: 200 | I39: 200 | K39: 200 | M39: 200 | O39: 200 | Q39: 200 | S39: 200 | U39: 200 | W39: 200 | Y39: 200 | AA39: 200 | AC39: 200 | AD39: 200 | AE39: 200 | AF39: 200 | AG39: 200 | AH39: 200
A41: Remote Service Zone | B41: Flat Rate Charge | C41: N/A | E41: N/A | G41: N/A | I41: N/A | K41: N/A | M41: N/A | O41: N/A | Q41: N/A | S41: N/A | U41: N/A | W41: N/A | Y41: N/A | AA41: N/A | AC41: N/A | AD41: N/A | AE41: N/A | AF41: N/A | AG41: N/A | AH41: N/A
B42: Price Per Mile | C42: N/A | E42: N/A | G42: N/A | I42: N/A | K42: N/A | M42: N/A | O42: N/A | Q42: N/A | S42: N/A | U42: N/A | W42: N/A | Y42: N/A | AA42: N/A | AC42: N/A | AD42: N/A | AE42: N/A | AF42: N/A | AG42: N/A | AH42: N/A
B43: Price Per Hour | C43: 200 | E43: 200 | G43: 200 | I43: 200 | K43: 200 | M43: 200 | O43: 200 | Q43: 200 | S43: 200 | U43: 200 | W43: 200 | Y43: 200 | AA43: 200 | AC43: 200 | AD43: 200 | AE43: 200 | AF43: 200 | AG43: 200 | AH43: 200
A44: End-User Training and Support (per hour) - beyond the required one free hour
A45: Additional End-User taining on Device and/or software | C45: 200 | E45: 200 | G45: 200 | I45: 200 | K45: 200 | M45: 200 | O45: 200 | Q45: 200 | S45: 200 | U45: 200 | W45: 200 | Y45: 200 | AA45: 200 | AC45: 200 | AD45: 200 | AE45: 200 | AF45: 200 | AG45: 200 | AH45: 200
A46: After hours technical phone support | C46: Quote upon request
A47: Additional Services
A48: Equipment Move Service Zone 2 | B48: Flat Rate Charge | C48: 795 | E48: 795 | G48: 795 | I48: 795 | K48: 795 | M48: 795 | O48: 795 | Q48: 795 | S48: 795 | U48: 795 | W48: 795 | Y48: 795 | AA48: 795 | AC48: 795 | AD48: 795 | AE48: 795 | AF48: 795 | AG48: 795 | AH48: 795
B49: Price Per Mile | C49: N/A | E49: N/A | G49: N/A | I49: N/A | K49: N/A | M49: N/A | O49: N/A | Q49: N/A | S49: N/A | U49: N/A | W49: N/A | Y49: N/A | AA49: N/A | AC49: N/A | AD49: N/A | AE49: N/A | AF49: N/A | AG49: N/A | AH49: N/A
B50: Price Per Hour | C50: N/A | E50: N/A | G50: N/A | I50: N/A | K50: N/A | M50: N/A | O50: N/A | Q50: N/A | S50: N/A | U50: N/A | W50: N/A | Y50: N/A | AA50: N/A | AC50: N/A | AD50: N/A | AE50: N/A | AF50: N/A | AG50: N/A | AH50: N/A
A52: Equipment Move Service Zone 3 | B52: Flat Rate Charge | C52: 895 | E52: 895 | G52: 895 | I52: 895 | K52: 895 | M52: 895 | O52: 895 | Q52: 895 | S52: 895 | U52: 895 | W52: 895 | Y52: 895 | AA52: 895 | AC52: 895 | AD52: 895 | AE52: 895 | AF52: 895 | AG52: 895 | AH52: 895
B53: Price Per Mile | C53: N/A | E53: N/A | G53: N/A | I53: N/A | K53: N/A | M53: N/A | O53: N/A | Q53: N/A | S53: N/A | U53: N/A | W53: N/A | Y53: N/A | AA53: N/A | AC53: N/A | AD53: N/A | AE53: N/A | AF53: N/A | AG53: N/A | AH53: N/A
B54: Price Per Hour | C54: N/A | E54: N/A | G54: N/A | I54: N/A | K54: N/A | M54: N/A | O54: N/A | Q54: N/A | S54: N/A | U54: N/A | W54: N/A | Y54: N/A | AA54: N/A | AC54: N/A | AD54: N/A | AE54: N/A | AF54: N/A | AG54: N/A | AH54: N/A
A56: Hard Drive Removal and Surrender | B56: Flat Rate Charge | C56: 300 | E56: 300 | G56: 300 | I56: 300 | K56: 300 | M56: 300 | O56: 300 | Q56: 300 | S56: 300 | U56: 300 | W56: 300 | Y56: 300 | AA56: 300 | AC56: 300 | AD56: 300 | AE56: 300 | AF56: 300 | AG56: 300 | AH56: 300

Sheet Group F
A1: Konica Minolta Business Solutions U.S.A., Inc.
A2: Group F | B2: Item Number | C2: Item Description | D2: MSRP | E2: NASPO Customer Price | F2: Discount
B3: Kodak Scanners
B4: 1960988 | C4: KODAK SCANMATE i940 SCANNER | D4: 400 | E4: 360 | F4: =100%-(E4/D4) -> 0.1
B5: Consumables
B6: 8467839 | C6: FEEDER MODULE i900 SERIES | D6: 45 | E6: 44.1 | F6: 0.02
B7: 1775246 | C7: SEPARATION MODULE i900 SERIES | D7: 38 | E7: 37.24 | F7: 0.02
B8: Kodak Scanners
B9: 1681006 | C9: KODAK I4250 SCANNER - 110PPM | D9: 11100 | E9: 9990 | F9: 0.1
B10: 1176031 | C10: KODAK I4650 SCANNER - 130PPM | D10: 16650 | E10: 14985 | F10: 0.1
B11: 1738764 | C11: KODAK I4850 SCANNER - 150PPM | D11: 22200 | E11: 19980 | F11: 0.1
B12: Warranty
B13: 1459650 | C13: KODAK I4650 KCK 1 YR PW ON-SITE 4HR 1PM | D13: 3566 | E13: 3566 | F13: 0
B14: 1097559 | C14: KODAK I4250 KCK 1 YR PW ON-SITE NBD 1PM | D14: 1985 | E14: 1890.230929 | F14: 0.04774260509
B15: 1119023 | C15: KODAK I4250 KCK 2 YR PW ON-SITE 4HR 1PM | D15: 4224 | E15: 4023.151426 | F15: 0.0475493782
B16: 1129121 | C16: KODAK I4250 KCK 2 YR PW ON-SITE NBD 1PM | D16: 3771 | E16: 3591.77192 | F16: 0.04752799781
B17: 1206184 | C17: CARE KIT I4250 NBD 5YR. | D17: 7991 | E17: 7610.917633 | F17: 0.0475638051
B18: 1248210 | C18: CARE KIT I4250 NBD 2YR. | D18: 3143 | E18: 2993.627663 | F18: 0.04752540151
B19: 1384528 | C19: KODAK I4250 KCK 3 YR PW ON-SITE NBD 1PM | D19: 5299 | E19: 5046.666667 | F19: 0.04761904762
B20: 1519164 | C20: CARE KIT I4250 SBD 1YR | D20: 1587 | E20: 1511.820896 | F20: 0.04737183647
B21: 1674365 | C21: KODAK I4250 KCK 1 YR PW ON-SITE 4HR 1PM | D21: 2224 | E21: 2117.899027 | F21: 0.04770727189
B22: 1696624 | C22: CARE KIT I4250 SBD 2YR. | D22: 3521 | E22: 3353.088063 | F22: 0.04768870685
B23: 1704162 | C23: KODAK I4250 KCK 3 YR PW ON-SITE 4HR 1PM | D23: 5936 | E23: 5653.77477 | F23: 0.04754468159
B24: 1724343 | C24: CARE KIT I4250 SBD 3YR | D24: 5183 | E24: 4935.798092 | F24: 0.04769475358
B25: 1749829 | C25: CARE KIT I4250 SBD 5YR | D25: 8952 | E25: 8525.567138 | F25: 0.04763548498
B26: 1820893 | C26: CARE KIT I4250 NBD 1YR. | D26: 1418 | E26: 1350.034858 | F26: 0.04793028322
B27: 1947092 | C27: CARE KIT I4250 NBD 3YR. | D27: 4627 | E27: 4406.568566 | F27: 0.04764024933
B28: 1270156 | C28: I4650 KCK 1 YR EXT WAR ON-SITE NBD 1PM | D28: 2273 | E28: 2164.859991 | F28: 0.04757589488
B29: 1993484 | C29: I4650 KCK 1 YR EXT WAR ON-SITE 4HR 1PM | D29: 2547 | E29: 2425.469066 | F29: 0.04771532552
B30: 1961754 | C30: I4650 KCK 2 YR EXT WAR ON-SITE NBD 1PM | D30: 5040 | E30: 4800 | F30: 0.04761904762
B31: 1495258 | C31: I4650 KCK 3 YR EXT WAR ON-SITE NBD 1PM | D31: 7086 | E31: 6748.17907 | F31: 0.0476744186
B32: 1799899 | C32: I4650 KCK 5 YR EXT WAR ON-SITE NBD 1PM | D32: 12817 | E32: 12206.22525 | F32: 0.04765348762
B33: 1474865 | C33: I4650 KCK 2 YR EXT WAR ON-SITE 4HR 1PM | D33: 5646 | E33: 5377.191901 | F33: 0.04761036118
B34: 1638311 | C34: I4650 KCK 3 YR EXT WAR ON-SITE 4HR 1PM | D34: 7939 | E34: 7561.001427 | F34: 0.04761286975
B35: 1925684 | C35: I4650 KCK 5 YR EXT WAR ON-SITE 4HR 1PM | D35: 14358 | E35: 13674.08953 | F35: 0.04763271162
B36: 1509892 | C36: I4850 KCK 1 YR EXT WAR ON-SITE NBD 1PM | D36: 2578 | E36: 2455.434279 | F36: 0.04754294846
B37: 1643543 | C37: I4850 KCK 2 YR EXT WAR ON-SITE NBD 1PM | D37: 5714 | E37: 5442.100937 | F37: 0.04758471521
B38: 1883859 | C38: I4850 KCK 3 YR EXT WAR ON-SITE NBD 1PM | D38: 8034 | E38: 7651.87 | F38: 0.04756410256
B39: 1410315 | C39: I4850 KCK 5 YR EXT WAR ON-SITE NBD 1PM | D39: 14539 | E39: 13846.86285 | F39: 0.04760555398
B40: 1620194 | C40: I4850 KCK 1 YR EXT WAR ON-SITE 4HR 1 PM | D40: 2886 | E40: 2749.012848 | F40: 0.04746609565
B41: 1032010 | C41: I4850 KCK 2 YR EXT WAR ON-SITE 4HR 1PM | D41: 6399 | E41: 6094.13858 | F41: 0.04764204088
B42: 1334226 | C42: I4850 KCK 3 YR EXT WAR ON-SITE 4HR 1PM | D42: 8998 | E42: 8569.52381 | F42: 0.04761904762
B43: Post Warranty
B44: 1000124 | C44: KODAK I4850 KCK 2 YR PW ON-SITE NBD 1PM | D44: 6858 | E44: 6531.477621 | F44: 0.04761189546
B45: 1014778 | C45: KODAK I4850 KCK 3 YR PW ON-SITE NBD 1PM | D45: 9204 | E45: 8765.223814 | F45: 0.04767233662
B46: 1291079 | C46: KODAK I4850 KCK 2 YR PW ON-SITE 4HR 1PM | D46: 7680 | E46: 7314.334764 | F46: 0.04761266094
B47: 1330067 | C47: KODAK I4850 KCK 3 YR PW ON-SITE 4HR 1PM | D47: 10307 | E47: 9815.70001 | F47: 0.04766663336
B48: 1415918 | C48: KODAK I4850 KCK 1 YR PW ON-SITE NBD 1PM | D48: 3609 | E48: 3436.995719 | F48: 0.04765981735
B49: 1774728 | C49: KODAK I4850 KCK 1 YR PW ON-SITE 4HR 1PM | D49: 4042 | E49: 3849.376656 | F49: 0.04765545362
B50: Kodak Scanners
B51: 1615962 | C51: KODAK I5850 SCANNER - 210PPM | D51: 88900 | E51: 82677 | F51: 0.07
B52: 1207844 | C52: KODAK COLOR SCANNER I5650 180PPM | D52: 50000 | E52: 46500 | F52: 0.07
B53: 1759380 | C53: KODAK - I5250V SCANNER - 140 PPM | D53: 40000 | E53: 37200 | F53: 0.07
B54: 1257773 | C54: KODAK I5650V SCANNER 180PPM/360IPM GSA | D54: 55000 | E54: 51150 | F54: 0.07
B55: 1473230 | C55: KODAK - I5650V SCANNER - 170 PPM | D55: 55000 | E55: 51150 | F55: 0.07
B56: 1524677 | C56: KODAK I5250 SCANNER - 150 PPM | D56: 33300 | E56: 30969 | F56: 0.07
B57: 1078161 | C57: KODAK - I5850S SCANNER -210PPM + | D57: 100000 | E57: 93000 | F57: 0.07
B58: Accessories
B59: 1626803 | C59: KODAK 30 IN OUTPUT EXTENDER TRAY | D59: 470 | E59: 460.6 | F59: 0.02
B60: 1498476 | C60: KODAK 34 IN OUTPUT EXTENDER TRAY | D60: 500 | E60: 490 | F60: 0.02
B61: 1612605 | C61: UPPER FLIPPABLE WHITE BKGRND | D61: 265 | E61: 262.35 | F61: 0.01
B62: Warranty
B63: 7640017007 | C63: CARE KIT i5600 POST WARRANTY RENEWAL | D63: 7641 | E63: 7641 | F63: 0
B64: 1694868 | C64: KODAK - I5850S KCK 1 YR EXT WAR 4HR 1PM | D64: 11394 | E64: 10851.18333 | F64: 0.04764057133
B65: 1722149 | C65: KODAK - I5850S KCK 2 YR EXT WAR 4HR 1PM | D65: 25255 | E65: 24051.93952 | F65: =100%-(E65/D65) -> 0.04763652678
B66: 1073071 | C66: KODAK - I5850S KCK 3 YR EXT WAR 4HR 1PM | D66: 37597 | E66: 35806.86286 | F66: 0.04761382938
B67: 1515782 | C67: KODAK - I5850S KCK 5 YR EXT WAR 4HR 1PM | D67: 64940 | E67: 61847.96238 | F67: 0.04761376073
B68: 1063056 | C68: KODAK - I5850S KCK 1 YR PW 4HR 1PM | D68: 15950 | E68: 15190.86858 | F68: 0.04759444624
B69: 1527456 | C69: KODAK - I5850S KCK 2 YR PW 4 HR 1PM | D69: 31196 | E69: 29710.72143 | F69: 0.04761118632
B70: 1331370 | C70: KODAK - I5850S KCK 3 YR PW 4 HR 1PM | D70: 44331 | E70: 42219.50953 | F70: 0.04763011152
B71: 1031590 | C71: KODAK I5800 CARE KIT 3 YR PW 4 HR 1PM | D71: 34420 | E71: 32781.24667 | F71: 0.04761049765
B72: 1235050 | C72: I52X0 KCK 1 YR PW 4 HR 1PM | D72: 5745 | E72: 5471.036214 | F72: 0.04768734313
B73: 1082387 | C73: I52X0 KCK 3 YR PW 4 HR 1PM | D73: 10915 | E73: 10394.84571 | F73: 0.0476549967
B74: 1044148 | C74: I52X0 KCK 3 YR PW 4 HR 1PM | D74: 14648 | E74: 13950.67239 | F74: 0.04760565361
B75: 1568351 | C75: I5800 KCK 1 YR EXT WAR 4HR 1PM | D75: 9106 | E75: 8672.380952 | F75: 0.04761904762
B76: 1657063 | C76: I5800 KCK 1 YR PW 4 HR 1PM | D76: 12747 | E76: 12140.34333 | F76: 0.04759211377
B77: 1230473 | C77: CARE KIT I52X0 1 YR. 1PM SBD | D77: 4104 | E77: 3908.277108 | F77: 0.04769076305
B78: 1600725 | C78: CARE KIT I52X0 2 YR. 1PM SBD | D78: 9096 | E78: 8662.366663 | F78: 0.04767297022
B79: 1671528 | C79: CARE KIT I52X0 3 YR. 1PM SBD | D79: 12787 | E79: 12178.29142 | F79: 0.0476037052
B80: 1672930 | C80: CARE KIT I52X0 5 YR. 1PM SBD | D80: 23128 | E80: 22026.91191 | F80: 0.04760844393
B81: Kodak Scanners
B82: 1014968 | C82: KODAK S2050 50PPM/100IPM | D82: 950 | E82: 855 | F82: 0.1
B83: 1015049 | C83: KODAK S2070 70PPM/140IPM | D83: 1100 | E83: 990 | F83: 0.1
B84: 1015114 | C84: KODAK S2060W 60PPM/120IPM WIRELESS | D84: 1300 | E84: 1170 | F84: 0.1
B85: 1015189 | C85: KODAK - ALARIS S2080W SCANNER- 80PPM | D85: 1600 | E85: 1440 | F85: 0.1
B86: 8001703 | C86: KODAK S2085F SCANNER- 85PPM | D86: 3100 | E86: 2790 | F86: 0.1
B87: 8001919 | C87: S2085F 85PPM/170IPM FB GSA | D87: 3200 | E87: 2880 | F87: 0.1
B88: Warranty
B89: 8006157 | C89: KODAK S2085 1YR PW NBD AUR KCK | D89: 453 | E89: 422.7519545 | F89: 0.06677272727
B90: 8006439 | C90: S2085 1YR PW ONSIT NBD 1PM ESSENTIAL KCK | D90: 906 | E90: 845.5039091 | F90: 0.06677272727
B91: 8006405 | C91: S2085 3YR EW ONSTE NBD 1PM ESSENTIAL KCK | D91: 2017 | E91: 1882.773698 | F91: 0.06654749745
B92: 8008658 | C92: KODAK S2085 5YR PW OS NBD 1PM ESS KCK | D92: 3851 | E92: 3667.668093 | F92: 0.04760631185
B93: Consumables
B94: 1029784 | C94: KODAK S2050/70/60W/80W SEP PAD&ROLL | D94: 26.39 | E94: 26.1261 | F94: 0.01
B95: Kodak Scanners
B96: 8001711 | C96: KODAK S3060 SCANNER- 60PPM | D96: 4000 | E96: 3600 | F96: =100%-(E96/D96) -> 0.1
B97: 8001851 | C97: KODAK S3100F SCANNER- 100PPM | D97: 6000 | E97: 5400 | F97: 0.1
B98: 8001802 | C98: KODAK S3100 SCANNER- 100PPM | D98: 5700 | E98: 5130 | F98: 0.1
B99: 8001893 | C99: KODAK S3120F SCANNER- 120PPM | D99: 8350 | E99: 7515 | F99: 0.1
B100: Warranty
B101: 8006207 | C101: KODAK S3060 1YR PW NBD AUR KCK | D101: 453 | E101: 431.3795455 | F101: 0.04772727273
B102: 8006231 | C102: KODAK S3060 5YR EW NBD AUR KCK | D102: 1488.9 | E102: 1488.9 | F102: 0
B103: 8006587 | C103: KODAK S3100F 1YR EW ONSITE NBD 1PM KCK | D103: 683 | E103: 650.4761905 | F103: 0.04761904762
B104: 8006611 | C104: KODAK S3100F 3YR EW ONSITE NBD 1PM KCK | D104: 2128 | E104: 1986.301935 | F104: 0.06658743633
B105: 8006629 | C105: KODAK S3100F 5YR EW ONSITE NBD 1PM KCK | D105: 3675 | E105: 3429.83145 | F105: 0.06671253071
B106: 8006645 | C106: KODAK S3100F 1YR PW ONSITE NBD 1PM KCK | D106: 956 | E106: 892.6040076 | F106: 0.06631379962
B107: 8006249 | C107: KODAK S3100 1YR PW NBD AUR KCK | D107: 545 | E107: 519.2438563 | F107: 0.04725897921
B108: 8006272 | C108: KODAK S3100F 1YR PW NBD AUR KCK | D108: 545 | E108: 519.2438563 | F108: 0.04725897921
B109: 8006322 | C109: KODAK S3120 1YR PW NBD AUR KCK | D109: 580 | E109: 552.1847247 | F109: 0.04795737123
B110: 8006447 | C110: KODAK S3060 1YR EW ONSITE NBD 1PM KCK | D110: 648 | E110: 617.0937997 | F110: 0.04769475358
B111: 8006454 | C111: KODAK S3060 3YR EW ONSITE NBD 1PM KCK | D111: 2017 | E111: 1921.197651 | F111: 0.04749744637
B112: 8006488 | C112: KODAK S3060 5YR EW ONSITE NBD 1PM KCK | D112: 3484 | E112: 3318.19332 | F112: 0.04759089565
B113: 8006496 | C113: KODAK S3100 1YR PW NBD AUR KCK | D113: 906 | E113: 862.7590909 | F113: 0.04772727273
B114: 8006520 | C114: KODAK S3100 3YR EW ONSITE NBD 1PM KCK | D114: 2128 | E114: 2026.83871 | F114: 0.04753820034
B115: 8006538 | C115: KODAK S3100 5YR EW ONSITE NBD 1PM KCK | D115: 3675 | E115: 3499.82801 | F115: 0.04766584767
B116: 8006561 | C116: KODAK S3100 1YR PW ONSITE NBD 1PM KCK | D116: 956 | E116: 910.8204159 | F116: 0.04725897921
B117: 8006652 | C117: KODAK S3120 1YR EW ONSITE NBD 1PM KCK | D117: 716 | E117: 682.117061 | F117: 0.04732254047
B118: 8006660 | C118: KODAK S3120 3YR EW ONSITE NBD 1PM KCK | D118: 2232 | E118: 2125.884139 | F118: 0.04754294846
B119: 8006678 | C119: KODAK S3120 5YR EW ONSITE NBD 1PM KCK | D119: 3856 | E119: 3672.296022 | F119: 0.04764107308
B120: 8006694 | C120: KODAK S3120 1YR PW ONSITE NBD 1PM KCK | D120: 1003 | E120: 954.856 | F120: 0.048
B121: 8008682 | C121: KODAK S3060 3YR PW OS NBD 1PM ESS KCK | D121: 2311 | E121: 2200.805258 | F121: 0.04768270945
B122: 8008716 | C122: KODAK S3060 5YR PW OS NBD 1PM ESS KCK | D122: 3851 | E122: 3667.668093 | F122: 0.04760631185
B123: 8008740 | C123: KODAK S3100 3YR PW OS NBD 1PM ESS KCK | D123: 2437 | E123: 2320.522416 | F123: 0.04779547981
B124: 8008765 | C124: KODAK S3100 5YR PW OS NBD 1PM ESS KCK | D124: 4062 | E124: 3868.743442 | F124: 0.04757670076
B125: 8008823 | C125: KODAK S3100F 3YR PW OS NBD 1PM ESS KCK | D125: 2437 | E125: 2320.522416 | F125: 0.04779547981
B126: 8008831 | C126: KODAK S3100F 5YR PW OS NBD 1PM ESS KCK | D126: 4062 | E126: 3868.743442 | F126: 0.04757670076
B127: 8008963 | C127: KODAK S3120 3YR PW OS NBD 1PM ESS KCK | D127: 2557 | E127: 2434.855997 | F127: 0.04776847978
B128: 8008989 | C128: KODAK S3120 5YR PW OS NBD 1PM ESS KCK | D128: 4262 | E128: 4058.70795 | F128: 0.04769874477
B129: Kodak Accessories
B130: 1002716 | C130: ROLLER CLEANING PADS 24PK | D130: 25 | E130: 24.75 | F130: 0.01
B131: 8965519 | C131: STATICIDE WIPES FIMGLNK & SCANNERS | D131: 89 | E131: 88.11 | F131: 0.01
B132: 1690783 | C132: DS TRANSPORT CLEANING SHEETS | D132: 70 | E132: 69.3 | F132: 0.01
B133: Kodak Scanners
B134: 1060094 | C134: KODAK - SCAN STATION 730 EX PLUS - 70PPM | D134: 2700 | E134: 2430 | F134: 0.1
B135: Accessories
B136: 1894351 | C136: A3 FLATBED 11 X 17 | D136: 1400 | E136: 1372 | F136: 0.02
B137: 1199470 | C137: LEGAL FLATBED I2000 & I3000 | D137: 500 | E137: 490 | F137: 0.02
B139: ibml Scanner
B140: 60831111 | C140: ibml FUSiON 8300 | D140: 144300 | E140: 134199 | F140: 0.07
B141: Software
B142: 25000065S | C142: PostScan w/Searchable PDF | D142: 9500 | E142: 9500 | F142: 0
B143: 25000022 | C143: DocNetics, ChecksAll, Single Camera | D143: 7370 | E143: 7370 | F143: 0
B144: 25000017 | C144: DocNetics Barcode 1D | D144: 7470 | E144: 7470 | F144: 0
B145: Accessories
B146: 18000048 | C146: Computers, Dell 7960XL-5418Y Embedded Applicatio Controller | D146: 15000 | E146: 14700 | F146: 0.02
B147: 20700023 | C147: Fusion Pre-Image, Base Single Head IJP | D147: 11600 | E147: 11368 | F147: 0.02
B148: 20700009 | C148: Fusion E13B MICR Reader | D148: 16400 | E148: 16072 | F148: 0.02
B149: Services
B150: 50100002 | C150: ImageTrac Operator Training | D150: 2600 | E150: 2574 | F150: 0.01
B151: 50000002 | C151: Project Management- Hourly | D151: 250 | E151: 248 | F151: 0.008
B152: 50000005 | C152: Software Configuration- Hourly | D152: 300 | E152: 297 | F152: 0.01
B153: 50000006 | C153: Integration Services/Hourly | D153: 250 | E153: 248 | F153: 0.008
B154: 50000064 | C154: Custom Development | D154: 18000 | E154: 17820 | F154: 0.01
B155: 50100007 | C155: Scanner Hardware Installation | D155: 1800 | E155: 1782 | F155: 0.01
B156: 50100014 | C156: Travel & Living Fixed Amount | D156: 4000 | E156: 3960 | F156: 0.01
B157: Supplies
B158: HWFULL854MS | C158: Full 8x5x4 - Hardware Maintenance (Annual) | D158: 54990 | E158: 54440 | F158: 0.01000181851
B159: SWFULL854MS | C159: Full 8x5x4 - Software Maintenance (Annual) | D159: 7836 | E159: 7758 | F159: 0.009954058193
C161: ibml FUSiON 8200 | D161: =SUM(D163:D178) -> 188616 | E161: =SUM(E163:E178) -> 185926.73 | F161: 0.01425791025
B162: Software
B163: 250000757200S | C163: FUSION 7200x8200 Software Bundle wSearchable PDF | D163: 21300 | E163: 21300 | F163: 0
B164: 25000037 | C164: Data & Image Retention Utility | D164: 7130 | E164: 7130 | F164: =100%-(E164/D164) -> 0
B165: 25000070 | C165: SoftTrac Quality Control | D165: 2970 | E165: 2970 | F165: 0
B166: Accessories
B167: 18000048 | C167: Computers, Dell 7960XL-5418Y Embedded Applicatio Controller | D167: 15000 | E167: 14700 | F167: 0.02
B168: 80000086 | C168: Document Jogger, 115VAC, 6oHz 2 Pocket Tilt Rack | D168: 1960 | E168: 1920.8 | F168: 0.02
B169: 60820010 | C169: ibml FUSiONI 8200 Two Frame 1 Full Size Stacker | D169: 94800 | E169: 92904 | F169: 0.02
B170: 27700001 | C170: Power Option - 120VAC 50 i30Hz 15A Max | D170: 1 | E170: 0.98 | F170: 0.02
B171: Services
B172: 50100002 | C172: ImageTrac Operator Training | D172: 2600 | E172: 2574 | F172: 0.01
B173: 50000006 | C173: Integration Services/Hourly | D173: 250 | E173: 248 | F173: 0.008
B174: 50000066 | C174: PS for FUSION 7200/8200 Raptor | D174: 15000 | E174: 14850 | F174: 0.01
B175: 50100014 | C175: Travel & Living Fixed Amount | D175: 4000 | E175: 3960 | F175: 0.01
B176: Supplies
B177: HWFULL854MS8200 | C177: Full 8x5x4 - Hardware | D177: 16137 | E177: 15975.63 | F177: 0.01
B178: SWFULL854MS8200 | C178: Full 8x5x4 - Software | D178: 7468 | E178: 7393.32 | F178: 0.01

Sheet Group F Service
A1: Konica Minolta Business Solutions U.S.A., Inc. | H1: Table of Contents
A2: Group F- Scanners Service | B2: Item Number | C2: Item Description | D2: MSRP | E2: NASPO Customer Price | F2: Discount
B3: 1960988 | C3: KODAK SCANMATE i940 SCANNER
B4: 1681006 | C4: KODAK I4250 SCANNER - 110PPM
B5: 1176031 | C5: KODAK I4650 SCANNER - 130PPM
B6: 1738764 | C6: KODAK I4850 SCANNER - 150PPM
B7: Warranty
B8: 1459650 | C8: KODAK I4650 KCK 1 YR PW ON-SITE 4HR 1PM | D8: 3462 | E8: 3462 | F8: =100%-(E8/D8) -> 0
B9: 1097559 | C9: KODAK I4250 KCK 1 YR PW ON-SITE NBD 1PM | D9: 1927 | E9: 1835 | F9: 0.04774260509
B10: 1119023 | C10: KODAK I4250 KCK 2 YR PW ON-SITE 4HR 1PM | D10: 4101 | E10: 3906 | F10: 0.0475493782
B11: 1129121 | C11: KODAK I4250 KCK 2 YR PW ON-SITE NBD 1PM | D11: 3661 | E11: 3487 | F11: 0.04752799781
B12: 1206184 | C12: CARE KIT I4250 NBD 5YR. | D12: 7758 | E12: 7389 | F12: 0.0475638051
B13: 1248210 | C13: CARE KIT I4250 NBD 2YR. | D13: 3051 | E13: 2906 | F13: 0.04752540151
B14: 1384528 | C14: KODAK I4250 KCK 3 YR PW ON-SITE NBD 1PM | D14: 5145 | E14: 4900 | F14: 0.04761904762
B15: 1519164 | C15: CARE KIT I4250 SBD 1YR | D15: 1541 | E15: 1468 | F15: 0.04737183647
B16: 1674365 | C16: KODAK I4250 KCK 1 YR PW ON-SITE 4HR 1PM | D16: 2159 | E16: 2056 | F16: 0.04770727189
B17: 1696624 | C17: CARE KIT I4250 SBD 2YR. | D17: 3418 | E17: 3255 | F17: 0.04768870685
B18: 1704162 | C18: KODAK I4250 KCK 3 YR PW ON-SITE 4HR 1PM | D18: 5763 | E18: 5489 | F18: 0.04754468159
B19: 1724343 | C19: CARE KIT I4250 SBD 3YR | D19: 5032 | E19: 4792 | F19: 0.04769475358
B20: 1749829 | C20: CARE KIT I4250 SBD 5YR | D20: 8691 | E20: 8277 | F20: 0.04763548498
B21: 1820893 | C21: CARE KIT I4250 NBD 1YR. | D21: 1377 | E21: 1311 | F21: 0.04793028322
B22: 1947092 | C22: CARE KIT I4250 NBD 3YR. | D22: 4492 | E22: 4278 | F22: 0.04764024933
B23: 1270156 | C23: I4650 KCK 1 YR EXT WAR ON-SITE NBD 1PM | D23: 2207 | E23: 2102 | F23: 0.04757589488
B24: 1993484 | C24: I4650 KCK 1 YR EXT WAR ON-SITE 4HR 1PM | D24: 2473 | E24: 2355 | F24: 0.04771532552
B25: 1961754 | C25: I4650 KCK 2 YR EXT WAR ON-SITE NBD 1PM | D25: 4893 | E25: 4660 | F25: 0.04761904762
B26: 1495258 | C26: I4650 KCK 3 YR EXT WAR ON-SITE NBD 1PM | D26: 6880 | E26: 6552 | F26: 0.0476744186
B27: 1799899 | C27: I4650 KCK 5 YR EXT WAR ON-SITE NBD 1PM | D27: 12444 | E27: 11851 | F27: 0.04765348762
B28: 1474865 | C28: I4650 KCK 2 YR EXT WAR ON-SITE 4HR 1PM | D28: 5482 | E28: 5221 | F28: 0.04761036118
B29: 1638311 | C29: I4650 KCK 3 YR EXT WAR ON-SITE 4HR 1PM | D29: 7708 | E29: 7341 | F29: 0.04761286975
B30: 1925684 | C30: I4650 KCK 5 YR EXT WAR ON-SITE 4HR 1PM | D30: 13940 | E30: 13276 | F30: 0.04763271162
B31: 1509892 | C31: I4850 KCK 1 YR EXT WAR ON-SITE NBD 1PM | D31: 2503 | E31: 2384 | F31: 0.04754294846
B32: 1643543 | C32: I4850 KCK 2 YR EXT WAR ON-SITE NBD 1PM | D32: 5548 | E32: 5284 | F32: 0.04758471521
B33: 1883859 | C33: I4850 KCK 3 YR EXT WAR ON-SITE NBD 1PM | D33: 7800 | E33: 7429 | F33: 0.04756410256
B34: 1410315 | C34: I4850 KCK 5 YR EXT WAR ON-SITE NBD 1PM | D34: 14116 | E34: 13444 | F34: 0.04760555398
B35: 1620194 | C35: I4850 KCK 1 YR EXT WAR ON-SITE 4HR 1 PM | D35: 2802 | E35: 2669 | F35: 0.04746609565
B36: 1032010 | C36: I4850 KCK 2 YR EXT WAR ON-SITE 4HR 1PM | D36: 6213 | E36: 5917 | F36: 0.04764204088
B37: 1334226 | C37: I4850 KCK 3 YR EXT WAR ON-SITE 4HR 1PM | D37: 8736 | E37: 8320 | F37: 0.04761904762
B38: Post Warranty
B39: 1000124 | C39: KODAK I4850 KCK 2 YR PW ON-SITE NBD 1PM | D39: 6658 | E39: 6341 | F39: 0.04761189546
B40: 1014778 | C40: KODAK I4850 KCK 3 YR PW ON-SITE NBD 1PM | D40: 8936 | E40: 8510 | F40: 0.04767233662
B41: 1291079 | C41: KODAK I4850 KCK 2 YR PW ON-SITE 4HR 1PM | D41: 7456 | E41: 7101 | F41: 0.04761266094
B42: 1330067 | C42: KODAK I4850 KCK 3 YR PW ON-SITE 4HR 1PM | D42: 10007 | E42: 9530 | F42: 0.04766663336
B43: 1415918 | C43: KODAK I4850 KCK 1 YR PW ON-SITE NBD 1PM | D43: 3504 | E43: 3337 | F43: 0.04765981735
B44: 1774728 | C44: KODAK I4850 KCK 1 YR PW ON-SITE 4HR 1PM | D44: 3924 | E44: 3737 | F44: 0.04765545362
B45: Kodak Scanners
B46: 1615962 | C46: KODAK I5850 SCANNER - 210PPM
B47: 1207844 | C47: KODAK COLOR SCANNER I5650 180PPM
B48: 1759380 | C48: KODAK - I5250V SCANNER - 140 PPM
B49: 1257773 | C49: KODAK I5650V SCANNER 180PPM/360IPM GSA
B50: 1473230 | C50: KODAK - I5650V SCANNER - 170 PPM
B51: 1524677 | C51: KODAK I5250 SCANNER - 150 PPM
B52: 1078161 | C52: KODAK - I5850S SCANNER -210PPM +
B53: Warranty
B54: 7640017007 | C54: CARE KIT i5600 POST WARRANTY RENEWAL | D54: 7641 | E54: 7641 | F54: 0
B55: 1694868 | C55: KODAK - I5850S KCK 1 YR EXT WAR 4HR 1PM | D55: 11062 | E55: 10535 | F55: 0.04764057133
B56: 1722149 | C56: KODAK - I5850S KCK 2 YR EXT WAR 4HR 1PM | D56: 24519 | E56: 23351 | F56: =100%-(E56/D56) -> 0.04763652678
B57: 1073071 | C57: KODAK - I5850S KCK 3 YR EXT WAR 4HR 1PM | D57: 36502 | E57: 34764 | F57: 0.04761382938
B58: 1515782 | C58: KODAK - I5850S KCK 5 YR EXT WAR 4HR 1PM | D58: 63049 | E58: 60047 | F58: 0.04761376073
B59: 1063056 | C59: KODAK - I5850S KCK 1 YR PW 4HR 1PM | D59: 15485 | E59: 14748 | F59: 0.04759444624
B60: 1527456 | C60: KODAK - I5850S KCK 2 YR PW 4 HR 1PM | D60: 30287 | E60: 28845 | F60: 0.04761118632
B61: 1331370 | C61: KODAK - I5850S KCK 3 YR PW 4 HR 1PM | D61: 43040 | E61: 40990 | F61: 0.04763011152
B62: 1031590 | C62: KODAK I5800 CARE KIT 3 YR PW 4 HR 1PM | D62: 33417 | E62: 31826 | F62: 0.04761049765
B63: 1235050 | C63: I52X0 KCK 1 YR PW 4 HR 1PM | D63: 5578 | E63: 5312 | F63: 0.04768734313
B64: 1082387 | C64: I52X0 KCK 3 YR PW 4 HR 1PM | D64: 10597 | E64: 10092 | F64: 0.0476549967
B65: 1044148 | C65: I52X0 KCK 3 YR PW 4 HR 1PM | D65: 14221 | E65: 13544 | F65: 0.04760565361
B66: 1568351 | C66: I5800 KCK 1 YR EXT WAR 4HR 1PM | D66: 8841 | E66: 8420 | F66: 0.04761904762
B67: 1657063 | C67: I5800 KCK 1 YR PW 4 HR 1PM | D67: 12376 | E67: 11787 | F67: 0.04759211377
B68: 1230473 | C68: CARE KIT I52X0 1 YR. 1PM SBD | D68: 3984 | E68: 3794 | F68: 0.04769076305
B69: 1600725 | C69: CARE KIT I52X0 2 YR. 1PM SBD | D69: 8831 | E69: 8410 | F69: 0.04767297022
B70: 1671528 | C70: CARE KIT I52X0 3 YR. 1PM SBD | D70: 12415 | E70: 11824 | F70: 0.0476037052
B71: 1672930 | C71: CARE KIT I52X0 5 YR. 1PM SBD | D71: 22454 | E71: 21385 | F71: 0.04760844393
B72: Kodak Scanners
B73: 1014968 | C73: KODAK S2050 50PPM/100IPM
B74: 1015049 | C74: KODAK S2070 70PPM/140IPM
B75: 1015114 | C75: KODAK S2060W 60PPM/120IPM WIRELESS
B76: 1015189 | C76: KODAK - ALARIS S2080W SCANNER- 80PPM
B77: 8001703 | C77: KODAK S2085F SCANNER- 85PPM
B78: 8001919 | C78: S2085F 85PPM/170IPM FB GSA
B79: Warranty
B80: 8006157 | C80: KODAK S2085 1YR PW NBD AUR KCK | D80: 440 | E80: 410.62 | F80: 0.06677272727
B81: 8006439 | C81: S2085 1YR PW ONSIT NBD 1PM ESSENTIAL KCK | D81: 880 | E81: 821.24 | F81: 0.06677272727
B82: 8006405 | C82: S2085 3YR EW ONSTE NBD 1PM ESSENTIAL KCK | D82: 1958 | E82: 1827.7 | F82: 0.06654749745
B83: 8008658 | C83: KODAK S2085 5YR PW OS NBD 1PM ESS KCK | D83: 3739 | E83: 3561 | F83: 0.04760631185
B84: Kodak Scanners
B85: 8001711 | C85: KODAK S3060 SCANNER- 60PPM
B86: 8001851 | C86: KODAK S3100F SCANNER- 100PPM
B87: 8001802 | C87: KODAK S3100 SCANNER- 100PPM
B88: 8001893 | C88: KODAK S3120F SCANNER- 120PPM
B89: Warranty
B90: 8006207 | C90: KODAK S3060 1YR PW NBD AUR KCK | D90: 440 | E90: 419 | F90: =100%-(E90/D90) -> 0.04772727273
B91: 8006231 | C91: KODAK S3060 5YR EW NBD AUR KCK | D91: 1488.9 | E91: 1488.9 | F91: 0
B92: 8006587 | C92: KODAK S3100F 1YR EW ONSITE NBD 1PM KCK | D92: 756 | E92: 720 | F92: 0.04761904762
B93: 8006611 | C93: KODAK S3100F 3YR EW ONSITE NBD 1PM KCK | D93: 2356 | E93: 2199.12 | F93: 0.06658743633
B94: 8006629 | C94: KODAK S3100F 5YR EW ONSITE NBD 1PM KCK | D94: 4070 | E94: 3798.48 | F94: 0.06671253071
B95: 8006645 | C95: KODAK S3100F 1YR PW ONSITE NBD 1PM KCK | D95: 1058 | E95: 987.84 | F95: 0.06631379962
B96: 8006249 | C96: KODAK S3100 1YR PW NBD AUR KCK | D96: 529 | E96: 504 | F96: 0.04725897921
B97: 8006272 | C97: KODAK S3100F 1YR PW NBD AUR KCK | D97: 529 | E97: 504 | F97: 0.04725897921
B98: 8006322 | C98: KODAK S3120 1YR PW NBD AUR KCK | D98: 563 | E98: 536 | F98: 0.04795737123
B99: 8006447 | C99: KODAK S3060 1YR EW ONSITE NBD 1PM KCK | D99: 629 | E99: 599 | F99: 0.04769475358
B100: 8006454 | C100: KODAK S3060 3YR EW ONSITE NBD 1PM KCK | D100: 1958 | E100: 1865 | F100: 0.04749744637
B101: 8006488 | C101: KODAK S3060 5YR EW ONSITE NBD 1PM KCK | D101: 3383 | E101: 3222 | F101: 0.04759089565
B102: 8006496 | C102: KODAK S3100 1YR PW NBD AUR KCK | D102: 880 | E102: 838 | F102: 0.04772727273
B103: 8006520 | C103: KODAK S3100 3YR EW ONSITE NBD 1PM KCK | D103: 2356 | E103: 2244 | F103: 0.04753820034
B104: 8006538 | C104: KODAK S3100 5YR EW ONSITE NBD 1PM KCK | D104: 4070 | E104: 3876 | F104: 0.04766584767
B105: 8006561 | C105: KODAK S3100 1YR PW ONSITE NBD 1PM KCK | D105: 1058 | E105: 1008 | F105: 0.04725897921
B106: 8006652 | C106: KODAK S3120 1YR EW ONSITE NBD 1PM KCK | D106: 803 | E106: 765 | F106: 0.04732254047
B107: 8006660 | C107: KODAK S3120 3YR EW ONSITE NBD 1PM KCK | D107: 2503 | E107: 2384 | F107: 0.04754294846
B108: 8006678 | C108: KODAK S3120 5YR EW ONSITE NBD 1PM KCK | D108: 4324 | E108: 4118 | F108: 0.04764107308
B109: 8006694 | C109: KODAK S3120 1YR PW ONSITE NBD 1PM KCK | D109: 1125 | E109: 1071 | F109: 0.048
B110: 8008682 | C110: KODAK S3060 3YR PW OS NBD 1PM ESS KCK | D110: 2244 | E110: 2137 | F110: 0.04768270945
B111: 8008716 | C111: KODAK S3060 5YR PW OS NBD 1PM ESS KCK | D111: 3739 | E111: 3561 | F111: 0.04760631185
B112: 8008740 | C112: KODAK S3100 3YR PW OS NBD 1PM ESS KCK | D112: 2699 | E112: 2570 | F112: 0.04779547981
B113: 8008765 | C113: KODAK S3100 5YR PW OS NBD 1PM ESS KCK | D113: 4498 | E113: 4284 | F113: 0.04757670076
B114: 8008823 | C114: KODAK S3100F 3YR PW OS NBD 1PM ESS KCK | D114: 2699 | E114: 2570 | F114: 0.04779547981
B115: 8008831 | C115: KODAK S3100F 5YR PW OS NBD 1PM ESS KCK | D115: 4498 | E115: 4284 | F115: 0.04757670076
B116: 8008963 | C116: KODAK S3120 3YR PW OS NBD 1PM ESS KCK | D116: 2868 | E116: 2731 | F116: 0.04776847978
B117: 8008989 | C117: KODAK S3120 5YR PW OS NBD 1PM ESS KCK | D117: 4780 | E117: 4552 | F117: 0.04769874477
B118: Kodak Scanners
B119: 1060094 | C119: KODAK - SCAN STATION 730 EX PLUS - 70PPM
B120: Accessories
B121: 1894351 | C121: A3 FLATBED 11 X 17 | D121: 1400 | E121: 1372 | F121: 0.02
B122: 1199470 | C122: LEGAL FLATBED I2000 & I3000 | D122: 500 | E122: 490 | F122: 0.02

Sheet Supplies
A1: Konica Minolta Business Solutions U.S.A., Inc. | H1: Table of Contents
A2: Supplies | B2: Item Number | C2: Item Description | D2: MSRP | E2: NASPO Customer Price | F2: Discount
A3: Group A | B3: bh227/287
B4: 14YK | C4: SK-602 STAPLE KIT | D4: 72.08 | E4: 64.872 | F4: =100%-(E4/D4) -> 0.1
B5: A87M030 | C5: TN323K TONER CARTRIDGE | D5: 96 | E5: 86.4 | F5: =100%-(E5/D5) -> 0.1
B6: A7XW0Y1 | C6: WX-104 WASTE TONER BOX | D6: 43 | E6: 38.7 | F6: =100%-(E6/D6) -> 0.1
B7: bh301i/361i
B8: AC7A030 | C8: TN330 BLACK TONER | D8: 106 | E8: 95.4 | F8: =100%-(E8/D8) -> 0.1
B9: AAVA0Y1 | C9: WASTE TONER BOX | D9: 78.83 | E9: 70.947 | F9: =100%-(E9/D9) -> 0.1
B10: 14YK | C10: SK-602 STAPLE KIT | D10: 72.08 | E10: 64.872 | F10: =100%-(E10/D10) -> 0.1
B11: bh451i/bh551i/651i
B12: AC79030 | C12: TN628 BLACK TONER | D12: 96.92 | E12: 87.228 | F12: =100%-(E12/D12) -> 0.1
B13: AAVA0Y1 | C13: WASTE TONER BOX | D13: 78.83 | E13: 70.947 | F13: =100%-(E13/D13) -> 0.1
B14: 14YK | C14: SK-602 STAPLE KIT | D14: 72.08 | E14: 64.872 | F14: =100%-(E14/D14) -> 0.1
B15: ACFRWY1 | C15: SK-704 STAPLES FOR FS-540 | D15: 220.71 | E15: 198.639 | F15: =100%-(E15/D15) -> 0.1
B16: bh751i
B17: ACYP030 | C17: TN714 TONER | D17: 161.54 | E17: 145.386 | F17: =100%-(E17/D17) -> 0.1
B18: AAVA0Y1 | C18: WASTE TONER BOX | D18: 78.83 | E18: 70.947 | F18: =100%-(E18/D18) -> 0.1
B19: 14YK | C19: SK-602 STAPLE KIT | D19: 72.08 | E19: 64.872 | F19: =100%-(E19/D19) -> 0.1
B20: ACFRWY1 | C20: SK-704 STAPLES FOR FS-540 | D20: 220.71 | E20: 198.639 | F20: =100%-(E20/D20) -> 0.1
B21: bh850i
B22: A8H5030 | C22: TN812 BH808 TONER (YIELD 40800) | D22: 150 | E22: 135 | F22: =100%-(E22/D22) -> 0.1
B23: A2WY0Y1 | C23: WASTE TONER BOX WX-102 | D23: 41 | E23: 36.9 | F23: =100%-(E23/D23) -> 0.1
B24: 4599141 | C24: STAPLES MS-10A(FOR FN-115) | D24: 160 | E24: 144 | F24: =100%-(E24/D24) -> 0.1
B25: 14YK | C25: SK-602 STAPLE KIT | D25: 72.08 | E25: 64.872 | F25: =100%-(E25/D25) -> 0.1
B26: bh950i
B27: A8H5031 | C27: TN912 BH958 TONER (YIELD 40800) | D27: 130 | E27: 117 | F27: =100%-(E27/D27) -> 0.1
B28: A2WY0Y1 | C28: WASTE TONER BOX WX-102 | D28: 41 | E28: 36.9 | F28: =100%-(E28/D28) -> 0.1
B29: 4599141 | C29: STAPLES MS-10A(FOR FN-115) | D29: 160 | E29: 144 | F29: =100%-(E29/D29) -> 0.1
B30: 14YK | C30: SK-602 STAPLE KIT | D30: 72.08 | E30: 64.872 | F30: =100%-(E30/D30) -> 0.1
B31: C251i/C301i/C361i
B32: AAV8230 | C32: TN-328Y YELLOW TONER | D32: 220.76 | E32: 198.684 | F32: =100%-(E32/D32) -> 0.1
B33: AAV8330 | C33: TN-328M MAGENTA TONER | D33: 220.76 | E33: 198.684 | F33: 0.1
B34: AAV8430 | C34: TN-328C CYAN TONER | D34: 220.76 | E34: 198.684 | F34: 0.1
B35: AAV8130 | C35: TN-328K BLACK TONER | D35: 93.33 | E35: 83.997 | F35: 0.1
B36: AAVA0Y1 | C36: WASTE TONER BOX | D36: 78.83 | E36: 70.947 | F36: 0.1
B37: 14YK | C37: SK-602 STAPLE KIT | D37: 72.08 | E37: 64.872 | F37: 0.1
B38: ACV80RE | C38: DR618K | D38: 218.19 | E38: 196.371 | F38: 0.1
B39: C451i/C551i/C651i
B40: ACV1130 | C40: TN626K BLACK TONER (YIELD: 28K) | D40: 71 | E40: 63.9 | F40: =100%-(E40/D40) -> 0.1
B41: ACV1230 | C41: TN626Y YELLOW TONER (YIELD: 28K) | D41: 169.5 | E41: 152.55 | F41: 0.1
B42: ACV1330 | C42: TN626M MAGENTA TONER (YIELD: 28K) | D42: 169.5 | E42: 152.55 | F42: 0.1
B43: ACV1430 | C43: TN626C CYAN TONER (YIELD: 28K) | D43: 169.5 | E43: 152.55 | F43: 0.1
B44: AAVA0Y1 | C44: WASTE TONER BOX | D44: 78.83 | E44: 70.947 | F44: 0.1
B45: 14YK | C45: SK-602 STAPLE KIT | D45: 72.08 | E45: 64.872 | F45: 0.1
B46: ACFRWY1 | C46: SK-704 STAPLES FOR FS-540 | D46: 220.71 | E46: 198.639 | F46: 0.1
B47: C751i
B48: ACP8430 | C48: TN715C CYAN TONER | D48: 148.57 | E48: 133.713 | F48: =100%-(E48/D48) -> 0.1
B49: ACP8130 | C49: TN715K BLACK TONER | D49: 106.78 | E49: 96.102 | F49: 0.1
B50: ACP8330 | C50: TN715M MAGENTA TONER | D50: 148.57 | E50: 133.713 | F50: 0.1
B51: ACP8230 | C51: TN715Y YELLOW TONER | D51: 148.57 | E51: 133.713 | F51: 0.1
B52: AAVA0Y1 | C52: WASTE TONER BOX | D52: 78.83 | E52: 70.947 | F52: 0.1
B53: 14YK | C53: SK-602 STAPLE KIT | D53: 72.08 | E53: 64.872 | F53: 0.1
B54: ACFRWY1 | C54: SK-704 STAPLES FOR FS-540 | D54: 220.71 | E54: 198.639 | F54: 0.1
A57: Group B | B57: 4051i/4751i
B58: ACTD030 | C58: TNP90 | D58: 190 | E58: 171 | F58: =100%-(E58/D58) -> 0.1
B59: AAJV01D | C59: IUP35K IMAGING UNIT BLACK | D59: 199 | E59: 179.1 | F59: =100%-(E59/D59) -> 0.1
B60: ACTE011 | C60: WASTE TONER BOTTLE | D60: 75.99 | E60: 68.391 | F60: =100%-(E60/D60) -> 0.1
B61: A6Y8WY1 | C61: SK-501 | D61: 99 | E61: 89.1 | F61: =100%-(E61/D61) -> 0.1
B62: 14YK | C62: SK-602 STAPLE KIT | D62: 72.08 | E62: 64.872 | F62: =100%-(E62/D62) -> 0.1
B63: 4020i
B64: ACF0030 | C64: TNP78 BLACK TONER BH 5020i/4020i(YLD:12K | D64: 133 | E64: 119.7 | F64: =100%-(E64/D64) -> 0.1
B65: ACEY02D | C65: IUP37 IMAGING UNIT | D65: 85 | E65: 76.5 | F65: =100%-(E65/D65) -> 0.1
B66: 14YK | C66: SK-602 STAPLE KIT | D66: 72.08 | E66: 64.872 | F66: =100%-(E66/D66) -> 0.1
B67: 5020i
B68: ACF0030 | C68: TNP78 BLACK TONER BH 5020i/4020i(YLD:12K | D68: 133 | E68: 119.7 | F68: =100%-(E68/D68) -> 0.1
B69: ACF0031 | C69: TNP77 BLACK TONER BH 5020i (YIELD: 20K) | D69: 210 | E69: 189 | F69: =100%-(E69/D69) -> 0.1
B70: ACEY02D | C70: IUP37 IMAGING UNIT | D70: 85 | E70: 76.5 | F70: =100%-(E70/D70) -> 0.1
B71: 14YK | C71: SK-602 STAPLE KIT | D71: 72.08 | E71: 64.872 | F71: =100%-(E71/D71) -> 0.1
B72: C3351i/C4051i
B73: AAJW130 | C73: TNP79K - BLACK TONER (YIELD: 13K ) | D73: 71.5 | E73: 64.35 | F73: =100%-(E73/D73) -> 0.1
B74: AAJV0HD | C74: IUP35C IMAGING UNIT CYAN | D74: 328.9 | E74: 296.01 | F74: 0.1
B75: AAJV01D | C75: IUP35K IMAGING UNIT BLACK | D75: 199 | E75: 179.1 | F75: 0.1
B76: AAJV0CD | C76: IUP35M IMAGING UNIT MAGENTA | D76: 328.9 | E76: 296.01 | F76: 0.1
B77: AAJV06D | C77: IUP35Y IMAGING UNIT YELLOW | D77: 328.9 | E77: 296.01 | F77: 0.1
B78: ACDN0Y1 | C78: WASTE TONER BOTTLE | D78: 75.99 | E78: 68.391 | F78: 0.1
B79: A6Y8WY1 | C79: SK-501 | D79: 99 | E79: 89.1 | F79: 0.1
B80: 14YK | C80: SK-602 STAPLE KIT | D80: 72.08 | E80: 64.872 | F80: 0.1
B81: C3321i
B82: 14YK | C82: SK-602 STAPLE KIT | D82: 72.08 | E82: 64.872 | F82: =100%-(E82/D82) -> 0.1
B83: AAJV0HE | C83: IUP36C IMAGING UNIT CYAN | D83: 191 | E83: 171.9 | F83: 0.1
B84: AAJV01E | C84: IUP36K IMAGING UNIT BLACK | D84: 199 | E84: 179.1 | F84: 0.1
B85: AAJV0CE | C85: IUP36M IMAGING UNIT MAGENTA | D85: 191 | E85: 171.9 | F85: 0.1
B86: AAJV06E | C86: IUP36Y IMAGING UNIT YELLOW | D86: 191 | E86: 171.9 | F86: 0.1
B87: AAJW432 | C87: TNP80C CYAN TONER | D87: 215.2 | E87: 193.68 | F87: 0.1
B88: AAJW132 | C88: TNP80K BLACK TONER | D88: 89 | E88: 80.1 | F88: 0.1
B89: AAJW332 | C89: TNP80M MAGENTA TONER | D89: 215.2 | E89: 193.68 | F89: 0.1
B90: AAJW232 | C90: TNP80Y YELLOW TONER | D90: 215.2 | E90: 193.68 | F90: 0.1
B91: ACDN0Y1 | C91: WASTE TONER BOTTLE | D91: 75.99 | E91: 68.391 | F91: 0.1
A93: Group C | B93: C4065
B94: 14YH | C94: SK601 STAPLE FOR SD-501 | D94: 127 | E94: 114.48 | F94: 0.09858267717
B95: A85VWY1 | C95: SK-601H STAPLES | D95: 127 | E95: 114.48 | F95: 0.09858267717
B96: 14YK | C96: SK-602 STAPLE KIT | D96: 72 | E96: 64.87 | F96: 0.09902777778
B97: A4RCWY1 | C97: SK-703 STAPLES FOR FS-532 (5,000 x 5) | D97: 240 | E97: 216 | F97: 0.1
B98: A3VX431 | C98: TN620C CYAN TONER C1060L | D98: 346 | E98: 311.29 | F98: 0.1003179191
B99: A3VX131 | C99: TN620K BLACK TONER C1060L | D99: 154 | E99: 138.95 | F99: 0.09772727273
B100: A3VX331 | C100: TN620M MAGENTA TONER C1060L | D100: 281 | E100: 253.27 | F100: 0.09868327402
B101: A3VX231 | C101: TN620Y YELLOW TONER C1060L | D101: 357 | E101: 321.58 | F101: 0.09921568627
B102: 918045 | C102: ED DIG CTD SLK WHT 100T 25.5X11 | D102: 65 | E102: 58.5 | F102: 0.1
B103: C4070/C4080
B104: 14YH | C104: SK601 STAPLE FOR SD-501 | D104: 127 | E104: 114.48 | F104: 0.09858267717
B105: A85VWY1 | C105: SK-601H STAPLES | D105: 127 | E105: 114.48 | F105: 0.09858267717
B106: 14YK | C106: SK-602 STAPLE KIT | D106: 72 | E106: 64.87 | F106: 0.09902777778
B107: A4RCWY1 | C107: SK-703 STAPLES FOR FS-532 (5,000 x 5) | D107: 240 | E107: 216 | F107: 0.1
B108: 760025 | C108: PLOCKMATIC STAPLE CARTRIDGE (5K X 3) | D108: 133 | E108: 119.7 | F108: 0.1
B109: A080WY1 | C109: GC-501 GLUE FOR PERFECT BINDER | D109: 40 | E109: 36 | F109: 0.1
B110: A3VX130 | C110: TN619K BLACK TONER | D110: 117 | E110: 105.3 | F110: 0.1
B111: A3VX230 | C111: TN619Y YELLOW TONER | D111: 343 | E111: 308.7 | F111: 0.1
B112: A3VX330 | C112: TN619M MAGENTA TONER | D112: 260 | E112: 234 | F112: 0.1
B113: A3VX430 | C113: TN619C CYAN TONER | D113: 372 | E113: 334.8 | F113: 0.1
B114: 918045 | C114: ED DIG CTD SLK WHT 100T 25.5X11 | D114: 65 | E114: 58.5 | F114: 0.1
B115: C7090/C7100
B116: 14YH | C116: SK601 STAPLE FOR SD-501 | D116: 127 | E116: 114.48 | F116: 0.09858267717
B117: A85VWY1 | C117: SK-601H STAPLES | D117: 127 | E117: 114.48 | F117: 0.09858267717
B118: 14YK | C118: SK-602 STAPLE KIT | D118: 72 | E118: 64.87 | F118: 0.09902777778
B119: A4RCWY1 | C119: SK-703 STAPLES FOR FS-532 (5,000 x 5) | D119: 240 | E119: 216 | F119: 0.1
B120: 760025 | C120: PLOCKMATIC STAPLE CARTRIDGE (5K X 3) | D120: 133 | E120: 119.7 | F120: 0.1
B121: A080WY1 | C121: GC-501 GLUE FOR PERFECT BINDER | D121: 40 | E121: 36 | F121: 0.1
B122: AD3H430 | C122: TN629C CYAN TONER | D122: 259 | E122: 233.48 | F122: 0.09853281853
B123: AD3H130 | C123: TN629K BLACK TONER | D123: 142 | E123: 127.62 | F123: 0.1012676056
B124: AD3H330 | C124: TN629M MAGENTA TONER | D124: 238 | E124: 214.58 | F124: 0.09840336134
B125: AD3H230 | C125: TN629Y YELLOW TONER | D125: 283 | E125: 254.54 | F125: 0.100565371
B126: AD3K900 | C126: DV629C CYAN DEVELOPER | D126: 990 | E126: 890.69 | F126: 0.1003131313
B127: AD3K600 | C127: DV629K BLACK DEVELOPER | D127: 661 | E127: 595.17 | F127: 0.09959152799
B128: AD3K800 | C128: DV629M MAGENTA DEVELOPER | D128: 990 | E128: 890.69 | F128: 0.1003131313
B129: AD3K700 | C129: DV629Y YELLOW DEVELOPER | D129: 990 | E129: 890.69 | F129: 0.1003131313
B130: AD3J0Y1 | C130: DRUM UNIT DR629 | D130: 615 | E130: 553.73 | F130: 0.09962601626
B131: C12000/C14000
B132: 14YH | C132: SK601 STAPLE FOR SD-501 | D132: 127 | E132: 114.48 | F132: 0.09858267717
B133: A85VWY1 | C133: SK-601H STAPLES | D133: 127 | E133: 114.48 | F133: 0.09858267717
B134: 14YK | C134: SK-602 STAPLE KIT | D134: 72 | E134: 64.87 | F134: 0.09902777778
B135: A4RCWY1 | C135: SK-703 STAPLES FOR FS-532 (5,000 x 5) | D135: 240 | E135: 216 | F135: 0.1
B136: 760025 | C136: PLOCKMATIC STAPLE CARTRIDGE (5K X 3) | D136: 133 | E136: 119.7 | F136: 0.1
B137: A080WY1 | C137: GC-501 GLUE FOR PERFECT BINDER | D137: 40 | E137: 36 | F137: 0.1
B138: ACVV430 | C138: TN627C CYAN TONER | D138: 339 | E138: 305.1 | F138: 0.1
B139: ACVV130 | C139: TN627K BLACK TONER | D139: 217 | E139: 195.3 | F139: 0.1
B140: ACVV330 | C140: TN627M MAGENTA TONER | D140: 395 | E140: 355.5 | F140: 0.1
B141: ACVV230 | C141: TN627Y YELLOW TONER | D141: 350 | E141: 315 | F141: 0.1
B142: 918045 | C142: ED DIG CTD SLK WHT 100T 25.5X11 | D142: 65 | E142: 58.5 | F142: 0.1
B143: ACTD030 | C143: TNP90 | D143: 190 | E143: 171 | F143: 0.1
B144: AAJV01D | C144: IUP35K IMAGING UNIT BLACK | D144: 199 | E144: 179.1 | F144: 0.1
B145: ACTE011 | C145: WASTE TONER BOTTLE | D145: 76 | E145: 68.39 | F145: 0.1001315789
B146: A6Y8WY1 | C146: SK-501 | D146: 99 | E146: 89.1 | F146: 0.1
B147: 14YK | C147: SK-602 STAPLE KIT | D147: 72 | E147: 64.87 | F147: =100%-(E147/D147) -> 0.09902777778
B148: bh2100
B149: A88J130 | C149: TN016 TONER | D149: 163 | E149: 146.7 | F149: =100%-(E149/D149) -> 0.1
B150: A4RCWY1 | C150: SK-703 STAPLES FOR FS-532 (5,000 x 5) | D150: 240 | E150: 216 | F150: 0.1
B151: 14YK | C151: SK-602 STAPLE KIT | D151: 72 | E151: 64.87 | F151: 0.09902777778
B152: bh7120/7136
B153: 14YH | C153: SK601 STAPLE FOR SD-501 | D153: 127 | E153: 114.48 | F153: 0.09858267717
B154: A85VWY1 | C154: SK-601H STAPLES | D154: 127 | E154: 114.48 | F154: 0.09858267717
B155: 14YK | C155: SK-602 STAPLE KIT | D155: 72 | E155: 64.87 | F155: 0.09902777778
B156: A4RCWY1 | C156: SK-703 STAPLES FOR FS-532 (5,000 x 5) | D156: 240 | E156: 216 | F156: 0.1
B157: 760025 | C157: PLOCKMATIC STAPLE CARTRIDGE (5K X 3) | D157: 133 | E157: 119.7 | F157: 0.1
B158: A080WY1 | C158: GC-501 GLUE FOR PERFECT BINDER | D158: 40 | E158: 36 | F158: 0.1
B159: A9K1130 | C159: TN017 TONER FOR 6136/6120 | D159: 275 | E159: 247.5 | F159: 0.1
B160: bh Press 6272P
B161: 14YH | C161: SK601 STAPLE FOR SD-501 | D161: 127 | E161: 114.48 | F161: 0.09858267717
B162: A85VWY1 | C162: SK-601H STAPLES | D162: 127 | E162: 114.48 | F162: 0.09858267717
B163: 14YK | C163: SK-602 STAPLE KIT | D163: 72 | E163: 64.87 | F163: 0.09902777778
B164: A4RCWY1 | C164: SK-703 STAPLES FOR FS-532 (5,000 x 5) | D164: 240 | E164: 216 | F164: 0.1
B165: 760025 | C165: PLOCKMATIC STAPLE CARTRIDGE (5K X 3) | D165: 133 | E165: 119.7 | F165: 0.1
B166: A080WY1 | C166: GC-501 GLUE FOR PERFECT BINDER | D166: 40 | E166: 36 | F166: 0.1
B167: A9K1130 | C167: TN017 TONER FOR 6136/6120 | D167: 275 | E167: 247.5 | F167: 0.1
B168: bh Press 2250P
B169: 14YH | C169: SK601 STAPLE FOR SD-501 | D169: 127 | E169: 114.48 | F169: 0.09858267717
B170: A85VWY1 | C170: SK-601H STAPLES | D170: 127 | E170: 114.48 | F170: 0.09858267717
B171: A4RCWY1 | C171: SK-703 STAPLES FOR FS-532 (5,000 x 5) | D171: 240 | E171: 216 | F171: 0.1
B172: A080WY1 | C172: GC-501 GLUE FOR PERFECT BINDER | D172: 40 | E172: 36 | F172: 0.1
B173: A3VV130 | C173: TN014 TONER FOR 1250/1052 | D173: 275 | E173: 247.5 | F173: 0.1
A175: Group D | B175: C3301i/C4001i
B176: 14YK | C176: SK-602 STAPLE KIT | D176: 72 | E176: 64.87 | F176: 0.09902777778
B177: AAJV0HE | C177: IUP36C IMAGING UNIT CYAN | D177: 191 | E177: 171.9 | F177: 0.1
B178: AAJV01E | C178: IUP36K IMAGING UNIT BLACK | D178: 199 | E178: 179.1 | F178: 0.1
B179: AAJV0CE | C179: IUP36M IMAGING UNIT MAGENTA | D179: 191 | E179: 171.9 | F179: 0.1
B180: AAJV06E | C180: IUP36Y IMAGING UNIT YELLOW | D180: 191 | E180: 171.9 | F180: 0.1
B181: AAJW431 | C181: TNP81C - CYAN TONER (YIELD: 9000) | D181: 165 | E181: 148.5 | F181: 0.1
B182: AAJW131 | C182: TNP81K - BLACK TONER (YIELD: 13000) | D182: 72 | E182: 64.35 | F182: 0.10625
B183: AAJW331 | C183: TNP81M - MAGENTA TONER (YIELD: 9000) | D183: 165 | E183: 148.5 | F183: 0.1
B184: AAJW231 | C184: TNP81Y - YELLOW TONER (YIELD: 9000) | D184: 165 | E184: 148.5 | F184: 0.1
B185: ACDN0Y1 | C185: WASTE TONER BOTTLE | D185: 76 | E185: 68.39 | F185: 0.1001315789
B186: 4701i
B187: ACTE011 | C187: WASTE TONER BOTTLE | D187: 76 | E187: 68.39 | F187: 0.1001315789
B188: ACTD031 | C188: TNP91 | D188: 190 | E188: 171 | F188: 0.1
B189: AAJV01E | C189: IUP36K IMAGING UNIT BLACK | D189: 199 | E189: 179.1 | F189: 0.1
B190: A6Y8WY1 | C190: SK-501 | D190: 99 | E190: 89.1 | F190: 0.1
B191: 14YK | C191: SK-602 STAPLE KIT | D191: 72 | E191: 64.87 | F191: 0.09902777778
B192: 5000i
B193: ACF0032 | C193: TNP76 BLACK TONER BH 5000i/4000i(YLD:12K | D193: 133 | E193: 119.7 | F193: 0.1
B194: ACF0033 | C194: TNP75 BLACK TONER BH 5000i (YIELD: 20K) | D194: 162 | E194: 145.8 | F194: 0.1
B195: ACEY02D | C195: IUP37 IMAGING UNIT | D195: 85 | E195: 76.5 | F195: 0.1
B196: 14YK | C196: SK-602 STAPLE KIT | D196: 72 | E196: 64.87 | F196: 0.09902777778

Sheet Accessories for Discon Devices
A1: Konica Minolta Business Solutions U.S.A., Inc. | H1: Table of Contents
A2: Discontinued Accessories | B2: Item Number | C2: Item Description | D2: MSRP | E2: Discount from MSRP
A3: Group A
A4: Segment 2 | B4: Bizhub 300i,360i,C250i,C300i
B5: A0W4WY3 | C5: WT-506 WORKING TABLE | D5: 124 | E5: 0.65
B6: A87JWY2 | C6: RU-513 RELAY UNIT | D6: 231 | E6: 0.65
B7: A0X9WY1 | C7: AU-102 Biometric Authentication Unit | D7: 1042 | E7: 0.65
A8: Segment 3 | B8: Bizhub 360i, C360i
B9: A0W4WY3 | C9: WT-506 WORKING TABLE | D9: 124 | E9: 0.65
B10: A87JWY2 | C10: RU-513 RELAY UNIT | D10: 231 | E10: 0.65
B11: A0X9WY1 | C11: AU-102 Biometric Authentication Unit | D11: 1042 | E11: 0.65
A12: Segment 4 | B12: Bizhub 450i, C450i
B13: A0W4WY3 | C13: WT-506 WORKING TABLE | D13: 124 | E13: 0.65
B14: A87JWY2 | C14: RU-513 RELAY UNIT | D14: 231 | E14: 0.65
B15: ACV0WY1 | C15: OT-513 OUTPUT TRAY | D15: 123 | E15: 0.65
B16: A0X9WY1 | C16: AU-102 Biometric Authentication Unit | D16: 1042 | E16: 0.65
A17: Segment 5 | B17: Bizhub 550i, C550i
B18: A0W4WY3 | C18: WT-506 WORKING TABLE | D18: 124 | E18: 0.65
B19: A87JWY2 | C19: RU-513 RELAY UNIT | D19: 231 | E19: 0.65
B20: ACV0WY1 | C20: OT-513 OUTPUT TRAY | D20: 123 | E20: 0.65
B21: A0X9WY1 | C21: AU-102 Biometric Authentication Unit | D21: 1042 | E21: 0.65
A22: Segment 6 | B22: Bizhub 650i, C650i
B23: A0W4WY3 | C23: WT-506 WORKING TABLE | D23: 124 | E23: 0.65
B24: A87JWY2 | C24: RU-513 RELAY UNIT | D24: 231 | E24: 0.65
B25: ACV0WY1 | C25: OT-513 OUTPUT TRAY | D25: 123 | E25: 0.65
B26: A0X9WY1 | C26: AU-102 Biometric Authentication Unit | D26: 1042 | E26: 0.65
A27: Segment 7 | B27: Bizhub 750i, C750i
B28: A0W4WY3 | C28: WT-506 WORKING TABLE | D28: 124 | E28: 0.65
B29: A87JWY2 | C29: RU-513 RELAY UNIT | D29: 231 | E29: 0.65
B30: ACV0WY1 | C30: OT-513 OUTPUT TRAY | D30: 123 | E30: 0.65
B31: ACWAWY1 | C31: OT-514 OUTPUT TRAY | D31: 325 | E31: 0.65
B32: A0X9WY1 | C32: AU-102 Biometric Authentication Unit | D32: 1042 | E32: 0.65
A33: Segment 7 | B33: Bizhub 808, 958,
B34: PAPER SUPPLY OPTIONS:
B35: A8H7W11 | C35: LU-205 LARGE CAPACITY TRAY | D35: 3663 | E35: 0.65
B36: A87HWY1 | C36: FS-537 FINISHER (100 sheets) | D36: 3322 | E36: 0.65
B37: A87HWYA | C37: FS-537 SD FINISHER | D37: 4950 | E37: 0.65
B38: A99KW11 | C38: PK-523 PUNCH KIT FOR FS-537 | D38: 935 | E38: 0.65
B39: A8C6WY2 | C39: PI-507 POST INSERTER | D39: 1221 | E39: 0.65
B40: A87GWY3 | C40: FS-536 FINISHER (50 sheets) | D40: 1815 | E40: 0.65
B41: A87GWYA | C41: FS-536 SD FINISHER | D41: 3405 | E41: 0.65
B42: A3ETW11 | C42: PK-520 PUNCH KIT FOR FS-534/FS-536 | D42: 645 | E42: 0.65
B43: OUTPUT OPTIONS:
B44: A0X9WY1 | C44: AU-102 Biometric Authentication Unit | D44: 1042 | E44: 0.65
B45: MISC. OPTIONS:
B46: A8HAWY1 | C46: EK-611 LOCAL INTERFACE KIT | D46: 307 | E46: 0.65
B47: A4NRWY2 | C47: KH-102 KEYBOARD HOLDER | D47: 136 | E47: 0.65
B48: A64TWY4 | C48: KEYPAD KP-101 | D48: 139 | E48: 0.65
B49: A0W4WY3 | C49: WT-506 WORKING TABLE | D49: 124 | E49: 0.65
B50: A8HCWY2 | C50: WT-513 WORKING TABLE | D50: 2750 | E50: 0.65
B51: A4MMWY3 | C51: SC-508 SECURITY KIT | D51: 1348 | E51: 0.65
B52: A8WCWY1 | C52: UK-501 DOUBLE FEED DETECTION KIT | D52: 358 | E52: 0.65
B53: W200020208 | C53: PWRFILTER W PREMIUM INRUSH 208V/20A | D53: 445 | E53: 0.15
B54: P250020120 | C54: DIAGNOSTIC PWRFILTER BLUETOOTH 120V/20A | D54: 325 | E54: 0.15
A56: Group B
A57: Segment 3 | B57: Bizhub C3320i, C3350i, C4050i
B58: ACCGWY1 | C58: FS-P04 OFF LINE STAPLER | D58: 299 | E58: 0.65
B59: AAJUW13 | C59: PF-P21 | D59: 374 | E59: 0.65
A60: Segment 4 | B60: Bizhub 4050i, 4750i
B61: ACCGWY1 | C61: FS-P04 OFF LINE STAPLER | D61: 299 | E61: 0.65
B62: AAJUW13 | C62: PF-P21 | D62: 374 | E62: 0.65
A64: Group C
B65: Accurio Press 6120, 6136/6136P
B66: PAPER SUPPLY OPTIONS:
B67: A9JXWY1 | C67: PF-710 PAPER FEED UNIT | D67: 12102.48 | E67: 0.65
B68: ACCXWY2 | C68: IM-101 INTELLIGENT MEDIA SENSOR | D68: 1785 | E68: 0.65
B69: OUTPUT OPTIONS:
B70: AAANWY1 | C70: VIDEO INTERFACE KIT VI-512 | D70: 1372.8 | E70: 0.65
B71: A9P9WY1 | C71: EF-105 ENVELOPE FUSER | D71: 3942.64 | E71: 0.65
B72: AC5MWY1 | C72: VIDEO INTERFACE KIT VI-513 | D72: 1081.6 | E72: 0.65
B73: PRINT CONTROLLER OPTIONS:
B74: 45181781 | C74: EXTERNAL HDD KIT NX ONE | D74: 2625 | E74: 0.15
B75: 45206712 | C75: FIERY IMPOSE WITHOUT ACRBT-PTSTP | D75: 2625 | E75: 0.15
B76: 45206716 | C76: FIERY COMPOSE WITHOUT ACRBT-PTSTP | D76: 1155 | E76: 0.15
B77: 45206719 | C77: FIERY IMPOSE-COMPOSE WITHOUT ACRBT-PTSTP | D77: 3150 | E77: 0.15
B78: 45206722 | C78: FIERY JOBMASTER WITHOUT ACRBT-PTSTP | D78: 4410 | E78: 0.15
B79: 45206725 | C79: FIERY JOBMASTER-IMPOSE W-OUT ACRBT-PTSTP | D79: 6300 | E79: 0.15
B80: 100000006366 | C80: FIERY JOBMASTER ANNUAL MAINTENANCE | D80: 735 | E80: 0.15
B81: 100000006367 | C81: FIERY JOBMASTER-IMPOSE ANNUAL MAINT | D81: 1050 | E81: 0.15
B82: A9G1WY2 | C82: VI-509 VIDEO INTERFACE KIT | D82: 1144 | E82: 0.65
B83: Accurio Press 6136/6136P
B84: A9JXWY1 | C84: PF-710 PAPER FEED UNIT | D84: 12102.48 | E84: 0.65
B85: OUTPUT OPTIONS:
B86: AAANWY1 | C86: VIDEO INTERFACE KIT VI-512 | D86: 1372.8 | E86: 0.65
B87: A9P9WY1 | C87: EF-105 ENVELOPE FUSER | D87: 3942.64 | E87: 0.65
B88: AC5MWY1 | C88: VIDEO INTERFACE KIT VI-513 | D88: 1081.6 | E88: 0.65
B89: PRINT CONTROLLER OPTIONS:
B90: 45181781 | C90: EXTERNAL HDD KIT NX ONE | D90: 2625 | E90: 0.15
B91: 45206712 | C91: FIERY IMPOSE WITHOUT ACRBT-PTSTP | D91: 2625 | E91: 0.15
B92: 45206716 | C92: FIERY COMPOSE WITHOUT ACRBT-PTSTP | D92: 1155 | E92: 0.15
B93: 45206719 | C93: FIERY IMPOSE-COMPOSE WITHOUT ACRBT-PTSTP | D93: 3150 | E93: 0.15
B94: 45206722 | C94: FIERY JOBMASTER WITHOUT ACRBT-PTSTP | D94: 4410 | E94: 0.15
B95: 45206725 | C95: FIERY JOBMASTER-IMPOSE W-OUT ACRBT-PTSTP | D95: 6300 | E95: 0.15
B96: 100000006366 | C96: FIERY JOBMASTER ANNUAL MAINTENANCE | D96: 735 | E96: 0.15
B97: 100000006367 | C97: FIERY JOBMASTER-IMPOSE ANNUAL MAINT | D97: 1050 | E97: 0.15
B98: A9G1WY2 | C98: VI-509 VIDEO INTERFACE KIT | D98: 1144 | E98: 0.65
A100: Group D
A101: Segment 2 | B101: Bizhub 4700i, C3300i
B102: ACCGWY1 | C102: FS-P04 OFF LINE STAPLER | D102: 299 | E102: 0.65
B103: AAJUW13 | C103: PF-P21 | D103: 374 | E103: 0.65
A104: Segment 3 | B104: Bizhub C4000i
B105: ACCGWY1 | C105: FS-P04 OFF LINE STAPLER | D105: 299 | E105: 0.65
B106: AAJUW13 | C106: PF-P21 | D106: 374 | E106: 0.65

Sheet Discontinued Service Supplies
A1: Konica Minolta Business Solutions U.S.A., Inc. | H1: Table of Contents
A2: Discontinued Service Supplies | B2: Item Number | C2: Item Description | D2: MSRP | E2: Discount from MSRP
A3: Group A
A8: Group B
A13: Group C
A19: Group D

Sheet After Hours Service
A1: Konica Minolta Business Solutions U.S.A., Inc. | C1: Konica Minolta Business Solutions U.S.A., Inc. | P1: Table of Contents
D4: FULL COVERAGE SERVICE PLANS
D5: 8-Hour Coverage | J5: Per Event (ad-hoc) After Hour Pricing
D6: Plan: | E6: A | F6: B
D7: Hours/Day: | E7: 8 x 6 | F7: 8 x 7 | L7: Monday to Friday (Shift B and C) | M7: Saturday - Sunday (All Shifts) | N7: Holidays (All Shifts)
D8: Days: | E8: Sat | F8: Sat and Sun
D9: Time: | E9: 8:30am — 5:00pm | F9: 8:30am — 5:00pm
D10: Monthly Flat-Rate Pricing: | E10: $500* | F10: $700* | J10: Production Color | L10: 250 | M10: 250 | N10: 350
J11: Production Mono | L11: 250 | M11: 250 | N11: 350
D12: *Per machine, in addition to the existing service contract. | J12: Segment 4-7 | L12: 250 | M12: 250 | N12: 350
D13: Coverage Explanation: | J13: Segment 1-3 | L13: NA | M13: NA | N13: NA
D14: 8 x 6 provides coverage on Saturday during normal business hours. | J14: Printer, Fax | L14: NA | M14: NA | N14: NA
D15: 8 x 7 provides coverage on Saturday and Sunday during normal business hours.
D16: 16-Hour Coverage | J16: Note: Special local exceptions may apply, and effect the pricing offered.
D17: Plan: | E17: C | F17: D | G17: E
D18: Hours/Days: | E18: 16 x 5 | F18: 16 x 6 | G18: 18 x 7
D19: Days: | E19: Mon - Fri | F19: Mon - Sat | G19: Mon - Sun | J19: Coverage Shifts
D20: Time: | E20: 8:30am - 12:30am | F20: 8:30am - 12:30am | G20: 8:30am - 12:30am
D21: Monthly Flat-Rate Pricing: | E21: $600* | F21: $750* | G21: $900* | J21: Shift | K21: Weekdays (Monday - Friday) | L21: Saturday | M21: Sunday
D23: *Per machine, in addition to the existing service contract. | J23: A | K23: 8:00am - 5:00pm | L23: 8:00am - 5:00pm | M23: 8:00am - 5:00pm
D24: Coverage Explanation: | J24: B | K24: 5:00pm - 12:00am | L24: 5:00pm - 12:00am | M24: 5:00pm - 12:00am
D25: 16 x 5 provides coverage from Monday to Friday until 12:30am (Saturday). | J25: C | K25: 12:00am - 8:00am | L25: 12:00am - 8:00am | M25: 12:00am - 8:00am
D26: 16 x 6 provides coverage from Monday to Saturday until 12:30am (Sunday).
D27: 16 x 7 provides coverage from Monday to Sunday until 12:30am (Monday).
D28: 24-Hour Coverage
D29: Plan: | E29: F | F29: G | G29: H
D30: Hours/Days: | E30: 24 x 5 | F30: 24 x 6 | G30: 24 x 7
D31: Days: | E31: Mon - Fri | F31: Mon - Sat | G31: Mon - Sun
D32: Time: | E32: 12:00am - 12:00am | F32: 12:00am - 12:00am | G32: 12:00am - 12:00am
D33: Monthly Flat-Rate Pricing: | E33: $800* | F33: $900* | G33: $1,000*
D35: *Per machine, in addition to the existing service contract
D36: Coverage Explanation:
D37: 24 x 5 provides lull 24-hour coverage Monday to Friday.
D38: 24 x 6 provides full 24-hour coverage Monday to Saturday.
D39: 24 x 7 provides full 24-hour coverage Monday to Sunday.
